Workbook

Sheet Inputs
E2: Generators tariffs are excluded | O2: ="Version 6.16 8 April 2025" -> Version 6.16 8 April 2025
B4: Tariff Input Sheet
B6: Please enter the required information below:
D8: Customer Name | I8: Enter the customer name as it is displayed on the rates bill.
D9: Account number | I9: Enter the account number as it is displayed on the rates bill.
D10: Point of delivery ID | I10: Enter the Point of Delivery ID as it is displayed on the rates bill.
D11: Number of PODs | H11: 1
D13: Select your tariff category | I13: Select either Non-Local Authority (Eskom), Local Authority (Municipality)
D15: Select customer classification | I15: Select the appropriate customer category - Small Power User (SPU) or Large Power User (LPU)
D17: Select supply size | I17: Select the appropriate customer supply size (kVA)
D19: Select tariff | I19: Drop box selection driven by the supply voltage inputs
A21: =IF(COUNTIF(B21:T21,"n/a")>0,"n/a","") ->  | D21: Select previous tariff | G21: Miniflex
D23: Select supply voltage | I23: Select the appropriate supply voltage (V)
D25: Select transmission zone | I25: =IF(Selected_Customer_Category_ID=1,"Not Applicable to Small Power Users but used for LPU tariff conversions","Select the appropriate transmission zone (km)") -> Select the appropriate transmission zone (km)
D27: NMD | P27: =IF(D36<=TOU_Period,YEAR(TOU_Period),YEAR(TOU_Period)+1) -> 2026
D29: Use HOURLY DATA? | G29: No
B31: Please enter your consumption data in the table below
G33: Peak energy | H33: Standard energy | I33: Off-peak energy | J33: Chargeable demand | K33: Utilised capacity | L33: Excess reactive energy | M33: Total energy | O33: Year | P33: ESKOM Financial Year | Q33: Municipal Financial Year | R33: Month ID
D34: Month | E34: Season | G34: kWh | H34: kWh | I34: kWh | J34: kVA | K34: kVA | L34: kVArh | M34: kWh
A36: =TEXT(D36, "mmmm") -> April | C36: =D36-EOMONTH(D36,-1) -> 30 | D36: =DATE(YEAR(Period)-1,R36+1,) -> 2025-04-30 | E36: =INDEX(List_Seasons,R36,0) -> Low Demand | M36: =SUM($G36:$I36) -> 0 | O36: =INDEX(P36:Q36,0,Selected_Tariff_Category_ID) -> 2026 | P36: =IF(D36<=TOU_Period,YEAR(TOU_Period),YEAR(TOU_Period)+1) -> 2026 | Q36: =IF(Selected_Tariff_Category_ID = 2, YEAR(Municipality_Period), IF(D36<=EOMONTH(Municipality_Period,-12),YEAR(Municipality_Period)-1,YEAR(Municipality_Period))) -> 2025 | R36: =MONTH(Period)+IF(Selected_Tariff_Category_ID=2, 4, 1) -> 4 | S36: =IF(Selected_Tariff_Category_ID = 2, "Apr " & YEAR(Municipality_Period), "") -> 
A37: May | C37: =D37-EOMONTH(D37,-1) -> 31 | D37: =EOMONTH(D36,1) -> 2025-05-31 | E37: =INDEX(List_Seasons,R37,0) -> Low Demand | M37: =SUM($G37:$I37) -> 0 | O37: 2026 | P37: 2026 | Q37: =IF(Selected_Tariff_Category_ID = 2, YEAR(Municipality_Period), IF(D37<=EOMONTH(Municipality_Period,-12),YEAR(Municipality_Period)-1,YEAR(Municipality_Period))) -> 2025 | R37: =MONTH(D37) -> 5 | S37: =IF(Selected_Tariff_Category_ID = 2, "May " & YEAR(Municipality_Period), "") -> 
A38: June | C38: 30 | D38: =EOMONTH(D37,1) -> 2025-06-30 | E38: =INDEX(List_Seasons,R38,0) -> High Demand | M38: 0 | O38: 2026 | P38: 2026 | Q38: =IF(Selected_Tariff_Category_ID = 2, YEAR(Municipality_Period), IF(D38<=EOMONTH(Municipality_Period,-12),YEAR(Municipality_Period)-1,YEAR(Municipality_Period))) -> 2025 | R38: 6 | S38: =IF(Selected_Tariff_Category_ID = 2, "Jun " & YEAR(Municipality_Period), "") -> 
A39: July | C39: 31 | D39: 2025-07-31 | E39: High Demand | M39: 0 | O39: 2026 | P39: 2026 | Q39: =IF(D39<=EOMONTH(Municipality_Period,-12),YEAR(Municipality_Period)-1,YEAR(Municipality_Period)) -> 2026 | R39: 7
A40: August | C40: 31 | D40: 2025-08-31 | E40: High Demand | M40: 0 | O40: 2026 | P40: 2026 | Q40: 2026 | R40: 8
A41: September | C41: 30 | D41: 2025-09-30 | E41: Low Demand | M41: 0 | O41: 2026 | P41: 2026 | Q41: 2026 | R41: 9
A42: October | C42: 31 | D42: 2025-10-31 | E42: Low Demand | M42: 0 | O42: 2026 | P42: 2026 | Q42: 2026 | R42: 10
A43: November | C43: 30 | D43: 2025-11-30 | E43: Low Demand | M43: 0 | O43: 2026 | P43: 2026 | Q43: 2026 | R43: 11
A44: December | C44: 31 | D44: 2025-12-31 | E44: Low Demand | M44: 0 | O44: 2026 | P44: 2026 | Q44: 2026 | R44: 12
A45: January | C45: 31 | D45: 2026-01-31 | E45: Low Demand | M45: 0 | O45: 2026 | P45: 2026 | Q45: 2026 | R45: 1
A46: February | C46: 28 | D46: 2026-02-28 | E46: Low Demand | M46: 0 | O46: 2026 | P46: 2026 | Q46: 2026 | R46: 2
A47: March | C47: 31 | D47: 2026-03-31 | E47: Low Demand | M47: 0 | O47: 2026 | P47: 2026 | Q47: 2026 | R47: 3
D49: Total | G49: =SUM(G36:G47) -> 0 | H49: =SUM(H36:H47) -> 0 | I49: 0 | L49: 0 | M49: 0
B51: Consumption Data Summary
D53: Season | E53: Days | G53: =G$33 -> Peak energy | H53: =H$33 -> Standard energy | I53: Off-peak energy | J53: Chargeable demand | K53: Utilised capacity | L53: Excess reactive energy | M53: Total energy | AB53: Businessrate 1
AB54: Businessrate 2
D55: Low Demand | E55: =SUMIFS(C$36:C$47,$E$36:$E$47,$D55,$O$36:$O$47,$P55) -> 273 | G55: =SUMIFS(G$36:G$47,$E$36:$E$47,$D55,$O$36:$O$47,$P55) -> 0 | H55: 0 | I55: 0 | J55: 0 | K55: 0 | L55: 0 | M55: 0 | P55: =YEAR(TOU_Period) -> 2026 | Q55: =COUNTIF($E$36:$E$47,D55) -> 9 | AB55: Businessrate 3
D56: High Demand | E56: =SUMIFS(C$36:C$47,$E$36:$E$47,$D56,$O$36:$O$47,$P56) -> 92 | G56: 0 | H56: 0 | I56: 0 | J56: 0 | K56: 0 | L56: 0 | M56: 0 | P56: =YEAR(TOU_Period) -> 2026 | Q56: =COUNTIF($E$36:$E$47,D56) -> 3 | AB56: Businessrate 4
AB57: Homelight 20A
D58: Total | E58: =SUM(E55:E56) -> 365 | G58: =SUM(G55:G56) -> 0 | H58: =SUM(H55:H56) -> 0 | I58: 0 | L58: 0 | M58: 0 | AB58: Homelight 60A
AB59: Homepower 1
AB60: Homepower 2
C61: Note | AB61: Homepower 3
C62: Calculations are based on the average number of days per month: Ave days per month = Total number of days in year (365) / months (12) = 30.416667 | AB62: Homepower 4
AB63: Homepower Bulk
AB64: Landrate 1
AB65: Landrate 2
AB66: Landrate 3
B67: SUMMARY OF ACTUAL DATA FROM HOURLY DATA WORKSHEET | AB67: Landrate 4
AB68: Landrate Dx
AB69: Megaflex
B70: Previous TOU actuals from HOURLY DATA worksheet | AB70: Miniflex
AB71: Nightsave Large
G72: Peak energy | H72: Standard energy | I72: Off-peak energy | J72: Chargeable demand | K72: Utilised capacity | L72: Excess reactive energy | M72: Total energy | N72: Maximum demand | O72: Year | P72: ESKOM Financial Year | Q72: Municipal Financial Year | R72: Month ID | AB72: Nightsave Rural
D73: Month | E73: Season | G73: kWh | H73: kWh | I73: kWh | J73: kVA | K73: kVA | L73: kVArh | M73: kWh | N73: kVA | AB73: Nightsave Small
AB74: Ruraflex
A75: =TEXT(D75, "mmmm") -> April | C75: =D75-EOMONTH(D75,-1) -> 30 | D75: =DATE(YEAR(Period)-1,R75+1,) -> 2025-04-30 | E75: =INDEX(List_Seasons,R75,0) -> Low Demand | G75: =IF(OR(Selected_Base_Tariff="RURAFLEX",Selected_Base_Tariff="NIGHTSAVE RURAL"),SUM((TEXT('HOURLY DATA'!$B$4:$B$8763,"mmmm")=$A75)*('HOURLY DATA'!$U$4:$U$8763=1)*('HOURLY DATA'!$H$4:$H$8763)),SUM((TEXT('HOURLY DATA'!$B$4:$B$8763,"mmmm")=$A75)*('HOURLY DATA'!$G$4:$G$8763=1)*('HOURLY DATA'!$H$4:$H$8763))) -> 1181452.165 | H75: =IF(OR(Selected_Base_Tariff="RURAFLEX",Selected_Base_Tariff="NIGHTSAVE RURAL"),SUM((TEXT('HOURLY DATA'!$B$4:$B$8763,"mmmm")=$A75)*('HOURLY DATA'!$U$4:$U$8763=2)*('HOURLY DATA'!$H$4:$H$8763)),SUM((TEXT('HOURLY DATA'!$B$4:$B$8763,"mmmm")=$A75)*('HOURLY DATA'!$G$4:$G$8763=2)*('HOURLY DATA'!$H$4:$H$8763))) -> 3054340.585 | I75: =IF(OR(Selected_Base_Tariff="RURAFLEX",Selected_Base_Tariff="NIGHTSAVE RURAL"),SUM((TEXT('HOURLY DATA'!$B$4:$B$8763,"mmmm")=$A75)*('HOURLY DATA'!$U$4:$U$8763=3)*('HOURLY DATA'!$H$4:$H$8763)),SUM((TEXT('HOURLY DATA'!$B$4:$B$8763,"mmmm")=$A75)*('HOURLY DATA'!$G$4:$G$8763=3)*('HOURLY DATA'!$H$4:$H$8763))) -> 4788109.038 | J75: =MAX(IF((TEXT('HOURLY DATA'!$B$4:$B$8763,"mmmm")=$A75)*OR('HOURLY DATA'!$G$4:$G$8763=2,'HOURLY DATA'!$G$4:$G$8763=1),'HOURLY DATA'!$M$4:$M$8763)) -> 14316.81913 | K75: =MAX(N75,$G$27) -> 14316.81913 | L75: =IF(OR($A75="June",$A75="July", $A75="August",Selected_Base_Tariff="Transflex 1", Selected_Base_Tariff="Transflex 2"),SUM((TEXT('HOURLY DATA'!$B$4:$B$8763,"mmmm")=$A75)*('HOURLY DATA'!$G$4:$G$8763=1+2)*('HOURLY DATA'!$N$4:$N$8763)),"") ->  | M75: =SUM($G75:$I75) -> 9023901.789 | N75: =MAX(IF((TEXT('HOURLY DATA'!$B$4:$B$8763,"mmmm")=$A75),'HOURLY DATA'!$M$4:$M$8763)) -> 14316.81913 | O75: =INDEX(P75:Q75,0,Selected_Tariff_Category_ID) -> 2026 | P75: =IF(D75<=TOU_Period,YEAR(TOU_Period),YEAR(TOU_Period)+1) -> 2026 | Q75: =IF(Selected_Tariff_Category_ID = 2, YEAR(Municipality_Period), IF(D75<=EOMONTH(Municipality_Period,-12),YEAR(Municipality_Period)-1,YEAR(Municipality_Period))) -> 2025 | R75: =MONTH(Period)+IF(Selected_Tariff_Category_ID=2, 4, 1) -> 4 | AB75: Landlight 20A
A76: May | C76: =D76-EOMONTH(D76,-1) -> 31 | D76: =EOMONTH(D75,1) -> 2025-05-31 | E76: =INDEX(List_Seasons,R76,0) -> Low Demand | G76: =IF(OR(Selected_Base_Tariff="RURAFLEX",Selected_Base_Tariff="NIGHTSAVE RURAL"),SUM((TEXT('HOURLY DATA'!$B$4:$B$8763,"mmmm")=$A76)*('HOURLY DATA'!$U$4:$U$8763=1)*('HOURLY DATA'!$H$4:$H$8763)),SUM((TEXT('HOURLY DATA'!$B$4:$B$8763,"mmmm")=$A76)*('HOURLY DATA'!$G$4:$G$8763=1)*('HOURLY DATA'!$H$4:$H$8763))) -> 1342130.822 | H76: =IF(OR(Selected_Base_Tariff="RURAFLEX",Selected_Base_Tariff="NIGHTSAVE RURAL"),SUM((TEXT('HOURLY DATA'!$B$4:$B$8763,"mmmm")=$A76)*('HOURLY DATA'!$U$4:$U$8763=2)*('HOURLY DATA'!$H$4:$H$8763)),SUM((TEXT('HOURLY DATA'!$B$4:$B$8763,"mmmm")=$A76)*('HOURLY DATA'!$G$4:$G$8763=2)*('HOURLY DATA'!$H$4:$H$8763))) -> 3380365.794 | I76: =IF(OR(Selected_Base_Tariff="RURAFLEX",Selected_Base_Tariff="NIGHTSAVE RURAL"),SUM((TEXT('HOURLY DATA'!$B$4:$B$8763,"mmmm")=$A76)*('HOURLY DATA'!$U$4:$U$8763=3)*('HOURLY DATA'!$H$4:$H$8763)),SUM((TEXT('HOURLY DATA'!$B$4:$B$8763,"mmmm")=$A76)*('HOURLY DATA'!$G$4:$G$8763=3)*('HOURLY DATA'!$H$4:$H$8763))) -> 4680030.671 | J76: =MAX(IF((TEXT('HOURLY DATA'!$B$4:$B$8763,"mmmm")=$A76)*OR('HOURLY DATA'!$G$4:$G$8763=2,'HOURLY DATA'!$G$4:$G$8763=1),'HOURLY DATA'!$M$4:$M$8763)) -> 14141.11882 | K76: 14141.11882 | L76: =IF(OR($A76="June",$A76="July", $A76="August",Selected_Base_Tariff="Transflex 1", Selected_Base_Tariff="Transflex 2"),SUM((TEXT('HOURLY DATA'!$B$4:$B$8763,"mmmm")=$A76)*('HOURLY DATA'!$G$4:$G$8763=1+2)*('HOURLY DATA'!$N$4:$N$8763)),"") ->  | M76: =SUM($G76:$I76) -> 9402527.286 | N76: =MAX(IF((TEXT('HOURLY DATA'!$B$4:$B$8763,"mmmm")=$A76),'HOURLY DATA'!$M$4:$M$8763)) -> 14141.11882 | O76: 2026 | P76: 2026 | Q76: =IF(Selected_Tariff_Category_ID = 2, YEAR(Municipality_Period), IF(D76<=EOMONTH(Municipality_Period,-12),YEAR(Municipality_Period)-1,YEAR(Municipality_Period))) -> 2025 | R76: =MONTH(D76) -> 5 | AB76: Landlight 60A
A77: June | C77: 30 | D77: =EOMONTH(D76,1) -> 2025-06-30 | E77: =INDEX(List_Seasons,R77,0) -> High Demand | G77: =IF(OR(Selected_Base_Tariff="RURAFLEX",Selected_Base_Tariff="NIGHTSAVE RURAL"),SUM((TEXT('HOURLY DATA'!$B$4:$B$8763,"mmmm")=$A77)*('HOURLY DATA'!$U$4:$U$8763=1)*('HOURLY DATA'!$H$4:$H$8763)),SUM((TEXT('HOURLY DATA'!$B$4:$B$8763,"mmmm")=$A77)*('HOURLY DATA'!$G$4:$G$8763=1)*('HOURLY DATA'!$H$4:$H$8763))) -> 1104948.29 | H77: =IF(OR(Selected_Base_Tariff="RURAFLEX",Selected_Base_Tariff="NIGHTSAVE RURAL"),SUM((TEXT('HOURLY DATA'!$B$4:$B$8763,"mmmm")=$A77)*('HOURLY DATA'!$U$4:$U$8763=2)*('HOURLY DATA'!$H$4:$H$8763)),SUM((TEXT('HOURLY DATA'!$B$4:$B$8763,"mmmm")=$A77)*('HOURLY DATA'!$G$4:$G$8763=2)*('HOURLY DATA'!$H$4:$H$8763))) -> 2877191.043 | I77: =IF(OR(Selected_Base_Tariff="RURAFLEX",Selected_Base_Tariff="NIGHTSAVE RURAL"),SUM((TEXT('HOURLY DATA'!$B$4:$B$8763,"mmmm")=$A77)*('HOURLY DATA'!$U$4:$U$8763=3)*('HOURLY DATA'!$H$4:$H$8763)),SUM((TEXT('HOURLY DATA'!$B$4:$B$8763,"mmmm")=$A77)*('HOURLY DATA'!$G$4:$G$8763=3)*('HOURLY DATA'!$H$4:$H$8763))) -> 4286153.468 | J77: =MAX(IF((TEXT('HOURLY DATA'!$B$4:$B$8763,"mmmm")=$A77)*OR('HOURLY DATA'!$G$4:$G$8763=2,'HOURLY DATA'!$G$4:$G$8763=1),'HOURLY DATA'!$M$4:$M$8763)) -> 14898.50756 | K77: 14898.50756 | L77: =IF(OR($A77="June",$A77="July", $A77="August",Selected_Base_Tariff="Transflex 1", Selected_Base_Tariff="Transflex 2"),SUM((TEXT('HOURLY DATA'!$B$4:$B$8763,"mmmm")=$A77)*('HOURLY DATA'!$G$4:$G$8763=1+2)*('HOURLY DATA'!$N$4:$N$8763)),"") -> 22638.66891 | M77: 8268292.801 | N77: =MAX(IF((TEXT('HOURLY DATA'!$B$4:$B$8763,"mmmm")=$A77),'HOURLY DATA'!$M$4:$M$8763)) -> 14898.50756 | O77: 2026 | P77: 2026 | Q77: =IF(Selected_Tariff_Category_ID = 2, YEAR(Municipality_Period), IF(D77<=EOMONTH(Municipality_Period,-12),YEAR(Municipality_Period)-1,YEAR(Municipality_Period))) -> 2025 | R77: 6 | AB77: Public Lighting 24 Hours
A78: July | C78: 31 | D78: 2025-07-31 | E78: =INDEX(List_Seasons,R78,0) -> High Demand | G78: =IF(OR(Selected_Base_Tariff="RURAFLEX",Selected_Base_Tariff="NIGHTSAVE RURAL"),SUM((TEXT('HOURLY DATA'!$B$4:$B$8763,"mmmm")=$A78)*('HOURLY DATA'!$U$4:$U$8763=1)*('HOURLY DATA'!$H$4:$H$8763)),SUM((TEXT('HOURLY DATA'!$B$4:$B$8763,"mmmm")=$A78)*('HOURLY DATA'!$G$4:$G$8763=1)*('HOURLY DATA'!$H$4:$H$8763))) -> 1501126.579 | H78: =IF(OR(Selected_Base_Tariff="RURAFLEX",Selected_Base_Tariff="NIGHTSAVE RURAL"),SUM((TEXT('HOURLY DATA'!$B$4:$B$8763,"mmmm")=$A78)*('HOURLY DATA'!$U$4:$U$8763=2)*('HOURLY DATA'!$H$4:$H$8763)),SUM((TEXT('HOURLY DATA'!$B$4:$B$8763,"mmmm")=$A78)*('HOURLY DATA'!$G$4:$G$8763=2)*('HOURLY DATA'!$H$4:$H$8763))) -> 3672661.05 | I78: =IF(OR(Selected_Base_Tariff="RURAFLEX",Selected_Base_Tariff="NIGHTSAVE RURAL"),SUM((TEXT('HOURLY DATA'!$B$4:$B$8763,"mmmm")=$A78)*('HOURLY DATA'!$U$4:$U$8763=3)*('HOURLY DATA'!$H$4:$H$8763)),SUM((TEXT('HOURLY DATA'!$B$4:$B$8763,"mmmm")=$A78)*('HOURLY DATA'!$G$4:$G$8763=3)*('HOURLY DATA'!$H$4:$H$8763))) -> 4385699.912 | J78: =MAX(IF((TEXT('HOURLY DATA'!$B$4:$B$8763,"mmmm")=$A78)*OR('HOURLY DATA'!$G$4:$G$8763=2,'HOURLY DATA'!$G$4:$G$8763=1),'HOURLY DATA'!$M$4:$M$8763)) -> 15055.20512 | K78: 15055.20512 | L78: =IF(OR($A78="June",$A78="July", $A78="August",Selected_Base_Tariff="Transflex 1", Selected_Base_Tariff="Transflex 2"),SUM((TEXT('HOURLY DATA'!$B$4:$B$8763,"mmmm")=$A78)*('HOURLY DATA'!$G$4:$G$8763=1+2)*('HOURLY DATA'!$N$4:$N$8763)),"") -> 104592.2411 | M78: 9559487.54 | N78: =MAX(IF((TEXT('HOURLY DATA'!$B$4:$B$8763,"mmmm")=$A78),'HOURLY DATA'!$M$4:$M$8763)) -> 15055.20512 | O78: 2026 | P78: 2026 | Q78: =IF(D78<=EOMONTH(Municipality_Period,-12),YEAR(Municipality_Period)-1,YEAR(Municipality_Period)) -> 2026 | R78: 7 | AB78: Public Lighting All Night
A79: August | C79: 31 | D79: 2025-08-31 | E79: High Demand | G79: =IF(OR(Selected_Base_Tariff="RURAFLEX",Selected_Base_Tariff="NIGHTSAVE RURAL"),SUM((TEXT('HOURLY DATA'!$B$4:$B$8763,"mmmm")=$A79)*('HOURLY DATA'!$U$4:$U$8763=1)*('HOURLY DATA'!$H$4:$H$8763)),SUM((TEXT('HOURLY DATA'!$B$4:$B$8763,"mmmm")=$A79)*('HOURLY DATA'!$G$4:$G$8763=1)*('HOURLY DATA'!$H$4:$H$8763))) -> 1079924.006 | H79: =IF(OR(Selected_Base_Tariff="RURAFLEX",Selected_Base_Tariff="NIGHTSAVE RURAL"),SUM((TEXT('HOURLY DATA'!$B$4:$B$8763,"mmmm")=$A79)*('HOURLY DATA'!$U$4:$U$8763=2)*('HOURLY DATA'!$H$4:$H$8763)),SUM((TEXT('HOURLY DATA'!$B$4:$B$8763,"mmmm")=$A79)*('HOURLY DATA'!$G$4:$G$8763=2)*('HOURLY DATA'!$H$4:$H$8763))) -> 2745246.74 | I79: =IF(OR(Selected_Base_Tariff="RURAFLEX",Selected_Base_Tariff="NIGHTSAVE RURAL"),SUM((TEXT('HOURLY DATA'!$B$4:$B$8763,"mmmm")=$A79)*('HOURLY DATA'!$U$4:$U$8763=3)*('HOURLY DATA'!$H$4:$H$8763)),SUM((TEXT('HOURLY DATA'!$B$4:$B$8763,"mmmm")=$A79)*('HOURLY DATA'!$G$4:$G$8763=3)*('HOURLY DATA'!$H$4:$H$8763))) -> 3739818.578 | J79: =MAX(IF((TEXT('HOURLY DATA'!$B$4:$B$8763,"mmmm")=$A79)*OR('HOURLY DATA'!$G$4:$G$8763=2,'HOURLY DATA'!$G$4:$G$8763=1),'HOURLY DATA'!$M$4:$M$8763)) -> 16683.6138 | K79: 16683.6138 | L79: =IF(OR($A79="June",$A79="July", $A79="August",Selected_Base_Tariff="Transflex 1", Selected_Base_Tariff="Transflex 2"),SUM((TEXT('HOURLY DATA'!$B$4:$B$8763,"mmmm")=$A79)*('HOURLY DATA'!$G$4:$G$8763=1+2)*('HOURLY DATA'!$N$4:$N$8763)),"") -> 775541.4116 | M79: 7564989.324 | N79: =MAX(IF((TEXT('HOURLY DATA'!$B$4:$B$8763,"mmmm")=$A79),'HOURLY DATA'!$M$4:$M$8763)) -> 16683.6138 | O79: 2026 | P79: 2026 | Q79: 2026 | R79: 8 | AB79: Public Lighting Urban Fixed
A80: September | C80: 30 | D80: 2025-09-30 | E80: Low Demand | G80: =IF(OR(Selected_Base_Tariff="RURAFLEX",Selected_Base_Tariff="NIGHTSAVE RURAL"),SUM((TEXT('HOURLY DATA'!$B$4:$B$8763,"mmmm")=$A80)*('HOURLY DATA'!$U$4:$U$8763=1)*('HOURLY DATA'!$H$4:$H$8763)),SUM((TEXT('HOURLY DATA'!$B$4:$B$8763,"mmmm")=$A80)*('HOURLY DATA'!$G$4:$G$8763=1)*('HOURLY DATA'!$H$4:$H$8763))) -> 1203401.919 | H80: =IF(OR(Selected_Base_Tariff="RURAFLEX",Selected_Base_Tariff="NIGHTSAVE RURAL"),SUM((TEXT('HOURLY DATA'!$B$4:$B$8763,"mmmm")=$A80)*('HOURLY DATA'!$U$4:$U$8763=2)*('HOURLY DATA'!$H$4:$H$8763)),SUM((TEXT('HOURLY DATA'!$B$4:$B$8763,"mmmm")=$A80)*('HOURLY DATA'!$G$4:$G$8763=2)*('HOURLY DATA'!$H$4:$H$8763))) -> 3045712.835 | I80: =IF(OR(Selected_Base_Tariff="RURAFLEX",Selected_Base_Tariff="NIGHTSAVE RURAL"),SUM((TEXT('HOURLY DATA'!$B$4:$B$8763,"mmmm")=$A80)*('HOURLY DATA'!$U$4:$U$8763=3)*('HOURLY DATA'!$H$4:$H$8763)),SUM((TEXT('HOURLY DATA'!$B$4:$B$8763,"mmmm")=$A80)*('HOURLY DATA'!$G$4:$G$8763=3)*('HOURLY DATA'!$H$4:$H$8763))) -> 4110323.171 | J80: =MAX(IF((TEXT('HOURLY DATA'!$B$4:$B$8763,"mmmm")=$A80)*OR('HOURLY DATA'!$G$4:$G$8763=2,'HOURLY DATA'!$G$4:$G$8763=1),'HOURLY DATA'!$M$4:$M$8763)) -> 16609.4821 | K80: 16609.4821 | L80: =IF(OR($A80="June",$A80="July", $A80="August",Selected_Base_Tariff="Transflex 1", Selected_Base_Tariff="Transflex 2"),SUM((TEXT('HOURLY DATA'!$B$4:$B$8763,"mmmm")=$A80)*('HOURLY DATA'!$G$4:$G$8763=1+2)*('HOURLY DATA'!$N$4:$N$8763)),"") ->  | M80: 8359437.926 | N80: =MAX(IF((TEXT('HOURLY DATA'!$B$4:$B$8763,"mmmm")=$A80),'HOURLY DATA'!$M$4:$M$8763)) -> 16609.4821 | O80: 2026 | P80: 2026 | Q80: 2026 | R80: 9 | AB80: Homeflex 1
A81: October | C81: 31 | D81: 2025-10-31 | E81: Low Demand | G81: =IF(OR(Selected_Base_Tariff="RURAFLEX",Selected_Base_Tariff="NIGHTSAVE RURAL"),SUM((TEXT('HOURLY DATA'!$B$4:$B$8763,"mmmm")=$A81)*('HOURLY DATA'!$U$4:$U$8763=1)*('HOURLY DATA'!$H$4:$H$8763)),SUM((TEXT('HOURLY DATA'!$B$4:$B$8763,"mmmm")=$A81)*('HOURLY DATA'!$G$4:$G$8763=1)*('HOURLY DATA'!$H$4:$H$8763))) -> 1319982.667 | H81: =IF(OR(Selected_Base_Tariff="RURAFLEX",Selected_Base_Tariff="NIGHTSAVE RURAL"),SUM((TEXT('HOURLY DATA'!$B$4:$B$8763,"mmmm")=$A81)*('HOURLY DATA'!$U$4:$U$8763=2)*('HOURLY DATA'!$H$4:$H$8763)),SUM((TEXT('HOURLY DATA'!$B$4:$B$8763,"mmmm")=$A81)*('HOURLY DATA'!$G$4:$G$8763=2)*('HOURLY DATA'!$H$4:$H$8763))) -> 3238172.83 | I81: =IF(OR(Selected_Base_Tariff="RURAFLEX",Selected_Base_Tariff="NIGHTSAVE RURAL"),SUM((TEXT('HOURLY DATA'!$B$4:$B$8763,"mmmm")=$A81)*('HOURLY DATA'!$U$4:$U$8763=3)*('HOURLY DATA'!$H$4:$H$8763)),SUM((TEXT('HOURLY DATA'!$B$4:$B$8763,"mmmm")=$A81)*('HOURLY DATA'!$G$4:$G$8763=3)*('HOURLY DATA'!$H$4:$H$8763))) -> 3862800.072 | J81: =MAX(IF((TEXT('HOURLY DATA'!$B$4:$B$8763,"mmmm")=$A81)*OR('HOURLY DATA'!$G$4:$G$8763=2,'HOURLY DATA'!$G$4:$G$8763=1),'HOURLY DATA'!$M$4:$M$8763)) -> 17871.29154 | K81: 17871.29154 | L81: =IF(OR($A81="June",$A81="July", $A81="August",Selected_Base_Tariff="Transflex 1", Selected_Base_Tariff="Transflex 2"),SUM((TEXT('HOURLY DATA'!$B$4:$B$8763,"mmmm")=$A81)*('HOURLY DATA'!$G$4:$G$8763=1+2)*('HOURLY DATA'!$N$4:$N$8763)),"") ->  | M81: 8420955.569 | N81: =MAX(IF((TEXT('HOURLY DATA'!$B$4:$B$8763,"mmmm")=$A81),'HOURLY DATA'!$M$4:$M$8763)) -> 17871.29154 | O81: 2026 | P81: 2026 | Q81: 2026 | R81: 10 | AB81: Homeflex 2
A82: November | C82: 30 | D82: 2025-11-30 | E82: Low Demand | G82: =IF(OR(Selected_Base_Tariff="RURAFLEX",Selected_Base_Tariff="NIGHTSAVE RURAL"),SUM((TEXT('HOURLY DATA'!$B$4:$B$8763,"mmmm")=$A82)*('HOURLY DATA'!$U$4:$U$8763=1)*('HOURLY DATA'!$H$4:$H$8763)),SUM((TEXT('HOURLY DATA'!$B$4:$B$8763,"mmmm")=$A82)*('HOURLY DATA'!$G$4:$G$8763=1)*('HOURLY DATA'!$H$4:$H$8763))) -> 1208322.902 | H82: =IF(OR(Selected_Base_Tariff="RURAFLEX",Selected_Base_Tariff="NIGHTSAVE RURAL"),SUM((TEXT('HOURLY DATA'!$B$4:$B$8763,"mmmm")=$A82)*('HOURLY DATA'!$U$4:$U$8763=2)*('HOURLY DATA'!$H$4:$H$8763)),SUM((TEXT('HOURLY DATA'!$B$4:$B$8763,"mmmm")=$A82)*('HOURLY DATA'!$G$4:$G$8763=2)*('HOURLY DATA'!$H$4:$H$8763))) -> 3129034.104 | I82: =IF(OR(Selected_Base_Tariff="RURAFLEX",Selected_Base_Tariff="NIGHTSAVE RURAL"),SUM((TEXT('HOURLY DATA'!$B$4:$B$8763,"mmmm")=$A82)*('HOURLY DATA'!$U$4:$U$8763=3)*('HOURLY DATA'!$H$4:$H$8763)),SUM((TEXT('HOURLY DATA'!$B$4:$B$8763,"mmmm")=$A82)*('HOURLY DATA'!$G$4:$G$8763=3)*('HOURLY DATA'!$H$4:$H$8763))) -> 4233358.786 | J82: =MAX(IF((TEXT('HOURLY DATA'!$B$4:$B$8763,"mmmm")=$A82)*OR('HOURLY DATA'!$G$4:$G$8763=2,'HOURLY DATA'!$G$4:$G$8763=1),'HOURLY DATA'!$M$4:$M$8763)) -> 17312.0153 | K82: 17312.0153 | L82: =IF(OR($A82="June",$A82="July", $A82="August",Selected_Base_Tariff="Transflex 1", Selected_Base_Tariff="Transflex 2"),SUM((TEXT('HOURLY DATA'!$B$4:$B$8763,"mmmm")=$A82)*('HOURLY DATA'!$G$4:$G$8763=1+2)*('HOURLY DATA'!$N$4:$N$8763)),"") ->  | M82: 8570715.792 | N82: =MAX(IF((TEXT('HOURLY DATA'!$B$4:$B$8763,"mmmm")=$A82),'HOURLY DATA'!$M$4:$M$8763)) -> 17312.0153 | O82: 2026 | P82: 2026 | Q82: 2026 | R82: 11 | AB82: Homeflex 3
A83: December | C83: 31 | D83: 2025-12-31 | E83: Low Demand | G83: =IF(OR(Selected_Base_Tariff="RURAFLEX",Selected_Base_Tariff="NIGHTSAVE RURAL"),SUM((TEXT('HOURLY DATA'!$B$4:$B$8763,"mmmm")=$A83)*('HOURLY DATA'!$U$4:$U$8763=1)*('HOURLY DATA'!$H$4:$H$8763)),SUM((TEXT('HOURLY DATA'!$B$4:$B$8763,"mmmm")=$A83)*('HOURLY DATA'!$G$4:$G$8763=1)*('HOURLY DATA'!$H$4:$H$8763))) -> 1183358.92 | H83: =IF(OR(Selected_Base_Tariff="RURAFLEX",Selected_Base_Tariff="NIGHTSAVE RURAL"),SUM((TEXT('HOURLY DATA'!$B$4:$B$8763,"mmmm")=$A83)*('HOURLY DATA'!$U$4:$U$8763=2)*('HOURLY DATA'!$H$4:$H$8763)),SUM((TEXT('HOURLY DATA'!$B$4:$B$8763,"mmmm")=$A83)*('HOURLY DATA'!$G$4:$G$8763=2)*('HOURLY DATA'!$H$4:$H$8763))) -> 3082289.967 | I83: =IF(OR(Selected_Base_Tariff="RURAFLEX",Selected_Base_Tariff="NIGHTSAVE RURAL"),SUM((TEXT('HOURLY DATA'!$B$4:$B$8763,"mmmm")=$A83)*('HOURLY DATA'!$U$4:$U$8763=3)*('HOURLY DATA'!$H$4:$H$8763)),SUM((TEXT('HOURLY DATA'!$B$4:$B$8763,"mmmm")=$A83)*('HOURLY DATA'!$G$4:$G$8763=3)*('HOURLY DATA'!$H$4:$H$8763))) -> 4695215.394 | J83: =MAX(IF((TEXT('HOURLY DATA'!$B$4:$B$8763,"mmmm")=$A83)*OR('HOURLY DATA'!$G$4:$G$8763=2,'HOURLY DATA'!$G$4:$G$8763=1),'HOURLY DATA'!$M$4:$M$8763)) -> 14591.78104 | K83: 14591.78104 | L83: =IF(OR($A83="June",$A83="July", $A83="August",Selected_Base_Tariff="Transflex 1", Selected_Base_Tariff="Transflex 2"),SUM((TEXT('HOURLY DATA'!$B$4:$B$8763,"mmmm")=$A83)*('HOURLY DATA'!$G$4:$G$8763=1+2)*('HOURLY DATA'!$N$4:$N$8763)),"") ->  | M83: 8960864.281 | N83: =MAX(IF((TEXT('HOURLY DATA'!$B$4:$B$8763,"mmmm")=$A83),'HOURLY DATA'!$M$4:$M$8763)) -> 14591.78104 | O83: 2026 | P83: 2026 | Q83: 2026 | R83: 12 | AB83: Homeflex 4
A84: January | C84: 31 | D84: 2026-01-31 | E84: Low Demand | G84: =IF(OR(Selected_Base_Tariff="RURAFLEX",Selected_Base_Tariff="NIGHTSAVE RURAL"),SUM((TEXT('HOURLY DATA'!$B$4:$B$8763,"mmmm")=$A84)*('HOURLY DATA'!$U$4:$U$8763=1)*('HOURLY DATA'!$H$4:$H$8763)),SUM((TEXT('HOURLY DATA'!$B$4:$B$8763,"mmmm")=$A84)*('HOURLY DATA'!$G$4:$G$8763=1)*('HOURLY DATA'!$H$4:$H$8763))) -> 1347987.361 | H84: =IF(OR(Selected_Base_Tariff="RURAFLEX",Selected_Base_Tariff="NIGHTSAVE RURAL"),SUM((TEXT('HOURLY DATA'!$B$4:$B$8763,"mmmm")=$A84)*('HOURLY DATA'!$U$4:$U$8763=2)*('HOURLY DATA'!$H$4:$H$8763)),SUM((TEXT('HOURLY DATA'!$B$4:$B$8763,"mmmm")=$A84)*('HOURLY DATA'!$G$4:$G$8763=2)*('HOURLY DATA'!$H$4:$H$8763))) -> 3321627.776 | I84: =IF(OR(Selected_Base_Tariff="RURAFLEX",Selected_Base_Tariff="NIGHTSAVE RURAL"),SUM((TEXT('HOURLY DATA'!$B$4:$B$8763,"mmmm")=$A84)*('HOURLY DATA'!$U$4:$U$8763=3)*('HOURLY DATA'!$H$4:$H$8763)),SUM((TEXT('HOURLY DATA'!$B$4:$B$8763,"mmmm")=$A84)*('HOURLY DATA'!$G$4:$G$8763=3)*('HOURLY DATA'!$H$4:$H$8763))) -> 4757070.636 | J84: =MAX(IF((TEXT('HOURLY DATA'!$B$4:$B$8763,"mmmm")=$A84)*OR('HOURLY DATA'!$G$4:$G$8763=2,'HOURLY DATA'!$G$4:$G$8763=1),'HOURLY DATA'!$M$4:$M$8763)) -> 14978.27752 | K84: 14978.27752 | L84: =IF(OR($A84="June",$A84="July", $A84="August",Selected_Base_Tariff="Transflex 1", Selected_Base_Tariff="Transflex 2"),SUM((TEXT('HOURLY DATA'!$B$4:$B$8763,"mmmm")=$A84)*('HOURLY DATA'!$G$4:$G$8763=1+2)*('HOURLY DATA'!$N$4:$N$8763)),"") ->  | M84: 9426685.774 | N84: =MAX(IF((TEXT('HOURLY DATA'!$B$4:$B$8763,"mmmm")=$A84),'HOURLY DATA'!$M$4:$M$8763)) -> 14978.27752 | O84: 2026 | P84: 2026 | Q84: 2026 | R84: 1
A85: February | C85: 28 | D85: 2026-02-28 | E85: Low Demand | G85: =IF(OR(Selected_Base_Tariff="RURAFLEX",Selected_Base_Tariff="NIGHTSAVE RURAL"),SUM((TEXT('HOURLY DATA'!$B$4:$B$8763,"mmmm")=$A85)*('HOURLY DATA'!$U$4:$U$8763=1)*('HOURLY DATA'!$H$4:$H$8763)),SUM((TEXT('HOURLY DATA'!$B$4:$B$8763,"mmmm")=$A85)*('HOURLY DATA'!$G$4:$G$8763=1)*('HOURLY DATA'!$H$4:$H$8763))) -> 1150489.117 | H85: =IF(OR(Selected_Base_Tariff="RURAFLEX",Selected_Base_Tariff="NIGHTSAVE RURAL"),SUM((TEXT('HOURLY DATA'!$B$4:$B$8763,"mmmm")=$A85)*('HOURLY DATA'!$U$4:$U$8763=2)*('HOURLY DATA'!$H$4:$H$8763)),SUM((TEXT('HOURLY DATA'!$B$4:$B$8763,"mmmm")=$A85)*('HOURLY DATA'!$G$4:$G$8763=2)*('HOURLY DATA'!$H$4:$H$8763))) -> 2775408.027 | I85: =IF(OR(Selected_Base_Tariff="RURAFLEX",Selected_Base_Tariff="NIGHTSAVE RURAL"),SUM((TEXT('HOURLY DATA'!$B$4:$B$8763,"mmmm")=$A85)*('HOURLY DATA'!$U$4:$U$8763=3)*('HOURLY DATA'!$H$4:$H$8763)),SUM((TEXT('HOURLY DATA'!$B$4:$B$8763,"mmmm")=$A85)*('HOURLY DATA'!$G$4:$G$8763=3)*('HOURLY DATA'!$H$4:$H$8763))) -> 3388841.716 | J85: =MAX(IF((TEXT('HOURLY DATA'!$B$4:$B$8763,"mmmm")=$A85)*OR('HOURLY DATA'!$G$4:$G$8763=2,'HOURLY DATA'!$G$4:$G$8763=1),'HOURLY DATA'!$M$4:$M$8763)) -> 16542.25681 | K85: 16542.25681 | L85: =IF(OR($A85="June",$A85="July", $A85="August",Selected_Base_Tariff="Transflex 1", Selected_Base_Tariff="Transflex 2"),SUM((TEXT('HOURLY DATA'!$B$4:$B$8763,"mmmm")=$A85)*('HOURLY DATA'!$G$4:$G$8763=1+2)*('HOURLY DATA'!$N$4:$N$8763)),"") ->  | M85: 7314738.86 | N85: =MAX(IF((TEXT('HOURLY DATA'!$B$4:$B$8763,"mmmm")=$A85),'HOURLY DATA'!$M$4:$M$8763)) -> 16542.25681 | O85: 2026 | P85: 2026 | Q85: 2026 | R85: 2
A86: March | C86: 31 | D86: 2026-03-31 | E86: Low Demand | G86: =IF(OR(Selected_Base_Tariff="RURAFLEX",Selected_Base_Tariff="NIGHTSAVE RURAL"),SUM((TEXT('HOURLY DATA'!$B$4:$B$8763,"mmmm")=$A86)*('HOURLY DATA'!$U$4:$U$8763=1)*('HOURLY DATA'!$H$4:$H$8763)),SUM((TEXT('HOURLY DATA'!$B$4:$B$8763,"mmmm")=$A86)*('HOURLY DATA'!$G$4:$G$8763=1)*('HOURLY DATA'!$H$4:$H$8763))) -> 1354542.696 | H86: =IF(OR(Selected_Base_Tariff="RURAFLEX",Selected_Base_Tariff="NIGHTSAVE RURAL"),SUM((TEXT('HOURLY DATA'!$B$4:$B$8763,"mmmm")=$A86)*('HOURLY DATA'!$U$4:$U$8763=2)*('HOURLY DATA'!$H$4:$H$8763)),SUM((TEXT('HOURLY DATA'!$B$4:$B$8763,"mmmm")=$A86)*('HOURLY DATA'!$G$4:$G$8763=2)*('HOURLY DATA'!$H$4:$H$8763))) -> 3253870.135 | I86: =IF(OR(Selected_Base_Tariff="RURAFLEX",Selected_Base_Tariff="NIGHTSAVE RURAL"),SUM((TEXT('HOURLY DATA'!$B$4:$B$8763,"mmmm")=$A86)*('HOURLY DATA'!$U$4:$U$8763=3)*('HOURLY DATA'!$H$4:$H$8763)),SUM((TEXT('HOURLY DATA'!$B$4:$B$8763,"mmmm")=$A86)*('HOURLY DATA'!$G$4:$G$8763=3)*('HOURLY DATA'!$H$4:$H$8763))) -> 4340367.405 | J86: =MAX(IF((TEXT('HOURLY DATA'!$B$4:$B$8763,"mmmm")=$A86)*OR('HOURLY DATA'!$G$4:$G$8763=2,'HOURLY DATA'!$G$4:$G$8763=1),'HOURLY DATA'!$M$4:$M$8763)) -> 15803.26429 | K86: 15803.26429 | L86: =IF(OR($A86="June",$A86="July", $A86="August",Selected_Base_Tariff="Transflex 1", Selected_Base_Tariff="Transflex 2"),SUM((TEXT('HOURLY DATA'!$B$4:$B$8763,"mmmm")=$A86)*('HOURLY DATA'!$G$4:$G$8763=1+2)*('HOURLY DATA'!$N$4:$N$8763)),"") ->  | M86: 8948780.236 | N86: =MAX(IF((TEXT('HOURLY DATA'!$B$4:$B$8763,"mmmm")=$A86),'HOURLY DATA'!$M$4:$M$8763)) -> 15803.26429 | O86: 2026 | P86: 2026 | Q86: 2026 | R86: 3
D88: Total | G88: =SUM(G75:G86) -> 14977667.45 | H88: =SUM(H75:H86) -> 37575920.89 | I88: 51267788.85 | L88: =SUM(L75:L86) -> 902772.3217 | M88: 103821377.2
B90: Consumption Data Summary - Previous TOU actuals from HOURLY DATA worksheet
D92: Season | E92: Days | G92: =G$33 -> Peak energy | H92: =H$33 -> Standard energy | I92: Off-peak energy | J92: Chargeable demand | K92: Utilised capacity | L92: Excess reactive energy | M92: Total energy
D94: Low Demand | E94: =SUMIFS(C$36:C$47,$E$36:$E$47,$D94,$O$36:$O$47,$P94) -> 273 | G94: =SUMIFS(G$75:G$86,$E$75:$E$86,$D94,$O$75:$O$86,$P94) -> 11291668.57 | H94: 28280822.05 | I94: 38856116.89 | J94: 142166.3066 | K94: 142166.3066 | L94: 0 | M94: 78428607.51 | P94: =YEAR(TOU_Period) -> 2026 | Q94: =COUNTIF($E$36:$E$47,D94) -> 9
D95: High Demand | E95: =SUMIFS(C$36:C$47,$E$36:$E$47,$D95,$O$36:$O$47,$P95) -> 92 | G95: 3685998.875 | H95: 9295098.833 | I95: 12411671.96 | J95: 46637.32647 | K95: 46637.32647 | L95: 902772.3217 | M95: 25392769.67 | P95: =YEAR(TOU_Period) -> 2026 | Q95: =COUNTIF($E$36:$E$47,D95) -> 3
D97: Total | E97: =SUM(E94:E95) -> 365 | G97: =SUM(G94:G95) -> 14977667.45 | H97: =SUM(H94:H95) -> 37575920.89 | I97: 51267788.85 | L97: =SUM(L94:L95) -> 902772.3217 | M97: 103821377.2
C100: Note
C101: Calculations are based on the average number of days per month: Ave days per month = Total number of days in year (365) / months (12) = 30.416667
P110: =IF(D117<=TOU_Period,YEAR(TOU_Period),YEAR(TOU_Period)+1) -> 2026
B112: Current TOU actuals from HOURLY DATA worksheet
G114: Peak energy | H114: Standard energy | I114: Off-peak energy | J114: Chargeable demand | K114: Utilised capacity | L114: Excess reactive energy | M114: Total energy | N114: Maximum demand | O114: Year | P114: ESKOM Financial Year | Q114: Municipal Financial Year | R114: Month ID
D115: Month | E115: Season | G115: kWh | H115: kWh | I115: kWh | J115: kVA | K115: kVA | L115: kVArh | M115: kWh | N115: kVA
A117: =TEXT(D117, "mmmm") -> April | C117: =D117-EOMONTH(D117,-1) -> 30 | D117: =DATE(YEAR(Period)-1,R117+1,) -> 2025-04-30 | E117: =INDEX(List_Seasons,R117,0) -> Low Demand | G117: =IF(OR(Selected_Base_Tariff="RURAFLEX",Selected_Base_Tariff="NIGHTSAVE RURAL"),SUM((TEXT('HOURLY DATA'!$B$4:$B$8763,"mmmm")=$A117)*('HOURLY DATA'!$V$4:$V$8763=1)*('HOURLY DATA'!$H$4:$H$8763)),SUM((TEXT('HOURLY DATA'!$B$4:$B$8763,"mmmm")=$A117)*('HOURLY DATA'!$F$4:$F$8763=1)*('HOURLY DATA'!$H$4:$H$8763))) -> 1197378.202 | H117: =IF(OR(Selected_Base_Tariff="RURAFLEX",Selected_Base_Tariff="NIGHTSAVE RURAL"),SUM((TEXT('HOURLY DATA'!$B$4:$B$8763,"mmmm")=$A117)*('HOURLY DATA'!$V$4:$V$8763=2)*('HOURLY DATA'!$H$4:$H$8763)),SUM((TEXT('HOURLY DATA'!$B$4:$B$8763,"mmmm")=$A117)*('HOURLY DATA'!$F$4:$F$8763=2)*('HOURLY DATA'!$H$4:$H$8763))) -> 3183542.691 | I117: =IF(OR(Selected_Base_Tariff="RURAFLEX",Selected_Base_Tariff="NIGHTSAVE RURAL"),SUM((TEXT('HOURLY DATA'!$B$4:$B$8763,"mmmm")=$A117)*('HOURLY DATA'!$V$4:$V$8763=3)*('HOURLY DATA'!$H$4:$H$8763)),SUM((TEXT('HOURLY DATA'!$B$4:$B$8763,"mmmm")=$A117)*('HOURLY DATA'!$F$4:$F$8763=3)*('HOURLY DATA'!$H$4:$H$8763))) -> 4642980.896 | J117: =MAX(IF((TEXT('HOURLY DATA'!$B$4:$B$8763,"mmmm")=$A117)*OR('HOURLY DATA'!$F$4:$F$8763=2,'HOURLY DATA'!$F$4:$F$8763=1),'HOURLY DATA'!$M$4:$M$8763)) -> 14316.81913 | K117: =MAX(N117,$G$27) -> 14316.81913 | L117: =IF(OR($A117="June",$A117="July", $A117="August",Selected_Base_Tariff="Transflex 1", Selected_Base_Tariff="Transflex 2"),SUM((TEXT('HOURLY DATA'!$B$4:$B$8763,"mmmm")=$A117)*('HOURLY DATA'!$F$4:$F$8763=1+2)*('HOURLY DATA'!$N$4:$N$8763)),"") ->  | M117: =SUM($G117:$I117) -> 9023901.789 | N117: =MAX(IF((TEXT('HOURLY DATA'!$B$4:$B$8763,"mmmm")=$A117),'HOURLY DATA'!$M$4:$M$8763)) -> 14316.81913 | O117: =INDEX(P117:Q117,0,Selected_Tariff_Category_ID) -> 2026 | P117: =IF(D117<=TOU_Period,YEAR(TOU_Period),YEAR(TOU_Period)+1) -> 2026 | Q117: =IF(Selected_Tariff_Category_ID = 2, YEAR(Municipality_Period), IF(D117<=EOMONTH(Municipality_Period,-12),YEAR(Municipality_Period)-1,YEAR(Municipality_Period))) -> 2025 | R117: =MONTH(Period)+IF(Selected_Tariff_Category_ID=2, 4, 1) -> 4
A118: May | C118: =D118-EOMONTH(D118,-1) -> 31 | D118: =EOMONTH(D117,1) -> 2025-05-31 | E118: =INDEX(List_Seasons,R118,0) -> Low Demand | G118: =IF(OR(Selected_Base_Tariff="RURAFLEX",Selected_Base_Tariff="NIGHTSAVE RURAL"),SUM((TEXT('HOURLY DATA'!$B$4:$B$8763,"mmmm")=$A118)*('HOURLY DATA'!$V$4:$V$8763=1)*('HOURLY DATA'!$H$4:$H$8763)),SUM((TEXT('HOURLY DATA'!$B$4:$B$8763,"mmmm")=$A118)*('HOURLY DATA'!$F$4:$F$8763=1)*('HOURLY DATA'!$H$4:$H$8763))) -> 1353208.991 | H118: =IF(OR(Selected_Base_Tariff="RURAFLEX",Selected_Base_Tariff="NIGHTSAVE RURAL"),SUM((TEXT('HOURLY DATA'!$B$4:$B$8763,"mmmm")=$A118)*('HOURLY DATA'!$V$4:$V$8763=2)*('HOURLY DATA'!$H$4:$H$8763)),SUM((TEXT('HOURLY DATA'!$B$4:$B$8763,"mmmm")=$A118)*('HOURLY DATA'!$F$4:$F$8763=2)*('HOURLY DATA'!$H$4:$H$8763))) -> 3467910.702 | I118: =IF(OR(Selected_Base_Tariff="RURAFLEX",Selected_Base_Tariff="NIGHTSAVE RURAL"),SUM((TEXT('HOURLY DATA'!$B$4:$B$8763,"mmmm")=$A118)*('HOURLY DATA'!$V$4:$V$8763=3)*('HOURLY DATA'!$H$4:$H$8763)),SUM((TEXT('HOURLY DATA'!$B$4:$B$8763,"mmmm")=$A118)*('HOURLY DATA'!$F$4:$F$8763=3)*('HOURLY DATA'!$H$4:$H$8763))) -> 4581407.594 | J118: =MAX(IF((TEXT('HOURLY DATA'!$B$4:$B$8763,"mmmm")=$A118)*OR('HOURLY DATA'!$F$4:$F$8763=2,'HOURLY DATA'!$F$4:$F$8763=1),'HOURLY DATA'!$M$4:$M$8763)) -> 14141.11882 | K118: 14141.11882 | L118: =IF(OR($A118="June",$A118="July", $A118="August",Selected_Base_Tariff="Transflex 1", Selected_Base_Tariff="Transflex 2"),SUM((TEXT('HOURLY DATA'!$B$4:$B$8763,"mmmm")=$A118)*('HOURLY DATA'!$F$4:$F$8763=1+2)*('HOURLY DATA'!$N$4:$N$8763)),"") ->  | M118: =SUM($G118:$I118) -> 9402527.286 | N118: =MAX(IF((TEXT('HOURLY DATA'!$B$4:$B$8763,"mmmm")=$A118),'HOURLY DATA'!$M$4:$M$8763)) -> 14141.11882 | O118: 2026 | P118: 2026 | Q118: =IF(Selected_Tariff_Category_ID = 2, YEAR(Municipality_Period), IF(D118<=EOMONTH(Municipality_Period,-12),YEAR(Municipality_Period)-1,YEAR(Municipality_Period))) -> 2025 | R118: =MONTH(D118) -> 5
A119: June | C119: 30 | D119: =EOMONTH(D118,1) -> 2025-06-30 | E119: =INDEX(List_Seasons,R119,0) -> High Demand | G119: =IF(OR(Selected_Base_Tariff="RURAFLEX",Selected_Base_Tariff="NIGHTSAVE RURAL"),SUM((TEXT('HOURLY DATA'!$B$4:$B$8763,"mmmm")=$A119)*('HOURLY DATA'!$V$4:$V$8763=1)*('HOURLY DATA'!$H$4:$H$8763)),SUM((TEXT('HOURLY DATA'!$B$4:$B$8763,"mmmm")=$A119)*('HOURLY DATA'!$F$4:$F$8763=1)*('HOURLY DATA'!$H$4:$H$8763))) -> 1114956.638 | H119: =IF(OR(Selected_Base_Tariff="RURAFLEX",Selected_Base_Tariff="NIGHTSAVE RURAL"),SUM((TEXT('HOURLY DATA'!$B$4:$B$8763,"mmmm")=$A119)*('HOURLY DATA'!$V$4:$V$8763=2)*('HOURLY DATA'!$H$4:$H$8763)),SUM((TEXT('HOURLY DATA'!$B$4:$B$8763,"mmmm")=$A119)*('HOURLY DATA'!$F$4:$F$8763=2)*('HOURLY DATA'!$H$4:$H$8763))) -> 2984599.734 | I119: =IF(OR(Selected_Base_Tariff="RURAFLEX",Selected_Base_Tariff="NIGHTSAVE RURAL"),SUM((TEXT('HOURLY DATA'!$B$4:$B$8763,"mmmm")=$A119)*('HOURLY DATA'!$V$4:$V$8763=3)*('HOURLY DATA'!$H$4:$H$8763)),SUM((TEXT('HOURLY DATA'!$B$4:$B$8763,"mmmm")=$A119)*('HOURLY DATA'!$F$4:$F$8763=3)*('HOURLY DATA'!$H$4:$H$8763))) -> 4168736.429 | J119: =MAX(IF((TEXT('HOURLY DATA'!$B$4:$B$8763,"mmmm")=$A119)*OR('HOURLY DATA'!$F$4:$F$8763=2,'HOURLY DATA'!$F$4:$F$8763=1),'HOURLY DATA'!$M$4:$M$8763)) -> 14898.50756 | K119: 14898.50756 | L119: =IF(OR($A119="June",$A119="July", $A119="August",Selected_Base_Tariff="Transflex 1", Selected_Base_Tariff="Transflex 2"),SUM((TEXT('HOURLY DATA'!$B$4:$B$8763,"mmmm")=$A119)*('HOURLY DATA'!$F$4:$F$8763=1+2)*('HOURLY DATA'!$N$4:$N$8763)),"") -> 21736.74132 | M119: 8268292.801 | N119: =MAX(IF((TEXT('HOURLY DATA'!$B$4:$B$8763,"mmmm")=$A119),'HOURLY DATA'!$M$4:$M$8763)) -> 14898.50756 | O119: 2026 | P119: 2026 | Q119: =IF(Selected_Tariff_Category_ID = 2, YEAR(Municipality_Period), IF(D119<=EOMONTH(Municipality_Period,-12),YEAR(Municipality_Period)-1,YEAR(Municipality_Period))) -> 2025 | R119: 6
A120: July | C120: 31 | D120: 2025-07-31 | E120: =INDEX(List_Seasons,R120,0) -> High Demand | G120: =IF(OR(Selected_Base_Tariff="RURAFLEX",Selected_Base_Tariff="NIGHTSAVE RURAL"),SUM((TEXT('HOURLY DATA'!$B$4:$B$8763,"mmmm")=$A120)*('HOURLY DATA'!$V$4:$V$8763=1)*('HOURLY DATA'!$H$4:$H$8763)),SUM((TEXT('HOURLY DATA'!$B$4:$B$8763,"mmmm")=$A120)*('HOURLY DATA'!$F$4:$F$8763=1)*('HOURLY DATA'!$H$4:$H$8763))) -> 1491632.693 | H120: =IF(OR(Selected_Base_Tariff="RURAFLEX",Selected_Base_Tariff="NIGHTSAVE RURAL"),SUM((TEXT('HOURLY DATA'!$B$4:$B$8763,"mmmm")=$A120)*('HOURLY DATA'!$V$4:$V$8763=2)*('HOURLY DATA'!$H$4:$H$8763)),SUM((TEXT('HOURLY DATA'!$B$4:$B$8763,"mmmm")=$A120)*('HOURLY DATA'!$F$4:$F$8763=2)*('HOURLY DATA'!$H$4:$H$8763))) -> 3761902.822 | I120: =IF(OR(Selected_Base_Tariff="RURAFLEX",Selected_Base_Tariff="NIGHTSAVE RURAL"),SUM((TEXT('HOURLY DATA'!$B$4:$B$8763,"mmmm")=$A120)*('HOURLY DATA'!$V$4:$V$8763=3)*('HOURLY DATA'!$H$4:$H$8763)),SUM((TEXT('HOURLY DATA'!$B$4:$B$8763,"mmmm")=$A120)*('HOURLY DATA'!$F$4:$F$8763=3)*('HOURLY DATA'!$H$4:$H$8763))) -> 4305952.026 | J120: =MAX(IF((TEXT('HOURLY DATA'!$B$4:$B$8763,"mmmm")=$A120)*OR('HOURLY DATA'!$F$4:$F$8763=2,'HOURLY DATA'!$F$4:$F$8763=1),'HOURLY DATA'!$M$4:$M$8763)) -> 15055.20512 | K120: 15055.20512 | L120: =IF(OR($A120="June",$A120="July", $A120="August",Selected_Base_Tariff="Transflex 1", Selected_Base_Tariff="Transflex 2"),SUM((TEXT('HOURLY DATA'!$B$4:$B$8763,"mmmm")=$A120)*('HOURLY DATA'!$F$4:$F$8763=1+2)*('HOURLY DATA'!$N$4:$N$8763)),"") -> 102855.8259 | M120: 9559487.54 | N120: =MAX(IF((TEXT('HOURLY DATA'!$B$4:$B$8763,"mmmm")=$A120),'HOURLY DATA'!$M$4:$M$8763)) -> 15055.20512 | O120: 2026 | P120: 2026 | Q120: =IF(D120<=EOMONTH(Municipality_Period,-12),YEAR(Municipality_Period)-1,YEAR(Municipality_Period)) -> 2026 | R120: 7
A121: August | C121: 31 | D121: 2025-08-31 | E121: High Demand | G121: =IF(OR(Selected_Base_Tariff="RURAFLEX",Selected_Base_Tariff="NIGHTSAVE RURAL"),SUM((TEXT('HOURLY DATA'!$B$4:$B$8763,"mmmm")=$A121)*('HOURLY DATA'!$V$4:$V$8763=1)*('HOURLY DATA'!$H$4:$H$8763)),SUM((TEXT('HOURLY DATA'!$B$4:$B$8763,"mmmm")=$A121)*('HOURLY DATA'!$F$4:$F$8763=1)*('HOURLY DATA'!$H$4:$H$8763))) -> 1105298.813 | H121: =IF(OR(Selected_Base_Tariff="RURAFLEX",Selected_Base_Tariff="NIGHTSAVE RURAL"),SUM((TEXT('HOURLY DATA'!$B$4:$B$8763,"mmmm")=$A121)*('HOURLY DATA'!$V$4:$V$8763=2)*('HOURLY DATA'!$H$4:$H$8763)),SUM((TEXT('HOURLY DATA'!$B$4:$B$8763,"mmmm")=$A121)*('HOURLY DATA'!$F$4:$F$8763=2)*('HOURLY DATA'!$H$4:$H$8763))) -> 2822428.045 | I121: =IF(OR(Selected_Base_Tariff="RURAFLEX",Selected_Base_Tariff="NIGHTSAVE RURAL"),SUM((TEXT('HOURLY DATA'!$B$4:$B$8763,"mmmm")=$A121)*('HOURLY DATA'!$V$4:$V$8763=3)*('HOURLY DATA'!$H$4:$H$8763)),SUM((TEXT('HOURLY DATA'!$B$4:$B$8763,"mmmm")=$A121)*('HOURLY DATA'!$F$4:$F$8763=3)*('HOURLY DATA'!$H$4:$H$8763))) -> 3637262.466 | J121: =MAX(IF((TEXT('HOURLY DATA'!$B$4:$B$8763,"mmmm")=$A121)*OR('HOURLY DATA'!$F$4:$F$8763=2,'HOURLY DATA'!$F$4:$F$8763=1),'HOURLY DATA'!$M$4:$M$8763)) -> 16683.6138 | K121: 16683.6138 | L121: =IF(OR($A121="June",$A121="July", $A121="August",Selected_Base_Tariff="Transflex 1", Selected_Base_Tariff="Transflex 2"),SUM((TEXT('HOURLY DATA'!$B$4:$B$8763,"mmmm")=$A121)*('HOURLY DATA'!$F$4:$F$8763=1+2)*('HOURLY DATA'!$N$4:$N$8763)),"") -> 752230.7027 | M121: 7564989.324 | N121: =MAX(IF((TEXT('HOURLY DATA'!$B$4:$B$8763,"mmmm")=$A121),'HOURLY DATA'!$M$4:$M$8763)) -> 16683.6138 | O121: 2026 | P121: 2026 | Q121: 2026 | R121: 8
A122: September | C122: 30 | D122: 2025-09-30 | E122: Low Demand | G122: =IF(OR(Selected_Base_Tariff="RURAFLEX",Selected_Base_Tariff="NIGHTSAVE RURAL"),SUM((TEXT('HOURLY DATA'!$B$4:$B$8763,"mmmm")=$A122)*('HOURLY DATA'!$V$4:$V$8763=1)*('HOURLY DATA'!$H$4:$H$8763)),SUM((TEXT('HOURLY DATA'!$B$4:$B$8763,"mmmm")=$A122)*('HOURLY DATA'!$F$4:$F$8763=1)*('HOURLY DATA'!$H$4:$H$8763))) -> 1216168.53 | H122: =IF(OR(Selected_Base_Tariff="RURAFLEX",Selected_Base_Tariff="NIGHTSAVE RURAL"),SUM((TEXT('HOURLY DATA'!$B$4:$B$8763,"mmmm")=$A122)*('HOURLY DATA'!$V$4:$V$8763=2)*('HOURLY DATA'!$H$4:$H$8763)),SUM((TEXT('HOURLY DATA'!$B$4:$B$8763,"mmmm")=$A122)*('HOURLY DATA'!$F$4:$F$8763=2)*('HOURLY DATA'!$H$4:$H$8763))) -> 3133313.969 | I122: =IF(OR(Selected_Base_Tariff="RURAFLEX",Selected_Base_Tariff="NIGHTSAVE RURAL"),SUM((TEXT('HOURLY DATA'!$B$4:$B$8763,"mmmm")=$A122)*('HOURLY DATA'!$V$4:$V$8763=3)*('HOURLY DATA'!$H$4:$H$8763)),SUM((TEXT('HOURLY DATA'!$B$4:$B$8763,"mmmm")=$A122)*('HOURLY DATA'!$F$4:$F$8763=3)*('HOURLY DATA'!$H$4:$H$8763))) -> 4009955.427 | J122: =MAX(IF((TEXT('HOURLY DATA'!$B$4:$B$8763,"mmmm")=$A122)*OR('HOURLY DATA'!$F$4:$F$8763=2,'HOURLY DATA'!$F$4:$F$8763=1),'HOURLY DATA'!$M$4:$M$8763)) -> 16609.4821 | K122: 16609.4821 | L122: =IF(OR($A122="June",$A122="July", $A122="August",Selected_Base_Tariff="Transflex 1", Selected_Base_Tariff="Transflex 2"),SUM((TEXT('HOURLY DATA'!$B$4:$B$8763,"mmmm")=$A122)*('HOURLY DATA'!$F$4:$F$8763=1+2)*('HOURLY DATA'!$N$4:$N$8763)),"") ->  | M122: 8359437.926 | N122: =MAX(IF((TEXT('HOURLY DATA'!$B$4:$B$8763,"mmmm")=$A122),'HOURLY DATA'!$M$4:$M$8763)) -> 16609.4821 | O122: 2026 | P122: 2026 | Q122: 2026 | R122: 9
A123: October | C123: 31 | D123: 2025-10-31 | E123: Low Demand | G123: =IF(OR(Selected_Base_Tariff="RURAFLEX",Selected_Base_Tariff="NIGHTSAVE RURAL"),SUM((TEXT('HOURLY DATA'!$B$4:$B$8763,"mmmm")=$A123)*('HOURLY DATA'!$V$4:$V$8763=1)*('HOURLY DATA'!$H$4:$H$8763)),SUM((TEXT('HOURLY DATA'!$B$4:$B$8763,"mmmm")=$A123)*('HOURLY DATA'!$F$4:$F$8763=1)*('HOURLY DATA'!$H$4:$H$8763))) -> 1340215.247 | H123: =IF(OR(Selected_Base_Tariff="RURAFLEX",Selected_Base_Tariff="NIGHTSAVE RURAL"),SUM((TEXT('HOURLY DATA'!$B$4:$B$8763,"mmmm")=$A123)*('HOURLY DATA'!$V$4:$V$8763=2)*('HOURLY DATA'!$H$4:$H$8763)),SUM((TEXT('HOURLY DATA'!$B$4:$B$8763,"mmmm")=$A123)*('HOURLY DATA'!$F$4:$F$8763=2)*('HOURLY DATA'!$H$4:$H$8763))) -> 3300233.692 | I123: =IF(OR(Selected_Base_Tariff="RURAFLEX",Selected_Base_Tariff="NIGHTSAVE RURAL"),SUM((TEXT('HOURLY DATA'!$B$4:$B$8763,"mmmm")=$A123)*('HOURLY DATA'!$V$4:$V$8763=3)*('HOURLY DATA'!$H$4:$H$8763)),SUM((TEXT('HOURLY DATA'!$B$4:$B$8763,"mmmm")=$A123)*('HOURLY DATA'!$F$4:$F$8763=3)*('HOURLY DATA'!$H$4:$H$8763))) -> 3780506.629 | J123: =MAX(IF((TEXT('HOURLY DATA'!$B$4:$B$8763,"mmmm")=$A123)*OR('HOURLY DATA'!$F$4:$F$8763=2,'HOURLY DATA'!$F$4:$F$8763=1),'HOURLY DATA'!$M$4:$M$8763)) -> 17871.29154 | K123: 17871.29154 | L123: =IF(OR($A123="June",$A123="July", $A123="August",Selected_Base_Tariff="Transflex 1", Selected_Base_Tariff="Transflex 2"),SUM((TEXT('HOURLY DATA'!$B$4:$B$8763,"mmmm")=$A123)*('HOURLY DATA'!$F$4:$F$8763=1+2)*('HOURLY DATA'!$N$4:$N$8763)),"") ->  | M123: 8420955.569 | N123: =MAX(IF((TEXT('HOURLY DATA'!$B$4:$B$8763,"mmmm")=$A123),'HOURLY DATA'!$M$4:$M$8763)) -> 17871.29154 | O123: 2026 | P123: 2026 | Q123: 2026 | R123: 10
A124: November | C124: 30 | D124: 2025-11-30 | E124: Low Demand | G124: =IF(OR(Selected_Base_Tariff="RURAFLEX",Selected_Base_Tariff="NIGHTSAVE RURAL"),SUM((TEXT('HOURLY DATA'!$B$4:$B$8763,"mmmm")=$A124)*('HOURLY DATA'!$V$4:$V$8763=1)*('HOURLY DATA'!$H$4:$H$8763)),SUM((TEXT('HOURLY DATA'!$B$4:$B$8763,"mmmm")=$A124)*('HOURLY DATA'!$F$4:$F$8763=1)*('HOURLY DATA'!$H$4:$H$8763))) -> 1222825.014 | H124: =IF(OR(Selected_Base_Tariff="RURAFLEX",Selected_Base_Tariff="NIGHTSAVE RURAL"),SUM((TEXT('HOURLY DATA'!$B$4:$B$8763,"mmmm")=$A124)*('HOURLY DATA'!$V$4:$V$8763=2)*('HOURLY DATA'!$H$4:$H$8763)),SUM((TEXT('HOURLY DATA'!$B$4:$B$8763,"mmmm")=$A124)*('HOURLY DATA'!$F$4:$F$8763=2)*('HOURLY DATA'!$H$4:$H$8763))) -> 3209509.051 | I124: =IF(OR(Selected_Base_Tariff="RURAFLEX",Selected_Base_Tariff="NIGHTSAVE RURAL"),SUM((TEXT('HOURLY DATA'!$B$4:$B$8763,"mmmm")=$A124)*('HOURLY DATA'!$V$4:$V$8763=3)*('HOURLY DATA'!$H$4:$H$8763)),SUM((TEXT('HOURLY DATA'!$B$4:$B$8763,"mmmm")=$A124)*('HOURLY DATA'!$F$4:$F$8763=3)*('HOURLY DATA'!$H$4:$H$8763))) -> 4138381.728 | J124: =MAX(IF((TEXT('HOURLY DATA'!$B$4:$B$8763,"mmmm")=$A124)*OR('HOURLY DATA'!$F$4:$F$8763=2,'HOURLY DATA'!$F$4:$F$8763=1),'HOURLY DATA'!$M$4:$M$8763)) -> 17312.0153 | K124: 17312.0153 | L124: =IF(OR($A124="June",$A124="July", $A124="August",Selected_Base_Tariff="Transflex 1", Selected_Base_Tariff="Transflex 2"),SUM((TEXT('HOURLY DATA'!$B$4:$B$8763,"mmmm")=$A124)*('HOURLY DATA'!$F$4:$F$8763=1+2)*('HOURLY DATA'!$N$4:$N$8763)),"") ->  | M124: 8570715.792 | N124: =MAX(IF((TEXT('HOURLY DATA'!$B$4:$B$8763,"mmmm")=$A124),'HOURLY DATA'!$M$4:$M$8763)) -> 17312.0153 | O124: 2026 | P124: 2026 | Q124: 2026 | R124: 11
A125: December | C125: 31 | D125: 2025-12-31 | E125: Low Demand | G125: =IF(OR(Selected_Base_Tariff="RURAFLEX",Selected_Base_Tariff="NIGHTSAVE RURAL"),SUM((TEXT('HOURLY DATA'!$B$4:$B$8763,"mmmm")=$A125)*('HOURLY DATA'!$V$4:$V$8763=1)*('HOURLY DATA'!$H$4:$H$8763)),SUM((TEXT('HOURLY DATA'!$B$4:$B$8763,"mmmm")=$A125)*('HOURLY DATA'!$F$4:$F$8763=1)*('HOURLY DATA'!$H$4:$H$8763))) -> 1184192.099 | H125: =IF(OR(Selected_Base_Tariff="RURAFLEX",Selected_Base_Tariff="NIGHTSAVE RURAL"),SUM((TEXT('HOURLY DATA'!$B$4:$B$8763,"mmmm")=$A125)*('HOURLY DATA'!$V$4:$V$8763=2)*('HOURLY DATA'!$H$4:$H$8763)),SUM((TEXT('HOURLY DATA'!$B$4:$B$8763,"mmmm")=$A125)*('HOURLY DATA'!$F$4:$F$8763=2)*('HOURLY DATA'!$H$4:$H$8763))) -> 3216955.785 | I125: =IF(OR(Selected_Base_Tariff="RURAFLEX",Selected_Base_Tariff="NIGHTSAVE RURAL"),SUM((TEXT('HOURLY DATA'!$B$4:$B$8763,"mmmm")=$A125)*('HOURLY DATA'!$V$4:$V$8763=3)*('HOURLY DATA'!$H$4:$H$8763)),SUM((TEXT('HOURLY DATA'!$B$4:$B$8763,"mmmm")=$A125)*('HOURLY DATA'!$F$4:$F$8763=3)*('HOURLY DATA'!$H$4:$H$8763))) -> 4559716.397 | J125: =MAX(IF((TEXT('HOURLY DATA'!$B$4:$B$8763,"mmmm")=$A125)*OR('HOURLY DATA'!$F$4:$F$8763=2,'HOURLY DATA'!$F$4:$F$8763=1),'HOURLY DATA'!$M$4:$M$8763)) -> 14591.78104 | K125: 14591.78104 | L125: =IF(OR($A125="June",$A125="July", $A125="August",Selected_Base_Tariff="Transflex 1", Selected_Base_Tariff="Transflex 2"),SUM((TEXT('HOURLY DATA'!$B$4:$B$8763,"mmmm")=$A125)*('HOURLY DATA'!$F$4:$F$8763=1+2)*('HOURLY DATA'!$N$4:$N$8763)),"") ->  | M125: 8960864.281 | N125: =MAX(IF((TEXT('HOURLY DATA'!$B$4:$B$8763,"mmmm")=$A125),'HOURLY DATA'!$M$4:$M$8763)) -> 14591.78104 | O125: 2026 | P125: 2026 | Q125: 2026 | R125: 12
A126: January | C126: 31 | D126: 2026-01-31 | E126: Low Demand | G126: =IF(OR(Selected_Base_Tariff="RURAFLEX",Selected_Base_Tariff="NIGHTSAVE RURAL"),SUM((TEXT('HOURLY DATA'!$B$4:$B$8763,"mmmm")=$A126)*('HOURLY DATA'!$V$4:$V$8763=1)*('HOURLY DATA'!$H$4:$H$8763)),SUM((TEXT('HOURLY DATA'!$B$4:$B$8763,"mmmm")=$A126)*('HOURLY DATA'!$F$4:$F$8763=1)*('HOURLY DATA'!$H$4:$H$8763))) -> 1349102.638 | H126: =IF(OR(Selected_Base_Tariff="RURAFLEX",Selected_Base_Tariff="NIGHTSAVE RURAL"),SUM((TEXT('HOURLY DATA'!$B$4:$B$8763,"mmmm")=$A126)*('HOURLY DATA'!$V$4:$V$8763=2)*('HOURLY DATA'!$H$4:$H$8763)),SUM((TEXT('HOURLY DATA'!$B$4:$B$8763,"mmmm")=$A126)*('HOURLY DATA'!$F$4:$F$8763=2)*('HOURLY DATA'!$H$4:$H$8763))) -> 3454535.699 | I126: =IF(OR(Selected_Base_Tariff="RURAFLEX",Selected_Base_Tariff="NIGHTSAVE RURAL"),SUM((TEXT('HOURLY DATA'!$B$4:$B$8763,"mmmm")=$A126)*('HOURLY DATA'!$V$4:$V$8763=3)*('HOURLY DATA'!$H$4:$H$8763)),SUM((TEXT('HOURLY DATA'!$B$4:$B$8763,"mmmm")=$A126)*('HOURLY DATA'!$F$4:$F$8763=3)*('HOURLY DATA'!$H$4:$H$8763))) -> 4623047.436 | J126: =MAX(IF((TEXT('HOURLY DATA'!$B$4:$B$8763,"mmmm")=$A126)*OR('HOURLY DATA'!$F$4:$F$8763=2,'HOURLY DATA'!$F$4:$F$8763=1),'HOURLY DATA'!$M$4:$M$8763)) -> 14978.27752 | K126: 14978.27752 | L126: =IF(OR($A126="June",$A126="July", $A126="August",Selected_Base_Tariff="Transflex 1", Selected_Base_Tariff="Transflex 2"),SUM((TEXT('HOURLY DATA'!$B$4:$B$8763,"mmmm")=$A126)*('HOURLY DATA'!$F$4:$F$8763=1+2)*('HOURLY DATA'!$N$4:$N$8763)),"") ->  | M126: 9426685.774 | N126: =MAX(IF((TEXT('HOURLY DATA'!$B$4:$B$8763,"mmmm")=$A126),'HOURLY DATA'!$M$4:$M$8763)) -> 14978.27752 | O126: 2026 | P126: 2026 | Q126: 2026 | R126: 1
A127: February | C127: 28 | D127: 2026-02-28 | E127: Low Demand | G127: =IF(OR(Selected_Base_Tariff="RURAFLEX",Selected_Base_Tariff="NIGHTSAVE RURAL"),SUM((TEXT('HOURLY DATA'!$B$4:$B$8763,"mmmm")=$A127)*('HOURLY DATA'!$V$4:$V$8763=1)*('HOURLY DATA'!$H$4:$H$8763)),SUM((TEXT('HOURLY DATA'!$B$4:$B$8763,"mmmm")=$A127)*('HOURLY DATA'!$F$4:$F$8763=1)*('HOURLY DATA'!$H$4:$H$8763))) -> 1166067.092 | H127: =IF(OR(Selected_Base_Tariff="RURAFLEX",Selected_Base_Tariff="NIGHTSAVE RURAL"),SUM((TEXT('HOURLY DATA'!$B$4:$B$8763,"mmmm")=$A127)*('HOURLY DATA'!$V$4:$V$8763=2)*('HOURLY DATA'!$H$4:$H$8763)),SUM((TEXT('HOURLY DATA'!$B$4:$B$8763,"mmmm")=$A127)*('HOURLY DATA'!$F$4:$F$8763=2)*('HOURLY DATA'!$H$4:$H$8763))) -> 2822747.233 | I127: =IF(OR(Selected_Base_Tariff="RURAFLEX",Selected_Base_Tariff="NIGHTSAVE RURAL"),SUM((TEXT('HOURLY DATA'!$B$4:$B$8763,"mmmm")=$A127)*('HOURLY DATA'!$V$4:$V$8763=3)*('HOURLY DATA'!$H$4:$H$8763)),SUM((TEXT('HOURLY DATA'!$B$4:$B$8763,"mmmm")=$A127)*('HOURLY DATA'!$F$4:$F$8763=3)*('HOURLY DATA'!$H$4:$H$8763))) -> 3325924.535 | J127: =MAX(IF((TEXT('HOURLY DATA'!$B$4:$B$8763,"mmmm")=$A127)*OR('HOURLY DATA'!$F$4:$F$8763=2,'HOURLY DATA'!$F$4:$F$8763=1),'HOURLY DATA'!$M$4:$M$8763)) -> 16542.25681 | K127: 16542.25681 | L127: =IF(OR($A127="June",$A127="July", $A127="August",Selected_Base_Tariff="Transflex 1", Selected_Base_Tariff="Transflex 2"),SUM((TEXT('HOURLY DATA'!$B$4:$B$8763,"mmmm")=$A127)*('HOURLY DATA'!$F$4:$F$8763=1+2)*('HOURLY DATA'!$N$4:$N$8763)),"") ->  | M127: 7314738.86 | N127: =MAX(IF((TEXT('HOURLY DATA'!$B$4:$B$8763,"mmmm")=$A127),'HOURLY DATA'!$M$4:$M$8763)) -> 16542.25681 | O127: 2026 | P127: 2026 | Q127: 2026 | R127: 2
A128: March | C128: 31 | D128: 2026-03-31 | E128: Low Demand | G128: =IF(OR(Selected_Base_Tariff="RURAFLEX",Selected_Base_Tariff="NIGHTSAVE RURAL"),SUM((TEXT('HOURLY DATA'!$B$4:$B$8763,"mmmm")=$A128)*('HOURLY DATA'!$V$4:$V$8763=1)*('HOURLY DATA'!$H$4:$H$8763)),SUM((TEXT('HOURLY DATA'!$B$4:$B$8763,"mmmm")=$A128)*('HOURLY DATA'!$F$4:$F$8763=1)*('HOURLY DATA'!$H$4:$H$8763))) -> 1360526.956 | H128: =IF(OR(Selected_Base_Tariff="RURAFLEX",Selected_Base_Tariff="NIGHTSAVE RURAL"),SUM((TEXT('HOURLY DATA'!$B$4:$B$8763,"mmmm")=$A128)*('HOURLY DATA'!$V$4:$V$8763=2)*('HOURLY DATA'!$H$4:$H$8763)),SUM((TEXT('HOURLY DATA'!$B$4:$B$8763,"mmmm")=$A128)*('HOURLY DATA'!$F$4:$F$8763=2)*('HOURLY DATA'!$H$4:$H$8763))) -> 3347530.416 | I128: =IF(OR(Selected_Base_Tariff="RURAFLEX",Selected_Base_Tariff="NIGHTSAVE RURAL"),SUM((TEXT('HOURLY DATA'!$B$4:$B$8763,"mmmm")=$A128)*('HOURLY DATA'!$V$4:$V$8763=3)*('HOURLY DATA'!$H$4:$H$8763)),SUM((TEXT('HOURLY DATA'!$B$4:$B$8763,"mmmm")=$A128)*('HOURLY DATA'!$F$4:$F$8763=3)*('HOURLY DATA'!$H$4:$H$8763))) -> 4240722.865 | J128: =MAX(IF((TEXT('HOURLY DATA'!$B$4:$B$8763,"mmmm")=$A128)*OR('HOURLY DATA'!$F$4:$F$8763=2,'HOURLY DATA'!$F$4:$F$8763=1),'HOURLY DATA'!$M$4:$M$8763)) -> 15803.26429 | K128: 15803.26429 | L128: =IF(OR($A128="June",$A128="July", $A128="August",Selected_Base_Tariff="Transflex 1", Selected_Base_Tariff="Transflex 2"),SUM((TEXT('HOURLY DATA'!$B$4:$B$8763,"mmmm")=$A128)*('HOURLY DATA'!$F$4:$F$8763=1+2)*('HOURLY DATA'!$N$4:$N$8763)),"") ->  | M128: 8948780.236 | N128: =MAX(IF((TEXT('HOURLY DATA'!$B$4:$B$8763,"mmmm")=$A128),'HOURLY DATA'!$M$4:$M$8763)) -> 15803.26429 | O128: 2026 | P128: 2026 | Q128: 2026 | R128: 3
D130: Total | G130: =SUM(G117:G128) -> 15101572.91 | H130: =SUM(H117:H128) -> 38705209.84 | I130: 50014594.43 | L130: =SUM(L117:L128) -> 876823.27 | M130: 103821377.2
B132: Consumption Data Summary - Current TOU actuals from HOURLY DATA worksheet
D134: Season | E134: Days | G134: =G$33 -> Peak energy | H134: =H$33 -> Standard energy | I134: Off-peak energy | J134: Chargeable demand | K134: Utilised capacity | L134: Excess reactive energy | M134: Total energy
D136: Low Demand | E136: =SUMIFS(C$36:C$47,$E$36:$E$47,$D136,$O$36:$O$47,$P136) -> 273 | G136: =SUMIFS(G$117:G$128,$E$117:$E$128,$D136,$O$117:$O$128,$P136) -> 11389684.77 | H136: 29136279.24 | I136: 37902643.51 | J136: 142166.3066 | K136: 142166.3066 | L136: 0 | M136: =SUMIFS(M$75:M$86,$E$75:$E$86,$D136,$O$75:$O$86,$P136) -> 78428607.51 | P136: =YEAR(TOU_Period) -> 2026 | Q136: =COUNTIF($E$36:$E$47,D136) -> 9
D137: High Demand | E137: =SUMIFS(C$36:C$47,$E$36:$E$47,$D137,$O$36:$O$47,$P137) -> 92 | G137: 3711888.143 | H137: 9568930.601 | I137: 12111950.92 | J137: 46637.32647 | K137: 46637.32647 | L137: 876823.27 | M137: =SUMIFS(M$75:M$86,$E$75:$E$86,$D137,$O$75:$O$86,$P137) -> 25392769.67 | P137: =YEAR(TOU_Period) -> 2026 | Q137: =COUNTIF($E$36:$E$47,D137) -> 3
D139: Total | E139: =SUM(E136:E137) -> 365 | G139: =SUM(G136:G137) -> 15101572.91 | H139: =SUM(H136:H137) -> 38705209.84 | I139: 50014594.43 | L139: =SUM(L136:L137) -> 876823.27 | M139: 103821377.2
C142: Note
C143: Calculations are based on the average number of days per month: Ave days per month = Total number of days in year (365) / months (12) = 30.416667
P180: Yes
P181: No

Sheet Bill Comparison
B4: ="High demand vs low demand cost comparison for "&New_Period&" rates" -> High demand vs low demand cost comparison for 2025/26 rates | I4: =D10 -> Miniflex | M4: =B4 -> High demand vs low demand cost comparison for 2025/26 rates | T4: =I4 -> Miniflex
B6: High Demand | M6: Low Demand
B8: Customer Name: | D8: =Customer_Name -> 0 | F8: High Demand Consumption Data | H8: Monthly inputs | I8: Previous TOU - hourly data | J8: Current TOU - hourly data | M8: =B8 -> Customer Name: | O8: =D8 -> 0 | Q8: Low Demand Consumption Data | S8: Monthly inputs | T8: Previous TOU - hourly data | U8: Current TOU - hourly data
B9: =Inputs!D10 -> Point of delivery ID | D9: =Delivery_ID -> 0 | F9: Sum of Utilised Capacity | H9: =TOU_High_UC -> 0 | I9: =TOU_High_UC_Exist_TOU -> 46637.32647 | J9: =TOU_High_UC_New_TOU -> 46637.32647 | K9: kVA | M9: =B9 -> Point of delivery ID | O9: 0 | Q9: Sum of Utilised Capacity | S9: =TOU_Low_UC -> 0 | T9: =TOU_Low_UC_Exist_TOU -> 142166.3066 | U9: =TOU_Low_UC_New_TOU -> 142166.3066 | V9: kVA
C10: Tariff | D10: =Selected_Base_Tariff -> Miniflex | F10: Sum of Chargeable Demands | H10: =TOU_High_Demand -> 0 | I10: =TOU_High_Demand_Exist_TOU -> 46637.32647 | J10: =TOU_High_Demand_New_TOU -> 46637.32647 | K10: kVA | N10: =C10 -> Tariff | O10: Miniflex | Q10: Sum of Chargeable Demands | S10: =TOU_Low_Demand -> 0 | T10: =TOU_Low_Demand_Exist_TOU -> 142166.3066 | U10: =TOU_Low_Demand_New_TOU -> 142166.3066 | V10: kVA
C11: Tariff Category | D11: =INDEX(Full_Tariff_Type,MATCH(D10,Full_Tariff_List,0)) -> Urban | F11: Peak Consumption | H11: =TOU_High_Peak -> 0 | I11: =TOU_High_Peak_Exist_TOU -> 3685998.875 | J11: =TOU_High_Peak_New_TOU -> 3711888.143 | K11: kWh | N11: Tariff Category | O11: Urban | Q11: Peak Consumption | S11: =TOU_Low_Peak -> 0 | T11: =TOU_Low_Peak_Exist_TOU -> 11291668.57 | U11: =TOU_Low_Peak_New_TOU -> 11389684.77 | V11: kWh
C12: Supply voltage | D12: =Selected_Supply_Voltage -> < 500V | F12: Standard Consumption | H12: =TOU_High_Standard -> 0 | I12: =TOU_High_Standard_Exist_TOU -> 9295098.833 | J12: =TOU_High_Standard_New_TOU -> 9568930.601 | K12: kWh | N12: Supply voltage | O12: < 500V | Q12: Standard Consumption | S12: =TOU_Low_Standard -> 0 | T12: =TOU_Low_Standard_Exist_TOU -> 28280822.05 | U12: =TOU_Low_Standard_New_TOU -> 29136279.24 | V12: kWh
C13: Transmission zone | D13: =Selected_Transmission -> [> 900km] | F13: Off Peak Consumption | H13: =TOU_High_OffPeak -> 0 | I13: =TOU_High_OffPeak_Exist_TOU -> 12411671.96 | J13: =TOU_High_OffPeak_New_TOU -> 12111950.92 | K13: kWh | N13: Transmission zone | O13: [> 900km] | Q13: Off Peak Consumption | S13: =TOU_Low_OffPeak -> 0 | T13: =TOU_Low_OffPeak_Exist_TOU -> 38856116.89 | U13: =TOU_Low_OffPeak_New_TOU -> 37902643.51 | V13: kWh
C14: Tariff Classification | D14: =Selected_Tariff_Category -> Non-Local Authority | F14: Total Consumption | H14: =SUM(H11:H13) -> 0 | I14: =SUM(I11:I13) -> 25392769.67 | J14: 25392769.67 | K14: kWh | N14: Tariff Classification | O14: Non-Local Authority | Q14: Total Consumption | S14: =SUM(S11:S13) -> 0 | T14: =SUM(T11:T13) -> 78428607.51 | U14: 78428607.51 | V14: kWh
C15: No of PODS | D15: =PODs -> 1 | F15: Excess Reactive Energy | H15: =TOU_High_Excess_RE -> 0 | I15: =TOU_High_Excess_RE_Exist_TOU -> 902772.3217 | J15: =TOU_High_Excess_RE_New_TOU -> 876823.27 | K15: kVArh | N15: No of PODS | O15: 1 | Q15: Excess Reactive Energy | S15: =TOU_Low_Excess_RE -> 0 | T15: =TOU_Low_Excess_RE_Exist_TOU -> 0 | U15: =TOU_Low_Excess_RE_New_TOU -> 0 | V15: kVArh
C16: Size of supply | D16: =Selected_Supply_Size -> >100kVA & ≤500kVA | F16: Days | H16: =TOU_High_Days -> 92 | I16: =TOU_High_Days -> 92 | J16: =TOU_High_Days -> 92 | K16: days | N16: Size of supply | O16: >100kVA & ≤500kVA | Q16: Days | S16: =TOU_Low_Days -> 273 | T16: =TOU_Low_Days -> 273 | U16: =TOU_Low_Days -> 273 | V16: days
B18: Network charges | D18: Units | E18: =Current_Period &" Rates" -> 2024/25 Rates | F18: =New_Period &" Rates" -> 2025/26 Rates | G18: =Current_Period&" Charges" -> 2024/25 Charges | H18: =New_Period&" Charges" -> 2025/26 Charges | I18: % Change | M18: Network charges | O18: Units | P18: =Current_Period &" Rates" -> 2024/25 Rates | Q18: =New_Period &" Rates" -> 2025/26 Rates | R18: =Current_Period&" Charges" -> 2024/25 Charges | S18: =New_Period&" Charges" -> 2025/26 Charges | T18: % Change
A20: =IF(COUNTIF(B20:T20,"n/a")>0,"n/a","") -> n/a | C20: Transmission network charge | D20: R/kVA | E20: ='Rates Table'!E10 -> n/a | F20: ='Rates Table'!AT10 -> n/a | G20: =IFERROR(E20*(IF(Inputs!$G$29="No",High_Utilised_Capacity,High_Utilised_Capacity_Exist_TOU)),0) -> 0 | H20: =IFERROR(F20*(IF(Inputs!$G$29="No",High_Utilised_Capacity,High_Utilised_Capacity_New_TOU)),0) -> 0 | I20: =IFERROR(H20/G20-1,0) -> 0 | N20: =C20 -> Transmission network charge | O20: R/kVA | P20: n/a | Q20: n/a | R20: =IFERROR(P20*(IF(Inputs!$G$29="No",Low_Utilised_Capacity,Low_Utilised_Capacity_Exist_TOU)),0) -> 0 | S20: =IFERROR(Q20*(IF(Inputs!$G$29="No",Low_Utilised_Capacity,Low_Utilised_Capacity_New_TOU)),0) -> 0 | T20: =IFERROR(S20/R20-1,0) -> 0
A21: n/a | C21: Distribution network capacity charge | D21: R/kVA | E21: ='Rates Table'!E11 -> 0 | F21: ='Rates Table'!AT11 -> n/a | G21: =IFERROR(E21*(IF(Inputs!$G$29="No",High_Utilised_Capacity,High_Utilised_Capacity_Exist_TOU)),0) -> 0 | H21: =IFERROR(F21*(IF(Inputs!$G$29="No",High_Utilised_Capacity,High_Utilised_Capacity_New_TOU)),0) -> 0 | I21: =IFERROR(H21/G21-1,0) -> 0 | N21: Distribution network capacity charge | O21: R/kVA | P21: 0 | Q21: n/a | R21: =IFERROR(P21*(IF(Inputs!$G$29="No",Low_Utilised_Capacity,Low_Utilised_Capacity_Exist_TOU)),0) -> 0 | S21: =IFERROR(Q21*(IF(Inputs!$G$29="No",Low_Utilised_Capacity,Low_Utilised_Capacity_New_TOU)),0) -> 0 | T21: =IFERROR(S21/R21-1,0) -> 0
C22: Distribution network demand charge | D22: R/kVA | E22: ='Rates Table'!E12 -> 0 | F22: ='Rates Table'!AT12 -> 0 | G22: =IFERROR(E22*(IF(Inputs!$G$29="No",High_Demand,High_Demand_Exist_TOU)),0) -> 0 | H22: =IFERROR(F22*(IF(Inputs!$G$29="No",High_Demand,High_Demand_New_TOU)),0) -> 0 | I22: 0 | N22: Distribution network demand charge | O22: R/kVA | P22: 0 | Q22: 0 | R22: =IFERROR(P22*(IF(Inputs!$G$29="No",Low_Demand,Low_Demand_Exist_TOU)),0) -> 0 | S22: =IFERROR(Q22*(IF(Inputs!$G$29="No",Low_Demand,Low_Demand_New_TOU)),0) -> 0 | T22: 0
C23: Network demand charge | D23: c/kWh | E23: ='Rates Table'!E13 -> 32.33 | F23: ='Rates Table'!AT13 -> 29.7 | G23: =IFERROR(IF(Inputs!$G$29="No",E23*IF('Workings High'!$E$2="Miniflex",(High_Peak+High_Standard),High_Total_Energy),E23*IF('Workings High'!$E$2="Miniflex",(High_Peak_Exist_TOU+High_Standard_Exist_TOU),High_Total_Energy_Exist_TOU)),0)/100 -> 0 | H23: =IFERROR(IF(Inputs!$G$29="No",F23*IF('Bill Comparison'!$D$10="Miniflex",(High_Peak+High_Standard),High_Total_Energy),F23*IF('Bill Comparison'!$D$10="Miniflex",(High_Peak_New_TOU+High_Standard_New_TOU),High_Total_Energy_New_TOU)),0)/100 -> 0 | I23: =IFERROR(H23/G23-1,0) -> 0 | N23: Network demand charge | O23: c/kWh | P23: 32.33 | Q23: 29.7 | R23: =IFERROR(IF(Inputs!$G$29="No",P23*IF('Workings Low'!$E$2="Miniflex",(Low_Peak+Low_Standard),Low_Total_Energy),P23*IF('Workings Low'!$E$2="Miniflex",(Low_Peak_Exist_TOU+Low_Standard_Exist_TOU),Low_Total_Energy_Exist_TOU)),0)/100 -> 0 | S23: =IFERROR(IF(Inputs!$G$29="No",Q23*IF('Bill Comparison'!$D$10="Miniflex",(Low_Peak+Low_Standard),Low_Total_Energy),Q23*IF('Bill Comparison'!$D$10="Miniflex",(Low_Peak_New_TOU+Low_Standard_New_TOU),Low_Total_Energy_New_TOU)),0)/100 -> 0 | T23: 0
C24: LV Subsidy Charge | D24: R/kVA | E24: ='Rates Table'!E15 -> 0 | F24: ='Rates Table'!AT15 -> 0 | G24: =IFERROR(E24*(IF(Inputs!$G$29="No",High_Utilised_Capacity,High_Utilised_Capacity_Exist_TOU)),0) -> 0 | H24: =IFERROR(F24*(IF(Inputs!$G$29="No",High_Utilised_Capacity,High_Utilised_Capacity_New_TOU)),0) -> 0 | I24: 0 | N24: LV Subsidy Charge | O24: R/kVA | P24: 0 | Q24: 0 | R24: =IFERROR(E24*(IF(Inputs!$G$29="No",Low_Utilised_Capacity,Low_Utilised_Capacity_Exist_TOU)),0) -> 0 | S24: =IFERROR(F24*(IF(Inputs!$G$29="No",Low_Utilised_Capacity,Low_Utilised_Capacity_New_TOU)),0) -> 0 | T24: 0
C25: Network capacity charge | D25: =IF(Table_1=1,"R/kVA","R/day") -> R/kVA | E25: ='Rates Table'!E16 -> 52.65 | F25: ='Rates Table'!AT16 -> 50.18 | G25: =IFERROR(IF(Inputs!$G$29="No", IF(AND(Table_1=1,$D$10<>"Transflex 1",$D$10<>"Transflex 2"), E25*High_Utilised_Capacity, E25*PODs*High_Days), IF(AND(Table_1=1,$D$10<>"Transflex 1",$D$10<>"Transflex 2"), E25*High_Utilised_Capacity_Exist_TOU, E25*PODs*High_Days)),0) -> 0 | H25: =IFERROR(IF(Inputs!$G$29="No", IF(AND('Rates Table'!AT68,$D$10<>"Transflex 1",$D$10<>"Transflex 2"), F25*High_Utilised_Capacity, F25*PODs*High_Days), IF(AND('Rates Table'!AT68,$D$10<>"Transflex 1",$D$10<>"Transflex 2"), F25*High_Utilised_Capacity_New_TOU, F25*PODs*High_Days)),0) -> 0 | I25: 0 | N25: Network capacity charge | O25: R/kVA | P25: 52.65 | Q25: 50.18 | R25: =IFERROR(IF(Inputs!$G$29="No", IF(AND(Table_1=1,$D$10<>"Transflex 1",$D$10<>"Transflex 2"), P25*Low_Utilised_Capacity, P25*PODs*Low_Days), IF(AND(Table_1=1,$D$10<>"Transflex 1",$D$10<>"Transflex 2"), P25*Low_Utilised_Capacity_Exist_TOU, P25*PODs*Low_Days)),0) -> 0 | S25: =IFERROR(IF(Inputs!$G$29="No", IF(AND('Rates Table'!AT68,$D$10<>"Transflex 1",$D$10<>"Transflex 2"), Q25*Low_Utilised_Capacity, Q25*PODs*Low_Days), IF(AND('Rates Table'!AT68,$D$10<>"Transflex 1",$D$10<>"Transflex 2"), Q25*Low_Utilised_Capacity_New_TOU, Q25*PODs*Low_Days)),0) -> 0 | T25: 0
A26: n/a | C26: Network demand charge, Ancillary service charge and retail | D26: c/kWh | E26: ='Rates Table'!E14 -> n/a | F26: ='Rates Table'!AT14 -> n/a | G26: =IFERROR(E26*IF(Inputs!$G$29="No",High_Total_Energy,High_Total_Energy_Exist_TOU),0)/100 -> 0 | H26: =IFERROR(F26*IF(Inputs!$G$29="No",High_Total_Energy,High_Total_Energy_New_TOU),0)/100 -> 0 | I26: 0 | N26: Network demand charge, Ancillary service charge and retail | O26: c/kWh | P26: ='Rates Table'!E14 -> n/a | Q26: ='Rates Table'!AT14 -> n/a | R26: =IFERROR(P26*IF(Inputs!$G$29="No",Low_Total_Energy,Low_Total_Energy_Exist_TOU),0)/100 -> 0 | S26: =IFERROR(Q26*IF(Inputs!$G$29=No,Low_Total_Energy,Low_Total_Energy_New_TOU),0)/100 -> 0 | T26: 0
B28: Total network charges | G28: =SUM(G20:G26) -> 0 | H28: =SUM(H20:H26) -> 0 | I28: 0 | M28: Total network charges | R28: =SUM(R20:R26) -> 0 | S28: =SUM(S20:S26) -> 0 | T28: =IFERROR(S28/R28-1,0) -> 0
B30: Energy charges | D30: Units | E30: =E18 -> 2024/25 Rates | F30: =F18 -> 2025/26 Rates | G30: =G18 -> 2024/25 Charges | H30: =H18 -> 2025/26 Charges | I30: % Change | M30: Energy charges | O30: Units | P30: =P18 -> 2024/25 Rates | Q30: =Q18 -> 2025/26 Rates | R30: =R18 -> 2024/25 Charges | S30: =S18 -> 2025/26 Charges | T30: % Change
C32: Peak | D32: c/kWh | E32: ='Rates Table'!E22 -> 629.34 | F32: ='Rates Table'!AT22 -> 705.13 | G32: =IFERROR(E32*IF(Inputs!$G$29="No",High_Peak,High_Peak_Exist_TOU),0)/100 -> 0 | H32: =IFERROR(F32*IF(Inputs!$G$29="No",High_Peak,High_Peak_New_TOU),0)/100 -> 0 | I32: =IFERROR(H32/G32-1,0) -> 0 | N32: Peak consumption | O32: =D32 -> c/kWh | P32: ='Rates Table'!E37 -> 205.32 | Q32: ='Rates Table'!AT37 -> 292.64 | R32: =IFERROR(P32*IF(Inputs!$G$29="No",Low_Peak,Low_Peak_Exist_TOU),0)/100 -> 0 | S32: =IFERROR(Q32*IF(Inputs!$G$29="No",Low_Peak,Low_Peak_New_TOU),0)/100 -> 0 | T32: =IFERROR(S32/R32-1,0) -> 0
C33: Standard | D33: c/kWh | E33: ='Rates Table'!E23 -> 190.72 | F33: ='Rates Table'!AT23 -> 176.28 | G33: =IFERROR(E33*IF(Inputs!$G$29="No",High_Standard,High_Standard_Exist_TOU),0)/100 -> 0 | H33: =IFERROR(F33*IF(Inputs!$G$29="No",High_Standard,High_Standard_New_TOU),0)/100 -> 0 | I33: =IFERROR(H33/G33-1,0) -> 0 | N33: Standard consumption | O33: =D33 -> c/kWh | P33: ='Rates Table'!E38 -> 141.29 | Q33: ='Rates Table'!AT38 -> 164.53 | R33: =IFERROR(P33*IF(Inputs!$G$29="No",Low_Standard,Low_Standard_Exist_TOU),0)/100 -> 0 | S33: =IFERROR(Q33*IF(Inputs!$G$29="No",Low_Standard,Low_Standard_New_TOU),0)/100 -> 0 | T33: =IFERROR(S33/R33-1,0) -> 0
C34: Off-Peak | D34: c/kWh | E34: ='Rates Table'!E24 -> 103.51 | F34: ='Rates Table'!AT24 -> 117.52 | G34: =IFERROR(E34*IF(Inputs!$G$29="No",High_OffPeak,High_OffPeak_Exist_TOU),0)/100 -> 0 | H34: =IFERROR(F34*IF(Inputs!$G$29="No",High_OffPeak,High_OffPeak_New_TOU),0)/100 -> 0 | I34: =IFERROR(H34/G34-1,0) -> 0 | N34: Off-Peak consumption | O34: =D34 -> c/kWh | P34: ='Rates Table'!E39 -> 89.66 | Q34: ='Rates Table'!AT39 -> 117.52 | R34: =IFERROR(P34*IF(Inputs!$G$29="No",Low_OffPeak,Low_OffPeak_Exist_TOU),0)/100 -> 0 | S34: =IFERROR(Q34*IF(Inputs!$G$29="No",Low_OffPeak,Low_OffPeak_New_TOU),0)/100 -> 0 | T34: =IFERROR(S34/R34-1,0) -> 0
A35: =A34 ->  | C35: Sub Total (TOU) | G35: =SUM(G32:G34) -> 0 | H35: =SUM(H32:H34) -> 0 | I35: =IFERROR(H35/G35-1,0) -> 0 | N35: =C35 -> Sub Total (TOU) | R35: =SUM(R32:R34) -> 0 | S35: =SUM(S32:S34) -> 0 | T35: =IFERROR(S35/R35-1,0) -> 0
A36: =IF(COUNTIF(B33:T33,"n/a")>0,"n/a","") -> 
A37: =IF(COUNTIF(B37:T37,"n/a")>0,"n/a","") ->  | C37: Generation capacity charge | D37: =IFERROR(IF(Table_1=1, "R/kVA", "R/POD/day"),"R/kVA") -> R/kVA | E37: ='Rates Table'!E30 -> 0 | F37: ='Rates Table'!AT30 -> 3.49 | G37: =IFERROR(IF(Inputs!$G$29="No", IF(AND(Table_1=1,$D$10<>"Transflex 1",$D$10<>"Transflex 2"), E37*High_Utilised_Capacity, E37*PODs*High_Days), IF(AND(Table_1=1,$D$10<>"Transflex 1",$D$10<>"Transflex 2"), E37*High_Utilised_Capacity_Exist_TOU, E37*PODs*High_Days)),0) -> 0 | H37: =IFERROR(IF(Inputs!$G$29="No", IF(AND('Rates Table'!AT68,$D$10<>"Transflex 1",$D$10<>"Transflex 2"), F37*High_Utilised_Capacity, F37*PODs*High_Days), IF(AND('Rates Table'!AT68,$D$10<>"Transflex 1",$D$10<>"Transflex 2"), F37*High_Utilised_Capacity_New_TOU, F37*PODs*High_Days)),0) -> 0 | I37: =IFERROR(H37/G37-1,0) -> 0 | N37: Generation capacity charge | O37: =IFERROR(IF(Table_1=1, "R/kVA", "R/POD/day"),"R/kVA") -> R/kVA | P37: ='Rates Table'!E45 -> 0 | Q37: ='Rates Table'!AT45 -> 3.49 | R37: =IFERROR(IF(Inputs!$G$29="No", IF(AND(Table_1=1,$D$10<>"Transflex 1",$D$10<>"Transflex 2"), P37*Low_Utilised_Capacity, P37*PODs*Low_Days), IF(AND(Table_1=1,$D$10<>"Transflex 1",$D$10<>"Transflex 2"), P37*Low_Utilised_Capacity_Exist_TOU, P37*PODs*Low_Days)),0) -> 0 | S37: =IFERROR(IF(Inputs!$G$29="No", IF(AND('Rates Table'!AT68,$D$10<>"Transflex 1",$D$10<>"Transflex 2"), Q37*Low_Utilised_Capacity, Q37*PODs*Low_Days), IF(AND('Rates Table'!AT68,$D$10<>"Transflex 1",$D$10<>"Transflex 2"), Q37*Low_Utilised_Capacity_New_TOU, Q37*PODs*Low_Days)),0) -> 0 | T37: =IFERROR(S37/R37-1,0) -> 0
C38: Legacy charge | D38: c/kWh | E38: ='Rates Table'!E31 -> 0 | F38: ='Rates Table'!AT31 -> 22.78 | G38: =IFERROR(E38*IF(Inputs!$G$29="No",High_Total_Energy,High_Total_Energy_Exist_TOU),0)/100 -> 0 | H38: =IFERROR(F38*IF(Inputs!$G$29="No",High_Total_Energy,High_Total_Energy_New_TOU),0)/100 -> 0 | I38: =IFERROR(H38/G38-1,0) -> 0 | N38: Legacy charge | O38: c/kWh | P38: ='Rates Table'!E46 -> 0 | Q38: ='Rates Table'!AT46 -> 22.78 | R38: =IFERROR(P38*IF(Inputs!$G$29="No",Low_Total_Energy,Low_Total_Energy_Exist_TOU),0)/100 -> 0 | S38: =IFERROR(Q38*IF(Inputs!$G$29="No",Low_Total_Energy,Low_Total_Energy_New_TOU),0)/100 -> 0 | T38: =IFERROR(S38/R38-1,0) -> 0
A40: n/a | C40: Sub Total (non-TOU) | D40: c/kWh | E40: ='Rates Table'!E26 -> n/a | F40: ='Rates Table'!AT26 -> n/a | G40: =IFERROR(E40*IF(Inputs!$G$29="No",High_Total_Energy,High_Total_Energy_Exist_TOU),0)/100 -> 0 | H40: =IFERROR(F40*IF(Inputs!$G$29="No",High_Total_Energy,High_Total_Energy_New_TOU),0)/100 -> 0 | I40: =IFERROR(H40/G40-1,0) -> 0 | N40: =C40 -> Sub Total (non-TOU) | O40: c/kWh | P40: ='Rates Table'!E41 -> n/a | Q40: ='Rates Table'!AT41 -> n/a | R40: =IFERROR(P40*IF(Inputs!$G$29="No",Low_Total_Energy,Low_Total_Energy_Exist_TOU),0)/100 -> 0 | S40: =IFERROR(Q40*IF(Inputs!$G$29="No",Low_Total_Energy,Low_Total_Energy_New_TOU),0)/100 -> 0 | T40: =IFERROR(S40/R40-1,0) -> 0
A41: n/a | C41: Energy - Block 1 | D41: c/kWh | E41: ='Rates Table'!E27 -> n/a | F41: ='Rates Table'!AT27 -> n/a | G41: =IFERROR(E41*(High_Block_1),0)/100 -> 0 | H41: =IFERROR(F41*(High_Block_1),0)/100 -> 0 | I41: =IFERROR(H41/G41-1,0) -> 0 | N41: Energy - Block 1 | O41: c/kWh | P41: ='Rates Table'!E42 -> n/a | Q41: ='Rates Table'!AT42 -> n/a | R41: =IFERROR(P41*(Low_Block_1),0)/100 -> 0 | S41: =IFERROR(Q41*(Low_Block_1),0)/100 -> 0 | T41: =IFERROR(S41/R41-1,0) -> 0
A42: n/a | C42: Energy - Block 2 | D42: c/kWh | E42: ='Rates Table'!E28 -> n/a | F42: ='Rates Table'!AT28 -> n/a | G42: =IFERROR(E42*(High_Block_2),0)/100 -> 0 | H42: =IFERROR(F42*(High_Block_2),0)/100 -> 0 | I42: =IFERROR(H42/G42-1,0) -> 0 | N42: Energy - Block 2 | O42: c/kWh | P42: ='Rates Table'!E43 -> n/a | Q42: ='Rates Table'!AT43 -> n/a | R42: =IFERROR(P42*(Low_Block_2),0)/100 -> 0 | S42: =IFERROR(Q42*(Low_Block_2),0)/100 -> 0 | T42: =IFERROR(S42/R42-1,0) -> 0
A43: n/a | C43: Energy Demand | D43: R/kVA | E43: ='Rates Table'!E29 -> n/a | F43: ='Rates Table'!AT29 -> n/a | G43: =IFERROR(E43*IF(Inputs!$G$29="No",High_Demand,High_Demand_Exist_TOU),0) -> 0 | H43: =IFERROR(F43*IF(Inputs!$G$29="No",High_Demand,High_Demand_New_TOU),0) -> 0 | I43: =IFERROR(H43/G43-1,0) -> 0 | N43: Energy Demand | O43: =D43 -> R/kVA | P43: ='Rates Table'!E44 -> n/a | Q43: ='Rates Table'!AT44 -> n/a | R43: =IFERROR(P43*IF(Inputs!$G$29="No",Low_Demand,Low_Demand_Exist_TOU),0) -> 0 | S43: =IFERROR(Q43*IF(Inputs!$G$29="No",Low_Demand,Low_Demand_New_TOU),0) -> 0 | T43: =IFERROR(S43/R43-1,0) -> 0
B45: Total energy charges | G45: =SUM(G35:G43) -> 0 | H45: =SUM(H35:H43) -> 0 | I45: =IFERROR(H45/G45-1,0) -> 0 | M45: Total energy charges | R45: =SUM(R35:R43) -> 0 | S45: =SUM(S35:S43) -> 0 | T45: =IFERROR(S45/R45-1,0) -> 0
B47: Other charges | D47: Units | E47: =E18 -> 2024/25 Rates | F47: =F18 -> 2025/26 Rates | G47: =G18 -> 2024/25 Charges | H47: =H18 -> 2025/26 Charges | I47: % Change | M47: Other charges | O47: Units | P47: =P18 -> 2024/25 Rates | Q47: =Q18 -> 2025/26 Rates | R47: =R18 -> 2024/25 Charges | S47: =S18 -> 2025/26 Charges | T47: % Change
C49: Ancillary service charge | D49: c/kWh | E49: ='Rates Table'!E52 -> 0.8 | F49: ='Rates Table'!AT52 -> 0.41 | G49: =IFERROR(E49*IF(Inputs!$G$29="No",High_Total_Energy,High_Total_Energy_Exist_TOU),0)/100 -> 0 | H49: =IFERROR(F49*IF(Inputs!$G$29="No",High_Total_Energy,High_Total_Energy_New_TOU),0)/100 -> 0 | I49: =IFERROR(H49/G49-1,0) -> 0 | N49: =C49 -> Ancillary service charge | O49: =D49 -> c/kWh | P49: =E49 -> 0.8 | Q49: =F49 -> 0.41 | R49: =IFERROR(P49*IF(Inputs!$G$29="No",Low_Total_Energy,Low_Total_Energy_Exist_TOU),0)/100 -> 0 | S49: =IFERROR(Q49*IF(Inputs!$G$29="No",Low_Total_Energy,Low_Total_Energy_New_TOU),0)/100 -> 0 | T49: =IFERROR(S49/R49-1,0) -> 0
C50: Reactive energy charge | D50: c/kVArh | E50: ='Rates Table'!E53 -> 12.25 | F50: ='Rates Table'!AT53 -> 13.81 | G50: =IFERROR(E50*IF(Inputs!$G$29="No",High_Excess_RE,High_Excess_RE_Exist_TOU),0)/100 -> 0 | H50: =IFERROR(F50*IF(Inputs!$G$29="No",High_Excess_RE,High_Excess_RE_New_TOU),0)/100 -> 0 | I50: 0 | N50: Reactive energy charge | O50: c/kVArh | P50: =IF(OR($D$10="Transflex 1",$D$10="Transflex 2"), 'Rates Table'!E53,0) -> 0 | Q50: =IF(OR($D$10="Transflex 1",$D$10="Transflex 2"), 'Rates Table'!AT53,0) -> 0 | R50: =IFERROR(P50*IF(Inputs!$G$29="No",Low_Excess_RE,Low_Excess_RE_Exist_TOU),0)/100 -> 0 | S50: =IFERROR(Q50*IF(Inputs!$G$29="No",Low_Excess_RE,Low_Excess_RE_New_TOU),0)/100 -> 0 | T50: 0
C51: Electrification and rural subsidy charge | D51: c/kWh | E51: ='Rates Table'!E54 -> 15.56 | F51: ='Rates Table'!AT54 -> 4.94 | G51: =IFERROR(E51*IF(Inputs!$G$29="No",High_Total_Energy,High_Total_Energy_Exist_TOU),0)/100 -> 0 | H51: =IFERROR(F51*IF(Inputs!$G$29="No",High_Total_Energy,High_Total_Energy_New_TOU),0)/100 -> 0 | I51: 0 | N51: Electrification and rural subsidy charge | O51: c/kWh | P51: =E51 -> 15.56 | Q51: 4.94 | R51: =IFERROR(P51*IF(Inputs!$G$29="No",Low_Total_Energy,Low_Total_Energy_Exist_TOU),0)/100 -> 0 | S51: =IFERROR(Q51*IF(Inputs!$G$29="No",Low_Total_Energy,Low_Total_Energy_New_TOU),0)/100 -> 0 | T51: 0
C52: Affordability subsidy charge | D52: c/kWh | E52: ='Rates Table'!E55 -> 9.23 | F52: ='Rates Table'!AT55 -> 4.69 | G52: =IFERROR(E52*IF(Inputs!$G$29="No",High_Total_Energy,High_Total_Energy_Exist_TOU),0)/100 -> 0 | H52: =IFERROR(F52*IF(Inputs!$G$29="No",High_Total_Energy,High_Total_Energy_New_TOU),0)/100 -> 0 | I52: 0 | N52: Affordability subsidy charge | O52: c/kWh | P52: 9.23 | Q52: 4.69 | R52: =IFERROR(P52*IF(Inputs!$G$29="No",Low_Total_Energy,Low_Total_Energy_Exist_TOU),0)/100 -> 0 | S52: =IFERROR(Q52*IF(Inputs!$G$29="No",Low_Total_Energy,Low_Total_Energy_New_TOU),0)/100 -> 0 | T52: 0
C53: Administration charge | D53: R/day | E53: ='Rates Table'!E56 -> 36.42 | F53: ='Rates Table'!AT56 -> 12.4 | G53: =IFERROR(E53*PODs*High_Days,0) -> 3350.64 | H53: =IFERROR(F53*PODs*High_Days,0) -> 1140.8 | I53: -0.659527732 | N53: Administration charge | O53: R/day | P53: 36.42 | Q53: 12.4 | R53: =IFERROR(P53*PODs*Low_Days,0) -> 9942.66 | S53: =IFERROR(Q53*PODs*Low_Days,0) -> 3385.2 | T53: -0.659527732
C54: Service charge | D54: =IF(Table_1=1,"R/day","R/day") -> R/day | E54: ='Rates Table'!E57 -> 129.81 | F54: ='Rates Table'!AT57 -> 64.28 | G54: =IFERROR(IF(Table_1=1, E54*1*High_Days, E54*PODs*High_Days),0) -> 11942.52 | H54: =IFERROR(IF('Rates Table'!AT68,F54*PODs*High_Days,F54*PODs*High_Days),0) -> 5913.76 | I54: -0.5048147292 | N54: Service charge | O54: R/day | P54: 129.81 | Q54: 64.28 | R54: =IFERROR(IF(Table_1=1, P54*1*Low_Days, P54*PODs*Low_Days),0) -> 35438.13 | S54: =IFERROR(IF('Rates Table'!AT68, Q54*PODs*Low_Days, Q54*PODs*Low_Days),0) -> 17548.44 | T54: -0.5048147292
B56: Total other charges | G56: =SUM(G49:G54) -> 15293.16 | H56: =SUM(H49:H54) -> 7054.56 | I56: =IFERROR(H56/G56-1,0) -> -0.5387114239 | M56: Total other charges | R56: =SUM(R49:R54) -> 45380.79 | S56: =SUM(S49:S54) -> 20933.64 | T56: =IFERROR(S56/R56-1,0) -> -0.5387114239
B58: Total excl VAT | G58: =G56+G45+G28 -> 15293.16 | H58: =H56+H45+H28 -> 7054.56 | I58: =IFERROR(H58/G58-1,0) -> -0.5387114239 | M58: Total excl VAT | R58: =R56+R45+R28 -> 45380.79 | S58: =S56+S45+S28 -> 20933.64 | T58: =IFERROR(S58/R58-1,0) -> -0.5387114239
B59: VAT | D59: =VAT -> 0.15 | G59: =G58*$D59 -> 2293.974 | H59: =H58*$D59 -> 1058.184 | M59: VAT | O59: =VAT -> 0.15 | R59: =R58*$D59 -> 6807.1185 | S59: =S58*$D59 -> 3140.046
B61: Total account | G61: =SUM(G58:G59) -> 17587.134 | H61: =SUM(H58:H59) -> 8112.744 | I61: =IFERROR(H61/G61-1,0) -> -0.5387114239 | M61: Total account | R61: =SUM(R58:R59) -> 52187.9085 | S61: =SUM(S58:S59) -> 24073.686 | T61: =IFERROR(S61/R61-1,0) -> -0.5387114239
B63: Average price | D63: c/kWh | G63: =IFERROR(G58/IF(Inputs!$G$29="No",High_Total_Energy,High_Total_Energy_Exist_TOU)*100,0) -> 0 | H63: =IFERROR(H58/IF(Inputs!$G$29="No",High_Total_Energy,High_Total_Energy_Exist_TOU)*100,0) -> 0 | I63: =IFERROR(H63/G63-1,0) -> 0 | M63: Average price | O63: c/kWh | R63: =IFERROR(R58/IF(Inputs!$G$29="No",Low_Total_Energy,Low_Total_Energy_Exist_TOU)*100,0) -> 0 | S63: =IFERROR(S58/IF(Inputs!$G$29="No",Low_Total_Energy,Low_Total_Energy_New_TOU)*100,0) -> 0 | T63: =IFERROR(S63/R63-1,0) -> 0
B65: Annual
B67: Network charges | D67: Units | E67: =E$18 -> 2024/25 Rates | F67: =F$18 -> 2025/26 Rates | G67: =G$18 -> 2024/25 Charges | H67: =H$18 -> 2025/26 Charges | I67: % Change
A69: =A20 -> n/a | C69: =C20 -> Transmission network charge | D69: R/kVA | G69: =G20+R20 -> 0 | H69: 0 | I69: =IFERROR(H69/G69-1,0) -> 0
A70: n/a | C70: Distribution network capacity charge | D70: R/kVA | G70: 0 | H70: 0 | I70: 0
C71: Distribution network demand charge | D71: R/kVA | G71: 0 | H71: 0 | I71: 0
C72: Network demand charge | D72: c/kWh | G72: 0 | H72: 0 | I72: 0
C73: LV Subsidy Charge | D73: R/kVA | G73: 0 | H73: 0 | I73: 0
C74: Network capacity charge | D74: R/kVA | G74: 0 | H74: 0 | I74: 0
A75: =A26 -> n/a | C75: Network demand charge, Ancillary service charge and retail | D75: =D26 -> c/kWh | G75: 0 | H75: 0 | I75: 0
A76: =A27 -> 
B77: Total network charges | G77: =SUM(G69:G75) -> 0 | H77: =SUM(H69:H75) -> 0 | I77: =IFERROR(H77/G77-1,0) -> 0
B79: Energy charges | D79: Units | E79: =E$18 -> 2024/25 Rates | F79: =F$18 -> 2025/26 Rates | G79: =G$18 -> 2024/25 Charges | H79: =H$18 -> 2025/26 Charges | I79: % Change
C81: Peak consumption | D81: =D32 -> c/kWh | G81: =G32+R32 -> 0 | H81: 0 | I81: =IFERROR(H81/G81-1,0) -> 0
C82: Standard consumption | D82: =D33 -> c/kWh | G82: 0 | H82: 0 | I82: =IFERROR(H82/G82-1,0) -> 0
C83: Off-Peak consumption | D83: =D34 -> c/kWh | G83: 0 | H83: 0 | I83: =IFERROR(H83/G83-1,0) -> 0
A84: =#REF! -> 
A85: =#REF! ->  | C85: Sub Total (TOU) | G85: =SUM(G81:G83) -> 0 | H85: =SUM(H81:H83) -> 0 | I85: =IFERROR(H85/G85-1,0) -> 0
A86: =A39 -> 
A87: =A40 -> n/a | C87: =C40 -> Sub Total (non-TOU) | D87: =D40 -> c/kWh | G87: =G40+R40 -> 0 | H87: 0 | I87: =IFERROR(H87/G87-1,0) -> 0
A88: =A41 -> n/a | C88: Energy - Block 1 | D88: =D41 -> c/kWh | G88: 0 | H88: 0 | I88: =IFERROR(H88/G88-1,0) -> 0
A89: =A42 -> n/a | C89: Energy - Block 2 | D89: =D42 -> c/kWh | G89: 0 | H89: 0 | I89: =IFERROR(H89/G89-1,0) -> 0
A90: =A43 -> n/a | C90: =C43 -> Energy Demand | D90: =D43 -> R/kVA | G90: 0 | H90: 0 | I90: =IFERROR(H90/G90-1,0) -> 0
A92: =A37 ->  | C92: Generation capacity charge | D92: =IFERROR(IF(Table_1=1, "R/kVA", "R/POD/day"),"R/kVA") -> R/kVA | G92: =G37+R37 -> 0 | H92: =H37+S37 -> 0 | I92: =IFERROR(H92/G92-1,0) -> 0
A93: =A38 ->  | C93: Legacy charge | D93: c/kWh | G93: =G38+R38 -> 0 | H93: =H38+S38 -> 0 | I93: =IFERROR(H93/G93-1,0) -> 0
A94: =A45 ->  | B94: Total energy charges | G94: =SUM(G85:G93) -> 0 | H94: =SUM(H85:H93) -> 0 | I94: =IFERROR(H94/G94-1,0) -> 0
B96: Other charges | D96: Units | E96: =E$18 -> 2024/25 Rates | F96: =F$18 -> 2025/26 Rates | G96: =G$18 -> 2024/25 Charges | H96: =H$18 -> 2025/26 Charges | I96: % Change
C98: Ancillary service charge | D98: =D49 -> c/kWh | G98: =G49+R49 -> 0 | H98: 0 | I98: =IFERROR(H98/G98-1,0) -> 0
C99: Reactive energy charge | D99: c/kVArh | G99: 0 | H99: 0 | I99: 0
C100: Electrification and rural subsidy | D100: c/kWh | G100: 0 | H100: 0 | I100: 0
C101: Affordability subsidy | D101: c/kWh | G101: 0 | H101: 0 | I101: 0
C102: Administration charge | D102: R/day | G102: 13293.3 | H102: 4526 | I102: -0.659527732
C103: Service charge | D103: R/day | G103: 47380.65 | H103: 23462.2 | I103: -0.5048147292
B105: Total other charges | G105: =SUM(G98:G103) -> 60673.95 | H105: =SUM(H98:H103) -> 27988.2 | I105: =IFERROR(H105/G105-1,0) -> -0.5387114239
B107: Total excl VAT | G107: =G105+G94+G77 -> 60673.95 | H107: =H105+H94+H77 -> 27988.2 | I107: =IFERROR(H107/G107-1,0) -> -0.5387114239
B108: VAT | D108: =VAT -> 0.15 | G108: =G107*$D108 -> 9101.0925 | H108: =H107*$D108 -> 4198.23
B110: Total account | G110: =SUM(G107:G108) -> 69775.0425 | H110: =SUM(H107:H108) -> 32186.43 | I110: =IFERROR(H110/G110-1,0) -> -0.5387114239
B112: Average price | D112: c/kWh | G112: =IFERROR(G107/(IF(Inputs!$G$29="No",(High_Total_Energy+Low_Total_Energy),(High_Total_Energy_Exist_TOU+Low_Total_Energy_Exist_TOU)))*100,0) -> 0 | H112: =IFERROR(H107/(IF(Inputs!$G$29="No",(High_Total_Energy+Low_Total_Energy),(High_Total_Energy_New_TOU+Low_Total_Energy_New_TOU)))*100,0) -> 0 | I112: =IFERROR(H112/G112-1,0) -> 0
B114: Summary | E114: =G114 -> 2024/25 | F114: =H114 -> 2025/26 | G114: =Current_Period -> 2024/25 | H114: =New_Period -> 2025/26 | I114: % Change
C116: High Demand | E116: =G116 -> 17587.134 | F116: =H116 -> 8112.744 | G116: =G61 -> 17587.134 | H116: =H61 -> 8112.744 | I116: =IFERROR(H116/G116-1,0) -> -0.5387114239
C117: Low Demand | E117: =G117 -> 52187.9085 | F117: =H117 -> 24073.686 | G117: =R61 -> 52187.9085 | H117: =S61 -> 24073.686 | I117: =IFERROR(H117/G117-1,0) -> -0.5387114239
C118: Total | G118: =SUM(G116:G117) -> 69775.0425 | H118: =SUM(H116:H117) -> 32186.43 | I118: =IFERROR(H118/G118-1,0) -> -0.5387114239
B120: Blocks
C121: Block 1 | D121: =IF(High_Total_Energy / High_Months > Block_1_Upper, Block_1_Upper * High_Months, High_Total_Energy) -> 0 | E121: =IF(D10 = Lists!B21, Block1_max_HL20A, Block1_max_HL60A) -> 600 | N121: Block 1 | O121: =IF(Low_Total_Energy / Low_Months > Block_1_Upper, Block_1_Upper * Low_Months, Low_Total_Energy) -> 0
C122: Block 2 | D122: =High_Total_Energy - D121 -> 0 | N122: Block 2 | O122: =Low_Total_Energy - O121 -> 0

Sheet Monthly Comparison
B4: ="Cost comparison for " & New_Period & " rates" -> Cost comparison for 2025/26 rates | Q4: =D8 -> Miniflex
C6: Customer Name: | D6: =Customer_Name -> 0 | I6: Consumption Data | K6: Monthly inputs | L6: Previous TOU - hourly data | M6: Current TOU - hourly data | P6: Monthly inputs | Q6: Previous TOU - hourly data | R6: Current TOU - hourly data
C7: =Inputs!D10 -> Point of delivery ID | D7: =Delivery_ID -> 0 | I7: Sum of Utilised Capacity | K7: =TOU_High_UC + TOU_Low_UC -> 0 | L7: =TOU_High_UC_Exist_TOU + TOU_Low_UC_Exist_TOU -> 188803.633 | M7: =TOU_High_UC_New_TOU + TOU_Low_UC_New_TOU -> 188803.633 | N7: kVA | O7: Peak Consumption | P7: =TOU_High_Peak + TOU_Low_Peak -> 0 | Q7: =TOU_High_Peak_Exist_TOU + TOU_Low_Peak_Exist_TOU -> 14977667.45 | R7: =TOU_High_Peak_New_TOU + TOU_Low_Peak_New_TOU -> 15101572.91 | S7: kWh
C8: Tariff | D8: =Selected_Base_Tariff -> Miniflex | F8: Tariff Classification | H8: =Selected_Tariff_Category -> Non-Local Authority | I8: Sum of Chargeable Demands | K8: =TOU_High_Demand + TOU_Low_Demand -> 0 | L8: =TOU_High_Demand_Exist_TOU + TOU_Low_Demand_Exist_TOU -> 188803.633 | M8: =TOU_High_Demand_New_TOU + TOU_Low_Demand_New_TOU -> 188803.633 | N8: kVA | O8: Standard Consumption | P8: =TOU_High_Standard + TOU_Low_Standard -> 0 | Q8: =TOU_High_Standard_Exist_TOU + TOU_Low_Standard_Exist_TOU -> 37575920.89 | R8: =TOU_High_Standard_New_TOU + TOU_Low_Standard_New_TOU -> 38705209.84 | S8: kWh
C9: Tariff Category | D9: =INDEX(Full_Tariff_Type,MATCH(D8,Full_Tariff_List,0)) -> Urban | F9: No of PODS | H9: =PODs -> 1 | I9: Excess Reactive Energy | K9: =TOU_High_Excess_RE + TOU_Low_Excess_RE -> 0 | L9: =TOU_High_Excess_RE_Exist_TOU + TOU_Low_Excess_RE_Exist_TOU -> 902772.3217 | M9: =TOU_High_Excess_RE_New_TOU + TOU_Low_Excess_RE_New_TOU -> 876823.27 | N9: kVArh | O9: Off Peak Consumption | P9: =TOU_High_OffPeak + TOU_Low_OffPeak -> 0 | Q9: =TOU_High_OffPeak_Exist_TOU + TOU_Low_OffPeak_Exist_TOU -> 51267788.85 | R9: =TOU_High_OffPeak_New_TOU + TOU_Low_OffPeak_New_TOU -> 50014594.43 | S9: kWh
C10: Supply voltage | D10: =Selected_Supply_Voltage -> < 500V | F10: Size of supply | H10: =Selected_Supply_Size -> >100kVA & ≤500kVA | I10: Days | K10: =TOU_High_Days + TOU_Low_Days -> 365 | N10: days | O10: Total Consumption | P10: =SUM(P7:P9) -> 0 | Q10: =SUM(Q7:Q9) -> 103821377.2 | R10: =SUM(R7:R9) -> 103821377.2 | S10: kWh
C11: Transmission zone | D11: =Selected_Transmission -> [> 900km]
B13: Network charges | E13: =Inputs!D36 -> 2025-04-30 | F13: =Inputs!D37 -> 2025-05-31 | G13: =Inputs!D38 -> 2025-06-30 | H13: =Inputs!D39 -> 2025-07-31 | I13: =Inputs!D40 -> 2025-08-31 | J13: =Inputs!D41 -> 2025-09-30 | K13: =Inputs!D42 -> 2025-10-31 | L13: =Inputs!D43 -> 2025-11-30 | M13: =Inputs!D44 -> 2025-12-31 | N13: =Inputs!D45 -> 2026-01-31 | O13: =Inputs!D46 -> 2026-02-28 | P13: =Inputs!D47 -> 2026-03-31 | Q13: Total | AC13: check | AD13: =SUM(AD14:AD96) -> 1.273292582e-11
C14: Transmission network charge - R/kVA | D14: =New_Period -> 2025/26 | E14: =IFERROR( 'Rates Table'!$AT$10*IF(Inputs!$G$29="No", Inputs!$K$36,Inputs!$K$117), 0) -> 0 | F14: =IFERROR( 'Rates Table'!$AT$10*IF(Inputs!$G$29="No", Inputs!$K$37,Inputs!$K$118), 0) -> 0 | G14: =IFERROR( 'Rates Table'!$AT$10*IF(Inputs!$G$29="No", Inputs!$K$38,Inputs!$K$119), 0) -> 0 | H14: =IFERROR( 'Rates Table'!$AT$10*IF(Inputs!$G$29="No", Inputs!$K$39,Inputs!$K$120), 0) -> 0 | I14: =IFERROR( 'Rates Table'!$AT$10*IF(Inputs!$G$29="No", Inputs!$K$40,Inputs!$K$121), 0) -> 0 | J14: =IFERROR( 'Rates Table'!$AT$10*IF(Inputs!$G$29="No", Inputs!$K$41,Inputs!$K$122), 0) -> 0 | K14: =IFERROR( 'Rates Table'!$AT$10*IF(Inputs!$G$29="No", Inputs!$K$42,Inputs!$K$123), 0) -> 0 | L14: =IFERROR( 'Rates Table'!$AT$10*IF(Inputs!$G$29="No", Inputs!$K$43,Inputs!$K$124), 0) -> 0 | M14: =IFERROR( 'Rates Table'!$AT$10*IF(Inputs!$G$29="No", Inputs!$K$44,Inputs!$K$125), 0) -> 0 | N14: =IFERROR( 'Rates Table'!$AT$10*IF(Inputs!$G$29="No", Inputs!$K$45,Inputs!$K$126), 0) -> 0 | O14: =IFERROR( 'Rates Table'!$AT$10*IF(Inputs!$G$29="No", Inputs!$K$46,Inputs!$K$127), 0) -> 0 | P14: =IFERROR( 'Rates Table'!$AT$10*IF(Inputs!$G$29="No", Inputs!$K$47,Inputs!$K$128), 0) -> 0 | Q14: =SUM(E14:P14) -> 0 | AC14: ='Bill Comparison'!H69 -> 0 | AD14: =IFERROR(Q14 - AC14, "") -> 0
D15: =Current_Period -> 2024/25 | E15: =IFERROR('Rates Table'!$E$10*IF(Inputs!$G$29="No", Inputs!$K$36,Inputs!$K$75),0) -> 0 | F15: =IFERROR('Rates Table'!$E$10*IF(Inputs!$G$29="No", Inputs!$K$37,Inputs!$K$76),0) -> 0 | G15: =IFERROR('Rates Table'!$E$10*IF(Inputs!$G$29="No", Inputs!$K$38,Inputs!$K$77),0) -> 0 | H15: =IFERROR('Rates Table'!$E$10*IF(Inputs!$G$29="No", Inputs!$K$39,Inputs!$K$78),0) -> 0 | I15: =IFERROR('Rates Table'!$E$10*IF(Inputs!$G$29="No", Inputs!$K$40,Inputs!$K$79),0) -> 0 | J15: =IFERROR('Rates Table'!$E$10*IF(Inputs!$G$29="No", Inputs!$K$41,Inputs!$K$80),0) -> 0 | K15: =IFERROR('Rates Table'!$E$10*IF(Inputs!$G$29="No", Inputs!$K$42,Inputs!$K$81),0) -> 0 | L15: =IFERROR('Rates Table'!$E$10*IF(Inputs!$G$29="No", Inputs!$K$43,Inputs!$K$82),0) -> 0 | M15: =IFERROR('Rates Table'!$E$10*IF(Inputs!$G$29="No", Inputs!$K$44,Inputs!$K$83),0) -> 0 | N15: =IFERROR('Rates Table'!$E$10*IF(Inputs!$G$29="No", Inputs!$K$45,Inputs!$K$84),0) -> 0 | O15: =IFERROR('Rates Table'!$E$10*IF(Inputs!$G$29="No", Inputs!$K$46,Inputs!$K$85),0) -> 0 | P15: =IFERROR('Rates Table'!$E$10*IF(Inputs!$G$29="No", Inputs!$K$47,Inputs!$K$86),0) -> 0 | Q15: =SUM(E15:P15) -> 0 | AC15: ='Bill Comparison'!G69 -> 0 | AD15: =IFERROR(Q15 - AC15, "") -> 0
D16: % change | E16: =IFERROR((E14 - E15) / E15, "") ->  | F16: =IFERROR((F14 - F15) / F15, "") -> 
C17: Distribution network capacity charge | D17: =New_Period -> 2025/26 | E17: =IFERROR( 'Rates Table'!$AT$11*IF(Inputs!$G$29="No", Inputs!$K$36,Inputs!$K$117), 0) -> 0 | F17: =IFERROR( 'Rates Table'!$AT$11*IF(Inputs!$G$29="No", Inputs!$K$37,Inputs!$K$118), 0) -> 0 | G17: =IFERROR( 'Rates Table'!$AT$11*IF(Inputs!$G$29="No", Inputs!$K$38,Inputs!$K$119), 0) -> 0 | H17: =IFERROR( 'Rates Table'!$AT$11*IF(Inputs!$G$29="No", Inputs!$K$39,Inputs!$K$120), 0) -> 0 | I17: =IFERROR( 'Rates Table'!$AT$11*IF(Inputs!$G$29="No", Inputs!$K$40,Inputs!$K$121), 0) -> 0 | J17: =IFERROR( 'Rates Table'!$AT$11*IF(Inputs!$G$29="No", Inputs!$K$41,Inputs!$K$122), 0) -> 0 | K17: =IFERROR( 'Rates Table'!$AT$11*IF(Inputs!$G$29="No", Inputs!$K$42,Inputs!$K$123), 0) -> 0 | L17: =IFERROR( 'Rates Table'!$AT$11*IF(Inputs!$G$29="No", Inputs!$K$43,Inputs!$K$124), 0) -> 0 | M17: =IFERROR( 'Rates Table'!$AT$11*IF(Inputs!$G$29="No", Inputs!$K$44,Inputs!$K$125), 0) -> 0 | N17: =IFERROR( 'Rates Table'!$AT$11*IF(Inputs!$G$29="No", Inputs!$K$45,Inputs!$K$126), 0) -> 0 | O17: =IFERROR( 'Rates Table'!$AT$11*IF(Inputs!$G$29="No", Inputs!$K$46,Inputs!$K$127), 0) -> 0 | P17: =IFERROR( 'Rates Table'!$AT$11*IF(Inputs!$G$29="No", Inputs!$K$47,Inputs!$K$128), 0) -> 0 | Q17: =SUM(E17:P17) -> 0 | AC17: ='Bill Comparison'!H70 -> 0 | AD17: =IFERROR(Q17 - AC17, "") -> 0
D18: =Current_Period -> 2024/25 | E18: =IFERROR('Rates Table'!$E$11*IF(Inputs!$G$29="No", Inputs!$K$36,Inputs!$K$75),0) -> 0 | F18: =IFERROR('Rates Table'!$E$11*IF(Inputs!$G$29="No", Inputs!$K$37,Inputs!$K$76),0) -> 0 | G18: =IFERROR('Rates Table'!$E$11*IF(Inputs!$G$29="No", Inputs!$K$38,Inputs!$K$77),0) -> 0 | H18: =IFERROR('Rates Table'!$E$11*IF(Inputs!$G$29="No", Inputs!$K$39,Inputs!$K$78),0) -> 0 | I18: =IFERROR('Rates Table'!$E$11*IF(Inputs!$G$29="No", Inputs!$K$40,Inputs!$K$79),0) -> 0 | J18: =IFERROR('Rates Table'!$E$11*IF(Inputs!$G$29="No", Inputs!$K$41,Inputs!$K$80),0) -> 0 | K18: =IFERROR('Rates Table'!$E$11*IF(Inputs!$G$29="No", Inputs!$K$42,Inputs!$K$81),0) -> 0 | L18: =IFERROR('Rates Table'!$E$11*IF(Inputs!$G$29="No", Inputs!$K$43,Inputs!$K$82),0) -> 0 | M18: =IFERROR('Rates Table'!$E$11*IF(Inputs!$G$29="No", Inputs!$K$44,Inputs!$K$83),0) -> 0 | N18: =IFERROR('Rates Table'!$E$11*IF(Inputs!$G$29="No", Inputs!$K$45,Inputs!$K$84),0) -> 0 | O18: =IFERROR('Rates Table'!$E$11*IF(Inputs!$G$29="No", Inputs!$K$46,Inputs!$K$85),0) -> 0 | P18: =IFERROR('Rates Table'!$E$11*IF(Inputs!$G$29="No", Inputs!$K$47,Inputs!$K$86),0) -> 0 | Q18: =SUM(E18:P18) -> 0 | AC18: ='Bill Comparison'!G70 -> 0 | AD18: =IFERROR(Q18 - AC18, "") -> 0
D19: % change | E19: =IFERROR((E17 - E18) / E18, "") -> 
C20: Distribution network demand charge - R/kVA | D20: =New_Period -> 2025/26 | E20: =IFERROR( 'Rates Table'!$AT$12*IF(Inputs!$G$29="No", Inputs!$J$36,Inputs!$J$117), 0) -> 0 | F20: =IFERROR( 'Rates Table'!$AT$12*IF(Inputs!$G$29="No", Inputs!$J$37,Inputs!$J$118), 0) -> 0 | G20: =IFERROR( 'Rates Table'!$AT$12*IF(Inputs!$G$29="No", Inputs!$J$38,Inputs!$J$119), 0) -> 0 | H20: =IFERROR( 'Rates Table'!$AT$12*IF(Inputs!$G$29="No", Inputs!$J$39,Inputs!$J$120), 0) -> 0 | I20: =IFERROR( 'Rates Table'!$AT$12*IF(Inputs!$G$29="No", Inputs!$J$40,Inputs!$J$121), 0) -> 0 | J20: =IFERROR( 'Rates Table'!$AT$12*IF(Inputs!$G$29="No", Inputs!$J$41,Inputs!$J$122), 0) -> 0 | K20: =IFERROR( 'Rates Table'!$AT$12*IF(Inputs!$G$29="No", Inputs!$J$42,Inputs!$J$123), 0) -> 0 | L20: =IFERROR( 'Rates Table'!$AT$12*IF(Inputs!$G$29="No", Inputs!$J$43,Inputs!$J$124), 0) -> 0 | M20: =IFERROR( 'Rates Table'!$AT$12*IF(Inputs!$G$29="No", Inputs!$J$44,Inputs!$J$125), 0) -> 0 | N20: =IFERROR( 'Rates Table'!$AT$12*IF(Inputs!$G$29="No", Inputs!$J$45,Inputs!$J$126), 0) -> 0 | O20: =IFERROR( 'Rates Table'!$AT$12*IF(Inputs!$G$29="No", Inputs!$J$46,Inputs!$J$127), 0) -> 0 | P20: =IFERROR( 'Rates Table'!$AT$12*IF(Inputs!$G$29="No", Inputs!$J$47,Inputs!$J$128), 0) -> 0 | Q20: =SUM(E20:P20) -> 0 | AC20: ='Bill Comparison'!H71 -> 0 | AD20: =IFERROR(Q20 - AC20, "") -> 0
D21: =Current_Period -> 2024/25 | E21: =IFERROR('Rates Table'!$E$12*IF(Inputs!$G$29="No", Inputs!$J$36,Inputs!$J$75),0) -> 0 | F21: =IFERROR('Rates Table'!$E$12*IF(Inputs!$G$29="No", Inputs!$J$37,Inputs!$J$76),0) -> 0 | G21: =IFERROR('Rates Table'!$E$12*IF(Inputs!$G$29="No", Inputs!$J$38,Inputs!$J$77),0) -> 0 | H21: =IFERROR('Rates Table'!$E$12*IF(Inputs!$G$29="No", Inputs!$J$39,Inputs!$J$78),0) -> 0 | I21: =IFERROR('Rates Table'!$E$12*IF(Inputs!$G$29="No", Inputs!$J$40,Inputs!$J$79),0) -> 0 | J21: =IFERROR('Rates Table'!$E$12*IF(Inputs!$G$29="No", Inputs!$J$41,Inputs!$J$80),0) -> 0 | K21: =IFERROR('Rates Table'!$E$12*IF(Inputs!$G$29="No", Inputs!$J$42,Inputs!$J$81),0) -> 0 | L21: =IFERROR('Rates Table'!$E$12*IF(Inputs!$G$29="No", Inputs!$J$43,Inputs!$J$82),0) -> 0 | M21: =IFERROR('Rates Table'!$E$12*IF(Inputs!$G$29="No", Inputs!$J$44,Inputs!$J$83),0) -> 0 | N21: =IFERROR('Rates Table'!$E$12*IF(Inputs!$G$29="No", Inputs!$J$45,Inputs!$J$84),0) -> 0 | O21: =IFERROR('Rates Table'!$E$12*IF(Inputs!$G$29="No", Inputs!$J$46,Inputs!$J$85),0) -> 0 | P21: =IFERROR('Rates Table'!$E$12*IF(Inputs!$G$29="No", Inputs!$J$47,Inputs!$J$86),0) -> 0 | Q21: =SUM(E21:P21) -> 0 | AC21: ='Bill Comparison'!G71 -> 0 | AD21: =IFERROR(Q21 - AC21, "") -> 0
D22: % change | E22: =IFERROR((E20 - E21) / E21, "") -> 
C23: Network demand charge - c/kWh | D23: =New_Period -> 2025/26 | E23: =IFERROR(IF(Inputs!$G$29="No", 'Rates Table'!$AT$13*IF($D$8="Miniflex", (Inputs!$G$36+Inputs!$H$36), Inputs!$M$36), 'Rates Table'!$AT$13*IF($D$8="Miniflex", (Inputs!$G$117+Inputs!$H$117), Inputs!$M$117)),0)/100 -> 0 | F23: =IFERROR(IF(Inputs!$G$29="No", 'Rates Table'!$AT$13*IF($D$8="Miniflex", (Inputs!$G$37+Inputs!$H$37), Inputs!$M$36), 'Rates Table'!$AT$13*IF($D$8="Miniflex", (Inputs!$G$118+Inputs!$H$118), Inputs!$M$118)),0)/100 -> 0 | G23: =IFERROR(IF(Inputs!$G$29="No", 'Rates Table'!$AT$13*IF($D$8="Miniflex", (Inputs!$G$38+Inputs!$H$38), Inputs!$M$38), 'Rates Table'!$AT$13*IF($D$8="Miniflex", (Inputs!$G$119+Inputs!$H$119), Inputs!$M$119)),0)/100 -> 0 | H23: =IFERROR(IF(Inputs!$G$29="No", 'Rates Table'!$AT$13*IF($D$8="Miniflex", (Inputs!$G$39+Inputs!$H$39), Inputs!$M$39), 'Rates Table'!$AT$13*IF($D$8="Miniflex", (Inputs!$G$120+Inputs!$H$120), Inputs!$M$120)),0)/100 -> 0 | I23: =IFERROR(IF(Inputs!$G$29="No", 'Rates Table'!$AT$13*IF($D$8="Miniflex", (Inputs!$G$40+Inputs!$H$40), Inputs!$M$40), 'Rates Table'!$AT$13*IF($D$8="Miniflex", (Inputs!$G$121+Inputs!$H$121), Inputs!$M$121)),0)/100 -> 0 | J23: =IFERROR(IF(Inputs!$G$29="No", 'Rates Table'!$AT$13*IF($D$8="Miniflex", (Inputs!$G$41+Inputs!$H$41), Inputs!$M$41), 'Rates Table'!$AT$13*IF($D$8="Miniflex", (Inputs!$G$122+Inputs!$H$122), Inputs!$M$122)),0)/100 -> 0 | K23: =IFERROR(IF(Inputs!$G$29="No", 'Rates Table'!$AT$13*IF($D$8="Miniflex", (Inputs!$G$42+Inputs!$H$42), Inputs!$M$42), 'Rates Table'!$AT$13*IF($D$8="Miniflex", (Inputs!$G$123+Inputs!$H$123), Inputs!$M$123)),0)/100 -> 0 | L23: =IFERROR(IF(Inputs!$G$29="No", 'Rates Table'!$AT$13*IF($D$8="Miniflex", (Inputs!$G$43+Inputs!$H$43), Inputs!$M$43), 'Rates Table'!$AT$13*IF($D$8="Miniflex", (Inputs!$G$124+Inputs!$H$124), Inputs!$M$124)),0)/100 -> 0 | M23: =IFERROR(IF(Inputs!$G$29="No", 'Rates Table'!$AT$13*IF($D$8="Miniflex", (Inputs!$G$44+Inputs!$H$44), Inputs!$M$44), 'Rates Table'!$AT$13*IF($D$8="Miniflex", (Inputs!$G$125+Inputs!$H$125), Inputs!$M$125)),0)/100 -> 0 | N23: =IFERROR(IF(Inputs!$G$29="No", 'Rates Table'!$AT$13*IF($D$8="Miniflex", (Inputs!$G$45+Inputs!$H$45), Inputs!$M$45), 'Rates Table'!$AT$13*IF($D$8="Miniflex", (Inputs!$G$126+Inputs!$H$126), Inputs!$M$126)),0)/100 -> 0 | O23: =IFERROR(IF(Inputs!$G$29="No", 'Rates Table'!$AT$13*IF($D$8="Miniflex", (Inputs!$G$46+Inputs!$H$46), Inputs!$M$46), 'Rates Table'!$AT$13*IF($D$8="Miniflex", (Inputs!$G$127+Inputs!$H$127), Inputs!$M$127)),0)/100 -> 0 | P23: =IFERROR(IF(Inputs!$G$29="No", 'Rates Table'!$AT$13*IF($D$8="Miniflex", (Inputs!$G$47+Inputs!$H$47), Inputs!$M$47), 'Rates Table'!$AT$13*IF($D$8="Miniflex", (Inputs!$G$128+Inputs!$H$128), Inputs!$M$128)),0)/100 -> 0 | Q23: =SUM(E23:P23) -> 0 | AC23: ='Bill Comparison'!H72 -> 0 | AD23: =IFERROR(Q23 - AC23, "") -> 0
D24: =Current_Period -> 2024/25 | E24: =IFERROR(IF(Inputs!$G$29="No", 'Rates Table'!$E$13*IF('Rates Table'!E2="Miniflex", (Inputs!$G$36+Inputs!$H$36), Inputs!$M$36), 'Rates Table'!$E$13*IF('Rates Table'!E2="Miniflex", (Inputs!$G$75+Inputs!$H$75), Inputs!$M$75)),0)/100 -> 0 | F24: =IFERROR(IF(Inputs!$G$29="No", 'Rates Table'!$E$13*IF('Rates Table'!E2="Miniflex", (Inputs!$G$37+Inputs!$H$37), Inputs!$M$37), 'Rates Table'!$E$13*IF('Rates Table'!E2="Miniflex", (Inputs!$G$76+Inputs!$H$76), Inputs!$M$76)),0)/100 -> 0 | G24: =IFERROR(IF(Inputs!$G$29="No", 'Rates Table'!$E$13*IF('Rates Table'!E2="Miniflex", (Inputs!$G$38+Inputs!$H$38), Inputs!$M$38), 'Rates Table'!$E$13*IF('Rates Table'!E2="Miniflex", (Inputs!$G$77+Inputs!$H$77), Inputs!$M$77)),0)/100 -> 0 | H24: =IFERROR(IF(Inputs!$G$29="No", 'Rates Table'!$E$13*IF('Rates Table'!E2="Miniflex", (Inputs!$G$39+Inputs!$H$39), Inputs!$M$39), 'Rates Table'!$E$13*IF('Rates Table'!E2="Miniflex", (Inputs!$G$78+Inputs!$H$78), Inputs!$M$78)),0)/100 -> 0 | I24: =IFERROR(IF(Inputs!$G$29="No", 'Rates Table'!$E$13*IF('Rates Table'!E2="Miniflex", (Inputs!$G$40+Inputs!$H$40), Inputs!$M$40), 'Rates Table'!$E$13*IF('Rates Table'!E2="Miniflex", (Inputs!$G$79+Inputs!$H$79), Inputs!$M$79)),0)/100 -> 0 | J24: =IFERROR(IF(Inputs!$G$29="No", 'Rates Table'!$E$13*IF('Rates Table'!E2="Miniflex", (Inputs!$G$41+Inputs!$H$41), Inputs!$M$41), 'Rates Table'!$E$13*IF('Rates Table'!E2="Miniflex", (Inputs!$G$80+Inputs!$H$80), Inputs!$M$80)),0)/100 -> 0 | K24: =IFERROR(IF(Inputs!$G$29="No", 'Rates Table'!$E$13*IF('Rates Table'!E2="Miniflex", (Inputs!$G$42+Inputs!$H$42), Inputs!$M$42), 'Rates Table'!$E$13*IF('Rates Table'!E2="Miniflex", (Inputs!$G$81+Inputs!$H$81), Inputs!$M$81)),0)/100 -> 0 | L24: =IFERROR(IF(Inputs!$G$29="No", 'Rates Table'!$E$13*IF('Rates Table'!E2="Miniflex", (Inputs!$G$43+Inputs!$H$43), Inputs!$M$43), 'Rates Table'!$E$13*IF('Rates Table'!E2="Miniflex", (Inputs!$G$82+Inputs!$H$82), Inputs!$M$82)),0)/100 -> 0 | M24: =IFERROR(IF(Inputs!$G$29="No", 'Rates Table'!$E$13*IF('Rates Table'!E2="Miniflex", (Inputs!$G$44+Inputs!$H$44), Inputs!$M$44), 'Rates Table'!$E$13*IF('Rates Table'!E2="Miniflex", (Inputs!$G$83+Inputs!$H$83), Inputs!$M$83)),0)/100 -> 0 | N24: =IFERROR(IF(Inputs!$G$29="No", 'Rates Table'!$E$13*IF('Rates Table'!E2="Miniflex", (Inputs!$G$45+Inputs!$H$45), Inputs!$M$45), 'Rates Table'!$E$13*IF('Rates Table'!E2="Miniflex", (Inputs!$G$84+Inputs!$H$84), Inputs!$M$84)),0)/100 -> 0 | O24: =IFERROR(IF(Inputs!$G$29="No", 'Rates Table'!$E$13*IF('Rates Table'!E2="Miniflex", (Inputs!$G$46+Inputs!$H$46), Inputs!$M$46), 'Rates Table'!$E$13*IF('Rates Table'!E2="Miniflex", (Inputs!$G$85+Inputs!$H$85), Inputs!$M$85)),0)/100 -> 0 | P24: =IFERROR(IF(Inputs!$G$29="No", 'Rates Table'!$E$13*IF('Rates Table'!E2="Miniflex", (Inputs!$G$47+Inputs!$H$47), Inputs!$M$47), 'Rates Table'!$E$13*IF('Rates Table'!E2="Miniflex", (Inputs!$G$86+Inputs!$H$86), Inputs!$M$86)),0)/100 -> 0 | Q24: =SUM(E24:P24) -> 0 | AC24: ='Bill Comparison'!G72 -> 0 | AD24: =IFERROR(Q24 - AC24, "") -> 0
D25: % change | E25: =IFERROR((E23 - E24) / E24, "") ->  | F25: =IFERROR((F23 - F24) / F24, "") ->  | Q25: =IFERROR((Q23 - Q24) / Q24, "") -> 
C26: Network demand charge, Ancillary service charge and retail | D26: =New_Period -> 2025/26 | E26: =IFERROR( 'Rates Table'!$AT$14*IF(Inputs!$G$29="No", Inputs!$M$36,Inputs!$M$117), 0)/100 -> 0 | F26: =IFERROR( 'Rates Table'!$AT$14*IF(Inputs!$G$29="No", Inputs!$M$37,Inputs!$M$118), 0)/100 -> 0 | G26: =IFERROR( 'Rates Table'!$AT$14*IF(Inputs!$G$29="No", Inputs!$M$38,Inputs!$M$119), 0)/100 -> 0 | H26: =IFERROR( 'Rates Table'!$AT$14*IF(Inputs!$G$29="No", Inputs!$M$39,Inputs!$M$120), 0)/100 -> 0 | I26: =IFERROR( 'Rates Table'!$AT$14*IF(Inputs!$G$29="No", Inputs!$M$40,Inputs!$M$121), 0)/100 -> 0 | J26: =IFERROR( 'Rates Table'!$AT$14*IF(Inputs!$G$29="No", Inputs!$M$41,Inputs!$M$122), 0)/100 -> 0 | K26: =IFERROR( 'Rates Table'!$AT$14*IF(Inputs!$G$29="No", Inputs!$M$42,Inputs!$M$123), 0)/100 -> 0 | L26: =IFERROR( 'Rates Table'!$AT$14*IF(Inputs!$G$29="No", Inputs!$M$43,Inputs!$M$124), 0)/100 -> 0 | M26: =IFERROR( 'Rates Table'!$AT$14*IF(Inputs!$G$29="No", Inputs!$M$44,Inputs!$M$125), 0)/100 -> 0 | N26: =IFERROR( 'Rates Table'!$AT$14*IF(Inputs!$G$29="No", Inputs!$M$45,Inputs!$M$126), 0)/100 -> 0 | O26: =IFERROR( 'Rates Table'!$AT$14*IF(Inputs!$G$29="No", Inputs!$M$46,Inputs!$M$127), 0)/100 -> 0 | P26: =IFERROR( 'Rates Table'!$AT$14*IF(Inputs!$G$29="No", Inputs!$M$47,Inputs!$M$128), 0)/100 -> 0 | Q26: =SUM(E26:P26) -> 0
D27: =Current_Period -> 2024/25 | E27: =IFERROR('Rates Table'!$E$14*IF(Inputs!$G$29="No", Inputs!$M$36,Inputs!$M$75),0)/100 -> 0 | F27: =IFERROR('Rates Table'!$E$14*IF(Inputs!$G$29="No", Inputs!$M$37,Inputs!$M$76),0)/100 -> 0 | G27: =IFERROR('Rates Table'!$E$14*IF(Inputs!$G$29="No", Inputs!$M$38,Inputs!$M$77),0)/100 -> 0 | H27: =IFERROR('Rates Table'!$E$14*IF(Inputs!$G$29="No", Inputs!$M$39,Inputs!$M$78),0)/100 -> 0 | I27: =IFERROR('Rates Table'!$E$14*IF(Inputs!$G$29="No", Inputs!$M$40,Inputs!$M$79),0)/100 -> 0 | J27: =IFERROR('Rates Table'!$E$14*IF(Inputs!$G$29="No", Inputs!$M$41,Inputs!$M$80),0)/100 -> 0 | K27: =IFERROR('Rates Table'!$E$14*IF(Inputs!$G$29="No", Inputs!$M$42,Inputs!$M$81),0)/100 -> 0 | L27: =IFERROR('Rates Table'!$E$14*IF(Inputs!$G$29="No", Inputs!$M$43,Inputs!$M$82),0)/100 -> 0 | M27: =IFERROR('Rates Table'!$E$14*IF(Inputs!$G$29="No", Inputs!$M$44,Inputs!$M$83),0)/100 -> 0 | N27: =IFERROR('Rates Table'!$E$14*IF(Inputs!$G$29="No", Inputs!$M$45,Inputs!$M$84),0)/100 -> 0 | O27: =IFERROR('Rates Table'!$E$14*IF(Inputs!$G$29="No", Inputs!$M$46,Inputs!$M$85),0)/100 -> 0 | P27: =IFERROR('Rates Table'!$E$14*IF(Inputs!$G$29="No", Inputs!$M$47,Inputs!$M$86),0)/100 -> 0 | Q27: =SUM(E27:P27) -> 0
D28: % change | E28: =IFERROR((E26 - E27) / E27, "") ->  | F28: =IFERROR((F26 - F27) / F27, "") -> 
C29: LV subsidy charge | D29: =New_Period -> 2025/26 | E29: =IFERROR( 'Rates Table'!$AT$15*IF(Inputs!$G$29="No", Inputs!$K$36,Inputs!$K$117), 0) -> 0 | F29: =IFERROR( 'Rates Table'!$AT$15*IF(Inputs!$G$29="No", Inputs!$K$37,Inputs!$K$118), 0) -> 0 | G29: =IFERROR( 'Rates Table'!$AT$15*IF(Inputs!$G$29="No", Inputs!$K$38,Inputs!$K$119), 0) -> 0 | H29: =IFERROR( 'Rates Table'!$AT$15*IF(Inputs!$G$29="No", Inputs!$K$39,Inputs!$K$120), 0) -> 0 | I29: =IFERROR( 'Rates Table'!$AT$15*IF(Inputs!$G$29="No", Inputs!$K$40,Inputs!$K$121), 0) -> 0 | J29: =IFERROR( 'Rates Table'!$AT$15*IF(Inputs!$G$29="No", Inputs!$K$41,Inputs!$K$122), 0) -> 0 | K29: =IFERROR( 'Rates Table'!$AT$15*IF(Inputs!$G$29="No", Inputs!$K$42,Inputs!$K$123), 0) -> 0 | L29: =IFERROR( 'Rates Table'!$AT$15*IF(Inputs!$G$29="No", Inputs!$K$43,Inputs!$K$124), 0) -> 0 | M29: =IFERROR( 'Rates Table'!$AT$15*IF(Inputs!$G$29="No", Inputs!$K$44,Inputs!$K$125), 0) -> 0 | N29: =IFERROR( 'Rates Table'!$AT$15*IF(Inputs!$G$29="No", Inputs!$K$45,Inputs!$K$126), 0) -> 0 | O29: =IFERROR( 'Rates Table'!$AT$15*IF(Inputs!$G$29="No", Inputs!$K$46,Inputs!$K$127), 0) -> 0 | P29: =IFERROR( 'Rates Table'!$AT$15*IF(Inputs!$G$29="No", Inputs!$K$47,Inputs!$K$128), 0) -> 0 | Q29: =SUM(E29:P29) -> 0 | AD29: =IFERROR(Q29 - AC29, "") -> 0
D30: =Current_Period -> 2024/25 | E30: =IFERROR('Rates Table'!$E$15*IF(Inputs!$G$29="No", Inputs!$K$36,Inputs!$K$75),0) -> 0 | F30: =IFERROR('Rates Table'!$E$15*IF(Inputs!$G$29="No", Inputs!$K$37,Inputs!$K$76),0) -> 0 | G30: =IFERROR('Rates Table'!$E$15*IF(Inputs!$G$29="No", Inputs!$K$38,Inputs!$K$77),0) -> 0 | H30: =IFERROR('Rates Table'!$E$15*IF(Inputs!$G$29="No", Inputs!$K$39,Inputs!$K$78),0) -> 0 | I30: =IFERROR('Rates Table'!$E$15*IF(Inputs!$G$29="No", Inputs!$K$40,Inputs!$K$79),0) -> 0 | J30: =IFERROR('Rates Table'!$E$15*IF(Inputs!$G$29="No", Inputs!$K$41,Inputs!$K$80),0) -> 0 | K30: =IFERROR('Rates Table'!$E$15*IF(Inputs!$G$29="No", Inputs!$K$42,Inputs!$K$81),0) -> 0 | L30: =IFERROR('Rates Table'!$E$15*IF(Inputs!$G$29="No", Inputs!$K$43,Inputs!$K$82),0) -> 0 | M30: =IFERROR('Rates Table'!$E$15*IF(Inputs!$G$29="No", Inputs!$K$44,Inputs!$K$83),0) -> 0 | N30: =IFERROR('Rates Table'!$E$15*IF(Inputs!$G$29="No", Inputs!$K$45,Inputs!$K$84),0) -> 0 | O30: =IFERROR('Rates Table'!$E$15*IF(Inputs!$G$29="No", Inputs!$K$46,Inputs!$K$85),0) -> 0 | P30: =IFERROR('Rates Table'!$E$15*IF(Inputs!$G$29="No", Inputs!$K$47,Inputs!$K$86),0) -> 0 | Q30: =SUM(E30:P30) -> 0 | AD30: =IFERROR(Q30 - AC30, "") -> 0
D31: % change | E31: =IFERROR((E29 - E30) / E30, "") ->  | F31: =IFERROR((F29 - F30) / F30, "") ->  | Q31: =IFERROR((Q29 - Q30) / Q30, "") -> 
C32: Network capacity charge - R/kVA | D32: =New_Period -> 2025/26 | E32: =IFERROR(IF(Inputs!$G$29="No", IF(AND('Rates Table'!AT68,$D$8<>"Transflex 1",$D$8<>"Transflex 2"), 'Rates Table'!$AT$16*Inputs!$K$36, 'Rates Table'!$AT$16*PODs*(TOU_High_Days + TOU_Low_Days)/12), IF(AND('Rates Table'!AT68,$D$8<>"Transflex 1",$D$8<>"Transflex 2"), 'Rates Table'!$AT$16*Inputs!$K$117, 'Rates Table'!$AT$16*PODs*(TOU_High_Days + TOU_Low_Days)/12)),0) -> 0 | F32: =IFERROR(IF(Inputs!$G$29="No", IF(AND('Rates Table'!AT68,$D$8<>"Transflex 1",$D$8<>"Transflex 2"), 'Rates Table'!$AT$16*Inputs!$K$37, 'Rates Table'!$AT$16*PODs*(TOU_High_Days + TOU_Low_Days)/12), IF(AND('Rates Table'!AT68,$D$8<>"Transflex 1",$D$8<>"Transflex 2"), 'Rates Table'!$AT$16*Inputs!$K$118, 'Rates Table'!$AT$16*PODs*(TOU_High_Days + TOU_Low_Days)/12)),0) -> 0 | G32: =IFERROR(IF(Inputs!$G$29="No", IF(AND('Rates Table'!AT68,$D$8<>"Transflex 1",$D$8<>"Transflex 2"), 'Rates Table'!$AT$16*Inputs!$K$38, 'Rates Table'!$AT$16*PODs*(TOU_High_Days + TOU_Low_Days)/12), IF(AND('Rates Table'!AT68,$D$8<>"Transflex 1",$D$8<>"Transflex 2"), 'Rates Table'!$AT$16*Inputs!$K$119, 'Rates Table'!$AT$16*PODs*(TOU_High_Days + TOU_Low_Days)/12)),0) -> 0 | H32: =IFERROR(IF(Inputs!$G$29="No", IF(AND('Rates Table'!AT68,$D$8<>"Transflex 1",$D$8<>"Transflex 2"), 'Rates Table'!$AT$16*Inputs!$K$39, 'Rates Table'!$AT$16*PODs*(TOU_High_Days + TOU_Low_Days)/12), IF(AND('Rates Table'!AT68,$D$8<>"Transflex 1",$D$8<>"Transflex 2"), 'Rates Table'!$AT$16*Inputs!$K$120, 'Rates Table'!$AT$16*PODs*(TOU_High_Days + TOU_Low_Days)/12)),0) -> 0 | I32: =IFERROR(IF(Inputs!$G$29="No", IF(AND('Rates Table'!AT68,$D$8<>"Transflex 1",$D$8<>"Transflex 2"), 'Rates Table'!$AT$16*Inputs!$K$40, 'Rates Table'!$AT$16*PODs*(TOU_High_Days + TOU_Low_Days)/12), IF(AND('Rates Table'!AT68,$D$8<>"Transflex 1",$D$8<>"Transflex 2"), 'Rates Table'!$AT$16*Inputs!$K$121, 'Rates Table'!$AT$16*PODs*(TOU_High_Days + TOU_Low_Days)/12)),0) -> 0 | J32: =IFERROR(IF(Inputs!$G$29="No", IF(AND('Rates Table'!AT68,$D$8<>"Transflex 1",$D$8<>"Transflex 2"), 'Rates Table'!$AT$16*Inputs!$K$41, 'Rates Table'!$AT$16*PODs*(TOU_High_Days + TOU_Low_Days)/12), IF(AND('Rates Table'!AT68,$D$8<>"Transflex 1",$D$8<>"Transflex 2"), 'Rates Table'!$AT$16*Inputs!$K$122, 'Rates Table'!$AT$16*PODs*(TOU_High_Days + TOU_Low_Days)/12)),0) -> 0 | K32: =IFERROR(IF(Inputs!$G$29="No", IF(AND('Rates Table'!AT68,$D$8<>"Transflex 1",$D$8<>"Transflex 2"), 'Rates Table'!$AT$16*Inputs!$K$42, 'Rates Table'!$AT$16*PODs*(TOU_High_Days + TOU_Low_Days)/12), IF(AND('Rates Table'!AT68,$D$8<>"Transflex 1",$D$8<>"Transflex 2"), 'Rates Table'!$AT$16*Inputs!$K$123, 'Rates Table'!$AT$16*PODs*(TOU_High_Days + TOU_Low_Days)/12)),0) -> 0 | L32: =IFERROR(IF(Inputs!$G$29="No", IF(AND('Rates Table'!AT68,$D$8<>"Transflex 1",$D$8<>"Transflex 2"), 'Rates Table'!$AT$16*Inputs!$K$43, 'Rates Table'!$AT$16*PODs*(TOU_High_Days + TOU_Low_Days)/12), IF(AND('Rates Table'!AT68,$D$8<>"Transflex 1",$D$8<>"Transflex 2"), 'Rates Table'!$AT$16*Inputs!$K$124, 'Rates Table'!$AT$16*PODs*(TOU_High_Days + TOU_Low_Days)/12)),0) -> 0 | M32: =IFERROR(IF(Inputs!$G$29="No", IF(AND('Rates Table'!AT68,$D$8<>"Transflex 1",$D$8<>"Transflex 2"), 'Rates Table'!$AT$16*Inputs!$K$44, 'Rates Table'!$AT$16*PODs*(TOU_High_Days + TOU_Low_Days)/12), IF(AND('Rates Table'!AT68,$D$8<>"Transflex 1",$D$8<>"Transflex 2"), 'Rates Table'!$AT$16*Inputs!$K$125, 'Rates Table'!$AT$16*PODs*(TOU_High_Days + TOU_Low_Days)/12)),0) -> 0 | N32: =IFERROR(IF(Inputs!$G$29="No", IF(AND('Rates Table'!AT68,$D$8<>"Transflex 1",$D$8<>"Transflex 2"), 'Rates Table'!$AT$16*Inputs!$K$45, 'Rates Table'!$AT$16*PODs*(TOU_High_Days + TOU_Low_Days)/12), IF(AND('Rates Table'!AT68,$D$8<>"Transflex 1",$D$8<>"Transflex 2"), 'Rates Table'!$AT$16*Inputs!$K$126, 'Rates Table'!$AT$16*PODs*(TOU_High_Days + TOU_Low_Days)/12)),0) -> 0 | O32: =IFERROR(IF(Inputs!$G$29="No", IF(AND('Rates Table'!AT68,$D$8<>"Transflex 1",$D$8<>"Transflex 2"), 'Rates Table'!$AT$16*Inputs!$K$46, 'Rates Table'!$AT$16*PODs*(TOU_High_Days + TOU_Low_Days)/12), IF(AND('Rates Table'!AT68,$D$8<>"Transflex 1",$D$8<>"Transflex 2"), 'Rates Table'!$AT$16*Inputs!$K$127, 'Rates Table'!$AT$16*PODs*(TOU_High_Days + TOU_Low_Days)/12)),0) -> 0 | P32: =IFERROR(IF(Inputs!$G$29="No", IF(AND('Rates Table'!AT68,$D$8<>"Transflex 1",$D$8<>"Transflex 2"), 'Rates Table'!$AT$16*Inputs!$K$47, 'Rates Table'!$AT$16*PODs*(TOU_High_Days + TOU_Low_Days)/12), IF(AND('Rates Table'!AT68,$D$8<>"Transflex 1",$D$8<>"Transflex 2"), 'Rates Table'!$AT$16*Inputs!$K$128, 'Rates Table'!$AT$16*PODs*(TOU_High_Days + TOU_Low_Days)/12)),0) -> 0 | Q32: =SUM(E32:P32) -> 0 | AC32: ='Bill Comparison'!H74 -> 0 | AD32: =IFERROR(Q32 - AC32, "") -> 0
D33: =Current_Period -> 2024/25 | E33: =IFERROR(IF(Inputs!$G$29="No", IF(AND(Table_1=1,'Rates Table'!E2<>"Transflex 1",'Rates Table'!E2<>"Transflex 2"), 'Rates Table'!$E$16*Inputs!$K$36, 'Rates Table'!$E$16*PODs*(TOU_High_Days + TOU_Low_Days)/12), IF(AND(Table_1=1,'Rates Table'!E2<>"Transflex 1",'Rates Table'!E2<>"Transflex 2"), 'Rates Table'!$E$16*Inputs!$K$75, 'Rates Table'!$E$16*PODs*(TOU_High_Days + TOU_Low_Days)/12)),0) -> 0 | F33: =IFERROR(IF(Inputs!$G$29="No", IF(AND(Table_1=1,'Rates Table'!E2<>"Transflex 1",'Rates Table'!E2<>"Transflex 2"), 'Rates Table'!$E$16*Inputs!$K$37, 'Rates Table'!$E$16*PODs*(TOU_High_Days + TOU_Low_Days)/12), IF(AND(Table_1=1,'Rates Table'!E2<>"Transflex 1",'Rates Table'!E2<>"Transflex 2"), 'Rates Table'!$E$16*Inputs!$K$76, 'Rates Table'!$E$16*PODs*(TOU_High_Days + TOU_Low_Days)/12)),0) -> 0 | G33: =IFERROR(IF(Inputs!$G$29="No", IF(AND(Table_1=1,'Rates Table'!E2<>"Transflex 1",'Rates Table'!E2<>"Transflex 2"), 'Rates Table'!$E$16*Inputs!$K$38, 'Rates Table'!$E$16*PODs*(TOU_High_Days + TOU_Low_Days)/12), IF(AND(Table_1=1,'Rates Table'!E2<>"Transflex 1",'Rates Table'!E2<>"Transflex 2"), 'Rates Table'!$E$16*Inputs!$K$77, 'Rates Table'!$E$16*PODs*(TOU_High_Days + TOU_Low_Days)/12)),0) -> 0 | H33: =IFERROR(IF(Inputs!$G$29="No", IF(AND(Table_1=1,'Rates Table'!E2<>"Transflex 1",'Rates Table'!E2<>"Transflex 2"), 'Rates Table'!$E$16*Inputs!$K$39, 'Rates Table'!$E$16*PODs*(TOU_High_Days + TOU_Low_Days)/12), IF(AND(Table_1=1,'Rates Table'!E2<>"Transflex 1",'Rates Table'!E2<>"Transflex 2"), 'Rates Table'!$E$16*Inputs!$K$78, 'Rates Table'!$E$16*PODs*(TOU_High_Days + TOU_Low_Days)/12)),0) -> 0 | I33: =IFERROR(IF(Inputs!$G$29="No", IF(AND(Table_1=1,'Rates Table'!E2<>"Transflex 1",'Rates Table'!E2<>"Transflex 2"), 'Rates Table'!$E$16*Inputs!$K$40, 'Rates Table'!$E$16*PODs*(TOU_High_Days + TOU_Low_Days)/12), IF(AND(Table_1=1,'Rates Table'!E2<>"Transflex 1",'Rates Table'!E2<>"Transflex 2"), 'Rates Table'!$E$16*Inputs!$K$79, 'Rates Table'!$E$16*PODs*(TOU_High_Days + TOU_Low_Days)/12)),0) -> 0 | J33: =IFERROR(IF(Inputs!$G$29="No", IF(AND(Table_1=1,'Rates Table'!E2<>"Transflex 1",'Rates Table'!E2<>"Transflex 2"), 'Rates Table'!$E$16*Inputs!$K$41, 'Rates Table'!$E$16*PODs*(TOU_High_Days + TOU_Low_Days)/12), IF(AND(Table_1=1,'Rates Table'!E2<>"Transflex 1",'Rates Table'!E2<>"Transflex 2"), 'Rates Table'!$E$16*Inputs!$K$80, 'Rates Table'!$E$16*PODs*(TOU_High_Days + TOU_Low_Days)/12)),0) -> 0 | K33: =IFERROR(IF(Inputs!$G$29="No", IF(AND(Table_1=1,'Rates Table'!E2<>"Transflex 1",'Rates Table'!E2<>"Transflex 2"), 'Rates Table'!$E$16*Inputs!$K$42, 'Rates Table'!$E$16*PODs*(TOU_High_Days + TOU_Low_Days)/12), IF(AND(Table_1=1,'Rates Table'!E2<>"Transflex 1",'Rates Table'!E2<>"Transflex 2"), 'Rates Table'!$E$16*Inputs!$K$81, 'Rates Table'!$E$16*PODs*(TOU_High_Days + TOU_Low_Days)/12)),0) -> 0 | L33: =IFERROR(IF(Inputs!$G$29="No", IF(AND(Table_1=1,'Rates Table'!E2<>"Transflex 1",'Rates Table'!E2<>"Transflex 2"), 'Rates Table'!$E$16*Inputs!$K$43, 'Rates Table'!$E$16*PODs*(TOU_High_Days + TOU_Low_Days)/12), IF(AND(Table_1=1,'Rates Table'!E2<>"Transflex 1",'Rates Table'!E2<>"Transflex 2"), 'Rates Table'!$E$16*Inputs!$K$82, 'Rates Table'!$E$16*PODs*(TOU_High_Days + TOU_Low_Days)/12)),0) -> 0 | M33: =IFERROR(IF(Inputs!$G$29="No", IF(AND(Table_1=1,'Rates Table'!E2<>"Transflex 1",'Rates Table'!E2<>"Transflex 2"), 'Rates Table'!$E$16*Inputs!$K$44, 'Rates Table'!$E$16*PODs*(TOU_High_Days + TOU_Low_Days)/12), IF(AND(Table_1=1,'Rates Table'!E2<>"Transflex 1",'Rates Table'!E2<>"Transflex 2"), 'Rates Table'!$E$16*Inputs!$K$83, 'Rates Table'!$E$16*PODs*(TOU_High_Days + TOU_Low_Days)/12)),0) -> 0 | N33: =IFERROR(IF(Inputs!$G$29="No", IF(AND(Table_1=1,'Rates Table'!E2<>"Transflex 1",'Rates Table'!E2<>"Transflex 2"), 'Rates Table'!$E$16*Inputs!$K$45, 'Rates Table'!$E$16*PODs*(TOU_High_Days + TOU_Low_Days)/12), IF(AND(Table_1=1,'Rates Table'!E2<>"Transflex 1",'Rates Table'!E2<>"Transflex 2"), 'Rates Table'!$E$16*Inputs!$K$84, 'Rates Table'!$E$16*PODs*(TOU_High_Days + TOU_Low_Days)/12)),0) -> 0 | O33: =IFERROR(IF(Inputs!$G$29="No", IF(AND(Table_1=1,'Rates Table'!E2<>"Transflex 1",'Rates Table'!E2<>"Transflex 2"), 'Rates Table'!$E$16*Inputs!$K$46, 'Rates Table'!$E$16*PODs*(TOU_High_Days + TOU_Low_Days)/12), IF(AND(Table_1=1,'Rates Table'!E2<>"Transflex 1",'Rates Table'!E2<>"Transflex 2"), 'Rates Table'!$E$16*Inputs!$K$85, 'Rates Table'!$E$16*PODs*(TOU_High_Days + TOU_Low_Days)/12)),0) -> 0 | P33: =IFERROR(IF(Inputs!$G$29="No", IF(AND(Table_1=1,'Rates Table'!E2<>"Transflex 1",'Rates Table'!E2<>"Transflex 2"), 'Rates Table'!$E$16*Inputs!$K$47, 'Rates Table'!$E$16*PODs*(TOU_High_Days + TOU_Low_Days)/12), IF(AND(Table_1=1,'Rates Table'!E2<>"Transflex 1",'Rates Table'!E2<>"Transflex 2"), 'Rates Table'!$E$16*Inputs!$K$86, 'Rates Table'!$E$16*PODs*(TOU_High_Days + TOU_Low_Days)/12)),0) -> 0 | Q33: =SUM(E33:P33) -> 0 | AC33: ='Bill Comparison'!G74 -> 0 | AD33: =IFERROR(Q33 - AC33, "") -> 0
D34: % change | E34: =IFERROR((E32 - E33) / E33, "") ->  | F34: =IFERROR((F32 - F33) / F33, "") ->  | Q34: =IFERROR((Q32 - Q33) / Q33, "") -> 
C35: Total network charges | D35: =New_Period -> 2025/26 | E35: =SUM(E17,E20,E23,E26,E29,E32,E14) -> 0 | F35: =SUM(F17,F20,F23,F26,F29,F32,F14) -> 0 | G35: 0 | H35: 0 | I35: 0 | J35: 0 | K35: 0 | L35: 0 | M35: 0 | N35: 0 | O35: 0 | P35: 0 | Q35: 0 | AC35: ='Bill Comparison'!H77 -> 0 | AD35: =IFERROR(Q35 - AC35, "") -> 0
D36: =Current_Period -> 2024/25 | E36: =SUM(E18,E21,E24,E27,E30,E33,E15) -> 0 | F36: =SUM(F18,F21,F24,F27,F30,F33,F15) -> 0 | G36: 0 | H36: 0 | I36: 0 | J36: 0 | K36: 0 | L36: 0 | M36: 0 | N36: 0 | O36: 0 | P36: 0 | Q36: =SUM(Q18,Q21,Q24,Q27,Q30,Q33,Q15) -> 0 | AC36: ='Bill Comparison'!G77 -> 0 | AD36: =IFERROR(Q36 - AC36, "") -> 0
D37: % change | E37: =IFERROR((E35 - E36) / E36, "") -> 
B39: Energy charges | E39: =E$13 -> 2025-04-30 | F39: =F$13 -> 2025-05-31 | G39: 2025-06-30 | H39: 2025-07-31 | I39: 2025-08-31 | J39: 2025-09-30 | K39: 2025-10-31 | L39: 2025-11-30 | M39: 2025-12-31 | N39: 2026-01-31 | O39: 2026-02-28 | P39: 2026-03-31 | Q39: Total
C40: Peak energy charge | D40: =New_Period -> 2025/26 | E40: =IFERROR(IF(AND(Inputs!$G$29="No", TOU_indicator_RTP="Y"),Inputs!$G$36*IF(Inputs!$E$36="High Demand",NewRate_kWh_P_high,NewRate_kWh_P_low)/100,Inputs!$G$117*IF(Inputs!$E$36="High Demand",NewRate_kWh_P_high,NewRate_kWh_P_low)/100),"") -> 0 | F40: =IFERROR(IF(AND(Inputs!$G$29="No", TOU_indicator_RTP="Y"),Inputs!$G$37*IF(Inputs!$E$37="High Demand",NewRate_kWh_P_high,NewRate_kWh_P_low)/100,Inputs!$G$118*IF(Inputs!$E$37="High Demand",NewRate_kWh_P_high,NewRate_kWh_P_low)/100),"") -> 0 | G40: =IFERROR(IF(AND(Inputs!$G$29="No", TOU_indicator_RTP="Y"),Inputs!$G$38*IF(Inputs!$E$38="High Demand",NewRate_kWh_P_high,NewRate_kWh_P_low)/100,Inputs!$G$119*IF(Inputs!$E$38="High Demand",NewRate_kWh_P_high,NewRate_kWh_P_low)/100),"") -> 0 | H40: =IFERROR(IF(AND(Inputs!$G$29="No", TOU_indicator_RTP="Y"),Inputs!$G$39*IF(Inputs!$E$39="High Demand",NewRate_kWh_P_high,NewRate_kWh_P_low)/100,Inputs!$G$120*IF(Inputs!$E$39="High Demand",NewRate_kWh_P_high,NewRate_kWh_P_low)/100),"") -> 0 | I40: =IFERROR(IF(AND(Inputs!$G$29="No", TOU_indicator_RTP="Y"),Inputs!$G$40*IF(Inputs!$E$40="High Demand",NewRate_kWh_P_high,NewRate_kWh_P_low)/100,Inputs!$G$121*IF(Inputs!$E$40="High Demand",NewRate_kWh_P_high,NewRate_kWh_P_low)/100),"") -> 0 | J40: =IFERROR(IF(AND(Inputs!$G$29="No", TOU_indicator_RTP="Y"),Inputs!$G$41*IF(Inputs!$E$41="High Demand",NewRate_kWh_P_high,NewRate_kWh_P_low)/100,Inputs!$G$122*IF(Inputs!$E$41="High Demand",NewRate_kWh_P_high,NewRate_kWh_P_low)/100),"") -> 0 | K40: =IFERROR(IF(AND(Inputs!$G$29="No", TOU_indicator_RTP="Y"),Inputs!$G$42*IF(Inputs!$E$42="High Demand",NewRate_kWh_P_high,NewRate_kWh_P_low)/100,Inputs!$G$123*IF(Inputs!$E$42="High Demand",NewRate_kWh_P_high,NewRate_kWh_P_low)/100),"") -> 0 | L40: =IFERROR(IF(AND(Inputs!$G$29="No", TOU_indicator_RTP="Y"),Inputs!$G$43*IF(Inputs!$E$43="High Demand",NewRate_kWh_P_high,NewRate_kWh_P_low)/100,Inputs!$G$124*IF(Inputs!$E$43="High Demand",NewRate_kWh_P_high,NewRate_kWh_P_low)/100),"") -> 0 | M40: =IFERROR(IF(AND(Inputs!$G$29="No", TOU_indicator_RTP="Y"),Inputs!$G$44*IF(Inputs!$E$44="High Demand",NewRate_kWh_P_high,NewRate_kWh_P_low)/100,Inputs!$G$125*IF(Inputs!$E$44="High Demand",NewRate_kWh_P_high,NewRate_kWh_P_low)/100),"") -> 0 | N40: =IFERROR(IF(AND(Inputs!$G$29="No", TOU_indicator_RTP="Y"),Inputs!$G$45*IF(Inputs!$E$45="High Demand",NewRate_kWh_P_high,NewRate_kWh_P_low)/100,Inputs!$G$126*IF(Inputs!$E$45="High Demand",NewRate_kWh_P_high,NewRate_kWh_P_low)/100),"") -> 0 | O40: =IFERROR(IF(AND(Inputs!$G$29="No", TOU_indicator_RTP="Y"),Inputs!$G$46*IF(Inputs!$E$46="High Demand",NewRate_kWh_P_high,NewRate_kWh_P_low)/100,Inputs!$G$127*IF(Inputs!$E$46="High Demand",NewRate_kWh_P_high,NewRate_kWh_P_low)/100),"") -> 0 | P40: =IFERROR(IF(AND(Inputs!$G$29="No", TOU_indicator_RTP="Y"),Inputs!$G$47*IF(Inputs!$E$47="High Demand",NewRate_kWh_P_high,NewRate_kWh_P_low)/100,Inputs!$G$128*IF(Inputs!$E$47="High Demand",NewRate_kWh_P_high,NewRate_kWh_P_low)/100),"") -> 0 | Q40: =IF(E40 = "", "", SUM(E40:P40)) -> 0 | AC40: ='Bill Comparison'!H81 -> 0 | AD40: =IFERROR(Q40 - AC40, "") -> 0
D41: =Current_Period -> 2024/25 | E41: =IFERROR(IF(AND(Inputs!$G$29="No", Lists!H10="Y"),Inputs!$G$36*IF(Inputs!$E$36="High Demand",CurrRate_kWh_P_high,CurrRate_kWh_P_low)/100,Inputs!$G$75*IF(Inputs!$E$36="High Demand",CurrRate_kWh_P_high,CurrRate_kWh_P_low)/100),"") -> 0 | F41: =IFERROR(IF(AND(Inputs!$G$29="No", Lists!H10="Y"),Inputs!$G$37*IF(Inputs!$E$37="High Demand",CurrRate_kWh_P_high,CurrRate_kWh_P_low)/100,Inputs!$G$76*IF(Inputs!$E$37="High Demand",CurrRate_kWh_P_high,CurrRate_kWh_P_low)/100),"") -> 0 | G41: =IFERROR(IF(AND(Inputs!$G$29="No", Lists!H10="Y"),Inputs!$G$38*IF(Inputs!$E$38="High Demand",CurrRate_kWh_P_high,CurrRate_kWh_P_low)/100,Inputs!$G$77*IF(Inputs!$E$38="High Demand",CurrRate_kWh_P_high,CurrRate_kWh_P_low)/100),"") -> 0 | H41: =IFERROR(IF(AND(Inputs!$G$29="No", Lists!H10="Y"),Inputs!$G$39*IF(Inputs!$E$39="High Demand",CurrRate_kWh_P_high,CurrRate_kWh_P_low)/100,Inputs!$G$78*IF(Inputs!$E$39="High Demand",CurrRate_kWh_P_high,CurrRate_kWh_P_low)/100),"") -> 0 | I41: =IFERROR(IF(AND(Inputs!$G$29="No", Lists!H10="Y"),Inputs!$G$40*IF(Inputs!$E$40="High Demand",CurrRate_kWh_P_high,CurrRate_kWh_P_low)/100,Inputs!$G$79*IF(Inputs!$E$40="High Demand",CurrRate_kWh_P_high,CurrRate_kWh_P_low)/100),"") -> 0 | J41: =IFERROR(IF(AND(Inputs!$G$29="No", Lists!H10="Y"),Inputs!$G$41*IF(Inputs!$E$41="High Demand",CurrRate_kWh_P_high,CurrRate_kWh_P_low)/100,Inputs!$G$80*IF(Inputs!$E$41="High Demand",CurrRate_kWh_P_high,CurrRate_kWh_P_low)/100),"") -> 0 | K41: =IFERROR(IF(AND(Inputs!$G$29="No", Lists!H10="Y"),Inputs!$G$42*IF(Inputs!$E$42="High Demand",CurrRate_kWh_P_high,CurrRate_kWh_P_low)/100,Inputs!$G$81*IF(Inputs!$E$42="High Demand",CurrRate_kWh_P_high,CurrRate_kWh_P_low)/100),"") -> 0 | L41: =IFERROR(IF(AND(Inputs!$G$29="No", Lists!H10="Y"),Inputs!$G$43*IF(Inputs!$E$43="High Demand",CurrRate_kWh_P_high,CurrRate_kWh_P_low)/100,Inputs!$G$82*IF(Inputs!$E$43="High Demand",CurrRate_kWh_P_high,CurrRate_kWh_P_low)/100),"") -> 0 | M41: =IFERROR(IF(AND(Inputs!$G$29="No", Lists!H10="Y"),Inputs!$G$44*IF(Inputs!$E$44="High Demand",CurrRate_kWh_P_high,CurrRate_kWh_P_low)/100,Inputs!$G$83*IF(Inputs!$E$44="High Demand",CurrRate_kWh_P_high,CurrRate_kWh_P_low)/100),"") -> 0 | N41: =IFERROR(IF(AND(Inputs!$G$29="No", Lists!H10="Y"),Inputs!$G$45*IF(Inputs!$E$45="High Demand",CurrRate_kWh_P_high,CurrRate_kWh_P_low)/100,Inputs!$G$84*IF(Inputs!$E$45="High Demand",CurrRate_kWh_P_high,CurrRate_kWh_P_low)/100),"") -> 0 | O41: =IFERROR(IF(AND(Inputs!$G$29="No", Lists!H10="Y"),Inputs!$G$46*IF(Inputs!$E$46="High Demand",CurrRate_kWh_P_high,CurrRate_kWh_P_low)/100,Inputs!$G$85*IF(Inputs!$E$46="High Demand",CurrRate_kWh_P_high,CurrRate_kWh_P_low)/100),"") -> 0 | P41: =IFERROR(IF(AND(Inputs!$G$29="No", Lists!H10="Y"),Inputs!$G$47*IF(Inputs!$E$47="High Demand",CurrRate_kWh_P_high,CurrRate_kWh_P_low)/100,Inputs!$G$86*IF(Inputs!$E$47="High Demand",CurrRate_kWh_P_high,CurrRate_kWh_P_low)/100),"") -> 0 | Q41: =IF(E41 = "", "", SUM(E41:P41)) -> 0 | AC41: ='Bill Comparison'!G81 -> 0 | AD41: =IFERROR(Q41 - AC41, "") -> 0
D42: % change | E42: =IFERROR((E40 - E41) / E41, "") ->  | F42: =IFERROR((F40 - F41) / F41, "") -> 
C43: Standard energy charge | D43: =New_Period -> 2025/26 | E43: =IFERROR(IF(AND(Inputs!$G$29="No", TOU_indicator_RTP="Y"),Inputs!$H$36*IF(Inputs!$E$36="High Demand",NewRate_kWh_S_high,NewRate_kWh_S_low)/100,Inputs!$H$117*IF(Inputs!$E$36="High Demand",NewRate_kWh_S_high,NewRate_kWh_S_low)/100),"") -> 0 | F43: =IFERROR(IF(AND(Inputs!$G$29="No", TOU_indicator_RTP="Y"),Inputs!$H$37*IF(Inputs!$E$37="High Demand",NewRate_kWh_S_high,NewRate_kWh_S_low)/100,Inputs!$H$118*IF(Inputs!$E$37="High Demand",NewRate_kWh_S_high,NewRate_kWh_S_low)/100),"") -> 0 | G43: =IFERROR(IF(AND(Inputs!$G$29="No", TOU_indicator_RTP="Y"),Inputs!$H$38*IF(Inputs!$E$38="High Demand",NewRate_kWh_S_high,NewRate_kWh_S_low)/100,Inputs!$H$119*IF(Inputs!$E$38="High Demand",NewRate_kWh_S_high,NewRate_kWh_S_low)/100),"") -> 0 | H43: =IFERROR(IF(AND(Inputs!$G$29="No", TOU_indicator_RTP="Y"),Inputs!$H$39*IF(Inputs!$E$39="High Demand",NewRate_kWh_S_high,NewRate_kWh_S_low)/100,Inputs!$H$120*IF(Inputs!$E$39="High Demand",NewRate_kWh_S_high,NewRate_kWh_S_low)/100),"") -> 0 | I43: =IFERROR(IF(AND(Inputs!$G$29="No", TOU_indicator_RTP="Y"),Inputs!$H$40*IF(Inputs!$E$40="High Demand",NewRate_kWh_S_high,NewRate_kWh_S_low)/100,Inputs!$H$121*IF(Inputs!$E$40="High Demand",NewRate_kWh_S_high,NewRate_kWh_S_low)/100),"") -> 0 | J43: =IFERROR(IF(AND(Inputs!$G$29="No", TOU_indicator_RTP="Y"),Inputs!$H$41*IF(Inputs!$E$41="High Demand",NewRate_kWh_S_high,NewRate_kWh_S_low)/100,Inputs!$H$122*IF(Inputs!$E$41="High Demand",NewRate_kWh_S_high,NewRate_kWh_S_low)/100),"") -> 0 | K43: =IFERROR(IF(AND(Inputs!$G$29="No", TOU_indicator_RTP="Y"),Inputs!$H$42*IF(Inputs!$E$42="High Demand",NewRate_kWh_S_high,NewRate_kWh_S_low)/100,Inputs!$H$123*IF(Inputs!$E$42="High Demand",NewRate_kWh_S_high,NewRate_kWh_S_low)/100),"") -> 0 | L43: =IFERROR(IF(AND(Inputs!$G$29="No", TOU_indicator_RTP="Y"),Inputs!$H$43*IF(Inputs!$E$43="High Demand",NewRate_kWh_S_high,NewRate_kWh_S_low)/100,Inputs!$H$124*IF(Inputs!$E$43="High Demand",NewRate_kWh_S_high,NewRate_kWh_S_low)/100),"") -> 0 | M43: =IFERROR(IF(AND(Inputs!$G$29="No", TOU_indicator_RTP="Y"),Inputs!$H$44*IF(Inputs!$E$44="High Demand",NewRate_kWh_S_high,NewRate_kWh_S_low)/100,Inputs!$H$125*IF(Inputs!$E$44="High Demand",NewRate_kWh_S_high,NewRate_kWh_S_low)/100),"") -> 0 | N43: =IFERROR(IF(AND(Inputs!$G$29="No", TOU_indicator_RTP="Y"),Inputs!$H$45*IF(Inputs!$E$45="High Demand",NewRate_kWh_S_high,NewRate_kWh_S_low)/100,Inputs!$H$126*IF(Inputs!$E$45="High Demand",NewRate_kWh_S_high,NewRate_kWh_S_low)/100),"") -> 0 | O43: =IFERROR(IF(AND(Inputs!$G$29="No", TOU_indicator_RTP="Y"),Inputs!$H$46*IF(Inputs!$E$46="High Demand",NewRate_kWh_S_high,NewRate_kWh_S_low)/100,Inputs!$H$127*IF(Inputs!$E$46="High Demand",NewRate_kWh_S_high,NewRate_kWh_S_low)/100),"") -> 0 | P43: =IFERROR(IF(AND(Inputs!$G$29="No", TOU_indicator_RTP="Y"),Inputs!$H$47*IF(Inputs!$E$47="High Demand",NewRate_kWh_S_high,NewRate_kWh_S_low)/100,Inputs!$H$128*IF(Inputs!$E$47="High Demand",NewRate_kWh_S_high,NewRate_kWh_S_low)/100),"") -> 0 | Q43: =IF(E43 = "", "", SUM(E43:P43)) -> 0 | AC43: ='Bill Comparison'!H82 -> 0 | AD43: =IFERROR(Q43 - AC43, "") -> 0
D44: =Current_Period -> 2024/25 | E44: =IFERROR(IF(AND(Inputs!$G$29="No", Lists!H10="Y"),Inputs!$H$36*IF(Inputs!$E$36="High Demand",CurrRate_kWh_S_high,CurrRate_kWh_S_low)/100,Inputs!$H$75*IF(Inputs!$E$36="High Demand",CurrRate_kWh_S_high,CurrRate_kWh_S_low)/100),"") -> 0 | F44: =IFERROR(IF(AND(Inputs!$G$29="No", Lists!H10="Y"),Inputs!$H$37*IF(Inputs!$E$37="High Demand",CurrRate_kWh_S_high,CurrRate_kWh_S_low)/100,Inputs!$H$76*IF(Inputs!$E$37="High Demand",CurrRate_kWh_S_high,CurrRate_kWh_S_low)/100),"") -> 0 | G44: =IFERROR(IF(AND(Inputs!$G$29="No", Lists!H10="Y"),Inputs!$H$38*IF(Inputs!$E$38="High Demand",CurrRate_kWh_S_high,CurrRate_kWh_S_low)/100,Inputs!$H$77*IF(Inputs!$E$38="High Demand",CurrRate_kWh_S_high,CurrRate_kWh_S_low)/100),"") -> 0 | H44: =IFERROR(IF(AND(Inputs!$G$29="No", Lists!H10="Y"),Inputs!$H$39*IF(Inputs!$E$39="High Demand",CurrRate_kWh_S_high,CurrRate_kWh_S_low)/100,Inputs!$H$78*IF(Inputs!$E$39="High Demand",CurrRate_kWh_S_high,CurrRate_kWh_S_low)/100),"") -> 0 | I44: =IFERROR(IF(AND(Inputs!$G$29="No", Lists!H10="Y"),Inputs!$H$40*IF(Inputs!$E$40="High Demand",CurrRate_kWh_S_high,CurrRate_kWh_S_low)/100,Inputs!$H$79*IF(Inputs!$E$40="High Demand",CurrRate_kWh_S_high,CurrRate_kWh_S_low)/100),"") -> 0 | J44: =IFERROR(IF(AND(Inputs!$G$29="No", Lists!H10="Y"),Inputs!$H$41*IF(Inputs!$E$41="High Demand",CurrRate_kWh_S_high,CurrRate_kWh_S_low)/100,Inputs!$H$80*IF(Inputs!$E$41="High Demand",CurrRate_kWh_S_high,CurrRate_kWh_S_low)/100),"") -> 0 | K44: =IFERROR(IF(AND(Inputs!$G$29="No", Lists!H10="Y"),Inputs!$H$42*IF(Inputs!$E$42="High Demand",CurrRate_kWh_S_high,CurrRate_kWh_S_low)/100,Inputs!$H$81*IF(Inputs!$E$42="High Demand",CurrRate_kWh_S_high,CurrRate_kWh_S_low)/100),"") -> 0 | L44: =IFERROR(IF(AND(Inputs!$G$29="No", Lists!H10="Y"),Inputs!$H$43*IF(Inputs!$E$43="High Demand",CurrRate_kWh_S_high,CurrRate_kWh_S_low)/100,Inputs!$H$82*IF(Inputs!$E$43="High Demand",CurrRate_kWh_S_high,CurrRate_kWh_S_low)/100),"") -> 0 | M44: =IFERROR(IF(AND(Inputs!$G$29="No", Lists!H10="Y"),Inputs!$H$44*IF(Inputs!$E$44="High Demand",CurrRate_kWh_S_high,CurrRate_kWh_S_low)/100,Inputs!$H$83*IF(Inputs!$E$44="High Demand",CurrRate_kWh_S_high,CurrRate_kWh_S_low)/100),"") -> 0 | N44: =IFERROR(IF(AND(Inputs!$G$29="No", Lists!H10="Y"),Inputs!$H$45*IF(Inputs!$E$45="High Demand",CurrRate_kWh_S_high,CurrRate_kWh_S_low)/100,Inputs!$H$84*IF(Inputs!$E$45="High Demand",CurrRate_kWh_S_high,CurrRate_kWh_S_low)/100),"") -> 0 | O44: =IFERROR(IF(AND(Inputs!$G$29="No", Lists!H10="Y"),Inputs!$H$46*IF(Inputs!$E$46="High Demand",CurrRate_kWh_S_high,CurrRate_kWh_S_low)/100,Inputs!$H$85*IF(Inputs!$E$46="High Demand",CurrRate_kWh_S_high,CurrRate_kWh_S_low)/100),"") -> 0 | P44: =IFERROR(IF(AND(Inputs!$G$29="No", Lists!H10="Y"),Inputs!$H$47*IF(Inputs!$E$47="High Demand",CurrRate_kWh_S_high,CurrRate_kWh_S_low)/100,Inputs!$H$86*IF(Inputs!$E$47="High Demand",CurrRate_kWh_S_high,CurrRate_kWh_S_low)/100),"") -> 0 | Q44: =IF(E44 = "", "", SUM(E44:P44)) -> 0 | AC44: ='Bill Comparison'!G82 -> 0 | AD44: =IFERROR(Q44 - AC44, "") -> 0
D45: % change | E45: =IFERROR((E43 - E44) / E44, "") -> 
C46: Off-Peak energy charge | D46: =New_Period -> 2025/26 | E46: =IFERROR(IF(AND(Inputs!$G$29="No", TOU_indicator_RTP="Y"),Inputs!$I$36*IF(Inputs!$E$36="High Demand",NewRate_kWh_O_high,NewRate_kWh_O_low)/100,Inputs!$I$117*IF(Inputs!$E$36="High Demand",NewRate_kWh_O_high,NewRate_kWh_O_low)/100),"") -> 0 | F46: =IFERROR(IF(AND(Inputs!$G$29="No", TOU_indicator_RTP="Y"),Inputs!$I$37*IF(Inputs!$E$37="High Demand",NewRate_kWh_O_high,NewRate_kWh_O_low)/100,Inputs!$I$118*IF(Inputs!$E$37="High Demand",NewRate_kWh_O_high,NewRate_kWh_O_low)/100),"") -> 0 | G46: =IFERROR(IF(AND(Inputs!$G$29="No", TOU_indicator_RTP="Y"),Inputs!$I$38*IF(Inputs!$E$38="High Demand",NewRate_kWh_O_high,NewRate_kWh_O_low)/100,Inputs!$I$119*IF(Inputs!$E$38="High Demand",NewRate_kWh_O_high,NewRate_kWh_O_low)/100),"") -> 0 | H46: =IFERROR(IF(AND(Inputs!$G$29="No", TOU_indicator_RTP="Y"),Inputs!$I$39*IF(Inputs!$E$39="High Demand",NewRate_kWh_O_high,NewRate_kWh_O_low)/100,Inputs!$I$120*IF(Inputs!$E$39="High Demand",NewRate_kWh_O_high,NewRate_kWh_O_low)/100),"") -> 0 | I46: =IFERROR(IF(AND(Inputs!$G$29="No", TOU_indicator_RTP="Y"),Inputs!$I$40*IF(Inputs!$E$40="High Demand",NewRate_kWh_O_high,NewRate_kWh_O_low)/100,Inputs!$I$121*IF(Inputs!$E$40="High Demand",NewRate_kWh_O_high,NewRate_kWh_O_low)/100),"") -> 0 | J46: =IFERROR(IF(AND(Inputs!$G$29="No", TOU_indicator_RTP="Y"),Inputs!$I$41*IF(Inputs!$E$41="High Demand",NewRate_kWh_O_high,NewRate_kWh_O_low)/100,Inputs!$I$122*IF(Inputs!$E$41="High Demand",NewRate_kWh_O_high,NewRate_kWh_O_low)/100),"") -> 0 | K46: =IFERROR(IF(AND(Inputs!$G$29="No", TOU_indicator_RTP="Y"),Inputs!$I$42*IF(Inputs!$E$42="High Demand",NewRate_kWh_O_high,NewRate_kWh_O_low)/100,Inputs!$I$123*IF(Inputs!$E$42="High Demand",NewRate_kWh_O_high,NewRate_kWh_O_low)/100),"") -> 0 | L46: =IFERROR(IF(AND(Inputs!$G$29="No", TOU_indicator_RTP="Y"),Inputs!$I$43*IF(Inputs!$E$43="High Demand",NewRate_kWh_O_high,NewRate_kWh_O_low)/100,Inputs!$I$124*IF(Inputs!$E$43="High Demand",NewRate_kWh_O_high,NewRate_kWh_O_low)/100),"") -> 0 | M46: =IFERROR(IF(AND(Inputs!$G$29="No", TOU_indicator_RTP="Y"),Inputs!$I$44*IF(Inputs!$E$44="High Demand",NewRate_kWh_O_high,NewRate_kWh_O_low)/100,Inputs!$I$125*IF(Inputs!$E$44="High Demand",NewRate_kWh_O_high,NewRate_kWh_O_low)/100),"") -> 0 | N46: =IFERROR(IF(AND(Inputs!$G$29="No", TOU_indicator_RTP="Y"),Inputs!$I$45*IF(Inputs!$E$45="High Demand",NewRate_kWh_O_high,NewRate_kWh_O_low)/100,Inputs!$I$126*IF(Inputs!$E$45="High Demand",NewRate_kWh_O_high,NewRate_kWh_O_low)/100),"") -> 0 | O46: =IFERROR(IF(AND(Inputs!$G$29="No", TOU_indicator_RTP="Y"),Inputs!$I$46*IF(Inputs!$E$46="High Demand",NewRate_kWh_O_high,NewRate_kWh_O_low)/100,Inputs!$I$127*IF(Inputs!$E$46="High Demand",NewRate_kWh_O_high,NewRate_kWh_O_low)/100),"") -> 0 | P46: =IFERROR(IF(AND(Inputs!$G$29="No", TOU_indicator_RTP="Y"),Inputs!$I$47*IF(Inputs!$E$47="High Demand",NewRate_kWh_O_high,NewRate_kWh_O_low)/100,Inputs!$I$128*IF(Inputs!$E$47="High Demand",NewRate_kWh_O_high,NewRate_kWh_O_low)/100),"") -> 0 | Q46: =IF(E46 = "", "", SUM(E46:P46)) -> 0 | AC46: ='Bill Comparison'!H83 -> 0 | AD46: =IFERROR(Q46 - AC46, "") -> 0
D47: =Current_Period -> 2024/25 | E47: =IFERROR(IF(AND(Inputs!$G$29="No", Lists!H10="Y"),Inputs!$I$36*IF(Inputs!$E$36="High Demand",CurrRate_kWh_O_high,CurrRate_kWh_O_low)/100,Inputs!$I$75*IF(Inputs!$E$36="High Demand",CurrRate_kWh_O_high,CurrRate_kWh_O_low)/100),"") -> 0 | F47: =IFERROR(IF(AND(Inputs!$G$29="No", Lists!H10="Y"),Inputs!$I$37*IF(Inputs!$E$37="High Demand",CurrRate_kWh_O_high,CurrRate_kWh_O_low)/100,Inputs!$I$76*IF(Inputs!$E$37="High Demand",CurrRate_kWh_O_high,CurrRate_kWh_O_low)/100),"") -> 0 | G47: =IFERROR(IF(AND(Inputs!$G$29="No", Lists!H10="Y"),Inputs!$I$38*IF(Inputs!$E$38="High Demand",CurrRate_kWh_O_high,CurrRate_kWh_O_low)/100,Inputs!$I$77*IF(Inputs!$E$38="High Demand",CurrRate_kWh_O_high,CurrRate_kWh_O_low)/100),"") -> 0 | H47: =IFERROR(IF(AND(Inputs!$G$29="No", Lists!H10="Y"),Inputs!$I$39*IF(Inputs!$E$39="High Demand",CurrRate_kWh_O_high,CurrRate_kWh_O_low)/100,Inputs!$I$78*IF(Inputs!$E$39="High Demand",CurrRate_kWh_O_high,CurrRate_kWh_O_low)/100),"") -> 0 | I47: =IFERROR(IF(AND(Inputs!$G$29="No", Lists!H10="Y"),Inputs!$I$40*IF(Inputs!$E$40="High Demand",CurrRate_kWh_O_high,CurrRate_kWh_O_low)/100,Inputs!$I$79*IF(Inputs!$E$40="High Demand",CurrRate_kWh_O_high,CurrRate_kWh_O_low)/100),"") -> 0 | J47: =IFERROR(IF(AND(Inputs!$G$29="No", Lists!H10="Y"),Inputs!$I$41*IF(Inputs!$E$41="High Demand",CurrRate_kWh_O_high,CurrRate_kWh_O_low)/100,Inputs!$I$80*IF(Inputs!$E$41="High Demand",CurrRate_kWh_O_high,CurrRate_kWh_O_low)/100),"") -> 0 | K47: =IFERROR(IF(AND(Inputs!$G$29="No", Lists!H10="Y"),Inputs!$I$42*IF(Inputs!$E$42="High Demand",CurrRate_kWh_O_high,CurrRate_kWh_O_low)/100,Inputs!$I$81*IF(Inputs!$E$42="High Demand",CurrRate_kWh_O_high,CurrRate_kWh_O_low)/100),"") -> 0 | L47: =IFERROR(IF(AND(Inputs!$G$29="No", Lists!H10="Y"),Inputs!$I$43*IF(Inputs!$E$43="High Demand",CurrRate_kWh_O_high,CurrRate_kWh_O_low)/100,Inputs!$I$82*IF(Inputs!$E$43="High Demand",CurrRate_kWh_O_high,CurrRate_kWh_O_low)/100),"") -> 0 | M47: =IFERROR(IF(AND(Inputs!$G$29="No", Lists!H10="Y"),Inputs!$I$44*IF(Inputs!$E$44="High Demand",CurrRate_kWh_O_high,CurrRate_kWh_O_low)/100,Inputs!$I$83*IF(Inputs!$E$44="High Demand",CurrRate_kWh_O_high,CurrRate_kWh_O_low)/100),"") -> 0 | N47: =IFERROR(IF(AND(Inputs!$G$29="No", Lists!H10="Y"),Inputs!$I$45*IF(Inputs!$E$45="High Demand",CurrRate_kWh_O_high,CurrRate_kWh_O_low)/100,Inputs!$I$84*IF(Inputs!$E$45="High Demand",CurrRate_kWh_O_high,CurrRate_kWh_O_low)/100),"") -> 0 | O47: =IFERROR(IF(AND(Inputs!$G$29="No", Lists!H10="Y"),Inputs!$I$46*IF(Inputs!$E$46="High Demand",CurrRate_kWh_O_high,CurrRate_kWh_O_low)/100,Inputs!$I$85*IF(Inputs!$E$46="High Demand",CurrRate_kWh_O_high,CurrRate_kWh_O_low)/100),"") -> 0 | P47: =IFERROR(IF(AND(Inputs!$G$29="No", Lists!H10="Y"),Inputs!$I$47*IF(Inputs!$E$47="High Demand",CurrRate_kWh_O_high,CurrRate_kWh_O_low)/100,Inputs!$I$86*IF(Inputs!$E$47="High Demand",CurrRate_kWh_O_high,CurrRate_kWh_O_low)/100),"") -> 0 | Q47: =IF(E47 = "", "", SUM(E47:P47)) -> 0 | AC47: ='Bill Comparison'!G83 -> 0 | AD47: =IFERROR(Q47 - AC47, "") -> 0
D48: % change | E48: =IFERROR((E46 - E47) / E47, "") -> 
C49: Non-TOU energy charge | D49: =New_Period -> 2025/26 | E49: =IFERROR(IF(AND(Inputs!$G$29="No", TOU_indicator ="N"),Inputs!$M$36*IF(Inputs!$E$36="High Demand",NewRate_kWh_H_nontou,NewRate_kWh_L_nontou)/100,Inputs!$M$117*IF(Inputs!$E$36="High Demand",NewRate_kWh_H_nontou,NewRate_kWh_L_nontou)/100),"") ->  | F49: =IFERROR(IF(AND(Inputs!$G$29="No", TOU_indicator ="N"),Inputs!$M$37*IF(Inputs!$E$37="High Demand",NewRate_kWh_H_nontou,NewRate_kWh_L_nontou)/100,Inputs!$M$118*IF(Inputs!$E$37="High Demand",NewRate_kWh_H_nontou,NewRate_kWh_L_nontou)/100),"") ->  | G49: =IFERROR(IF(AND(Inputs!$G$29="No", TOU_indicator ="N"),Inputs!$M$38*IF(Inputs!$E$38="High Demand",NewRate_kWh_H_nontou,NewRate_kWh_L_nontou)/100,Inputs!$M$119*IF(Inputs!$E$38="High Demand",NewRate_kWh_H_nontou,NewRate_kWh_L_nontou)/100),"") ->  | H49: =IFERROR(IF(AND(Inputs!$G$29="No", TOU_indicator ="N"),Inputs!$M$39*IF(Inputs!$E$39="High Demand",NewRate_kWh_H_nontou,NewRate_kWh_L_nontou)/100,Inputs!$M$120*IF(Inputs!$E$39="High Demand",NewRate_kWh_H_nontou,NewRate_kWh_L_nontou)/100),"") ->  | I49: =IFERROR(IF(AND(Inputs!$G$29="No", TOU_indicator ="N"),Inputs!$M$40*IF(Inputs!$E$40="High Demand",NewRate_kWh_H_nontou,NewRate_kWh_L_nontou)/100,Inputs!$M$121*IF(Inputs!$E$40="High Demand",NewRate_kWh_H_nontou,NewRate_kWh_L_nontou)/100),"") ->  | J49: =IFERROR(IF(AND(Inputs!$G$29="No", TOU_indicator ="N"),Inputs!$M$41*IF(Inputs!$E$41="High Demand",NewRate_kWh_H_nontou,NewRate_kWh_L_nontou)/100,Inputs!$M$122*IF(Inputs!$E$41="High Demand",NewRate_kWh_H_nontou,NewRate_kWh_L_nontou)/100),"") ->  | K49: =IFERROR(IF(AND(Inputs!$G$29="No", TOU_indicator ="N"),Inputs!$M$42*IF(Inputs!$E$42="High Demand",NewRate_kWh_H_nontou,NewRate_kWh_L_nontou)/100,Inputs!$M$123*IF(Inputs!$E$42="High Demand",NewRate_kWh_H_nontou,NewRate_kWh_L_nontou)/100),"") ->  | L49: =IFERROR(IF(AND(Inputs!$G$29="No", TOU_indicator ="N"),Inputs!$M$43*IF(Inputs!$E$43="High Demand",NewRate_kWh_H_nontou,NewRate_kWh_L_nontou)/100,Inputs!$M$124*IF(Inputs!$E$43="High Demand",NewRate_kWh_H_nontou,NewRate_kWh_L_nontou)/100),"") ->  | M49: =IFERROR(IF(AND(Inputs!$G$29="No", TOU_indicator ="N"),Inputs!$M$44*IF(Inputs!$E$44="High Demand",NewRate_kWh_H_nontou,NewRate_kWh_L_nontou)/100,Inputs!$M$125*IF(Inputs!$E$44="High Demand",NewRate_kWh_H_nontou,NewRate_kWh_L_nontou)/100),"") ->  | N49: =IFERROR(IF(AND(Inputs!$G$29="No", TOU_indicator ="N"),Inputs!$M$45*IF(Inputs!$E$45="High Demand",NewRate_kWh_H_nontou,NewRate_kWh_L_nontou)/100,Inputs!$M$126*IF(Inputs!$E$45="High Demand",NewRate_kWh_H_nontou,NewRate_kWh_L_nontou)/100),"") ->  | O49: =IFERROR(IF(AND(Inputs!$G$29="No", TOU_indicator ="N"),Inputs!$M$46*IF(Inputs!$E$46="High Demand",NewRate_kWh_H_nontou,NewRate_kWh_L_nontou)/100,Inputs!$M$127*IF(Inputs!$E$46="High Demand",NewRate_kWh_H_nontou,NewRate_kWh_L_nontou)/100),"") ->  | P49: =IFERROR(IF(AND(Inputs!$G$29="No", TOU_indicator ="N"),Inputs!$M$47*IF(Inputs!$E$47="High Demand",NewRate_kWh_H_nontou,NewRate_kWh_L_nontou)/100,Inputs!$M$128*IF(Inputs!$E$47="High Demand",NewRate_kWh_H_nontou,NewRate_kWh_L_nontou)/100),"") ->  | Q49: =IF(E49 = "", "", SUM(E49:P49)) ->  | AC49: ='Bill Comparison'!H87 -> 0 | AD49: =IFERROR(Q49 - AC49, "") -> 
D50: =Current_Period -> 2024/25 | E50: =IFERROR(IF(AND(Inputs!$G$29="No", Lists!H10="N"),Inputs!$M$36*IF(Inputs!$E$36="High Demand",CurrRate_kWh_H_nontou,CurrRate_kWh_L_nontou)/100,Inputs!$M$75*IF(Inputs!$E$36="High Demand",CurrRate_kWh_H_nontou,CurrRate_kWh_L_nontou)/100),"") ->  | F50: =IFERROR(IF(AND(Inputs!$G$29="No", Lists!H10="N"),Inputs!$M$37*IF(Inputs!$E$37="High Demand",CurrRate_kWh_H_nontou,CurrRate_kWh_L_nontou)/100,Inputs!$M$76*IF(Inputs!$E$37="High Demand",CurrRate_kWh_H_nontou,CurrRate_kWh_L_nontou)/100),"") ->  | G50: =IFERROR(IF(AND(Inputs!$G$29="No", Lists!H10="N"),Inputs!$M$38*IF(Inputs!$E$38="High Demand",CurrRate_kWh_H_nontou,CurrRate_kWh_L_nontou)/100,Inputs!$M$77*IF(Inputs!$E$38="High Demand",CurrRate_kWh_H_nontou,CurrRate_kWh_L_nontou)/100),"") ->  | H50: =IFERROR(IF(AND(Inputs!$G$29="No", Lists!H10="N"),Inputs!$M$39*IF(Inputs!$E$39="High Demand",CurrRate_kWh_H_nontou,CurrRate_kWh_L_nontou)/100,Inputs!$M$78*IF(Inputs!$E$39="High Demand",CurrRate_kWh_H_nontou,CurrRate_kWh_L_nontou)/100),"") ->  | I50: =IFERROR(IF(AND(Inputs!$G$29="No", Lists!H10="N"),Inputs!$M$40*IF(Inputs!$E$40="High Demand",CurrRate_kWh_H_nontou,CurrRate_kWh_L_nontou)/100,Inputs!$M$79*IF(Inputs!$E$40="High Demand",CurrRate_kWh_H_nontou,CurrRate_kWh_L_nontou)/100),"") ->  | J50: =IFERROR(IF(AND(Inputs!$G$29="No", Lists!H10="N"),Inputs!$M$41*IF(Inputs!$E$41="High Demand",CurrRate_kWh_H_nontou,CurrRate_kWh_L_nontou)/100,Inputs!$M$80*IF(Inputs!$E$41="High Demand",CurrRate_kWh_H_nontou,CurrRate_kWh_L_nontou)/100),"") ->  | K50: =IFERROR(IF(AND(Inputs!$G$29="No", Lists!H10="N"),Inputs!$M$42*IF(Inputs!$E$42="High Demand",CurrRate_kWh_H_nontou,CurrRate_kWh_L_nontou)/100,Inputs!$M$81*IF(Inputs!$E$42="High Demand",CurrRate_kWh_H_nontou,CurrRate_kWh_L_nontou)/100),"") ->  | L50: =IFERROR(IF(AND(Inputs!$G$29="No", Lists!H10="N"),Inputs!$M$43*IF(Inputs!$E$43="High Demand",CurrRate_kWh_H_nontou,CurrRate_kWh_L_nontou)/100,Inputs!$M$82*IF(Inputs!$E$43="High Demand",CurrRate_kWh_H_nontou,CurrRate_kWh_L_nontou)/100),"") ->  | M50: =IFERROR(IF(AND(Inputs!$G$29="No", Lists!H10="N"),Inputs!$M$44*IF(Inputs!$E$44="High Demand",CurrRate_kWh_H_nontou,CurrRate_kWh_L_nontou)/100,Inputs!$M$83*IF(Inputs!$E$44="High Demand",CurrRate_kWh_H_nontou,CurrRate_kWh_L_nontou)/100),"") ->  | N50: =IFERROR(IF(AND(Inputs!$G$29="No", Lists!H10="N"),Inputs!$M$45*IF(Inputs!$E$45="High Demand",CurrRate_kWh_H_nontou,CurrRate_kWh_L_nontou)/100,Inputs!$M$84*IF(Inputs!$E$45="High Demand",CurrRate_kWh_H_nontou,CurrRate_kWh_L_nontou)/100),"") ->  | O50: =IFERROR(IF(AND(Inputs!$G$29="No", Lists!H10="N"),Inputs!$M$46*IF(Inputs!$E$46="High Demand",CurrRate_kWh_H_nontou,CurrRate_kWh_L_nontou)/100,Inputs!$M$85*IF(Inputs!$E$46="High Demand",CurrRate_kWh_H_nontou,CurrRate_kWh_L_nontou)/100),"") ->  | P50: =IFERROR(IF(AND(Inputs!$G$29="No", Lists!H10="N"),Inputs!$M$47*IF(Inputs!$E$47="High Demand",CurrRate_kWh_H_nontou,CurrRate_kWh_L_nontou)/100,Inputs!$M$86*IF(Inputs!$E$47="High Demand",CurrRate_kWh_H_nontou,CurrRate_kWh_L_nontou)/100),"") ->  | Q50: =IF(E50 = "", "", SUM(E50:P50)) ->  | AC50: ='Bill Comparison'!G87 -> 0 | AD50: =IFERROR(Q50 - AC50, "") -> 
D51: % change | E51: =IFERROR((E49 - E50) / E50, "") ->  | F51: =IFERROR((F49 - F50) / F50, "") -> 
C52: Energy demand charge | D52: =New_Period -> 2025/26 | E52: =IFERROR(IF(AND(Inputs!$G$29="No", TOU_indicator ="N"),Inputs!$J$36*IF(Inputs!$E$36="High Demand",NewRate_EDC_H,NewRate_EDC_L),Inputs!$J$117*IF(Inputs!$E$36="High Demand",NewRate_EDC_H,NewRate_EDC_L)),"") ->  | F52: =IFERROR(IF(AND(Inputs!$G$29="No", TOU_indicator ="N"),Inputs!$J$37*IF(Inputs!$E$37="High Demand",NewRate_EDC_H,NewRate_EDC_L),Inputs!$J$118*IF(Inputs!$E$37="High Demand",NewRate_EDC_H,NewRate_EDC_L)),"") ->  | G52: =IFERROR(IF(AND(Inputs!$G$29="No", TOU_indicator ="N"),Inputs!$J$38*IF(Inputs!$E$38="High Demand",NewRate_EDC_H,NewRate_EDC_L),Inputs!$J$119*IF(Inputs!$E$38="High Demand",NewRate_EDC_H,NewRate_EDC_L)),"") ->  | H52: =IFERROR(IF(AND(Inputs!$G$29="No", TOU_indicator ="N"),Inputs!$J$39*IF(Inputs!$E$39="High Demand",NewRate_EDC_H,NewRate_EDC_L),Inputs!$J$120*IF(Inputs!$E$39="High Demand",NewRate_EDC_H,NewRate_EDC_L)),"") ->  | I52: =IFERROR(IF(AND(Inputs!$G$29="No", TOU_indicator ="N"),Inputs!$J$40*IF(Inputs!$E$40="High Demand",NewRate_EDC_H,NewRate_EDC_L),Inputs!$J$121*IF(Inputs!$E$40="High Demand",NewRate_EDC_H,NewRate_EDC_L)),"") ->  | J52: =IFERROR(IF(AND(Inputs!$G$29="No", TOU_indicator ="N"),Inputs!$J$41*IF(Inputs!$E$41="High Demand",NewRate_EDC_H,NewRate_EDC_L),Inputs!$J$122*IF(Inputs!$E$41="High Demand",NewRate_EDC_H,NewRate_EDC_L)),"") ->  | K52: =IFERROR(IF(AND(Inputs!$G$29="No", TOU_indicator ="N"),Inputs!$J$42*IF(Inputs!$E$42="High Demand",NewRate_EDC_H,NewRate_EDC_L),Inputs!$J$123*IF(Inputs!$E$42="High Demand",NewRate_EDC_H,NewRate_EDC_L)),"") ->  | L52: =IFERROR(IF(AND(Inputs!$G$29="No", TOU_indicator ="N"),Inputs!$J$43*IF(Inputs!$E$43="High Demand",NewRate_EDC_H,NewRate_EDC_L),Inputs!$J$124*IF(Inputs!$E$43="High Demand",NewRate_EDC_H,NewRate_EDC_L)),"") ->  | M52: =IFERROR(IF(AND(Inputs!$G$29="No", TOU_indicator ="N"),Inputs!$J$44*IF(Inputs!$E$44="High Demand",NewRate_EDC_H,NewRate_EDC_L),Inputs!$J$125*IF(Inputs!$E$44="High Demand",NewRate_EDC_H,NewRate_EDC_L)),"") ->  | N52: =IFERROR(IF(AND(Inputs!$G$29="No", TOU_indicator ="N"),Inputs!$J$45*IF(Inputs!$E$45="High Demand",NewRate_EDC_H,NewRate_EDC_L),Inputs!$J$126*IF(Inputs!$E$45="High Demand",NewRate_EDC_H,NewRate_EDC_L)),"") ->  | O52: =IFERROR(IF(AND(Inputs!$G$29="No", TOU_indicator ="N"),Inputs!$J$46*IF(Inputs!$E$46="High Demand",NewRate_EDC_H,NewRate_EDC_L),Inputs!$J$127*IF(Inputs!$E$46="High Demand",NewRate_EDC_H,NewRate_EDC_L)),"") ->  | P52: =IFERROR(IF(AND(Inputs!$G$29="No", TOU_indicator ="N"),Inputs!$J$47*IF(Inputs!$E$47="High Demand",NewRate_EDC_H,NewRate_EDC_L),Inputs!$J$128*IF(Inputs!$E$47="High Demand",NewRate_EDC_H,NewRate_EDC_L)),"") ->  | Q52: =IF(E52 = "", "", SUM(E52:P52)) ->  | AC52: ='Bill Comparison'!H90 -> 0 | AD52: =IFERROR(Q52 - AC52, "") -> 
D53: =Current_Period -> 2024/25 | E53: =IFERROR(IF(AND(Inputs!$G$29="No", Lists!H10="N"),Inputs!$J$36*IF(Inputs!$E$36="High Demand",CurrRate_EDC_H,CurrRate_EDC_L),Inputs!$J$75*IF(Inputs!$E$36="High Demand",CurrRate_EDC_H,CurrRate_EDC_L)),"") ->  | F53: =IFERROR(IF(AND(Inputs!$G$29="No", Lists!H10="N"),Inputs!$J$37*IF(Inputs!$E$37="High Demand",CurrRate_EDC_H,CurrRate_EDC_L),Inputs!$J$76*IF(Inputs!$E$37="High Demand",CurrRate_EDC_H,CurrRate_EDC_L)),"") ->  | G53: =IFERROR(IF(AND(Inputs!$G$29="No", Lists!H10="N"),Inputs!$J$38*IF(Inputs!$E$38="High Demand",CurrRate_EDC_H,CurrRate_EDC_L),Inputs!$J$77*IF(Inputs!$E$38="High Demand",CurrRate_EDC_H,CurrRate_EDC_L)),"") ->  | H53: =IFERROR(IF(AND(Inputs!$G$29="No", Lists!H10="N"),Inputs!$J$39*IF(Inputs!$E$39="High Demand",CurrRate_EDC_H,CurrRate_EDC_L),Inputs!$J$78*IF(Inputs!$E$39="High Demand",CurrRate_EDC_H,CurrRate_EDC_L)),"") ->  | I53: =IFERROR(IF(AND(Inputs!$G$29="No", Lists!H10="N"),Inputs!$J$40*IF(Inputs!$E$40="High Demand",CurrRate_EDC_H,CurrRate_EDC_L),Inputs!$J$79*IF(Inputs!$E$40="High Demand",CurrRate_EDC_H,CurrRate_EDC_L)),"") ->  | J53: =IFERROR(IF(AND(Inputs!$G$29="No", Lists!H10="N"),Inputs!$J$41*IF(Inputs!$E$41="High Demand",CurrRate_EDC_H,CurrRate_EDC_L),Inputs!$J$80*IF(Inputs!$E$41="High Demand",CurrRate_EDC_H,CurrRate_EDC_L)),"") ->  | K53: =IFERROR(IF(AND(Inputs!$G$29="No", Lists!H10="N"),Inputs!$J$42*IF(Inputs!$E$42="High Demand",CurrRate_EDC_H,CurrRate_EDC_L),Inputs!$J$81*IF(Inputs!$E$42="High Demand",CurrRate_EDC_H,CurrRate_EDC_L)),"") ->  | L53: =IFERROR(IF(AND(Inputs!$G$29="No", Lists!H10="N"),Inputs!$J$43*IF(Inputs!$E$43="High Demand",CurrRate_EDC_H,CurrRate_EDC_L),Inputs!$J$82*IF(Inputs!$E$43="High Demand",CurrRate_EDC_H,CurrRate_EDC_L)),"") ->  | M53: =IFERROR(IF(AND(Inputs!$G$29="No", Lists!H10="N"),Inputs!$J$44*IF(Inputs!$E$44="High Demand",CurrRate_EDC_H,CurrRate_EDC_L),Inputs!$J$83*IF(Inputs!$E$44="High Demand",CurrRate_EDC_H,CurrRate_EDC_L)),"") ->  | N53: =IFERROR(IF(AND(Inputs!$G$29="No", Lists!H10="N"),Inputs!$J$45*IF(Inputs!$E$45="High Demand",CurrRate_EDC_H,CurrRate_EDC_L),Inputs!$J$84*IF(Inputs!$E$45="High Demand",CurrRate_EDC_H,CurrRate_EDC_L)),"") ->  | O53: =IFERROR(IF(AND(Inputs!$G$29="No", Lists!H10="N"),Inputs!$J$46*IF(Inputs!$E$46="High Demand",CurrRate_EDC_H,CurrRate_EDC_L),Inputs!$J$85*IF(Inputs!$E$46="High Demand",CurrRate_EDC_H,CurrRate_EDC_L)),"") ->  | P53: =IFERROR(IF(AND(Inputs!$G$29="No", Lists!H10="N"),Inputs!$J$47*IF(Inputs!$E$47="High Demand",CurrRate_EDC_H,CurrRate_EDC_L),Inputs!$J$86*IF(Inputs!$E$47="High Demand",CurrRate_EDC_H,CurrRate_EDC_L)),"") ->  | Q53: =IF(E53 = "", "", SUM(E53:P53)) ->  | AC53: ='Bill Comparison'!G90 -> 0 | AD53: =IFERROR(Q53 - AC53, "") -> 
D54: % change | E54: =IFERROR((E52 - E53) / E53, "") -> 
C55: Energy - Block 1 | D55: =New_Period -> 2025/26 | E55: =IFERROR('Rates Table'!$AT$27*(IF(Inputs!$M$36 > Block_1_Upper, Block_1_Upper, Inputs!$M$36)),0)/100 -> 0 | F55: =IFERROR('Rates Table'!$AT$27*(IF(Inputs!$M$37 > Block_1_Upper, Block_1_Upper, Inputs!$M$37)),0)/100 -> 0 | G55: =IFERROR('Rates Table'!$AT$27*(IF(Inputs!$M$38 > Block_1_Upper, Block_1_Upper, Inputs!$M$38)),0)/100 -> 0 | H55: =IFERROR('Rates Table'!$AT$27*(IF(Inputs!$M$39 > Block_1_Upper, Block_1_Upper, Inputs!$M$39)),0)/100 -> 0 | I55: =IFERROR('Rates Table'!$AT$27*(IF(Inputs!$M$40 > Block_1_Upper, Block_1_Upper, Inputs!$M$40)),0)/100 -> 0 | J55: =IFERROR('Rates Table'!$AT$27*(IF(Inputs!$M$41 > Block_1_Upper, Block_1_Upper, Inputs!$M$41)),0)/100 -> 0 | K55: =IFERROR('Rates Table'!$AT$27*(IF(Inputs!$M$42 > Block_1_Upper, Block_1_Upper, Inputs!$M$42)),0)/100 -> 0 | L55: =IFERROR('Rates Table'!$AT$27*(IF(Inputs!$M$43 > Block_1_Upper, Block_1_Upper, Inputs!$M$43)),0)/100 -> 0 | M55: =IFERROR('Rates Table'!$AT$27*(IF(Inputs!$M$44 > Block_1_Upper, Block_1_Upper, Inputs!$M$44)),0)/100 -> 0 | N55: =IFERROR('Rates Table'!$AT$27*(IF(Inputs!$M$45 > Block_1_Upper, Block_1_Upper, Inputs!$M$45)),0)/100 -> 0 | O55: =IFERROR('Rates Table'!$AT$27*(IF(Inputs!$M$46 > Block_1_Upper, Block_1_Upper, Inputs!$M$46)),0)/100 -> 0 | P55: =IFERROR('Rates Table'!$AT$27*(IF(Inputs!$M$47 > Block_1_Upper, Block_1_Upper, Inputs!$M$47)),0)/100 -> 0 | Q55: =IF(E55 = "", "", SUM(E55:P55)) -> 0 | AD55: =IFERROR(Q55 - AC55, "") -> 0
D56: =Current_Period -> 2024/25 | E56: =IFERROR('Rates Table'!$E$27*(IF(Inputs!$M$36 > Block_1_Upper, Block_1_Upper, Inputs!$M$36)),0)/100 -> 0 | F56: =IFERROR('Rates Table'!$E$27*(IF(Inputs!$M$37 > Block_1_Upper, Block_1_Upper, Inputs!$M$37)),0)/100 -> 0 | G56: =IFERROR('Rates Table'!$E$27*(IF(Inputs!$M$38 > Block_1_Upper, Block_1_Upper, Inputs!$M$38)),0)/100 -> 0 | H56: =IFERROR('Rates Table'!$E$27*(IF(Inputs!$M$39 > Block_1_Upper, Block_1_Upper, Inputs!$M$39)),0)/100 -> 0 | I56: =IFERROR('Rates Table'!$E$27*(IF(Inputs!$M$40 > Block_1_Upper, Block_1_Upper, Inputs!$M$40)),0)/100 -> 0 | J56: =IFERROR('Rates Table'!$E$27*(IF(Inputs!$M$41 > Block_1_Upper, Block_1_Upper, Inputs!$M$41)),0)/100 -> 0 | K56: =IFERROR('Rates Table'!$E$27*(IF(Inputs!$M$42 > Block_1_Upper, Block_1_Upper, Inputs!$M$42)),0)/100 -> 0 | L56: =IFERROR('Rates Table'!$E$27*(IF(Inputs!$M$43 > Block_1_Upper, Block_1_Upper, Inputs!$M$43)),0)/100 -> 0 | M56: =IFERROR('Rates Table'!$E$27*(IF(Inputs!$M$44 > Block_1_Upper, Block_1_Upper, Inputs!$M$44)),0)/100 -> 0 | N56: =IFERROR('Rates Table'!$E$27*(IF(Inputs!$M$45 > Block_1_Upper, Block_1_Upper, Inputs!$M$45)),0)/100 -> 0 | O56: =IFERROR('Rates Table'!$E$27*(IF(Inputs!$M$46 > Block_1_Upper, Block_1_Upper, Inputs!$M$46)),0)/100 -> 0 | P56: =IFERROR('Rates Table'!$E$27*(IF(Inputs!$M$47 > Block_1_Upper, Block_1_Upper, Inputs!$M$47)),0)/100 -> 0 | Q56: =IF(E56 = "", "", SUM(E56:P56)) -> 0 | AD56: =IFERROR(Q56 - AC56, "") -> 0
D57: % change | E57: =IFERROR((E55 - E56) / E56, "") ->  | F57: =IFERROR((F55 - F56) / F56, "") ->  | Q57: =IFERROR((Q55 - Q56) / Q56, "") -> 
C58: Energy - Block 2 | D58: =New_Period -> 2025/26 | E58: =IFERROR('Rates Table'!$AT$28*(Inputs!$M$36-IF(Inputs!$M$36 > Block_1_Upper, Block_1_Upper, Inputs!$M$36)),0)/100 -> 0 | F58: =IFERROR('Rates Table'!$AT$28*(Inputs!$M$37-IF(Inputs!$M$37 > Block_1_Upper, Block_1_Upper, Inputs!$M$37)),0)/100 -> 0 | G58: =IFERROR('Rates Table'!$AT$28*(Inputs!$M$38-IF(Inputs!$M$38 > Block_1_Upper, Block_1_Upper, Inputs!$M$38)),0)/100 -> 0 | H58: =IFERROR('Rates Table'!$AT$28*(Inputs!$M$39-IF(Inputs!$M$39 > Block_1_Upper, Block_1_Upper, Inputs!$M$39)),0)/100 -> 0 | I58: =IFERROR('Rates Table'!$AT$28*(Inputs!$M$40-IF(Inputs!$M$40 > Block_1_Upper, Block_1_Upper, Inputs!$M$40)),0)/100 -> 0 | J58: =IFERROR('Rates Table'!$AT$28*(Inputs!$M$41-IF(Inputs!$M$41 > Block_1_Upper, Block_1_Upper, Inputs!$M$41)),0)/100 -> 0 | K58: =IFERROR('Rates Table'!$AT$28*(Inputs!$M$42-IF(Inputs!$M$42 > Block_1_Upper, Block_1_Upper, Inputs!$M$42)),0)/100 -> 0 | L58: =IFERROR('Rates Table'!$AT$28*(Inputs!$M$43-IF(Inputs!$M$43 > Block_1_Upper, Block_1_Upper, Inputs!$M$43)),0)/100 -> 0 | M58: =IFERROR('Rates Table'!$AT$28*(Inputs!$M$44-IF(Inputs!$M$44 > Block_1_Upper, Block_1_Upper, Inputs!$M$44)),0)/100 -> 0 | N58: =IFERROR('Rates Table'!$AT$28*(Inputs!$M$45-IF(Inputs!$M$45 > Block_1_Upper, Block_1_Upper, Inputs!$M$45)),0)/100 -> 0 | O58: =IFERROR('Rates Table'!$AT$28*(Inputs!$M$46-IF(Inputs!$M$46 > Block_1_Upper, Block_1_Upper, Inputs!$M$46)),0)/100 -> 0 | P58: =IFERROR('Rates Table'!$AT$28*(Inputs!$M$47-IF(Inputs!$M$47 > Block_1_Upper, Block_1_Upper, Inputs!$M$47)),0)/100 -> 0 | Q58: =IF(E58 = "", "", SUM(E58:P58)) -> 0
D59: =Current_Period -> 2024/25 | E59: =IFERROR('Rates Table'!$E$28*(Inputs!$M$36-IF(Inputs!$M$36 > Block_1_Upper, Block_1_Upper, Inputs!$M$36)),0)/100 -> 0 | F59: =IFERROR('Rates Table'!$E$28*(Inputs!$M$37-IF(Inputs!$M$37 > Block_1_Upper, Block_1_Upper, Inputs!$M$37)),0)/100 -> 0 | G59: =IFERROR('Rates Table'!$E$28*(Inputs!$M$38-IF(Inputs!$M$38 > Block_1_Upper, Block_1_Upper, Inputs!$M$38)),0)/100 -> 0 | H59: =IFERROR('Rates Table'!$E$28*(Inputs!$M$39-IF(Inputs!$M$39 > Block_1_Upper, Block_1_Upper, Inputs!$M$39)),0)/100 -> 0 | I59: =IFERROR('Rates Table'!$E$28*(Inputs!$M$40-IF(Inputs!$M$40 > Block_1_Upper, Block_1_Upper, Inputs!$M$40)),0)/100 -> 0 | J59: =IFERROR('Rates Table'!$E$28*(Inputs!$M$41-IF(Inputs!$M$41 > Block_1_Upper, Block_1_Upper, Inputs!$M$41)),0)/100 -> 0 | K59: =IFERROR('Rates Table'!$E$28*(Inputs!$M$42-IF(Inputs!$M$42 > Block_1_Upper, Block_1_Upper, Inputs!$M$42)),0)/100 -> 0 | L59: =IFERROR('Rates Table'!$E$28*(Inputs!$M$43-IF(Inputs!$M$43 > Block_1_Upper, Block_1_Upper, Inputs!$M$43)),0)/100 -> 0 | M59: =IFERROR('Rates Table'!$E$28*(Inputs!$M$44-IF(Inputs!$M$44 > Block_1_Upper, Block_1_Upper, Inputs!$M$44)),0)/100 -> 0 | N59: =IFERROR('Rates Table'!$E$28*(Inputs!$M$45-IF(Inputs!$M$45 > Block_1_Upper, Block_1_Upper, Inputs!$M$45)),0)/100 -> 0 | O59: =IFERROR('Rates Table'!$E$28*(Inputs!$M$46-IF(Inputs!$M$46 > Block_1_Upper, Block_1_Upper, Inputs!$M$46)),0)/100 -> 0 | P59: =IFERROR('Rates Table'!$E$28*(Inputs!$M$47-IF(Inputs!$M$47 > Block_1_Upper, Block_1_Upper, Inputs!$M$47)),0)/100 -> 0 | Q59: =IF(E59 = "", "", SUM(E59:P59)) -> 0
D60: % change | E60: =IFERROR((E58 - E59) / E59, "") ->  | F60: =IFERROR((F58 - F59) / F59, "") -> 
C61: Generation capacity charge | D61: =New_Period -> 2025/26 | E61: =IFERROR(IF(Inputs!$G$29="No", IF(AND('Rates Table'!AT68,$D$8<>"Transflex 1",$D$8<>"Transflex 2"), 'Rates Table'!$AT$30*Inputs!$K$36, 'Rates Table'!$AT$30*PODs*(TOU_High_Days + TOU_Low_Days)/12), IF(AND('Rates Table'!AT68,$D$8<>"Transflex 1",$D$8<>"Transflex 2"), 'Rates Table'!$AT$30*Inputs!$K$117, 'Rates Table'!$AT$30*PODs*(TOU_High_Days + TOU_Low_Days)/12)),0) -> 0 | F61: =IFERROR(IF(Inputs!$G$29="No", IF(AND('Rates Table'!AT68,$D$8<>"Transflex 1",$D$8<>"Transflex 2"), 'Rates Table'!$AT$30*Inputs!$K$37, 'Rates Table'!$AT$30*PODs*(TOU_High_Days + TOU_Low_Days)/12), IF(AND('Rates Table'!AT68,$D$8<>"Transflex 1",$D$8<>"Transflex 2"), 'Rates Table'!$AT$30*Inputs!$K$118, 'Rates Table'!$AT$30*PODs*(TOU_High_Days + TOU_Low_Days)/12)),0) -> 0 | G61: =IFERROR(IF(Inputs!$G$29="No", IF(AND('Rates Table'!AT68,$D$8<>"Transflex 1",$D$8<>"Transflex 2"), 'Rates Table'!$AT$30*Inputs!$K$38, 'Rates Table'!$AT$30*PODs*(TOU_High_Days + TOU_Low_Days)/12), IF(AND('Rates Table'!AT68,$D$8<>"Transflex 1",$D$8<>"Transflex 2"), 'Rates Table'!$AT$30*Inputs!$K$119, 'Rates Table'!$AT$30*PODs*(TOU_High_Days + TOU_Low_Days)/12)),0) -> 0 | H61: =IFERROR(IF(Inputs!$G$29="No", IF(AND('Rates Table'!AT68,$D$8<>"Transflex 1",$D$8<>"Transflex 2"), 'Rates Table'!$AT$30*Inputs!$K$39, 'Rates Table'!$AT$30*PODs*(TOU_High_Days + TOU_Low_Days)/12), IF(AND('Rates Table'!AT68,$D$8<>"Transflex 1",$D$8<>"Transflex 2"), 'Rates Table'!$AT$30*Inputs!$K$120, 'Rates Table'!$AT$30*PODs*(TOU_High_Days + TOU_Low_Days)/12)),0) -> 0 | I61: =IFERROR(IF(Inputs!$G$29="No", IF(AND('Rates Table'!AT68,$D$8<>"Transflex 1",$D$8<>"Transflex 2"), 'Rates Table'!$AT$30*Inputs!$K$40, 'Rates Table'!$AT$30*PODs*(TOU_High_Days + TOU_Low_Days)/12), IF(AND('Rates Table'!AT68,$D$8<>"Transflex 1",$D$8<>"Transflex 2"), 'Rates Table'!$AT$30*Inputs!$K$121, 'Rates Table'!$AT$30*PODs*(TOU_High_Days + TOU_Low_Days)/12)),0) -> 0 | J61: =IFERROR(IF(Inputs!$G$29="No", IF(AND('Rates Table'!AT68,$D$8<>"Transflex 1",$D$8<>"Transflex 2"), 'Rates Table'!$AT$30*Inputs!$K$41, 'Rates Table'!$AT$30*PODs*(TOU_High_Days + TOU_Low_Days)/12), IF(AND('Rates Table'!AT68,$D$8<>"Transflex 1",$D$8<>"Transflex 2"), 'Rates Table'!$AT$30*Inputs!$K$122, 'Rates Table'!$AT$30*PODs*(TOU_High_Days + TOU_Low_Days)/12)),0) -> 0 | K61: =IFERROR(IF(Inputs!$G$29="No", IF(AND('Rates Table'!AT68,$D$8<>"Transflex 1",$D$8<>"Transflex 2"), 'Rates Table'!$AT$30*Inputs!$K$42, 'Rates Table'!$AT$30*PODs*(TOU_High_Days + TOU_Low_Days)/12), IF(AND('Rates Table'!AT68,$D$8<>"Transflex 1",$D$8<>"Transflex 2"), 'Rates Table'!$AT$30*Inputs!$K$123, 'Rates Table'!$AT$30*PODs*(TOU_High_Days + TOU_Low_Days)/12)),0) -> 0 | L61: =IFERROR(IF(Inputs!$G$29="No", IF(AND('Rates Table'!AT68,$D$8<>"Transflex 1",$D$8<>"Transflex 2"), 'Rates Table'!$AT$30*Inputs!$K$43, 'Rates Table'!$AT$30*PODs*(TOU_High_Days + TOU_Low_Days)/12), IF(AND('Rates Table'!AT68,$D$8<>"Transflex 1",$D$8<>"Transflex 2"), 'Rates Table'!$AT$30*Inputs!$K$124, 'Rates Table'!$AT$30*PODs*(TOU_High_Days + TOU_Low_Days)/12)),0) -> 0 | M61: =IFERROR(IF(Inputs!$G$29="No", IF(AND('Rates Table'!AT68,$D$8<>"Transflex 1",$D$8<>"Transflex 2"), 'Rates Table'!$AT$30*Inputs!$K$44, 'Rates Table'!$AT$30*PODs*(TOU_High_Days + TOU_Low_Days)/12), IF(AND('Rates Table'!AT68,$D$8<>"Transflex 1",$D$8<>"Transflex 2"), 'Rates Table'!$AT$30*Inputs!$K$125, 'Rates Table'!$AT$30*PODs*(TOU_High_Days + TOU_Low_Days)/12)),0) -> 0 | N61: =IFERROR(IF(Inputs!$G$29="No", IF(AND('Rates Table'!AT68,$D$8<>"Transflex 1",$D$8<>"Transflex 2"), 'Rates Table'!$AT$30*Inputs!$K$45, 'Rates Table'!$AT$30*PODs*(TOU_High_Days + TOU_Low_Days)/12), IF(AND('Rates Table'!AT68,$D$8<>"Transflex 1",$D$8<>"Transflex 2"), 'Rates Table'!$AT$30*Inputs!$K$126, 'Rates Table'!$AT$30*PODs*(TOU_High_Days + TOU_Low_Days)/12)),0) -> 0 | O61: =IFERROR(IF(Inputs!$G$29="No", IF(AND('Rates Table'!AT68,$D$8<>"Transflex 1",$D$8<>"Transflex 2"), 'Rates Table'!$AT$30*Inputs!$K$46, 'Rates Table'!$AT$30*PODs*(TOU_High_Days + TOU_Low_Days)/12), IF(AND('Rates Table'!AT68,$D$8<>"Transflex 1",$D$8<>"Transflex 2"), 'Rates Table'!$AT$30*Inputs!$K$127, 'Rates Table'!$AT$30*PODs*(TOU_High_Days + TOU_Low_Days)/12)),0) -> 0 | P61: =IFERROR(IF(Inputs!$G$29="No", IF(AND('Rates Table'!AT68,$D$8<>"Transflex 1",$D$8<>"Transflex 2"), 'Rates Table'!$AT$30*Inputs!$K$47, 'Rates Table'!$AT$30*PODs*(TOU_High_Days + TOU_Low_Days)/12), IF(AND('Rates Table'!AT68,$D$8<>"Transflex 1",$D$8<>"Transflex 2"), 'Rates Table'!$AT$30*Inputs!$K$128, 'Rates Table'!$AT$30*PODs*(TOU_High_Days + TOU_Low_Days)/12)),0) -> 0 | Q61: =SUM(E61:P61) -> 0 | AC61: ='Bill Comparison'!H92 -> 0 | AD61: =IFERROR(Q61 - AC61, "") -> 0
D62: =Current_Period -> 2024/25 | E62: =IFERROR(IF(Inputs!$G$29="No", IF(AND(Table_1=1,'Rates Table'!E2<>"Transflex 1",'Rates Table'!E2<>"Transflex 2"), 'Rates Table'!$E$30*Inputs!$K$36, 'Rates Table'!$E$30*PODs*(TOU_High_Days + TOU_Low_Days)/12), IF(AND(Table_1=1,'Rates Table'!E2<>"Transflex 1",'Rates Table'!E2<>"Transflex 2"), 'Rates Table'!$E$30*Inputs!$K$75, 'Rates Table'!$E$30*PODs*(TOU_High_Days + TOU_Low_Days)/12)),0) -> 0 | F62: =IFERROR(IF(Inputs!$G$29="No", IF(AND(Table_1=1,'Rates Table'!E2<>"Transflex 1",'Rates Table'!E2<>"Transflex 2"), 'Rates Table'!$E$30*Inputs!$K$37, 'Rates Table'!$E$30*PODs*(TOU_High_Days + TOU_Low_Days)/12), IF(AND(Table_1=1,'Rates Table'!E2<>"Transflex 1",'Rates Table'!E2<>"Transflex 2"), 'Rates Table'!$E$30*Inputs!$K$76, 'Rates Table'!$E$30*PODs*(TOU_High_Days + TOU_Low_Days)/12)),0) -> 0 | G62: =IFERROR(IF(Inputs!$G$29="No", IF(AND(Table_1=1,'Rates Table'!E2<>"Transflex 1",'Rates Table'!E2<>"Transflex 2"), 'Rates Table'!$E$30*Inputs!$K$38, 'Rates Table'!$E$30*PODs*(TOU_High_Days + TOU_Low_Days)/12), IF(AND(Table_1=1,'Rates Table'!E2<>"Transflex 1",'Rates Table'!E2<>"Transflex 2"), 'Rates Table'!$E$30*Inputs!$K$77, 'Rates Table'!$E$30*PODs*(TOU_High_Days + TOU_Low_Days)/12)),0) -> 0 | H62: =IFERROR(IF(Inputs!$G$29="No", IF(AND(Table_1=1,'Rates Table'!E2<>"Transflex 1",'Rates Table'!E2<>"Transflex 2"), 'Rates Table'!$E$30*Inputs!$K$39, 'Rates Table'!$E$30*PODs*(TOU_High_Days + TOU_Low_Days)/12), IF(AND(Table_1=1,'Rates Table'!E2<>"Transflex 1",'Rates Table'!E2<>"Transflex 2"), 'Rates Table'!$E$30*Inputs!$K$78, 'Rates Table'!$E$30*PODs*(TOU_High_Days + TOU_Low_Days)/12)),0) -> 0 | I62: =IFERROR(IF(Inputs!$G$29="No", IF(AND(Table_1=1,'Rates Table'!E2<>"Transflex 1",'Rates Table'!E2<>"Transflex 2"), 'Rates Table'!$E$30*Inputs!$K$40, 'Rates Table'!$E$30*PODs*(TOU_High_Days + TOU_Low_Days)/12), IF(AND(Table_1=1,'Rates Table'!E2<>"Transflex 1",'Rates Table'!E2<>"Transflex 2"), 'Rates Table'!$E$30*Inputs!$K$79, 'Rates Table'!$E$30*PODs*(TOU_High_Days + TOU_Low_Days)/12)),0) -> 0 | J62: =IFERROR(IF(Inputs!$G$29="No", IF(AND(Table_1=1,'Rates Table'!E2<>"Transflex 1",'Rates Table'!E2<>"Transflex 2"), 'Rates Table'!$E$30*Inputs!$K$41, 'Rates Table'!$E$30*PODs*(TOU_High_Days + TOU_Low_Days)/12), IF(AND(Table_1=1,'Rates Table'!E2<>"Transflex 1",'Rates Table'!E2<>"Transflex 2"), 'Rates Table'!$E$30*Inputs!$K$80, 'Rates Table'!$E$30*PODs*(TOU_High_Days + TOU_Low_Days)/12)),0) -> 0 | K62: =IFERROR(IF(Inputs!$G$29="No", IF(AND(Table_1=1,'Rates Table'!E2<>"Transflex 1",'Rates Table'!E2<>"Transflex 2"), 'Rates Table'!$E$30*Inputs!$K$42, 'Rates Table'!$E$30*PODs*(TOU_High_Days + TOU_Low_Days)/12), IF(AND(Table_1=1,'Rates Table'!E2<>"Transflex 1",'Rates Table'!E2<>"Transflex 2"), 'Rates Table'!$E$30*Inputs!$K$81, 'Rates Table'!$E$30*PODs*(TOU_High_Days + TOU_Low_Days)/12)),0) -> 0 | L62: =IFERROR(IF(Inputs!$G$29="No", IF(AND(Table_1=1,'Rates Table'!E2<>"Transflex 1",'Rates Table'!E2<>"Transflex 2"), 'Rates Table'!$E$30*Inputs!$K$43, 'Rates Table'!$E$30*PODs*(TOU_High_Days + TOU_Low_Days)/12), IF(AND(Table_1=1,'Rates Table'!E2<>"Transflex 1",'Rates Table'!E2<>"Transflex 2"), 'Rates Table'!$E$30*Inputs!$K$82, 'Rates Table'!$E$30*PODs*(TOU_High_Days + TOU_Low_Days)/12)),0) -> 0 | M62: =IFERROR(IF(Inputs!$G$29="No", IF(AND(Table_1=1,'Rates Table'!E2<>"Transflex 1",'Rates Table'!E2<>"Transflex 2"), 'Rates Table'!$E$30*Inputs!$K$44, 'Rates Table'!$E$30*PODs*(TOU_High_Days + TOU_Low_Days)/12), IF(AND(Table_1=1,'Rates Table'!E2<>"Transflex 1",'Rates Table'!E2<>"Transflex 2"), 'Rates Table'!$E$30*Inputs!$K$83, 'Rates Table'!$E$30*PODs*(TOU_High_Days + TOU_Low_Days)/12)),0) -> 0 | N62: =IFERROR(IF(Inputs!$G$29="No", IF(AND(Table_1=1,'Rates Table'!E2<>"Transflex 1",'Rates Table'!E2<>"Transflex 2"), 'Rates Table'!$E$30*Inputs!$K$45, 'Rates Table'!$E$30*PODs*(TOU_High_Days + TOU_Low_Days)/12), IF(AND(Table_1=1,'Rates Table'!E2<>"Transflex 1",'Rates Table'!E2<>"Transflex 2"), 'Rates Table'!$E$30*Inputs!$K$84, 'Rates Table'!$E$30*PODs*(TOU_High_Days + TOU_Low_Days)/12)),0) -> 0 | O62: =IFERROR(IF(Inputs!$G$29="No", IF(AND(Table_1=1,'Rates Table'!E2<>"Transflex 1",'Rates Table'!E2<>"Transflex 2"), 'Rates Table'!$E$30*Inputs!$K$46, 'Rates Table'!$E$30*PODs*(TOU_High_Days + TOU_Low_Days)/12), IF(AND(Table_1=1,'Rates Table'!E2<>"Transflex 1",'Rates Table'!E2<>"Transflex 2"), 'Rates Table'!$E$30*Inputs!$K$85, 'Rates Table'!$E$30*PODs*(TOU_High_Days + TOU_Low_Days)/12)),0) -> 0 | P62: =IFERROR(IF(Inputs!$G$29="No", IF(AND(Table_1=1,'Rates Table'!E2<>"Transflex 1",'Rates Table'!E2<>"Transflex 2"), 'Rates Table'!$E$30*Inputs!$K$47, 'Rates Table'!$E$30*PODs*(TOU_High_Days + TOU_Low_Days)/12), IF(AND(Table_1=1,'Rates Table'!E2<>"Transflex 1",'Rates Table'!E2<>"Transflex 2"), 'Rates Table'!$E$30*Inputs!$K$86, 'Rates Table'!$E$30*PODs*(TOU_High_Days + TOU_Low_Days)/12)),0) -> 0 | Q62: =SUM(E62:P62) -> 0 | AC62: ='Bill Comparison'!G92 -> 0 | AD62: =IFERROR(Q62 - AC62, "") -> 0
D63: % change | E63: =IFERROR((E61 - E62) / E62, "") ->  | F63: =IFERROR((F61 - F62) / F62, "") -> 
C64: Legacy charge | D64: =New_Period -> 2025/26 | E64: =IFERROR( 'Rates Table'!$AT$31*IF(Inputs!$G$29="No", Inputs!$M$36,Inputs!$M$117), 0)/100 -> 0 | F64: =IFERROR( 'Rates Table'!$AT$31*IF(Inputs!$G$29="No", Inputs!$M$37,Inputs!$M$118), 0)/100 -> 0 | G64: =IFERROR( 'Rates Table'!$AT$31*IF(Inputs!$G$29="No", Inputs!$M$38,Inputs!$M$119), 0)/100 -> 0 | H64: =IFERROR( 'Rates Table'!$AT$31*IF(Inputs!$G$29="No", Inputs!$M$39,Inputs!$M$120), 0)/100 -> 0 | I64: =IFERROR( 'Rates Table'!$AT$31*IF(Inputs!$G$29="No", Inputs!$M$40,Inputs!$M$121), 0)/100 -> 0 | J64: =IFERROR( 'Rates Table'!$AT$31*IF(Inputs!$G$29="No", Inputs!$M$41,Inputs!$M$122), 0)/100 -> 0 | K64: =IFERROR( 'Rates Table'!$AT$31*IF(Inputs!$G$29="No", Inputs!$M$42,Inputs!$M$123), 0)/100 -> 0 | L64: =IFERROR( 'Rates Table'!$AT$31*IF(Inputs!$G$29="No", Inputs!$M$43,Inputs!$M$124), 0)/100 -> 0 | M64: =IFERROR( 'Rates Table'!$AT$31*IF(Inputs!$G$29="No", Inputs!$M$44,Inputs!$M$125), 0)/100 -> 0 | N64: =IFERROR( 'Rates Table'!$AT$31*IF(Inputs!$G$29="No", Inputs!$M$45,Inputs!$M$126), 0)/100 -> 0 | O64: =IFERROR( 'Rates Table'!$AT$31*IF(Inputs!$G$29="No", Inputs!$M$46,Inputs!$M$127), 0)/100 -> 0 | P64: =IFERROR( 'Rates Table'!$AT$31*IF(Inputs!$G$29="No", Inputs!$M$47,Inputs!$M$128), 0)/100 -> 0 | Q64: =SUM(E64:P64) -> 0 | AC64: ='Bill Comparison'!H93 -> 0 | AD64: =IFERROR(Q64 - AC64, "") -> 0
D65: =Current_Period -> 2024/25 | E65: =IFERROR('Rates Table'!$E$31*IF(Inputs!$G$29="No", Inputs!$M$36,Inputs!$M$75),0)/100 -> 0 | F65: =IFERROR('Rates Table'!$E$31*IF(Inputs!$G$29="No", Inputs!$M$37,Inputs!$M$76),0)/100 -> 0 | G65: =IFERROR('Rates Table'!$E$31*IF(Inputs!$G$29="No", Inputs!$M$38,Inputs!$M$77),0)/100 -> 0 | H65: =IFERROR('Rates Table'!$E$31*IF(Inputs!$G$29="No", Inputs!$M$39,Inputs!$M$78),0)/100 -> 0 | I65: =IFERROR('Rates Table'!$E$31*IF(Inputs!$G$29="No", Inputs!$M$40,Inputs!$M$79),0)/100 -> 0 | J65: =IFERROR('Rates Table'!$E$31*IF(Inputs!$G$29="No", Inputs!$M$41,Inputs!$M$80),0)/100 -> 0 | K65: =IFERROR('Rates Table'!$E$31*IF(Inputs!$G$29="No", Inputs!$M$42,Inputs!$M$81),0)/100 -> 0 | L65: =IFERROR('Rates Table'!$E$31*IF(Inputs!$G$29="No", Inputs!$M$43,Inputs!$M$82),0)/100 -> 0 | M65: =IFERROR('Rates Table'!$E$31*IF(Inputs!$G$29="No", Inputs!$M$44,Inputs!$M$83),0)/100 -> 0 | N65: =IFERROR('Rates Table'!$E$31*IF(Inputs!$G$29="No", Inputs!$M$45,Inputs!$M$84),0)/100 -> 0 | O65: =IFERROR('Rates Table'!$E$31*IF(Inputs!$G$29="No", Inputs!$M$46,Inputs!$M$85),0)/100 -> 0 | P65: =IFERROR('Rates Table'!$E$31*IF(Inputs!$G$29="No", Inputs!$M$47,Inputs!$M$86),0)/100 -> 0 | Q65: =SUM(E65:P65) -> 0 | AC65: ='Bill Comparison'!G93 -> 0 | AD65: =IFERROR(Q65 - AC65, "") -> 0
D66: % change | E66: =IFERROR((E64 - E65) / E65, "") ->  | F66: =IFERROR((F64 - F65) / F65, "") -> 
C67: Total energy charges | D67: =New_Period -> 2025/26 | E67: =SUM(E40,E43,E46,E49,E52,E55,E58,E61,E64) -> 0 | F67: =SUM(F40,F43,F46,F49,F52,F55,F58,F61,F64) -> 0 | G67: 0 | H67: 0 | I67: 0 | J67: 0 | K67: 0 | L67: 0 | M67: 0 | N67: 0 | O67: 0 | P67: 0 | Q67: =IF(E67 = "", "", SUM(E67:P67)) -> 0 | AC67: ='Bill Comparison'!H94 -> 0 | AD67: =IFERROR(Q67 - AC67, "") -> 0
D68: =Current_Period -> 2024/25 | E68: =SUM(E41,E44,E47,E50,E53,E56,E59,E62,E65) -> 0 | F68: =SUM(F41,F44,F47,F50,F53,F56,F59,F62,F65) -> 0 | G68: 0 | H68: 0 | I68: 0 | J68: 0 | K68: 0 | L68: 0 | M68: 0 | N68: 0 | O68: 0 | P68: 0 | Q68: =IF(E68 = "", "", SUM(E68:P68)) -> 0 | AC68: ='Bill Comparison'!G94 -> 0 | AD68: =IFERROR(Q68 - AC68, "") -> 0
D69: % change | E69: =IFERROR((E67 - E68) / E68, "") -> 
B71: Other charges | E71: =E$13 -> 2025-04-30 | F71: =F$13 -> 2025-05-31 | G71: 2025-06-30 | H71: 2025-07-31 | I71: 2025-08-31 | J71: 2025-09-30 | K71: 2025-10-31 | L71: 2025-11-30 | M71: 2025-12-31 | N71: 2026-01-31 | O71: 2026-02-28 | P71: 2026-03-31 | Q71: Total
C72: Ancillary service charge | D72: =New_Period -> 2025/26 | E72: =IFERROR( 'Rates Table'!$AT$52*IF(Inputs!$G$29="No", Inputs!$M$36,Inputs!$M$117), 0)/100 -> 0 | F72: =IFERROR( 'Rates Table'!$AT$52*IF(Inputs!$G$29="No", Inputs!$M$37,Inputs!$M$118), 0)/100 -> 0 | G72: =IFERROR( 'Rates Table'!$AT$52*IF(Inputs!$G$29="No", Inputs!$M$38,Inputs!$M$119), 0)/100 -> 0 | H72: =IFERROR( 'Rates Table'!$AT$52*IF(Inputs!$G$29="No", Inputs!$M$39,Inputs!$M$120), 0)/100 -> 0 | I72: =IFERROR( 'Rates Table'!$AT$52*IF(Inputs!$G$29="No", Inputs!$M$40,Inputs!$M$121), 0)/100 -> 0 | J72: =IFERROR( 'Rates Table'!$AT$52*IF(Inputs!$G$29="No", Inputs!$M$41,Inputs!$M$122), 0)/100 -> 0 | K72: =IFERROR( 'Rates Table'!$AT$52*IF(Inputs!$G$29="No", Inputs!$M$42,Inputs!$M$123), 0)/100 -> 0 | L72: =IFERROR( 'Rates Table'!$AT$52*IF(Inputs!$G$29="No", Inputs!$M$43,Inputs!$M$124), 0)/100 -> 0 | M72: =IFERROR( 'Rates Table'!$AT$52*IF(Inputs!$G$29="No", Inputs!$M$44,Inputs!$M$125), 0)/100 -> 0 | N72: =IFERROR( 'Rates Table'!$AT$52*IF(Inputs!$G$29="No", Inputs!$M$45,Inputs!$M$126), 0)/100 -> 0 | O72: =IFERROR( 'Rates Table'!$AT$52*IF(Inputs!$G$29="No", Inputs!$M$46,Inputs!$M$127), 0)/100 -> 0 | P72: =IFERROR( 'Rates Table'!$AT$52*IF(Inputs!$G$29="No", Inputs!$M$47,Inputs!$M$128), 0)/100 -> 0 | Q72: =SUM(E72:P72) -> 0 | AC72: ='Bill Comparison'!H98 -> 0 | AD72: =IFERROR(Q72 - AC72, "") -> 0
D73: =Current_Period -> 2024/25 | E73: =IFERROR('Rates Table'!$E$52*IF(Inputs!$G$29="No", Inputs!$M$36,Inputs!$M$75),0)/100 -> 0 | F73: =IFERROR('Rates Table'!$E$52*IF(Inputs!$G$29="No", Inputs!$M$37,Inputs!$M$76),0)/100 -> 0 | G73: =IFERROR('Rates Table'!$E$52*IF(Inputs!$G$29="No", Inputs!$M$38,Inputs!$M$77),0)/100 -> 0 | H73: =IFERROR('Rates Table'!$E$52*IF(Inputs!$G$29="No", Inputs!$M$39,Inputs!$M$78),0)/100 -> 0 | I73: =IFERROR('Rates Table'!$E$52*IF(Inputs!$G$29="No", Inputs!$M$40,Inputs!$M$79),0)/100 -> 0 | J73: =IFERROR('Rates Table'!$E$52*IF(Inputs!$G$29="No", Inputs!$M$41,Inputs!$M$80),0)/100 -> 0 | K73: =IFERROR('Rates Table'!$E$52*IF(Inputs!$G$29="No", Inputs!$M$42,Inputs!$M$81),0)/100 -> 0 | L73: =IFERROR('Rates Table'!$E$52*IF(Inputs!$G$29="No", Inputs!$M$43,Inputs!$M$82),0)/100 -> 0 | M73: =IFERROR('Rates Table'!$E$52*IF(Inputs!$G$29="No", Inputs!$M$44,Inputs!$M$83),0)/100 -> 0 | N73: =IFERROR('Rates Table'!$E$52*IF(Inputs!$G$29="No", Inputs!$M$45,Inputs!$M$84),0)/100 -> 0 | O73: =IFERROR('Rates Table'!$E$52*IF(Inputs!$G$29="No", Inputs!$M$46,Inputs!$M$85),0)/100 -> 0 | P73: =IFERROR('Rates Table'!$E$52*IF(Inputs!$G$29="No", Inputs!$M$47,Inputs!$M$86),0)/100 -> 0 | Q73: =SUM(E73:P73) -> 0 | AC73: ='Bill Comparison'!G98 -> 0 | AD73: =IFERROR(Q73 - AC73, "") -> 0
D74: % change | E74: =IFERROR((E72 - E73) / E73, "") -> 
C75: Reactive energy charge | D75: =New_Period -> 2025/26 | E75: =IFERROR(IF(OR(Inputs!$E$36="High Demand", $D$8= "Transflex 1",$D$8= "Transflex 2"), 'Rates Table'!$AT$53*IF(Inputs!$G$29="No",Inputs!$L$36,Inputs!$L$117)/100, ""),0) ->  | F75: =IFERROR(IF(OR(Inputs!$E$37="High Demand", $D$8= "Transflex 1",$D$8= "Transflex 2"), 'Rates Table'!$AT$53*IF(Inputs!$G$29="No",Inputs!$L$37,Inputs!$L$118)/100, ""),0) ->  | G75: =IFERROR(IF(OR(Inputs!$E$38="High Demand", $D$8= "Transflex 1",$D$8= "Transflex 2"), 'Rates Table'!$AT$53*IF(Inputs!$G$29="No",Inputs!$L$38,Inputs!$L$119)/100, ""),0) -> 0 | H75: =IFERROR(IF(OR(Inputs!$E$39="High Demand", $D$8= "Transflex 1",$D$8= "Transflex 2"), 'Rates Table'!$AT$53*IF(Inputs!$G$29="No",Inputs!$L$39,Inputs!$L$120)/100, ""),0) -> 0 | I75: =IFERROR(IF(OR(Inputs!$E$40="High Demand", $D$8= "Transflex 1",$D$8= "Transflex 2"), 'Rates Table'!$AT$53*IF(Inputs!$G$29="No",Inputs!$L$39,Inputs!$L$121)/100, ""),0) -> 0 | J75: =IFERROR(IF(OR(Inputs!$E$41="High Demand", $D$8= "Transflex 1",$D$8= "Transflex 2"), 'Rates Table'!$AT$53*IF(Inputs!$G$29="No",Inputs!$L$41,Inputs!$L$122)/100, ""),0) ->  | K75: =IFERROR(IF(OR(Inputs!$E$42="High Demand", $D$8= "Transflex 1",$D$8= "Transflex 2"), 'Rates Table'!$AT$53*IF(Inputs!$G$29="No",Inputs!$L$42,Inputs!$L$123)/100, ""),0) ->  | L75: =IFERROR(IF(OR(Inputs!$E$43="High Demand", $D$8= "Transflex 1",$D$8= "Transflex 2"), 'Rates Table'!$AT$53*IF(Inputs!$G$29="No",Inputs!$L$43,Inputs!$L$124)/100, ""),0) ->  | M75: =IFERROR(IF(OR(Inputs!$E$44="High Demand", $D$8= "Transflex 1",$D$8= "Transflex 2"), 'Rates Table'!$AT$53*IF(Inputs!$G$29="No",Inputs!$L$44,Inputs!$L$125)/100, ""),0) ->  | N75: =IFERROR(IF(OR(Inputs!$E$45="High Demand", $D$8= "Transflex 1",$D$8= "Transflex 2"), 'Rates Table'!$AT$53*IF(Inputs!$G$29="No",Inputs!$L$45,Inputs!$L$126)/100, ""),0) ->  | O75: =IFERROR(IF(OR(Inputs!$E$46="High Demand", $D$8= "Transflex 1",$D$8= "Transflex 2"), 'Rates Table'!$AT$53*IF(Inputs!$G$29="No",Inputs!$L$46,Inputs!$L$127)/100, ""),0) ->  | P75: =IFERROR(IF(OR(Inputs!$E$47="High Demand", $D$8= "Transflex 1",$D$8= "Transflex 2"), 'Rates Table'!$AT$53*IF(Inputs!$G$29="No",Inputs!$L$47,Inputs!$L$128)/100, ""),0) ->  | Q75: =SUM(E75:P75) -> 0 | AC75: ='Bill Comparison'!H99 -> 0 | AD75: =IFERROR(Q75 - AC75, "") -> 0
D76: =Current_Period -> 2024/25 | E76: =IFERROR(IF(OR(Inputs!$E$36="High Demand", 'Rates Table'!E2= "Transflex 1",'Rates Table'!E2= "Transflex 2"), 'Rates Table'!$E$53*IF(Inputs!$G$29="No",Inputs!$L$36,Inputs!$L$75)/100, ""),0) ->  | F76: =IFERROR(IF(OR(Inputs!$E$37="High Demand", 'Rates Table'!E2= "Transflex 1",'Rates Table'!E2= "Transflex 2"), 'Rates Table'!$E$53*IF(Inputs!$G$29="No",Inputs!$L$37,Inputs!$L$76)/100, ""),0) ->  | G76: =IFERROR(IF(OR(Inputs!$E$38="High Demand", 'Rates Table'!E2= "Transflex 1",'Rates Table'!E2= "Transflex 2"), 'Rates Table'!$E$53*IF(Inputs!$G$29="No",Inputs!$L$38,Inputs!$L$77)/100, ""),0) -> 0 | H76: =IFERROR(IF(OR(Inputs!$E$39="High Demand", 'Rates Table'!E2= "Transflex 1",'Rates Table'!E2= "Transflex 2"), 'Rates Table'!$E$53*IF(Inputs!$G$29="No",Inputs!$L$39,Inputs!$L$78)/100, ""),0) -> 0 | I76: =IFERROR(IF(OR(Inputs!$E$40="High Demand", 'Rates Table'!E2= "Transflex 1",'Rates Table'!E2= "Transflex 2"), 'Rates Table'!$E$53*IF(Inputs!$G$29="No",Inputs!$L$40,Inputs!$L$79)/100, ""),0) -> 0 | J76: =IFERROR(IF(OR(Inputs!$E$41="High Demand", 'Rates Table'!E2= "Transflex 1",'Rates Table'!E2= "Transflex 2"), 'Rates Table'!$E$53*IF(Inputs!$G$29="No",Inputs!$L$41,Inputs!$L$80)/100, ""),0) ->  | K76: =IFERROR(IF(OR(Inputs!$E$42="High Demand", 'Rates Table'!E2= "Transflex 1",'Rates Table'!E2= "Transflex 2"), 'Rates Table'!$E$53*IF(Inputs!$G$29="No",Inputs!$L$42,Inputs!$L$81)/100, ""),0) ->  | L76: =IFERROR(IF(OR(Inputs!$E$43="High Demand", 'Rates Table'!E2= "Transflex 1",'Rates Table'!E2= "Transflex 2"), 'Rates Table'!$E$53*IF(Inputs!$G$29="No",Inputs!$L$43,Inputs!$L$82)/100, ""),0) ->  | M76: =IFERROR(IF(OR(Inputs!$E$44="High Demand", 'Rates Table'!E2= "Transflex 1",'Rates Table'!E2= "Transflex 2"), 'Rates Table'!$E$53*IF(Inputs!$G$29="No",Inputs!$L$44,Inputs!$L$83)/100, ""),0) ->  | N76: =IFERROR(IF(OR(Inputs!$E$45="High Demand", 'Rates Table'!E2= "Transflex 1",'Rates Table'!E2= "Transflex 2"), 'Rates Table'!$E$53*IF(Inputs!$G$29="No",Inputs!$L$45,Inputs!$L$84)/100, ""),0) ->  | O76: =IFERROR(IF(OR(Inputs!$E$46="High Demand", 'Rates Table'!E2= "Transflex 1",'Rates Table'!E2= "Transflex 2"), 'Rates Table'!$E$53*IF(Inputs!$G$29="No",Inputs!$L$46,Inputs!$L$85)/100, ""),0) ->  | P76: =IFERROR(IF(OR(Inputs!$E$47="High Demand", 'Rates Table'!E2= "Transflex 1",'Rates Table'!E2= "Transflex 2"), 'Rates Table'!$E$53*IF(Inputs!$G$29="No",Inputs!$L$47,Inputs!$L$86)/100, ""),0) ->  | Q76: =SUM(E76:P76) -> 0 | AC76: ='Bill Comparison'!G99 -> 0 | AD76: =IFERROR(Q76 - AC76, "") -> 0
D77: % change | E77: =IFERROR((E75 - E76) / E76, "") -> 
C78: Electrification and rural subsidy charge | D78: =New_Period -> 2025/26 | E78: =IFERROR( 'Rates Table'!$AT$54*IF(Inputs!$G$29="No", Inputs!$M$36,Inputs!$M$117), 0)/100 -> 0 | F78: =IFERROR( 'Rates Table'!$AT$54*IF(Inputs!$G$29="No", Inputs!$M$37,Inputs!$M$118), 0)/100 -> 0 | G78: =IFERROR( 'Rates Table'!$AT$54*IF(Inputs!$G$29="No", Inputs!$M$38,Inputs!$M$119), 0)/100 -> 0 | H78: =IFERROR( 'Rates Table'!$AT$54*IF(Inputs!$G$29="No", Inputs!$M$39,Inputs!$M$120), 0)/100 -> 0 | I78: =IFERROR( 'Rates Table'!$AT$54*IF(Inputs!$G$29="No", Inputs!$M$40,Inputs!$M$121), 0)/100 -> 0 | J78: =IFERROR( 'Rates Table'!$AT$54*IF(Inputs!$G$29="No", Inputs!$M$41,Inputs!$M$122), 0)/100 -> 0 | K78: =IFERROR( 'Rates Table'!$AT$54*IF(Inputs!$G$29="No", Inputs!$M$42,Inputs!$M$123), 0)/100 -> 0 | L78: =IFERROR( 'Rates Table'!$AT$54*IF(Inputs!$G$29="No", Inputs!$M$43,Inputs!$M$124), 0)/100 -> 0 | M78: =IFERROR( 'Rates Table'!$AT$54*IF(Inputs!$G$29="No", Inputs!$M$44,Inputs!$M$125), 0)/100 -> 0 | N78: =IFERROR( 'Rates Table'!$AT$54*IF(Inputs!$G$29="No", Inputs!$M$45,Inputs!$M$126), 0)/100 -> 0 | O78: =IFERROR( 'Rates Table'!$AT$54*IF(Inputs!$G$29="No", Inputs!$M$46,Inputs!$M$127), 0)/100 -> 0 | P78: =IFERROR( 'Rates Table'!$AT$54*IF(Inputs!$G$29="No", Inputs!$M$47,Inputs!$M$128), 0)/100 -> 0 | Q78: =SUM(E78:P78) -> 0 | AC78: ='Bill Comparison'!H100 -> 0 | AD78: =IFERROR(Q78 - AC78, "") -> 0
D79: =Current_Period -> 2024/25 | E79: =IFERROR('Rates Table'!$E$54*IF(Inputs!$G$29="No", Inputs!$M$36,Inputs!$M$75),0)/100 -> 0 | F79: =IFERROR('Rates Table'!$E$54*IF(Inputs!$G$29="No", Inputs!$M$37,Inputs!$M$76),0)/100 -> 0 | G79: =IFERROR('Rates Table'!$E$54*IF(Inputs!$G$29="No", Inputs!$M$38,Inputs!$M$77),0)/100 -> 0 | H79: =IFERROR('Rates Table'!$E$54*IF(Inputs!$G$29="No", Inputs!$M$39,Inputs!$M$78),0)/100 -> 0 | I79: =IFERROR('Rates Table'!$E$54*IF(Inputs!$G$29="No", Inputs!$M$40,Inputs!$M$79),0)/100 -> 0 | J79: =IFERROR('Rates Table'!$E$54*IF(Inputs!$G$29="No", Inputs!$M$41,Inputs!$M$80),0)/100 -> 0 | K79: =IFERROR('Rates Table'!$E$54*IF(Inputs!$G$29="No", Inputs!$M$42,Inputs!$M$81),0)/100 -> 0 | L79: =IFERROR('Rates Table'!$E$54*IF(Inputs!$G$29="No", Inputs!$M$43,Inputs!$M$82),0)/100 -> 0 | M79: =IFERROR('Rates Table'!$E$54*IF(Inputs!$G$29="No", Inputs!$M$44,Inputs!$M$83),0)/100 -> 0 | N79: =IFERROR('Rates Table'!$E$54*IF(Inputs!$G$29="No", Inputs!$M$45,Inputs!$M$84),0)/100 -> 0 | O79: =IFERROR('Rates Table'!$E$54*IF(Inputs!$G$29="No", Inputs!$M$46,Inputs!$M$85),0)/100 -> 0 | P79: =IFERROR('Rates Table'!$E$54*IF(Inputs!$G$29="No", Inputs!$M$47,Inputs!$M$86),0)/100 -> 0 | Q79: =SUM(E79:P79) -> 0 | AC79: ='Bill Comparison'!G100 -> 0 | AD79: =IFERROR(Q79 - AC79, "") -> 0
D80: % change | E80: =IFERROR((E78 - E79) / E79, "") -> 
C81: Affordability charge | D81: =New_Period -> 2025/26 | E81: =IFERROR( 'Rates Table'!$AT$55*IF(Inputs!$G$29="No", Inputs!$M$36,Inputs!$M$117), 0)/100 -> 0 | F81: =IFERROR( 'Rates Table'!$AT$55*IF(Inputs!$G$29="No", Inputs!$M$37,Inputs!$M$118), 0)/100 -> 0 | G81: =IFERROR( 'Rates Table'!$AT$55*IF(Inputs!$G$29="No", Inputs!$M$38,Inputs!$M$119), 0)/100 -> 0 | H81: =IFERROR( 'Rates Table'!$AT$55*IF(Inputs!$G$29="No", Inputs!$M$39,Inputs!$M$120), 0)/100 -> 0 | I81: =IFERROR( 'Rates Table'!$AT$55*IF(Inputs!$G$29="No", Inputs!$M$40,Inputs!$M$121), 0)/100 -> 0 | J81: =IFERROR( 'Rates Table'!$AT$55*IF(Inputs!$G$29="No", Inputs!$M$41,Inputs!$M$122), 0)/100 -> 0 | K81: =IFERROR( 'Rates Table'!$AT$55*IF(Inputs!$G$29="No", Inputs!$M$42,Inputs!$M$123), 0)/100 -> 0 | L81: =IFERROR( 'Rates Table'!$AT$55*IF(Inputs!$G$29="No", Inputs!$M$43,Inputs!$M$124), 0)/100 -> 0 | M81: =IFERROR( 'Rates Table'!$AT$55*IF(Inputs!$G$29="No", Inputs!$M$44,Inputs!$M$125), 0)/100 -> 0 | N81: =IFERROR( 'Rates Table'!$AT$55*IF(Inputs!$G$29="No", Inputs!$M$45,Inputs!$M$126), 0)/100 -> 0 | O81: =IFERROR( 'Rates Table'!$AT$55*IF(Inputs!$G$29="No", Inputs!$M$46,Inputs!$M$127), 0)/100 -> 0 | P81: =IFERROR( 'Rates Table'!$AT$55*IF(Inputs!$G$29="No", Inputs!$M$47,Inputs!$M$128), 0)/100 -> 0 | Q81: =SUM(E81:P81) -> 0 | AC81: ='Bill Comparison'!H101 -> 0 | AD81: =IFERROR(Q81 - AC81, "") -> 0
D82: =Current_Period -> 2024/25 | E82: =IFERROR('Rates Table'!$E$55*IF(Inputs!$G$29="No", Inputs!$M$36,Inputs!$M$75),0)/100 -> 0 | F82: =IFERROR('Rates Table'!$E$55*IF(Inputs!$G$29="No", Inputs!$M$37,Inputs!$M$76),0)/100 -> 0 | G82: =IFERROR('Rates Table'!$E$55*IF(Inputs!$G$29="No", Inputs!$M$38,Inputs!$M$77),0)/100 -> 0 | H82: =IFERROR('Rates Table'!$E$55*IF(Inputs!$G$29="No", Inputs!$M$39,Inputs!$M$78),0)/100 -> 0 | I82: =IFERROR('Rates Table'!$E$55*IF(Inputs!$G$29="No", Inputs!$M$40,Inputs!$M$79),0)/100 -> 0 | J82: =IFERROR('Rates Table'!$E$55*IF(Inputs!$G$29="No", Inputs!$M$41,Inputs!$M$80),0)/100 -> 0 | K82: =IFERROR('Rates Table'!$E$55*IF(Inputs!$G$29="No", Inputs!$M$42,Inputs!$M$81),0)/100 -> 0 | L82: =IFERROR('Rates Table'!$E$55*IF(Inputs!$G$29="No", Inputs!$M$43,Inputs!$M$82),0)/100 -> 0 | M82: =IFERROR('Rates Table'!$E$55*IF(Inputs!$G$29="No", Inputs!$M$44,Inputs!$M$83),0)/100 -> 0 | N82: =IFERROR('Rates Table'!$E$55*IF(Inputs!$G$29="No", Inputs!$M$45,Inputs!$M$84),0)/100 -> 0 | O82: =IFERROR('Rates Table'!$E$55*IF(Inputs!$G$29="No", Inputs!$M$46,Inputs!$M$85),0)/100 -> 0 | P82: =IFERROR('Rates Table'!$E$55*IF(Inputs!$G$29="No", Inputs!$M$47,Inputs!$M$86),0)/100 -> 0 | Q82: =SUM(E82:P82) -> 0 | AC82: ='Bill Comparison'!G101 -> 0 | AD82: =IFERROR(Q82 - AC82, "") -> 0
D83: % change | E83: =IFERROR((E81 - E82) / E82, "") -> 
C84: Administration charge | D84: =New_Period -> 2025/26 | E84: =IFERROR('Rates Table'!$AT$56*PODs*(TOU_High_Days + TOU_Low_Days)/12,0) -> 377.1666667 | F84: =IFERROR('Rates Table'!$AT$56*PODs*(TOU_High_Days + TOU_Low_Days)/12,0) -> 377.1666667 | G84: =IFERROR('Rates Table'!$AT$56*PODs*(TOU_High_Days + TOU_Low_Days)/12,0) -> 377.1666667 | H84: =IFERROR('Rates Table'!$AT$56*PODs*(TOU_High_Days + TOU_Low_Days)/12,0) -> 377.1666667 | I84: =IFERROR('Rates Table'!$AT$56*PODs*(TOU_High_Days + TOU_Low_Days)/12,0) -> 377.1666667 | J84: =IFERROR('Rates Table'!$AT$56*PODs*(TOU_High_Days + TOU_Low_Days)/12,0) -> 377.1666667 | K84: =IFERROR('Rates Table'!$AT$56*PODs*(TOU_High_Days + TOU_Low_Days)/12,0) -> 377.1666667 | L84: =IFERROR('Rates Table'!$AT$56*PODs*(TOU_High_Days + TOU_Low_Days)/12,0) -> 377.1666667 | M84: =IFERROR('Rates Table'!$AT$56*PODs*(TOU_High_Days + TOU_Low_Days)/12,0) -> 377.1666667 | N84: =IFERROR('Rates Table'!$AT$56*PODs*(TOU_High_Days + TOU_Low_Days)/12,0) -> 377.1666667 | O84: =IFERROR('Rates Table'!$AT$56*PODs*(TOU_High_Days + TOU_Low_Days)/12,0) -> 377.1666667 | P84: =IFERROR('Rates Table'!$AT$56*PODs*(TOU_High_Days + TOU_Low_Days)/12,0) -> 377.1666667 | Q84: =SUM(E84:P84) -> 4526 | AC84: ='Bill Comparison'!H102 -> 4526 | AD84: =IFERROR(Q84 - AC84, "") -> 0
D85: =Current_Period -> 2024/25 | E85: =IFERROR('Rates Table'!$E$56*PODs*(TOU_High_Days + TOU_Low_Days)/12,0) -> 1107.775 | F85: =IFERROR('Rates Table'!$E$56*PODs*(TOU_High_Days + TOU_Low_Days)/12,0) -> 1107.775 | G85: =IFERROR('Rates Table'!$E$56*PODs*(TOU_High_Days + TOU_Low_Days)/12,0) -> 1107.775 | H85: =IFERROR('Rates Table'!$E$56*PODs*(TOU_High_Days + TOU_Low_Days)/12,0) -> 1107.775 | I85: =IFERROR('Rates Table'!$E$56*PODs*(TOU_High_Days + TOU_Low_Days)/12,0) -> 1107.775 | J85: =IFERROR('Rates Table'!$E$56*PODs*(TOU_High_Days + TOU_Low_Days)/12,0) -> 1107.775 | K85: =IFERROR('Rates Table'!$E$56*PODs*(TOU_High_Days + TOU_Low_Days)/12,0) -> 1107.775 | L85: =IFERROR('Rates Table'!$E$56*PODs*(TOU_High_Days + TOU_Low_Days)/12,0) -> 1107.775 | M85: =IFERROR('Rates Table'!$E$56*PODs*(TOU_High_Days + TOU_Low_Days)/12,0) -> 1107.775 | N85: =IFERROR('Rates Table'!$E$56*PODs*(TOU_High_Days + TOU_Low_Days)/12,0) -> 1107.775 | O85: =IFERROR('Rates Table'!$E$56*PODs*(TOU_High_Days + TOU_Low_Days)/12,0) -> 1107.775 | P85: =IFERROR('Rates Table'!$E$56*PODs*(TOU_High_Days + TOU_Low_Days)/12,0) -> 1107.775 | Q85: =SUM(E85:P85) -> 13293.3 | AC85: ='Bill Comparison'!G102 -> 13293.3 | AD85: =IFERROR(Q85 - AC85, "") -> -1.818989404e-12
D86: % change | E86: =IFERROR((E84 - E85) / E85, "") -> -0.659527732 | F86: -0.659527732 | G86: -0.659527732 | H86: -0.659527732 | I86: -0.659527732 | J86: -0.659527732 | K86: -0.659527732 | L86: -0.659527732 | M86: -0.659527732 | N86: -0.659527732 | O86: -0.659527732 | P86: -0.659527732 | Q86: -0.659527732
C87: Service charge | D87: =New_Period -> 2025/26 | E87: =IFERROR(IF(Table_1=1, 'Rates Table'!$AT$57 * PODs * (TOU_High_Days + TOU_Low_Days)/12, 'Rates Table'!$AT$57 * PODs * (TOU_High_Days + TOU_Low_Days)/12),0) -> 1955.183333 | F87: =IFERROR(IF(Table_1=1, 'Rates Table'!$AT$57 * PODs * (TOU_High_Days + TOU_Low_Days)/12, 'Rates Table'!$AT$57 * PODs * (TOU_High_Days + TOU_Low_Days)/12),0) -> 1955.183333 | G87: =IFERROR(IF(Table_1=1, 'Rates Table'!$AT$57 * PODs * (TOU_High_Days + TOU_Low_Days)/12, 'Rates Table'!$AT$57 * PODs * (TOU_High_Days + TOU_Low_Days)/12),0) -> 1955.183333 | H87: =IFERROR(IF(Table_1=1, 'Rates Table'!$AT$57 * PODs * (TOU_High_Days + TOU_Low_Days)/12, 'Rates Table'!$AT$57 * PODs * (TOU_High_Days + TOU_Low_Days)/12),0) -> 1955.183333 | I87: =IFERROR(IF(Table_1=1, 'Rates Table'!$AT$57 * PODs * (TOU_High_Days + TOU_Low_Days)/12, 'Rates Table'!$AT$57 * PODs * (TOU_High_Days + TOU_Low_Days)/12),0) -> 1955.183333 | J87: =IFERROR(IF(Table_1=1, 'Rates Table'!$AT$57 * PODs * (TOU_High_Days + TOU_Low_Days)/12, 'Rates Table'!$AT$57 * PODs * (TOU_High_Days + TOU_Low_Days)/12),0) -> 1955.183333 | K87: =IFERROR(IF(Table_1=1, 'Rates Table'!$AT$57 * PODs * (TOU_High_Days + TOU_Low_Days)/12, 'Rates Table'!$AT$57 * PODs * (TOU_High_Days + TOU_Low_Days)/12),0) -> 1955.183333 | L87: =IFERROR(IF(Table_1=1, 'Rates Table'!$AT$57 * PODs * (TOU_High_Days + TOU_Low_Days)/12, 'Rates Table'!$AT$57 * PODs * (TOU_High_Days + TOU_Low_Days)/12),0) -> 1955.183333 | M87: =IFERROR(IF(Table_1=1, 'Rates Table'!$AT$57 * PODs * (TOU_High_Days + TOU_Low_Days)/12, 'Rates Table'!$AT$57 * PODs * (TOU_High_Days + TOU_Low_Days)/12),0) -> 1955.183333 | N87: =IFERROR(IF(Table_1=1, 'Rates Table'!$AT$57 * PODs * (TOU_High_Days + TOU_Low_Days)/12, 'Rates Table'!$AT$57 * PODs * (TOU_High_Days + TOU_Low_Days)/12),0) -> 1955.183333 | O87: =IFERROR(IF(Table_1=1, 'Rates Table'!$AT$57 * PODs * (TOU_High_Days + TOU_Low_Days)/12, 'Rates Table'!$AT$57 * PODs * (TOU_High_Days + TOU_Low_Days)/12),0) -> 1955.183333 | P87: =IFERROR(IF(Table_1=1, 'Rates Table'!$AT$57 * PODs * (TOU_High_Days + TOU_Low_Days)/12, 'Rates Table'!$AT$57 * PODs * (TOU_High_Days + TOU_Low_Days)/12),0) -> 1955.183333 | Q87: =SUM(E87:P87) -> 23462.2 | AC87: ='Bill Comparison'!H103 -> 23462.2 | AD87: =IFERROR(Q87 - AC87, "") -> 1.091393642e-11
D88: =Current_Period -> 2024/25 | E88: =IFERROR(IF(Table_1=1, 'Rates Table'!$E$57 * 1 * (TOU_High_Days + TOU_Low_Days)/12, 'Rates Table'!$E$57 * PODs * (TOU_High_Days + TOU_Low_Days)/12),0) -> 3948.3875 | F88: =IFERROR(IF(Table_1=1, 'Rates Table'!$E$57 * 1 * (TOU_High_Days + TOU_Low_Days)/12, 'Rates Table'!$E$57 * PODs * (TOU_High_Days + TOU_Low_Days)/12),0) -> 3948.3875 | G88: =IFERROR(IF(Table_1=1, 'Rates Table'!$E$57 * 1 * (TOU_High_Days + TOU_Low_Days)/12, 'Rates Table'!$E$57 * PODs * (TOU_High_Days + TOU_Low_Days)/12),0) -> 3948.3875 | H88: =IFERROR(IF(Table_1=1, 'Rates Table'!$E$57 * 1 * (TOU_High_Days + TOU_Low_Days)/12, 'Rates Table'!$E$57 * PODs * (TOU_High_Days + TOU_Low_Days)/12),0) -> 3948.3875 | I88: =IFERROR(IF(Table_1=1, 'Rates Table'!$E$57 * 1 * (TOU_High_Days + TOU_Low_Days)/12, 'Rates Table'!$E$57 * PODs * (TOU_High_Days + TOU_Low_Days)/12),0) -> 3948.3875 | J88: =IFERROR(IF(Table_1=1, 'Rates Table'!$E$57 * 1 * (TOU_High_Days + TOU_Low_Days)/12, 'Rates Table'!$E$57 * PODs * (TOU_High_Days + TOU_Low_Days)/12),0) -> 3948.3875 | K88: =IFERROR(IF(Table_1=1, 'Rates Table'!$E$57 * 1 * (TOU_High_Days + TOU_Low_Days)/12, 'Rates Table'!$E$57 * PODs * (TOU_High_Days + TOU_Low_Days)/12),0) -> 3948.3875 | L88: =IFERROR(IF(Table_1=1, 'Rates Table'!$E$57 * 1 * (TOU_High_Days + TOU_Low_Days)/12, 'Rates Table'!$E$57 * PODs * (TOU_High_Days + TOU_Low_Days)/12),0) -> 3948.3875 | M88: =IFERROR(IF(Table_1=1, 'Rates Table'!$E$57 * 1 * (TOU_High_Days + TOU_Low_Days)/12, 'Rates Table'!$E$57 * PODs * (TOU_High_Days + TOU_Low_Days)/12),0) -> 3948.3875 | N88: =IFERROR(IF(Table_1=1, 'Rates Table'!$E$57 * 1 * (TOU_High_Days + TOU_Low_Days)/12, 'Rates Table'!$E$57 * PODs * (TOU_High_Days + TOU_Low_Days)/12),0) -> 3948.3875 | O88: =IFERROR(IF(Table_1=1, 'Rates Table'!$E$57 * 1 * (TOU_High_Days + TOU_Low_Days)/12, 'Rates Table'!$E$57 * PODs * (TOU_High_Days + TOU_Low_Days)/12),0) -> 3948.3875 | P88: =IFERROR(IF(Table_1=1, 'Rates Table'!$E$57 * 1 * (TOU_High_Days + TOU_Low_Days)/12, 'Rates Table'!$E$57 * PODs * (TOU_High_Days + TOU_Low_Days)/12),0) -> 3948.3875 | Q88: =SUM(E88:P88) -> 47380.65 | AC88: ='Bill Comparison'!G103 -> 47380.65 | AD88: =IFERROR(Q88 - AC88, "") -> 0
D89: % change | E89: =IFERROR((E87 - E88) / E88, "") -> -0.5048147292 | F89: -0.5048147292 | G89: -0.5048147292 | H89: -0.5048147292 | I89: -0.5048147292 | J89: -0.5048147292 | K89: -0.5048147292 | L89: -0.5048147292 | M89: -0.5048147292 | N89: -0.5048147292 | O89: -0.5048147292 | P89: -0.5048147292 | Q89: -0.5048147292
C90: Total other charges | D90: =New_Period -> 2025/26 | E90: =SUM(E75,E78,E81,E84,E87,E72) -> 2332.35 | F90: =SUM(F75,F78,F81,F84,F87,F72) -> 2332.35 | G90: 2332.35 | H90: 2332.35 | I90: 2332.35 | J90: 2332.35 | K90: 2332.35 | L90: 2332.35 | M90: 2332.35 | N90: 2332.35 | O90: 2332.35 | P90: 2332.35 | Q90: =SUM(Q75,Q78,Q81,Q84,Q87,Q72) -> 27988.2
D91: =Current_Period -> 2024/25 | E91: =SUM(E76,E79,E82,E85,E88,E73) -> 5056.1625 | F91: 5056.1625 | G91: 5056.1625 | H91: 5056.1625 | I91: 5056.1625 | J91: 5056.1625 | K91: 5056.1625 | L91: 5056.1625 | M91: 5056.1625 | N91: 5056.1625 | O91: 5056.1625 | P91: 5056.1625 | Q91: 60673.95
D92: % change | E92: =IFERROR((E90 - E91) / E91, "") -> -0.5387114239 | F92: -0.5387114239 | G92: -0.5387114239 | H92: -0.5387114239 | I92: -0.5387114239 | J92: -0.5387114239 | K92: -0.5387114239 | L92: -0.5387114239 | M92: -0.5387114239 | N92: -0.5387114239 | O92: -0.5387114239 | P92: -0.5387114239 | Q92: -0.5387114239
B94: Total account charges | E94: =E$13 -> 2025-04-30 | F94: =F$13 -> 2025-05-31 | G94: 2025-06-30 | H94: 2025-07-31 | I94: 2025-08-31 | J94: 2025-09-30 | K94: 2025-10-31 | L94: 2025-11-30 | M94: 2025-12-31 | N94: 2026-01-31 | O94: 2026-02-28 | P94: 2026-03-31 | Q94: Total
C95: Total charges, excl VAT | D95: =New_Period -> 2025/26 | E95: =SUM(E35, E67, E90) -> 2332.35 | F95: 2332.35 | G95: 2332.35 | H95: 2332.35 | I95: 2332.35 | J95: 2332.35 | K95: 2332.35 | L95: 2332.35 | M95: 2332.35 | N95: 2332.35 | O95: 2332.35 | P95: 2332.35 | Q95: 27988.2 | AC95: ='Bill Comparison'!H107 -> 27988.2 | AD95: =IFERROR(Q95 - AC95, "") -> 1.091393642e-11
D96: =Current_Period -> 2024/25 | E96: =SUM(E36, E68, E91) -> 5056.1625 | F96: 5056.1625 | G96: 5056.1625 | H96: 5056.1625 | I96: 5056.1625 | J96: 5056.1625 | K96: 5056.1625 | L96: 5056.1625 | M96: 5056.1625 | N96: 5056.1625 | O96: 5056.1625 | P96: 5056.1625 | Q96: 60673.95 | AC96: ='Bill Comparison'!G107 -> 60673.95 | AD96: =IFERROR(Q96 - AC96, "") -> -7.275957614e-12
D97: % change | E97: =IFERROR((E95 - E96) / E96, "") -> -0.5387114239 | F97: -0.5387114239 | G97: -0.5387114239 | H97: -0.5387114239 | I97: -0.5387114239 | J97: -0.5387114239 | K97: -0.5387114239 | L97: -0.5387114239 | M97: -0.5387114239 | N97: -0.5387114239 | O97: -0.5387114239 | P97: -0.5387114239 | Q97: -0.5387114239
C99: Total account, incl VAT | D99: =New_Period -> 2025/26 | E99: =E95 * (1 + VAT) -> 2682.2025 | F99: 2682.2025 | G99: 2682.2025 | H99: 2682.2025 | I99: 2682.2025 | J99: 2682.2025 | K99: 2682.2025 | L99: 2682.2025 | M99: 2682.2025 | N99: 2682.2025 | O99: 2682.2025 | P99: 2682.2025 | Q99: 32186.43
D100: =Current_Period -> 2024/25 | E100: =E96 * (1 + VAT) -> 5814.586875 | F100: 5814.586875 | G100: 5814.586875 | H100: 5814.586875 | I100: 5814.586875 | J100: 5814.586875 | K100: 5814.586875 | L100: 5814.586875 | M100: 5814.586875 | N100: 5814.586875 | O100: 5814.586875 | P100: 5814.586875 | Q100: 69775.0425
D101: % change | E101: =IFERROR((E99 - E100) / E100, "") -> -0.5387114239 | F101: -0.5387114239 | G101: -0.5387114239 | H101: -0.5387114239 | I101: -0.5387114239 | J101: -0.5387114239 | K101: -0.5387114239 | L101: -0.5387114239 | M101: -0.5387114239 | N101: -0.5387114239 | O101: -0.5387114239 | P101: -0.5387114239 | Q101: -0.5387114239

Sheet Tariff Comparison
H2: For comparative purposes, Utilised Capacity and Chargeable Demand figures are required for all LPU tariffs.
B4: Time of Use Comparison Data | R4: =Selected_Tariff_Category -> Non-Local Authority
H6: 2 | I6: =MATCH(Selected_Base_Tariff,Compare_Tariff_List,0) -> 2 | J6: =MATCH(H8,Full_Tariff_List,0) -> 18 | L6: 4 | N6: =MATCH(L8,Full_Tariff_List,0) -> 20 | P6: 1 | R6: =MATCH(P8,Full_Tariff_List,0) -> 22
D8: =IF(OR(Selected_Tariff_Category_ID=2, Selected_Base_Tariff="Nightsave Urban"),"",'Bill Comparison'!I4) -> Miniflex | H8: =IFERROR(INDEX(Compare_Tariff_List,Dropdown_Compare_1),$D$8) -> Miniflex | L8: =IFERROR(INDEX(Compare_Tariff_List,Dropdown_Compare_2),$D$8) -> Nightsave Rural | P8: =IFERROR(INDEX(Compare_Tariff_List,Dropdown_Compare_3),$D$8) -> Ruraflex
D9: =IF(OR(Selected_Tariff_Category_ID=2,Selected_Base_Tariff="Nightsave Urban"),Inputs!G21,"") ->  | E9: =IF(OR(Selected_Tariff_Category_ID=2,Selected_Base_Tariff="Nightsave Urban"),Selected_Base_Tariff,"") ->  | H9: =IFERROR(INDEX(Compare_Long_Type,Dropdown_Compare_1),"") ->  | L9: =IFERROR(INDEX(Compare_Long_Type,Dropdown_Compare_2),"") ->  | P9: =IFERROR(INDEX(Compare_Long_Type,Dropdown_Compare_3),"") -> 
B10: Comparison Tariffs | D10: =Current_Period -> 2024/25 | E10: =New_Period -> 2025/26 | F10: % Change | H10: =Current_Period -> 2024/25 | I10: =New_Period -> 2025/26 | J10: % Change | L10: =Current_Period -> 2024/25 | M10: =New_Period -> 2025/26 | N10: % Change | P10: =Current_Period -> 2024/25 | Q10: =New_Period -> 2025/26 | R10: % Change
C12: High-demand | D12: ='Bill Comparison'!G116 -> 17587.134 | E12: ='Bill Comparison'!H116 -> 8112.744 | F12: =IFERROR(E12/D12-1,0) -> -0.5387114239 | H12: =IF(Selected_Tariff_Category_ID=2,'Tariff Comparison'!$D12,(IFERROR(INDEX(High_Total_Costs_Current,0,J$6),""))) -> 17587.134 | I12: =IFERROR(INDEX(High_Total_Costs_New,0,J$6),"") -> 8112.744 | J12: =IFERROR(I12/H12-1,0) -> -0.5387114239 | L12: =IF(Selected_Tariff_Category_ID=2,'Tariff Comparison'!$D12,(IFERROR(INDEX(High_Total_Costs_Current,0,N$6),""))) -> 19010.144 | M12: =IFERROR(INDEX(High_Total_Costs_New,0,N$6),"") -> 8112.744 | N12: =IFERROR(M12/L12-1,0) -> -0.5732413179 | P12: =IF(Selected_Tariff_Category_ID=2,'Tariff Comparison'!$D12,(IFERROR(INDEX(High_Total_Costs_Current,0,R$6),""))) -> 19010.144 | Q12: =IFERROR(INDEX(High_Total_Costs_New,0,R$6),"") -> 8112.744 | R12: =IFERROR(Q12/P12-1,0) -> -0.5732413179
C13: Low demand | D13: ='Bill Comparison'!G117 -> 52187.9085 | E13: ='Bill Comparison'!H117 -> 24073.686 | F13: =IFERROR(E13/D13-1,0) -> -0.5387114239 | H13: =IF(Selected_Tariff_Category_ID=2,'Tariff Comparison'!$D13,(IFERROR(INDEX(Low_Total_Costs_Current,0,J$6),""))) -> 52187.9085 | I13: =IFERROR(INDEX(Low_Total_Costs_New,0,J$6),"") -> 24073.686 | J13: =IFERROR(I13/H13-1,0) -> -0.5387114239 | L13: =IF(Selected_Tariff_Category_ID=2,'Tariff Comparison'!$D13,(IFERROR(INDEX(Low_Total_Costs_Current,0,N$6),""))) -> 56410.536 | M13: =IFERROR(INDEX(Low_Total_Costs_New,0,N$6),"") -> 24073.686 | N13: =IFERROR(M13/L13-1,0) -> -0.5732413179 | P13: =IF(Selected_Tariff_Category_ID=2,'Tariff Comparison'!$D13,(IFERROR(INDEX(Low_Total_Costs_Current,0,R$6),""))) -> 56410.536 | Q13: =IFERROR(INDEX(Low_Total_Costs_New,0,R$6),"") -> 24073.686 | R13: =IFERROR(Q13/P13-1,0) -> -0.5732413179
C15: Total | D15: =SUM(D12:D13) -> 69775.0425 | E15: =SUM(E12:E13) -> 32186.43 | F15: =IFERROR(E15/D15-1,0) -> -0.5387114239 | H15: =SUM(H12:H13) -> 69775.0425 | I15: =SUM(I12:I13) -> 32186.43 | J15: =IFERROR(I15/H15-1,0) -> -0.5387114239 | L15: =SUM(L12:L13) -> 75420.68 | M15: =SUM(M12:M13) -> 32186.43 | N15: =IFERROR(M15/L15-1,0) -> -0.5732413179 | P15: =SUM(P12:P13) -> 75420.68 | Q15: =SUM(Q12:Q13) -> 32186.43 | R15: =IFERROR(Q15/P15-1,0) -> -0.5732413179
C17: Average price c/kWh | D17: ='Bill Comparison'!G112 -> 0 | E17: ='Bill Comparison'!H112 -> 0 | F17: =IFERROR(E17/D17-1,0) -> 0 | H17: =IFERROR(H15/IF(Inputs!$G$29="No",(High_Total_Energy+Low_Total_Energy),(High_Total_Energy_Exist_TOU+Low_Total_Energy_Exist_TOU))/(1+VAT)*100,0) -> 0 | I17: =IFERROR(I15/(IF(Inputs!$G$29="No",(High_Total_Energy+Low_Total_Energy),(High_Total_Energy_New_TOU+Low_Total_Energy_New_TOU)))/(1+VAT)*100,0) -> 0 | J17: =IFERROR(I17/H17-1,0) -> 0 | L17: =IFERROR(L15/IF(Inputs!$G$29="No",(High_Total_Energy+Low_Total_Energy),(High_Total_Energy_Exist_TOU+Low_Total_Energy_Exist_TOU))/(1+VAT)*100,0) -> 0 | M17: =IFERROR(M15/(IF(Inputs!$G$29="No",(High_Total_Energy+Low_Total_Energy),(High_Total_Energy_New_TOU+Low_Total_Energy_New_TOU)))/(1+VAT)*100,0) -> 0 | N17: =IFERROR(M17/L17-1,0) -> 0 | P17: =IFERROR(P15/IF(Inputs!$G$29="No",(High_Total_Energy+Low_Total_Energy),(High_Total_Energy_Exist_TOU+Low_Total_Energy_Exist_TOU))/(1+VAT)*100,0) -> 0 | Q17: =IFERROR(Q15/(IF(Inputs!$G$29="No",(High_Total_Energy+Low_Total_Energy),(High_Total_Energy_New_TOU+Low_Total_Energy_New_TOU)))/(1+VAT)*100,0) -> 0 | R17: =IFERROR(Q17/P17-1,0) -> 0
B19: Annual Comparison | D19: =Current_Period -> 2024/25 | E19: =New_Period -> 2025/26 | F19: % Change
C21: =IF(D8="",E9,D8) -> Miniflex | D21: =D15 -> 69775.0425 | E21: =E15 -> 32186.43 | F21: =IFERROR(E21/D21-1,0) -> -0.5387114239
C22: =H8 -> Miniflex | D22: =H15 -> 69775.0425 | E22: =I15 -> 32186.43 | F22: =IFERROR(E22/D22-1,0) -> -0.5387114239
C23: =L8 -> Nightsave Rural | D23: =L15 -> 75420.68 | E23: =M15 -> 32186.43 | F23: =IFERROR(E23/D23-1,0) -> -0.5732413179
C24: =P8 -> Ruraflex | D24: =P15 -> 75420.68 | E24: =Q15 -> 32186.43 | F24: =IFERROR(E24/D24-1,0) -> -0.5732413179

Sheet HOURLY DATA
B1: This worksheet can be used to insert hourly data to give a more accurate view of the TOU changes impact
M2: Calculation | T2: Ruraflex & Nightsaverural only
B3: Day/Month | C3: PERIOD | D3: Public holiday | E3: Season | F3: Current TOU | G3: Previous TOU | H3: kWh | I3: kVArh | M3: kVA | N3: Excess kVAr | T3: PH | U3: Previous TOU PERIOD | V3: Current TOU
B4: 2025-04-01 | C4: 0 | D4: =IFERROR((INDEX(METADATA!$T$2:$T$20,MATCH(B4,METADATA!$S$2:$S$20,0))),0) -> 0 | E4: =IF(B4="","",IF(AND(MONTH(B4)>=MONTH($Z$9),MONTH(B4)<=MONTH($Z$11)),"HI","LO")) -> LO | F4: =VLOOKUP(C4,METADATA!$A$5:$H$29,IF(E4="HI",2,IF(E4="LO",6,10))+IF(D4=1,2,IF(D4=7,1,(IF(WEEKDAY(B4)=1,2,IF(WEEKDAY(B4)=7,1,0)))))) -> 3 | G4: =VLOOKUP(C4,METADATA!$J$5:$Q$29,IF(E4="HI",2,IF(E4="LO",6,10))+IF(D4=1,2,IF(D4=7,1,(IF(WEEKDAY(B4)=1,2,IF(WEEKDAY(B4)=7,1,0)))))) -> 3 | H4: 13316.91553 | I4: 1957.561567 | M4: =SQRT(H4^2+I4^2) -> 13460.0255 | N4: =IF(H4=0,0,(IF(I4-(0.3*H4)<0,0,(I4-(0.3*H4))))) -> 0 | T4: 0 | U4: =VLOOKUP(C4,METADATA!$J$5:$Q$29,IF(E4="HI",2,IF(E4="LO",6,10))+IF(T4=1,2,IF(D4=7,1,(IF(WEEKDAY(B4)=1,2,IF(WEEKDAY(B4)=7,1,0)))))) -> 3 | V4: =VLOOKUP(C4,METADATA!$A$5:$H$29,IF(E4="HI",2,IF(E4="LO",6,10))+IF(T4=1,2,IF(D4=7,1,(IF(WEEKDAY(B4)=1,2,IF(WEEKDAY(B4)=7,1,0)))))) -> 3 | Z4: 2024-01-01
B5: 2025-04-01 | C5: 1 | D5: =IFERROR((INDEX(METADATA!$T$2:$T$20,MATCH(B5,METADATA!$S$2:$S$20,0))),0) -> 0 | E5: LO | F5: =VLOOKUP(C5,METADATA!$A$5:$H$29,IF(E5="HI",2,IF(E5="LO",6,10))+IF(D5=1,2,IF(D5=7,1,(IF(WEEKDAY(B5)=1,2,IF(WEEKDAY(B5)=7,1,0)))))) -> 3 | G5: =VLOOKUP(C5,METADATA!$J$5:$Q$29,IF(E5="HI",2,IF(E5="LO",6,10))+IF(D5=1,2,IF(D5=7,1,(IF(WEEKDAY(B5)=1,2,IF(WEEKDAY(B5)=7,1,0)))))) -> 3 | H5: 13230.45978 | I5: 1922.136511 | K5: Replace the hourly data in orange columns | M5: 13369.35581 | N5: =IF(H5=0,0,(IF(I5-(0.3*H5)<0,0,(I5-(0.3*H5))))) -> 0 | T5: 0 | U5: =VLOOKUP(C5,METADATA!$J$5:$Q$29,IF(E5="HI",2,IF(E5="LO",6,10))+IF(T5=1,2,IF(D5=7,1,(IF(WEEKDAY(B5)=1,2,IF(WEEKDAY(B5)=7,1,0)))))) -> 3 | V5: =VLOOKUP(C5,METADATA!$A$5:$H$29,IF(E5="HI",2,IF(E5="LO",6,10))+IF(T5=1,2,IF(D5=7,1,(IF(WEEKDAY(B5)=1,2,IF(WEEKDAY(B5)=7,1,0)))))) -> 3 | Z5: 2024-02-01
B6: 2025-04-01 | C6: 2 | D6: =IFERROR((INDEX(METADATA!$T$2:$T$20,MATCH(B6,METADATA!$S$2:$S$20,0))),0) -> 0 | E6: LO | F6: =VLOOKUP(C6,METADATA!$A$5:$H$29,IF(E6="HI",2,IF(E6="LO",6,10))+IF(D6=1,2,IF(D6=7,1,(IF(WEEKDAY(B6)=1,2,IF(WEEKDAY(B6)=7,1,0)))))) -> 3 | G6: =VLOOKUP(C6,METADATA!$J$5:$Q$29,IF(E6="HI",2,IF(E6="LO",6,10))+IF(D6=1,2,IF(D6=7,1,(IF(WEEKDAY(B6)=1,2,IF(WEEKDAY(B6)=7,1,0)))))) -> 3 | H6: 13246.24011 | I6: 1936.630952 | M6: 13387.06154 | N6: 0 | T6: 0 | U6: =VLOOKUP(C6,METADATA!$J$5:$Q$29,IF(E6="HI",2,IF(E6="LO",6,10))+IF(T6=1,2,IF(D6=7,1,(IF(WEEKDAY(B6)=1,2,IF(WEEKDAY(B6)=7,1,0)))))) -> 3 | V6: =VLOOKUP(C6,METADATA!$A$5:$H$29,IF(E6="HI",2,IF(E6="LO",6,10))+IF(T6=1,2,IF(D6=7,1,(IF(WEEKDAY(B6)=1,2,IF(WEEKDAY(B6)=7,1,0)))))) -> 3 | Z6: 2024-03-01
B7: 2025-04-01 | C7: 3 | D7: =IFERROR((INDEX(METADATA!$T$2:$T$20,MATCH(B7,METADATA!$S$2:$S$20,0))),0) -> 0 | E7: LO | F7: =VLOOKUP(C7,METADATA!$A$5:$H$29,IF(E7="HI",2,IF(E7="LO",6,10))+IF(D7=1,2,IF(D7=7,1,(IF(WEEKDAY(B7)=1,2,IF(WEEKDAY(B7)=7,1,0)))))) -> 3 | G7: =VLOOKUP(C7,METADATA!$J$5:$Q$29,IF(E7="HI",2,IF(E7="LO",6,10))+IF(D7=1,2,IF(D7=7,1,(IF(WEEKDAY(B7)=1,2,IF(WEEKDAY(B7)=7,1,0)))))) -> 3 | H7: 13328.435 | I7: 1952.231571 | M7: 13470.64912 | N7: 0 | T7: 0 | U7: =VLOOKUP(C7,METADATA!$J$5:$Q$29,IF(E7="HI",2,IF(E7="LO",6,10))+IF(T7=1,2,IF(D7=7,1,(IF(WEEKDAY(B7)=1,2,IF(WEEKDAY(B7)=7,1,0)))))) -> 3 | V7: =VLOOKUP(C7,METADATA!$A$5:$H$29,IF(E7="HI",2,IF(E7="LO",6,10))+IF(T7=1,2,IF(D7=7,1,(IF(WEEKDAY(B7)=1,2,IF(WEEKDAY(B7)=7,1,0)))))) -> 3 | Z7: 2024-04-01
B8: 2025-04-01 | C8: 4 | D8: =IFERROR((INDEX(METADATA!$T$2:$T$20,MATCH(B8,METADATA!$S$2:$S$20,0))),0) -> 0 | E8: LO | F8: =VLOOKUP(C8,METADATA!$A$5:$H$29,IF(E8="HI",2,IF(E8="LO",6,10))+IF(D8=1,2,IF(D8=7,1,(IF(WEEKDAY(B8)=1,2,IF(WEEKDAY(B8)=7,1,0)))))) -> 3 | G8: =VLOOKUP(C8,METADATA!$J$5:$Q$29,IF(E8="HI",2,IF(E8="LO",6,10))+IF(D8=1,2,IF(D8=7,1,(IF(WEEKDAY(B8)=1,2,IF(WEEKDAY(B8)=7,1,0)))))) -> 3 | H8: 13274.43024 | I8: 1962.815924 | M8: 13418.76091 | N8: 0 | P8: TOU Summary | T8: 0 | U8: =VLOOKUP(C8,METADATA!$J$5:$Q$29,IF(E8="HI",2,IF(E8="LO",6,10))+IF(T8=1,2,IF(D8=7,1,(IF(WEEKDAY(B8)=1,2,IF(WEEKDAY(B8)=7,1,0)))))) -> 3 | V8: =VLOOKUP(C8,METADATA!$A$5:$H$29,IF(E8="HI",2,IF(E8="LO",6,10))+IF(T8=1,2,IF(D8=7,1,(IF(WEEKDAY(B8)=1,2,IF(WEEKDAY(B8)=7,1,0)))))) -> 3 | Z8: 2024-05-01
B9: 2025-04-01 | C9: 5 | D9: =IFERROR((INDEX(METADATA!$T$2:$T$20,MATCH(B9,METADATA!$S$2:$S$20,0))),0) -> 0 | E9: LO | F9: =VLOOKUP(C9,METADATA!$A$5:$H$29,IF(E9="HI",2,IF(E9="LO",6,10))+IF(D9=1,2,IF(D9=7,1,(IF(WEEKDAY(B9)=1,2,IF(WEEKDAY(B9)=7,1,0)))))) -> 3 | G9: =VLOOKUP(C9,METADATA!$J$5:$Q$29,IF(E9="HI",2,IF(E9="LO",6,10))+IF(D9=1,2,IF(D9=7,1,(IF(WEEKDAY(B9)=1,2,IF(WEEKDAY(B9)=7,1,0)))))) -> 3 | H9: 13287.92529 | I9: 1869.982966 | M9: 13418.85967 | N9: 0 | P9: Summer profile | Q9: Current | R9: Proposed | T9: 0 | U9: =VLOOKUP(C9,METADATA!$J$5:$Q$29,IF(E9="HI",2,IF(E9="LO",6,10))+IF(T9=1,2,IF(D9=7,1,(IF(WEEKDAY(B9)=1,2,IF(WEEKDAY(B9)=7,1,0)))))) -> 3 | V9: =VLOOKUP(C9,METADATA!$A$5:$H$29,IF(E9="HI",2,IF(E9="LO",6,10))+IF(T9=1,2,IF(D9=7,1,(IF(WEEKDAY(B9)=1,2,IF(WEEKDAY(B9)=7,1,0)))))) -> 3 | Z9: 2024-06-01
B10: 2025-04-01 | C10: 6 | D10: =IFERROR((INDEX(METADATA!$T$2:$T$20,MATCH(B10,METADATA!$S$2:$S$20,0))),0) -> 0 | E10: LO | F10: =VLOOKUP(C10,METADATA!$A$5:$H$29,IF(E10="HI",2,IF(E10="LO",6,10))+IF(D10=1,2,IF(D10=7,1,(IF(WEEKDAY(B10)=1,2,IF(WEEKDAY(B10)=7,1,0)))))) -> 2 | G10: =VLOOKUP(C10,METADATA!$J$5:$Q$29,IF(E10="HI",2,IF(E10="LO",6,10))+IF(D10=1,2,IF(D10=7,1,(IF(WEEKDAY(B10)=1,2,IF(WEEKDAY(B10)=7,1,0)))))) -> 2 | H10: 13325.13495 | I10: 1910.786568 | M10: 13461.43851 | N10: 0 | P10: Peak | Q10: =TOU_Low_Peak_Exist_TOU/TOU_Low_Total_Energy_Exist_TOU -> 0.14397385 | R10: =TOU_Low_Peak_New_TOU/TOU_Low_Total_Energy_New_TOU -> 0.1452236005 | T10: 0 | U10: =VLOOKUP(C10,METADATA!$J$5:$Q$29,IF(E10="HI",2,IF(E10="LO",6,10))+IF(T10=1,2,IF(D10=7,1,(IF(WEEKDAY(B10)=1,2,IF(WEEKDAY(B10)=7,1,0)))))) -> 2 | V10: =VLOOKUP(C10,METADATA!$A$5:$H$29,IF(E10="HI",2,IF(E10="LO",6,10))+IF(T10=1,2,IF(D10=7,1,(IF(WEEKDAY(B10)=1,2,IF(WEEKDAY(B10)=7,1,0)))))) -> 2 | Z10: 2024-07-01
B11: 2025-04-01 | C11: 7 | D11: =IFERROR((INDEX(METADATA!$T$2:$T$20,MATCH(B11,METADATA!$S$2:$S$20,0))),0) -> 0 | E11: LO | F11: =VLOOKUP(C11,METADATA!$A$5:$H$29,IF(E11="HI",2,IF(E11="LO",6,10))+IF(D11=1,2,IF(D11=7,1,(IF(WEEKDAY(B11)=1,2,IF(WEEKDAY(B11)=7,1,0)))))) -> 1 | G11: =VLOOKUP(C11,METADATA!$J$5:$Q$29,IF(E11="HI",2,IF(E11="LO",6,10))+IF(D11=1,2,IF(D11=7,1,(IF(WEEKDAY(B11)=1,2,IF(WEEKDAY(B11)=7,1,0)))))) -> 1 | H11: 12828.58978 | I11: 1672.989979 | M11: 12937.21807 | N11: 0 | P11: Standard | Q11: =TOU_Low_Standard_Exist_TOU/TOU_Low_Total_Energy_Exist_TOU -> 0.3605931936 | R11: =TOU_Low_Standard_New_TOU/TOU_Low_Total_Energy_New_TOU -> 0.3715006572 | T11: 0 | U11: =VLOOKUP(C11,METADATA!$J$5:$Q$29,IF(E11="HI",2,IF(E11="LO",6,10))+IF(T11=1,2,IF(D11=7,1,(IF(WEEKDAY(B11)=1,2,IF(WEEKDAY(B11)=7,1,0)))))) -> 1 | V11: =VLOOKUP(C11,METADATA!$A$5:$H$29,IF(E11="HI",2,IF(E11="LO",6,10))+IF(T11=1,2,IF(D11=7,1,(IF(WEEKDAY(B11)=1,2,IF(WEEKDAY(B11)=7,1,0)))))) -> 1 | Z11: 2024-08-01
B12: 2025-04-01 | C12: 8 | D12: =IFERROR((INDEX(METADATA!$T$2:$T$20,MATCH(B12,METADATA!$S$2:$S$20,0))),0) -> 0 | E12: LO | F12: =VLOOKUP(C12,METADATA!$A$5:$H$29,IF(E12="HI",2,IF(E12="LO",6,10))+IF(D12=1,2,IF(D12=7,1,(IF(WEEKDAY(B12)=1,2,IF(WEEKDAY(B12)=7,1,0)))))) -> 1 | G12: =VLOOKUP(C12,METADATA!$J$5:$Q$29,IF(E12="HI",2,IF(E12="LO",6,10))+IF(D12=1,2,IF(D12=7,1,(IF(WEEKDAY(B12)=1,2,IF(WEEKDAY(B12)=7,1,0)))))) -> 1 | H12: 12644.8999 | I12: 1549.463982 | M12: 12739.47927 | N12: 0 | P12: Off peak | Q12: =TOU_Low_OffPeak_Exist_TOU/TOU_Low_Total_Energy_Exist_TOU -> 0.4954329564 | R12: =TOU_Low_OffPeak_New_TOU/TOU_Low_Total_Energy_New_TOU -> 0.4832757422 | T12: 0 | U12: =VLOOKUP(C12,METADATA!$J$5:$Q$29,IF(E12="HI",2,IF(E12="LO",6,10))+IF(T12=1,2,IF(D12=7,1,(IF(WEEKDAY(B12)=1,2,IF(WEEKDAY(B12)=7,1,0)))))) -> 1 | V12: =VLOOKUP(C12,METADATA!$A$5:$H$29,IF(E12="HI",2,IF(E12="LO",6,10))+IF(T12=1,2,IF(D12=7,1,(IF(WEEKDAY(B12)=1,2,IF(WEEKDAY(B12)=7,1,0)))))) -> 1 | Z12: 2024-09-01
B13: 2025-04-01 | C13: 9 | D13: =IFERROR((INDEX(METADATA!$T$2:$T$20,MATCH(B13,METADATA!$S$2:$S$20,0))),0) -> 0 | E13: LO | F13: =VLOOKUP(C13,METADATA!$A$5:$H$29,IF(E13="HI",2,IF(E13="LO",6,10))+IF(D13=1,2,IF(D13=7,1,(IF(WEEKDAY(B13)=1,2,IF(WEEKDAY(B13)=7,1,0)))))) -> 2 | G13: =VLOOKUP(C13,METADATA!$J$5:$Q$29,IF(E13="HI",2,IF(E13="LO",6,10))+IF(D13=1,2,IF(D13=7,1,(IF(WEEKDAY(B13)=1,2,IF(WEEKDAY(B13)=7,1,0)))))) -> 1 | H13: 12412.85529 | I13: 1444.12755 | M13: 12496.57876 | N13: 0 | P13: Winter profile | Q13: Current | R13: Proposed | T13: 0 | U13: =VLOOKUP(C13,METADATA!$J$5:$Q$29,IF(E13="HI",2,IF(E13="LO",6,10))+IF(T13=1,2,IF(D13=7,1,(IF(WEEKDAY(B13)=1,2,IF(WEEKDAY(B13)=7,1,0)))))) -> 1 | V13: =VLOOKUP(C13,METADATA!$A$5:$H$29,IF(E13="HI",2,IF(E13="LO",6,10))+IF(T13=1,2,IF(D13=7,1,(IF(WEEKDAY(B13)=1,2,IF(WEEKDAY(B13)=7,1,0)))))) -> 2 | Z13: 2024-10-01
B14: 2025-04-01 | C14: 10 | D14: =IFERROR((INDEX(METADATA!$T$2:$T$20,MATCH(B14,METADATA!$S$2:$S$20,0))),0) -> 0 | E14: LO | F14: =VLOOKUP(C14,METADATA!$A$5:$H$29,IF(E14="HI",2,IF(E14="LO",6,10))+IF(D14=1,2,IF(D14=7,1,(IF(WEEKDAY(B14)=1,2,IF(WEEKDAY(B14)=7,1,0)))))) -> 2 | G14: =VLOOKUP(C14,METADATA!$J$5:$Q$29,IF(E14="HI",2,IF(E14="LO",6,10))+IF(D14=1,2,IF(D14=7,1,(IF(WEEKDAY(B14)=1,2,IF(WEEKDAY(B14)=7,1,0)))))) -> 2 | H14: 10762.17523 | I14: 1013.714459 | M14: 10809.81187 | N14: 0 | P14: Peak | Q14: =TOU_High_Peak_Exist_TOU/TOU_High_Total_Energy_Exist_TOU -> 0.1451593869 | R14: =TOU_High_Peak_New_TOU/TOU_High_Total_Energy_New_TOU -> 0.1461789396 | T14: 0 | U14: =VLOOKUP(C14,METADATA!$J$5:$Q$29,IF(E14="HI",2,IF(E14="LO",6,10))+IF(T14=1,2,IF(D14=7,1,(IF(WEEKDAY(B14)=1,2,IF(WEEKDAY(B14)=7,1,0)))))) -> 2 | V14: =VLOOKUP(C14,METADATA!$A$5:$H$29,IF(E14="HI",2,IF(E14="LO",6,10))+IF(T14=1,2,IF(D14=7,1,(IF(WEEKDAY(B14)=1,2,IF(WEEKDAY(B14)=7,1,0)))))) -> 2 | Z14: 2024-11-01
B15: 2025-04-01 | C15: 11 | D15: =IFERROR((INDEX(METADATA!$T$2:$T$20,MATCH(B15,METADATA!$S$2:$S$20,0))),0) -> 0 | E15: LO | F15: =VLOOKUP(C15,METADATA!$A$5:$H$29,IF(E15="HI",2,IF(E15="LO",6,10))+IF(D15=1,2,IF(D15=7,1,(IF(WEEKDAY(B15)=1,2,IF(WEEKDAY(B15)=7,1,0)))))) -> 2 | G15: =VLOOKUP(C15,METADATA!$J$5:$Q$29,IF(E15="HI",2,IF(E15="LO",6,10))+IF(D15=1,2,IF(D15=7,1,(IF(WEEKDAY(B15)=1,2,IF(WEEKDAY(B15)=7,1,0)))))) -> 2 | H15: 10622.06995 | I15: 989.1599731 | M15: 10668.02734 | N15: 0 | P15: Standard | Q15: =TOU_High_Standard_Exist_TOU/TOU_High_Total_Energy_Exist_TOU -> 0.3660529732 | R15: =TOU_High_Standard_New_TOU/TOU_High_Total_Energy_New_TOU -> 0.3768368211 | T15: 0 | U15: =VLOOKUP(C15,METADATA!$J$5:$Q$29,IF(E15="HI",2,IF(E15="LO",6,10))+IF(T15=1,2,IF(D15=7,1,(IF(WEEKDAY(B15)=1,2,IF(WEEKDAY(B15)=7,1,0)))))) -> 2 | V15: =VLOOKUP(C15,METADATA!$A$5:$H$29,IF(E15="HI",2,IF(E15="LO",6,10))+IF(T15=1,2,IF(D15=7,1,(IF(WEEKDAY(B15)=1,2,IF(WEEKDAY(B15)=7,1,0)))))) -> 2 | Z15: 2024-12-01
B16: 2025-04-01 | C16: 12 | D16: =IFERROR((INDEX(METADATA!$T$2:$T$20,MATCH(B16,METADATA!$S$2:$S$20,0))),0) -> 0 | E16: LO | F16: =VLOOKUP(C16,METADATA!$A$5:$H$29,IF(E16="HI",2,IF(E16="LO",6,10))+IF(D16=1,2,IF(D16=7,1,(IF(WEEKDAY(B16)=1,2,IF(WEEKDAY(B16)=7,1,0)))))) -> 2 | G16: =VLOOKUP(C16,METADATA!$J$5:$Q$29,IF(E16="HI",2,IF(E16="LO",6,10))+IF(D16=1,2,IF(D16=7,1,(IF(WEEKDAY(B16)=1,2,IF(WEEKDAY(B16)=7,1,0)))))) -> 2 | H16: 8771.959869 | I16: 593.9039926 | M16: 8792.041964 | N16: 0 | P16: Off peak | Q16: =TOU_High_OffPeak_Exist_TOU/TOU_High_Total_Energy_Exist_TOU -> 0.48878764 | R16: =TOU_High_OffPeak_New_TOU/TOU_High_Total_Energy_New_TOU -> 0.4769842392 | T16: 0 | U16: =VLOOKUP(C16,METADATA!$J$5:$Q$29,IF(E16="HI",2,IF(E16="LO",6,10))+IF(T16=1,2,IF(D16=7,1,(IF(WEEKDAY(B16)=1,2,IF(WEEKDAY(B16)=7,1,0)))))) -> 2 | V16: =VLOOKUP(C16,METADATA!$A$5:$H$29,IF(E16="HI",2,IF(E16="LO",6,10))+IF(T16=1,2,IF(D16=7,1,(IF(WEEKDAY(B16)=1,2,IF(WEEKDAY(B16)=7,1,0)))))) -> 2
B17: 2025-04-01 | C17: 13 | D17: =IFERROR((INDEX(METADATA!$T$2:$T$20,MATCH(B17,METADATA!$S$2:$S$20,0))),0) -> 0 | E17: LO | F17: =VLOOKUP(C17,METADATA!$A$5:$H$29,IF(E17="HI",2,IF(E17="LO",6,10))+IF(D17=1,2,IF(D17=7,1,(IF(WEEKDAY(B17)=1,2,IF(WEEKDAY(B17)=7,1,0)))))) -> 2 | G17: =VLOOKUP(C17,METADATA!$J$5:$Q$29,IF(E17="HI",2,IF(E17="LO",6,10))+IF(D17=1,2,IF(D17=7,1,(IF(WEEKDAY(B17)=1,2,IF(WEEKDAY(B17)=7,1,0)))))) -> 2 | H17: 8715.274841 | I17: 557.3249931 | M17: 8733.076589 | N17: 0 | P17: Annual | Q17: Current | R17: Proposed | T17: 0 | U17: =VLOOKUP(C17,METADATA!$J$5:$Q$29,IF(E17="HI",2,IF(E17="LO",6,10))+IF(T17=1,2,IF(D17=7,1,(IF(WEEKDAY(B17)=1,2,IF(WEEKDAY(B17)=7,1,0)))))) -> 2 | V17: =VLOOKUP(C17,METADATA!$A$5:$H$29,IF(E17="HI",2,IF(E17="LO",6,10))+IF(T17=1,2,IF(D17=7,1,(IF(WEEKDAY(B17)=1,2,IF(WEEKDAY(B17)=7,1,0)))))) -> 2
B18: 2025-04-01 | C18: 14 | D18: =IFERROR((INDEX(METADATA!$T$2:$T$20,MATCH(B18,METADATA!$S$2:$S$20,0))),0) -> 0 | E18: LO | F18: =VLOOKUP(C18,METADATA!$A$5:$H$29,IF(E18="HI",2,IF(E18="LO",6,10))+IF(D18=1,2,IF(D18=7,1,(IF(WEEKDAY(B18)=1,2,IF(WEEKDAY(B18)=7,1,0)))))) -> 2 | G18: =VLOOKUP(C18,METADATA!$J$5:$Q$29,IF(E18="HI",2,IF(E18="LO",6,10))+IF(D18=1,2,IF(D18=7,1,(IF(WEEKDAY(B18)=1,2,IF(WEEKDAY(B18)=7,1,0)))))) -> 2 | H18: 12899.64008 | I18: 1868.472969 | M18: 13034.25891 | N18: 0 | P18: Peak | Q18: =(TOU_Low_Peak_Exist_TOU+TOU_High_Peak_Exist_TOU)/Annual_Total_Energy_Exist_TOU -> 0.1442638101 | R18: =(TOU_Low_Peak_New_TOU+TOU_High_Peak_New_TOU)/Annual_Total_Energy_New_TOU -> 0.1454572586 | T18: 0 | U18: =VLOOKUP(C18,METADATA!$J$5:$Q$29,IF(E18="HI",2,IF(E18="LO",6,10))+IF(T18=1,2,IF(D18=7,1,(IF(WEEKDAY(B18)=1,2,IF(WEEKDAY(B18)=7,1,0)))))) -> 2 | V18: =VLOOKUP(C18,METADATA!$A$5:$H$29,IF(E18="HI",2,IF(E18="LO",6,10))+IF(T18=1,2,IF(D18=7,1,(IF(WEEKDAY(B18)=1,2,IF(WEEKDAY(B18)=7,1,0)))))) -> 2
B19: 2025-04-01 | C19: 15 | D19: =IFERROR((INDEX(METADATA!$T$2:$T$20,MATCH(B19,METADATA!$S$2:$S$20,0))),0) -> 0 | E19: LO | F19: =VLOOKUP(C19,METADATA!$A$5:$H$29,IF(E19="HI",2,IF(E19="LO",6,10))+IF(D19=1,2,IF(D19=7,1,(IF(WEEKDAY(B19)=1,2,IF(WEEKDAY(B19)=7,1,0)))))) -> 2 | G19: =VLOOKUP(C19,METADATA!$J$5:$Q$29,IF(E19="HI",2,IF(E19="LO",6,10))+IF(D19=1,2,IF(D19=7,1,(IF(WEEKDAY(B19)=1,2,IF(WEEKDAY(B19)=7,1,0)))))) -> 2 | H19: 13597.0296 | I19: 2196.695057 | M19: 13773.33232 | N19: 0 | P19: Standard | Q19: =(TOU_Low_Standard_Exist_TOU+TOU_High_Standard_Exist_TOU)/Annual_Total_Energy_Exist_TOU -> 0.3619285537 | R19: =(TOU_Low_Standard_New_TOU+TOU_High_Standard_New_TOU)/Annual_Total_Energy_New_TOU -> 0.3728057833 | T19: 0 | U19: =VLOOKUP(C19,METADATA!$J$5:$Q$29,IF(E19="HI",2,IF(E19="LO",6,10))+IF(T19=1,2,IF(D19=7,1,(IF(WEEKDAY(B19)=1,2,IF(WEEKDAY(B19)=7,1,0)))))) -> 2 | V19: =VLOOKUP(C19,METADATA!$A$5:$H$29,IF(E19="HI",2,IF(E19="LO",6,10))+IF(T19=1,2,IF(D19=7,1,(IF(WEEKDAY(B19)=1,2,IF(WEEKDAY(B19)=7,1,0)))))) -> 2
B20: 2025-04-01 | C20: 16 | D20: =IFERROR((INDEX(METADATA!$T$2:$T$20,MATCH(B20,METADATA!$S$2:$S$20,0))),0) -> 0 | E20: LO | F20: =VLOOKUP(C20,METADATA!$A$5:$H$29,IF(E20="HI",2,IF(E20="LO",6,10))+IF(D20=1,2,IF(D20=7,1,(IF(WEEKDAY(B20)=1,2,IF(WEEKDAY(B20)=7,1,0)))))) -> 2 | G20: =VLOOKUP(C20,METADATA!$J$5:$Q$29,IF(E20="HI",2,IF(E20="LO",6,10))+IF(D20=1,2,IF(D20=7,1,(IF(WEEKDAY(B20)=1,2,IF(WEEKDAY(B20)=7,1,0)))))) -> 2 | H20: 13477.72485 | I20: 2133.337982 | M20: 13645.51934 | N20: 0 | P20: Off peak | Q20: =(TOU_Low_OffPeak_Exist_TOU+TOU_High_OffPeak_Exist_TOU)/Annual_Total_Energy_Exist_TOU -> 0.4938076362 | R20: =(TOU_Low_OffPeak_New_TOU+TOU_High_OffPeak_New_TOU)/Annual_Total_Energy_New_TOU -> 0.4817369581 | T20: 0 | U20: =VLOOKUP(C20,METADATA!$J$5:$Q$29,IF(E20="HI",2,IF(E20="LO",6,10))+IF(T20=1,2,IF(D20=7,1,(IF(WEEKDAY(B20)=1,2,IF(WEEKDAY(B20)=7,1,0)))))) -> 2 | V20: =VLOOKUP(C20,METADATA!$A$5:$H$29,IF(E20="HI",2,IF(E20="LO",6,10))+IF(T20=1,2,IF(D20=7,1,(IF(WEEKDAY(B20)=1,2,IF(WEEKDAY(B20)=7,1,0)))))) -> 2
B21: 2025-04-01 | C21: 17 | D21: =IFERROR((INDEX(METADATA!$T$2:$T$20,MATCH(B21,METADATA!$S$2:$S$20,0))),0) -> 0 | E21: LO | F21: =VLOOKUP(C21,METADATA!$A$5:$H$29,IF(E21="HI",2,IF(E21="LO",6,10))+IF(D21=1,2,IF(D21=7,1,(IF(WEEKDAY(B21)=1,2,IF(WEEKDAY(B21)=7,1,0)))))) -> 2 | G21: =VLOOKUP(C21,METADATA!$J$5:$Q$29,IF(E21="HI",2,IF(E21="LO",6,10))+IF(D21=1,2,IF(D21=7,1,(IF(WEEKDAY(B21)=1,2,IF(WEEKDAY(B21)=7,1,0)))))) -> 2 | H21: 13554.88483 | I21: 1996.727432 | M21: 13701.16138 | N21: 0 | T21: 0 | U21: =VLOOKUP(C21,METADATA!$J$5:$Q$29,IF(E21="HI",2,IF(E21="LO",6,10))+IF(T21=1,2,IF(D21=7,1,(IF(WEEKDAY(B21)=1,2,IF(WEEKDAY(B21)=7,1,0)))))) -> 2 | V21: =VLOOKUP(C21,METADATA!$A$5:$H$29,IF(E21="HI",2,IF(E21="LO",6,10))+IF(T21=1,2,IF(D21=7,1,(IF(WEEKDAY(B21)=1,2,IF(WEEKDAY(B21)=7,1,0)))))) -> 2
B22: 2025-04-01 | C22: 18 | D22: =IFERROR((INDEX(METADATA!$T$2:$T$20,MATCH(B22,METADATA!$S$2:$S$20,0))),0) -> 0 | E22: LO | F22: =VLOOKUP(C22,METADATA!$A$5:$H$29,IF(E22="HI",2,IF(E22="LO",6,10))+IF(D22=1,2,IF(D22=7,1,(IF(WEEKDAY(B22)=1,2,IF(WEEKDAY(B22)=7,1,0)))))) -> 1 | G22: =VLOOKUP(C22,METADATA!$J$5:$Q$29,IF(E22="HI",2,IF(E22="LO",6,10))+IF(D22=1,2,IF(D22=7,1,(IF(WEEKDAY(B22)=1,2,IF(WEEKDAY(B22)=7,1,0)))))) -> 1 | H22: 13541.54987 | I22: 1935.720016 | M22: 13679.20264 | N22: 0 | T22: 0 | U22: =VLOOKUP(C22,METADATA!$J$5:$Q$29,IF(E22="HI",2,IF(E22="LO",6,10))+IF(T22=1,2,IF(D22=7,1,(IF(WEEKDAY(B22)=1,2,IF(WEEKDAY(B22)=7,1,0)))))) -> 1 | V22: =VLOOKUP(C22,METADATA!$A$5:$H$29,IF(E22="HI",2,IF(E22="LO",6,10))+IF(T22=1,2,IF(D22=7,1,(IF(WEEKDAY(B22)=1,2,IF(WEEKDAY(B22)=7,1,0)))))) -> 1
B23: 2025-04-01 | C23: 19 | D23: =IFERROR((INDEX(METADATA!$T$2:$T$20,MATCH(B23,METADATA!$S$2:$S$20,0))),0) -> 0 | E23: LO | F23: =VLOOKUP(C23,METADATA!$A$5:$H$29,IF(E23="HI",2,IF(E23="LO",6,10))+IF(D23=1,2,IF(D23=7,1,(IF(WEEKDAY(B23)=1,2,IF(WEEKDAY(B23)=7,1,0)))))) -> 1 | G23: =VLOOKUP(C23,METADATA!$J$5:$Q$29,IF(E23="HI",2,IF(E23="LO",6,10))+IF(D23=1,2,IF(D23=7,1,(IF(WEEKDAY(B23)=1,2,IF(WEEKDAY(B23)=7,1,0)))))) -> 1 | H23: 13134.84528 | I23: 1672.82297 | M23: 13240.94019 | N23: 0 | T23: 0 | U23: =VLOOKUP(C23,METADATA!$J$5:$Q$29,IF(E23="HI",2,IF(E23="LO",6,10))+IF(T23=1,2,IF(D23=7,1,(IF(WEEKDAY(B23)=1,2,IF(WEEKDAY(B23)=7,1,0)))))) -> 1 | V23: =VLOOKUP(C23,METADATA!$A$5:$H$29,IF(E23="HI",2,IF(E23="LO",6,10))+IF(T23=1,2,IF(D23=7,1,(IF(WEEKDAY(B23)=1,2,IF(WEEKDAY(B23)=7,1,0)))))) -> 1
B24: 2025-04-01 | C24: 20 | D24: =IFERROR((INDEX(METADATA!$T$2:$T$20,MATCH(B24,METADATA!$S$2:$S$20,0))),0) -> 0 | E24: LO | F24: =VLOOKUP(C24,METADATA!$A$5:$H$29,IF(E24="HI",2,IF(E24="LO",6,10))+IF(D24=1,2,IF(D24=7,1,(IF(WEEKDAY(B24)=1,2,IF(WEEKDAY(B24)=7,1,0)))))) -> 1 | G24: =VLOOKUP(C24,METADATA!$J$5:$Q$29,IF(E24="HI",2,IF(E24="LO",6,10))+IF(D24=1,2,IF(D24=7,1,(IF(WEEKDAY(B24)=1,2,IF(WEEKDAY(B24)=7,1,0)))))) -> 2 | H24: 13216.10492 | I24: 1754.905015 | M24: 13332.10864 | N24: 0 | P24: Peak | Q24: 1 | T24: 0 | U24: =VLOOKUP(C24,METADATA!$J$5:$Q$29,IF(E24="HI",2,IF(E24="LO",6,10))+IF(T24=1,2,IF(D24=7,1,(IF(WEEKDAY(B24)=1,2,IF(WEEKDAY(B24)=7,1,0)))))) -> 2 | V24: =VLOOKUP(C24,METADATA!$A$5:$H$29,IF(E24="HI",2,IF(E24="LO",6,10))+IF(T24=1,2,IF(D24=7,1,(IF(WEEKDAY(B24)=1,2,IF(WEEKDAY(B24)=7,1,0)))))) -> 1
B25: 2025-04-01 | C25: 21 | D25: =IFERROR((INDEX(METADATA!$T$2:$T$20,MATCH(B25,METADATA!$S$2:$S$20,0))),0) -> 0 | E25: LO | F25: =VLOOKUP(C25,METADATA!$A$5:$H$29,IF(E25="HI",2,IF(E25="LO",6,10))+IF(D25=1,2,IF(D25=7,1,(IF(WEEKDAY(B25)=1,2,IF(WEEKDAY(B25)=7,1,0)))))) -> 2 | G25: =VLOOKUP(C25,METADATA!$J$5:$Q$29,IF(E25="HI",2,IF(E25="LO",6,10))+IF(D25=1,2,IF(D25=7,1,(IF(WEEKDAY(B25)=1,2,IF(WEEKDAY(B25)=7,1,0)))))) -> 2 | H25: 13379.79474 | I25: 1770.694497 | M25: 13496.45384 | N25: 0 | P25: Std | Q25: 2 | T25: 0 | U25: =VLOOKUP(C25,METADATA!$J$5:$Q$29,IF(E25="HI",2,IF(E25="LO",6,10))+IF(T25=1,2,IF(D25=7,1,(IF(WEEKDAY(B25)=1,2,IF(WEEKDAY(B25)=7,1,0)))))) -> 2 | V25: =VLOOKUP(C25,METADATA!$A$5:$H$29,IF(E25="HI",2,IF(E25="LO",6,10))+IF(T25=1,2,IF(D25=7,1,(IF(WEEKDAY(B25)=1,2,IF(WEEKDAY(B25)=7,1,0)))))) -> 2
B26: 2025-04-01 | C26: 22 | D26: =IFERROR((INDEX(METADATA!$T$2:$T$20,MATCH(B26,METADATA!$S$2:$S$20,0))),0) -> 0 | E26: LO | F26: =VLOOKUP(C26,METADATA!$A$5:$H$29,IF(E26="HI",2,IF(E26="LO",6,10))+IF(D26=1,2,IF(D26=7,1,(IF(WEEKDAY(B26)=1,2,IF(WEEKDAY(B26)=7,1,0)))))) -> 3 | G26: =VLOOKUP(C26,METADATA!$J$5:$Q$29,IF(E26="HI",2,IF(E26="LO",6,10))+IF(D26=1,2,IF(D26=7,1,(IF(WEEKDAY(B26)=1,2,IF(WEEKDAY(B26)=7,1,0)))))) -> 3 | H26: 13383.70483 | I26: 1810.034527 | M26: 13505.54627 | N26: 0 | P26: Off-peak | Q26: 3 | T26: 0 | U26: =VLOOKUP(C26,METADATA!$J$5:$Q$29,IF(E26="HI",2,IF(E26="LO",6,10))+IF(T26=1,2,IF(D26=7,1,(IF(WEEKDAY(B26)=1,2,IF(WEEKDAY(B26)=7,1,0)))))) -> 3 | V26: =VLOOKUP(C26,METADATA!$A$5:$H$29,IF(E26="HI",2,IF(E26="LO",6,10))+IF(T26=1,2,IF(D26=7,1,(IF(WEEKDAY(B26)=1,2,IF(WEEKDAY(B26)=7,1,0)))))) -> 3
B27: 2025-04-01 | C27: 23 | D27: =IFERROR((INDEX(METADATA!$T$2:$T$20,MATCH(B27,METADATA!$S$2:$S$20,0))),0) -> 0 | E27: LO | F27: =VLOOKUP(C27,METADATA!$A$5:$H$29,IF(E27="HI",2,IF(E27="LO",6,10))+IF(D27=1,2,IF(D27=7,1,(IF(WEEKDAY(B27)=1,2,IF(WEEKDAY(B27)=7,1,0)))))) -> 3 | G27: =VLOOKUP(C27,METADATA!$J$5:$Q$29,IF(E27="HI",2,IF(E27="LO",6,10))+IF(D27=1,2,IF(D27=7,1,(IF(WEEKDAY(B27)=1,2,IF(WEEKDAY(B27)=7,1,0)))))) -> 3 | H27: 13447.73535 | I27: 1862.062988 | M27: 13576.04009 | N27: 0 | T27: 0 | U27: =VLOOKUP(C27,METADATA!$J$5:$Q$29,IF(E27="HI",2,IF(E27="LO",6,10))+IF(T27=1,2,IF(D27=7,1,(IF(WEEKDAY(B27)=1,2,IF(WEEKDAY(B27)=7,1,0)))))) -> 3 | V27: =VLOOKUP(C27,METADATA!$A$5:$H$29,IF(E27="HI",2,IF(E27="LO",6,10))+IF(T27=1,2,IF(D27=7,1,(IF(WEEKDAY(B27)=1,2,IF(WEEKDAY(B27)=7,1,0)))))) -> 3
B28: =B4+1 -> 2025-04-02 | C28: 0 | D28: =IFERROR((INDEX(METADATA!$T$2:$T$20,MATCH(B28,METADATA!$S$2:$S$20,0))),0) -> 0 | E28: LO | F28: =VLOOKUP(C28,METADATA!$A$5:$H$29,IF(E28="HI",2,IF(E28="LO",6,10))+IF(D28=1,2,IF(D28=7,1,(IF(WEEKDAY(B28)=1,2,IF(WEEKDAY(B28)=7,1,0)))))) -> 3 | G28: =VLOOKUP(C28,METADATA!$J$5:$Q$29,IF(E28="HI",2,IF(E28="LO",6,10))+IF(D28=1,2,IF(D28=7,1,(IF(WEEKDAY(B28)=1,2,IF(WEEKDAY(B28)=7,1,0)))))) -> 3 | H28: 13470.89984 | I28: 1906.846512 | M28: 13605.19041 | N28: 0 | P28: Low | Q28: LO | T28: 0 | U28: =VLOOKUP(C28,METADATA!$J$5:$Q$29,IF(E28="HI",2,IF(E28="LO",6,10))+IF(T28=1,2,IF(D28=7,1,(IF(WEEKDAY(B28)=1,2,IF(WEEKDAY(B28)=7,1,0)))))) -> 3 | V28: =VLOOKUP(C28,METADATA!$A$5:$H$29,IF(E28="HI",2,IF(E28="LO",6,10))+IF(T28=1,2,IF(D28=7,1,(IF(WEEKDAY(B28)=1,2,IF(WEEKDAY(B28)=7,1,0)))))) -> 3
B29: 2025-04-02 | C29: 1 | D29: =IFERROR((INDEX(METADATA!$T$2:$T$20,MATCH(B29,METADATA!$S$2:$S$20,0))),0) -> 0 | E29: LO | F29: =VLOOKUP(C29,METADATA!$A$5:$H$29,IF(E29="HI",2,IF(E29="LO",6,10))+IF(D29=1,2,IF(D29=7,1,(IF(WEEKDAY(B29)=1,2,IF(WEEKDAY(B29)=7,1,0)))))) -> 3 | G29: =VLOOKUP(C29,METADATA!$J$5:$Q$29,IF(E29="HI",2,IF(E29="LO",6,10))+IF(D29=1,2,IF(D29=7,1,(IF(WEEKDAY(B29)=1,2,IF(WEEKDAY(B29)=7,1,0)))))) -> 3 | H29: 13567.50494 | I29: 1976.473562 | M29: 13710.71253 | N29: 0 | P29: High | Q29: HI | T29: 0 | U29: =VLOOKUP(C29,METADATA!$J$5:$Q$29,IF(E29="HI",2,IF(E29="LO",6,10))+IF(T29=1,2,IF(D29=7,1,(IF(WEEKDAY(B29)=1,2,IF(WEEKDAY(B29)=7,1,0)))))) -> 3 | V29: =VLOOKUP(C29,METADATA!$A$5:$H$29,IF(E29="HI",2,IF(E29="LO",6,10))+IF(T29=1,2,IF(D29=7,1,(IF(WEEKDAY(B29)=1,2,IF(WEEKDAY(B29)=7,1,0)))))) -> 3
B30: 2025-04-02 | C30: 2 | D30: =IFERROR((INDEX(METADATA!$T$2:$T$20,MATCH(B30,METADATA!$S$2:$S$20,0))),0) -> 0 | E30: LO | F30: =VLOOKUP(C30,METADATA!$A$5:$H$29,IF(E30="HI",2,IF(E30="LO",6,10))+IF(D30=1,2,IF(D30=7,1,(IF(WEEKDAY(B30)=1,2,IF(WEEKDAY(B30)=7,1,0)))))) -> 3 | G30: =VLOOKUP(C30,METADATA!$J$5:$Q$29,IF(E30="HI",2,IF(E30="LO",6,10))+IF(D30=1,2,IF(D30=7,1,(IF(WEEKDAY(B30)=1,2,IF(WEEKDAY(B30)=7,1,0)))))) -> 3 | H30: 13631.89001 | I30: 2006.878967 | M30: 13778.82392 | N30: 0 | T30: 0 | U30: =VLOOKUP(C30,METADATA!$J$5:$Q$29,IF(E30="HI",2,IF(E30="LO",6,10))+IF(T30=1,2,IF(D30=7,1,(IF(WEEKDAY(B30)=1,2,IF(WEEKDAY(B30)=7,1,0)))))) -> 3 | V30: =VLOOKUP(C30,METADATA!$A$5:$H$29,IF(E30="HI",2,IF(E30="LO",6,10))+IF(T30=1,2,IF(D30=7,1,(IF(WEEKDAY(B30)=1,2,IF(WEEKDAY(B30)=7,1,0)))))) -> 3
B31: 2025-04-02 | C31: 3 | D31: =IFERROR((INDEX(METADATA!$T$2:$T$20,MATCH(B31,METADATA!$S$2:$S$20,0))),0) -> 0 | E31: LO | F31: =VLOOKUP(C31,METADATA!$A$5:$H$29,IF(E31="HI",2,IF(E31="LO",6,10))+IF(D31=1,2,IF(D31=7,1,(IF(WEEKDAY(B31)=1,2,IF(WEEKDAY(B31)=7,1,0)))))) -> 3 | G31: =VLOOKUP(C31,METADATA!$J$5:$Q$29,IF(E31="HI",2,IF(E31="LO",6,10))+IF(D31=1,2,IF(D31=7,1,(IF(WEEKDAY(B31)=1,2,IF(WEEKDAY(B31)=7,1,0)))))) -> 3 | H31: 13573.00452 | I31: 2013.911518 | M31: 13721.59944 | N31: 0 | P31: Public holidays | Q31: 1 | T31: 0 | U31: =VLOOKUP(C31,METADATA!$J$5:$Q$29,IF(E31="HI",2,IF(E31="LO",6,10))+IF(T31=1,2,IF(D31=7,1,(IF(WEEKDAY(B31)=1,2,IF(WEEKDAY(B31)=7,1,0)))))) -> 3 | V31: =VLOOKUP(C31,METADATA!$A$5:$H$29,IF(E31="HI",2,IF(E31="LO",6,10))+IF(T31=1,2,IF(D31=7,1,(IF(WEEKDAY(B31)=1,2,IF(WEEKDAY(B31)=7,1,0)))))) -> 3
B32: 2025-04-02 | C32: 4 | D32: =IFERROR((INDEX(METADATA!$T$2:$T$20,MATCH(B32,METADATA!$S$2:$S$20,0))),0) -> 0 | E32: LO | F32: =VLOOKUP(C32,METADATA!$A$5:$H$29,IF(E32="HI",2,IF(E32="LO",6,10))+IF(D32=1,2,IF(D32=7,1,(IF(WEEKDAY(B32)=1,2,IF(WEEKDAY(B32)=7,1,0)))))) -> 3 | G32: =VLOOKUP(C32,METADATA!$J$5:$Q$29,IF(E32="HI",2,IF(E32="LO",6,10))+IF(D32=1,2,IF(D32=7,1,(IF(WEEKDAY(B32)=1,2,IF(WEEKDAY(B32)=7,1,0)))))) -> 3 | H32: 13487.19 | I32: 1980.720001 | M32: 13631.85776 | N32: 0 | P32: Public holidays | Q32: 7 | T32: 0 | U32: =VLOOKUP(C32,METADATA!$J$5:$Q$29,IF(E32="HI",2,IF(E32="LO",6,10))+IF(T32=1,2,IF(D32=7,1,(IF(WEEKDAY(B32)=1,2,IF(WEEKDAY(B32)=7,1,0)))))) -> 3 | V32: =VLOOKUP(C32,METADATA!$A$5:$H$29,IF(E32="HI",2,IF(E32="LO",6,10))+IF(T32=1,2,IF(D32=7,1,(IF(WEEKDAY(B32)=1,2,IF(WEEKDAY(B32)=7,1,0)))))) -> 3
B33: 2025-04-02 | C33: 5 | D33: =IFERROR((INDEX(METADATA!$T$2:$T$20,MATCH(B33,METADATA!$S$2:$S$20,0))),0) -> 0 | E33: LO | F33: =VLOOKUP(C33,METADATA!$A$5:$H$29,IF(E33="HI",2,IF(E33="LO",6,10))+IF(D33=1,2,IF(D33=7,1,(IF(WEEKDAY(B33)=1,2,IF(WEEKDAY(B33)=7,1,0)))))) -> 3 | G33: =VLOOKUP(C33,METADATA!$J$5:$Q$29,IF(E33="HI",2,IF(E33="LO",6,10))+IF(D33=1,2,IF(D33=7,1,(IF(WEEKDAY(B33)=1,2,IF(WEEKDAY(B33)=7,1,0)))))) -> 3 | H33: 13520.59003 | I33: 1958.304989 | M33: 13661.67314 | N33: 0 | P33: Normal day | Q33: 0 | T33: 0 | U33: =VLOOKUP(C33,METADATA!$J$5:$Q$29,IF(E33="HI",2,IF(E33="LO",6,10))+IF(T33=1,2,IF(D33=7,1,(IF(WEEKDAY(B33)=1,2,IF(WEEKDAY(B33)=7,1,0)))))) -> 3 | V33: =VLOOKUP(C33,METADATA!$A$5:$H$29,IF(E33="HI",2,IF(E33="LO",6,10))+IF(T33=1,2,IF(D33=7,1,(IF(WEEKDAY(B33)=1,2,IF(WEEKDAY(B33)=7,1,0)))))) -> 3
B34: 2025-04-02 | C34: 6 | D34: =IFERROR((INDEX(METADATA!$T$2:$T$20,MATCH(B34,METADATA!$S$2:$S$20,0))),0) -> 0 | E34: LO | F34: =VLOOKUP(C34,METADATA!$A$5:$H$29,IF(E34="HI",2,IF(E34="LO",6,10))+IF(D34=1,2,IF(D34=7,1,(IF(WEEKDAY(B34)=1,2,IF(WEEKDAY(B34)=7,1,0)))))) -> 2 | G34: =VLOOKUP(C34,METADATA!$J$5:$Q$29,IF(E34="HI",2,IF(E34="LO",6,10))+IF(D34=1,2,IF(D34=7,1,(IF(WEEKDAY(B34)=1,2,IF(WEEKDAY(B34)=7,1,0)))))) -> 2 | H34: 13526.26709 | I34: 1961.926983 | M34: 13667.81105 | N34: 0 | T34: 0 | U34: =VLOOKUP(C34,METADATA!$J$5:$Q$29,IF(E34="HI",2,IF(E34="LO",6,10))+IF(T34=1,2,IF(D34=7,1,(IF(WEEKDAY(B34)=1,2,IF(WEEKDAY(B34)=7,1,0)))))) -> 2 | V34: =VLOOKUP(C34,METADATA!$A$5:$H$29,IF(E34="HI",2,IF(E34="LO",6,10))+IF(T34=1,2,IF(D34=7,1,(IF(WEEKDAY(B34)=1,2,IF(WEEKDAY(B34)=7,1,0)))))) -> 2
B35: 2025-04-02 | C35: 7 | D35: =IFERROR((INDEX(METADATA!$T$2:$T$20,MATCH(B35,METADATA!$S$2:$S$20,0))),0) -> 0 | E35: LO | F35: =VLOOKUP(C35,METADATA!$A$5:$H$29,IF(E35="HI",2,IF(E35="LO",6,10))+IF(D35=1,2,IF(D35=7,1,(IF(WEEKDAY(B35)=1,2,IF(WEEKDAY(B35)=7,1,0)))))) -> 1 | G35: =VLOOKUP(C35,METADATA!$J$5:$Q$29,IF(E35="HI",2,IF(E35="LO",6,10))+IF(D35=1,2,IF(D35=7,1,(IF(WEEKDAY(B35)=1,2,IF(WEEKDAY(B35)=7,1,0)))))) -> 1 | H35: 13572.84955 | I35: 1914.743931 | M35: 13707.24222 | N35: 0 | P35: Period | Q35: Hourly data (0-23) | T35: 0 | U35: =VLOOKUP(C35,METADATA!$J$5:$Q$29,IF(E35="HI",2,IF(E35="LO",6,10))+IF(T35=1,2,IF(D35=7,1,(IF(WEEKDAY(B35)=1,2,IF(WEEKDAY(B35)=7,1,0)))))) -> 1 | V35: =VLOOKUP(C35,METADATA!$A$5:$H$29,IF(E35="HI",2,IF(E35="LO",6,10))+IF(T35=1,2,IF(D35=7,1,(IF(WEEKDAY(B35)=1,2,IF(WEEKDAY(B35)=7,1,0)))))) -> 1
B36: 2025-04-02 | C36: 8 | D36: =IFERROR((INDEX(METADATA!$T$2:$T$20,MATCH(B36,METADATA!$S$2:$S$20,0))),0) -> 0 | E36: LO | F36: =VLOOKUP(C36,METADATA!$A$5:$H$29,IF(E36="HI",2,IF(E36="LO",6,10))+IF(D36=1,2,IF(D36=7,1,(IF(WEEKDAY(B36)=1,2,IF(WEEKDAY(B36)=7,1,0)))))) -> 1 | G36: =VLOOKUP(C36,METADATA!$J$5:$Q$29,IF(E36="HI",2,IF(E36="LO",6,10))+IF(D36=1,2,IF(D36=7,1,(IF(WEEKDAY(B36)=1,2,IF(WEEKDAY(B36)=7,1,0)))))) -> 1 | H36: 13606.57471 | I36: 1911.239956 | M36: 13740.14969 | N36: 0 | T36: 0 | U36: =VLOOKUP(C36,METADATA!$J$5:$Q$29,IF(E36="HI",2,IF(E36="LO",6,10))+IF(T36=1,2,IF(D36=7,1,(IF(WEEKDAY(B36)=1,2,IF(WEEKDAY(B36)=7,1,0)))))) -> 1 | V36: =VLOOKUP(C36,METADATA!$A$5:$H$29,IF(E36="HI",2,IF(E36="LO",6,10))+IF(T36=1,2,IF(D36=7,1,(IF(WEEKDAY(B36)=1,2,IF(WEEKDAY(B36)=7,1,0)))))) -> 1
B37: 2025-04-02 | C37: 9 | D37: =IFERROR((INDEX(METADATA!$T$2:$T$20,MATCH(B37,METADATA!$S$2:$S$20,0))),0) -> 0 | E37: LO | F37: =VLOOKUP(C37,METADATA!$A$5:$H$29,IF(E37="HI",2,IF(E37="LO",6,10))+IF(D37=1,2,IF(D37=7,1,(IF(WEEKDAY(B37)=1,2,IF(WEEKDAY(B37)=7,1,0)))))) -> 2 | G37: =VLOOKUP(C37,METADATA!$J$5:$Q$29,IF(E37="HI",2,IF(E37="LO",6,10))+IF(D37=1,2,IF(D37=7,1,(IF(WEEKDAY(B37)=1,2,IF(WEEKDAY(B37)=7,1,0)))))) -> 1 | H37: 13744.20007 | I37: 1979.06456 | M37: 13885.95449 | N37: 0 | T37: 0 | U37: =VLOOKUP(C37,METADATA!$J$5:$Q$29,IF(E37="HI",2,IF(E37="LO",6,10))+IF(T37=1,2,IF(D37=7,1,(IF(WEEKDAY(B37)=1,2,IF(WEEKDAY(B37)=7,1,0)))))) -> 1 | V37: =VLOOKUP(C37,METADATA!$A$5:$H$29,IF(E37="HI",2,IF(E37="LO",6,10))+IF(T37=1,2,IF(D37=7,1,(IF(WEEKDAY(B37)=1,2,IF(WEEKDAY(B37)=7,1,0)))))) -> 2
B38: 2025-04-02 | C38: 10 | D38: =IFERROR((INDEX(METADATA!$T$2:$T$20,MATCH(B38,METADATA!$S$2:$S$20,0))),0) -> 0 | E38: LO | F38: =VLOOKUP(C38,METADATA!$A$5:$H$29,IF(E38="HI",2,IF(E38="LO",6,10))+IF(D38=1,2,IF(D38=7,1,(IF(WEEKDAY(B38)=1,2,IF(WEEKDAY(B38)=7,1,0)))))) -> 2 | G38: =VLOOKUP(C38,METADATA!$J$5:$Q$29,IF(E38="HI",2,IF(E38="LO",6,10))+IF(D38=1,2,IF(D38=7,1,(IF(WEEKDAY(B38)=1,2,IF(WEEKDAY(B38)=7,1,0)))))) -> 2 | H38: 13738.35474 | I38: 1995.241005 | M38: 13882.48456 | N38: 0 | T38: 0 | U38: =VLOOKUP(C38,METADATA!$J$5:$Q$29,IF(E38="HI",2,IF(E38="LO",6,10))+IF(T38=1,2,IF(D38=7,1,(IF(WEEKDAY(B38)=1,2,IF(WEEKDAY(B38)=7,1,0)))))) -> 2 | V38: =VLOOKUP(C38,METADATA!$A$5:$H$29,IF(E38="HI",2,IF(E38="LO",6,10))+IF(T38=1,2,IF(D38=7,1,(IF(WEEKDAY(B38)=1,2,IF(WEEKDAY(B38)=7,1,0)))))) -> 2
B39: 2025-04-02 | C39: 11 | D39: =IFERROR((INDEX(METADATA!$T$2:$T$20,MATCH(B39,METADATA!$S$2:$S$20,0))),0) -> 0 | E39: LO | F39: =VLOOKUP(C39,METADATA!$A$5:$H$29,IF(E39="HI",2,IF(E39="LO",6,10))+IF(D39=1,2,IF(D39=7,1,(IF(WEEKDAY(B39)=1,2,IF(WEEKDAY(B39)=7,1,0)))))) -> 2 | G39: =VLOOKUP(C39,METADATA!$J$5:$Q$29,IF(E39="HI",2,IF(E39="LO",6,10))+IF(D39=1,2,IF(D39=7,1,(IF(WEEKDAY(B39)=1,2,IF(WEEKDAY(B39)=7,1,0)))))) -> 2 | H39: 13606.04004 | I39: 2088.192471 | M39: 13765.35046 | N39: 0 | T39: 0 | U39: =VLOOKUP(C39,METADATA!$J$5:$Q$29,IF(E39="HI",2,IF(E39="LO",6,10))+IF(T39=1,2,IF(D39=7,1,(IF(WEEKDAY(B39)=1,2,IF(WEEKDAY(B39)=7,1,0)))))) -> 2 | V39: =VLOOKUP(C39,METADATA!$A$5:$H$29,IF(E39="HI",2,IF(E39="LO",6,10))+IF(T39=1,2,IF(D39=7,1,(IF(WEEKDAY(B39)=1,2,IF(WEEKDAY(B39)=7,1,0)))))) -> 2
B40: 2025-04-02 | C40: 12 | D40: =IFERROR((INDEX(METADATA!$T$2:$T$20,MATCH(B40,METADATA!$S$2:$S$20,0))),0) -> 0 | E40: LO | F40: =VLOOKUP(C40,METADATA!$A$5:$H$29,IF(E40="HI",2,IF(E40="LO",6,10))+IF(D40=1,2,IF(D40=7,1,(IF(WEEKDAY(B40)=1,2,IF(WEEKDAY(B40)=7,1,0)))))) -> 2 | G40: =VLOOKUP(C40,METADATA!$J$5:$Q$29,IF(E40="HI",2,IF(E40="LO",6,10))+IF(D40=1,2,IF(D40=7,1,(IF(WEEKDAY(B40)=1,2,IF(WEEKDAY(B40)=7,1,0)))))) -> 2 | H40: 13549.85986 | I40: 2042.39999 | M40: 13702.92305 | N40: 0 | T40: 0 | U40: =VLOOKUP(C40,METADATA!$J$5:$Q$29,IF(E40="HI",2,IF(E40="LO",6,10))+IF(T40=1,2,IF(D40=7,1,(IF(WEEKDAY(B40)=1,2,IF(WEEKDAY(B40)=7,1,0)))))) -> 2 | V40: =VLOOKUP(C40,METADATA!$A$5:$H$29,IF(E40="HI",2,IF(E40="LO",6,10))+IF(T40=1,2,IF(D40=7,1,(IF(WEEKDAY(B40)=1,2,IF(WEEKDAY(B40)=7,1,0)))))) -> 2
B41: 2025-04-02 | C41: 13 | D41: =IFERROR((INDEX(METADATA!$T$2:$T$20,MATCH(B41,METADATA!$S$2:$S$20,0))),0) -> 0 | E41: LO | F41: =VLOOKUP(C41,METADATA!$A$5:$H$29,IF(E41="HI",2,IF(E41="LO",6,10))+IF(D41=1,2,IF(D41=7,1,(IF(WEEKDAY(B41)=1,2,IF(WEEKDAY(B41)=7,1,0)))))) -> 2 | G41: =VLOOKUP(C41,METADATA!$J$5:$Q$29,IF(E41="HI",2,IF(E41="LO",6,10))+IF(D41=1,2,IF(D41=7,1,(IF(WEEKDAY(B41)=1,2,IF(WEEKDAY(B41)=7,1,0)))))) -> 2 | H41: 13475.47504 | I41: 2001.6455 | M41: 13623.32603 | N41: 0 | T41: 0 | U41: =VLOOKUP(C41,METADATA!$J$5:$Q$29,IF(E41="HI",2,IF(E41="LO",6,10))+IF(T41=1,2,IF(D41=7,1,(IF(WEEKDAY(B41)=1,2,IF(WEEKDAY(B41)=7,1,0)))))) -> 2 | V41: =VLOOKUP(C41,METADATA!$A$5:$H$29,IF(E41="HI",2,IF(E41="LO",6,10))+IF(T41=1,2,IF(D41=7,1,(IF(WEEKDAY(B41)=1,2,IF(WEEKDAY(B41)=7,1,0)))))) -> 2
B42: 2025-04-02 | C42: 14 | D42: =IFERROR((INDEX(METADATA!$T$2:$T$20,MATCH(B42,METADATA!$S$2:$S$20,0))),0) -> 0 | E42: LO | F42: =VLOOKUP(C42,METADATA!$A$5:$H$29,IF(E42="HI",2,IF(E42="LO",6,10))+IF(D42=1,2,IF(D42=7,1,(IF(WEEKDAY(B42)=1,2,IF(WEEKDAY(B42)=7,1,0)))))) -> 2 | G42: =VLOOKUP(C42,METADATA!$J$5:$Q$29,IF(E42="HI",2,IF(E42="LO",6,10))+IF(D42=1,2,IF(D42=7,1,(IF(WEEKDAY(B42)=1,2,IF(WEEKDAY(B42)=7,1,0)))))) -> 2 | H42: 13540.84528 | I42: 2047.512054 | M42: 13694.77259 | N42: 0 | T42: 0 | U42: =VLOOKUP(C42,METADATA!$J$5:$Q$29,IF(E42="HI",2,IF(E42="LO",6,10))+IF(T42=1,2,IF(D42=7,1,(IF(WEEKDAY(B42)=1,2,IF(WEEKDAY(B42)=7,1,0)))))) -> 2 | V42: =VLOOKUP(C42,METADATA!$A$5:$H$29,IF(E42="HI",2,IF(E42="LO",6,10))+IF(T42=1,2,IF(D42=7,1,(IF(WEEKDAY(B42)=1,2,IF(WEEKDAY(B42)=7,1,0)))))) -> 2
B43: 2025-04-02 | C43: 15 | D43: =IFERROR((INDEX(METADATA!$T$2:$T$20,MATCH(B43,METADATA!$S$2:$S$20,0))),0) -> 0 | E43: LO | F43: =VLOOKUP(C43,METADATA!$A$5:$H$29,IF(E43="HI",2,IF(E43="LO",6,10))+IF(D43=1,2,IF(D43=7,1,(IF(WEEKDAY(B43)=1,2,IF(WEEKDAY(B43)=7,1,0)))))) -> 2 | G43: =VLOOKUP(C43,METADATA!$J$5:$Q$29,IF(E43="HI",2,IF(E43="LO",6,10))+IF(D43=1,2,IF(D43=7,1,(IF(WEEKDAY(B43)=1,2,IF(WEEKDAY(B43)=7,1,0)))))) -> 2 | H43: 12428.36505 | I43: 1786.923528 | M43: 12556.16795 | N43: 0 | T43: 0 | U43: =VLOOKUP(C43,METADATA!$J$5:$Q$29,IF(E43="HI",2,IF(E43="LO",6,10))+IF(T43=1,2,IF(D43=7,1,(IF(WEEKDAY(B43)=1,2,IF(WEEKDAY(B43)=7,1,0)))))) -> 2 | V43: =VLOOKUP(C43,METADATA!$A$5:$H$29,IF(E43="HI",2,IF(E43="LO",6,10))+IF(T43=1,2,IF(D43=7,1,(IF(WEEKDAY(B43)=1,2,IF(WEEKDAY(B43)=7,1,0)))))) -> 2
B44: 2025-04-02 | C44: 16 | D44: =IFERROR((INDEX(METADATA!$T$2:$T$20,MATCH(B44,METADATA!$S$2:$S$20,0))),0) -> 0 | E44: LO | F44: =VLOOKUP(C44,METADATA!$A$5:$H$29,IF(E44="HI",2,IF(E44="LO",6,10))+IF(D44=1,2,IF(D44=7,1,(IF(WEEKDAY(B44)=1,2,IF(WEEKDAY(B44)=7,1,0)))))) -> 2 | G44: =VLOOKUP(C44,METADATA!$J$5:$Q$29,IF(E44="HI",2,IF(E44="LO",6,10))+IF(D44=1,2,IF(D44=7,1,(IF(WEEKDAY(B44)=1,2,IF(WEEKDAY(B44)=7,1,0)))))) -> 2 | H44: 13105.18994 | I44: 1910.036054 | M44: 13243.64909 | N44: 0 | T44: 0 | U44: =VLOOKUP(C44,METADATA!$J$5:$Q$29,IF(E44="HI",2,IF(E44="LO",6,10))+IF(T44=1,2,IF(D44=7,1,(IF(WEEKDAY(B44)=1,2,IF(WEEKDAY(B44)=7,1,0)))))) -> 2 | V44: =VLOOKUP(C44,METADATA!$A$5:$H$29,IF(E44="HI",2,IF(E44="LO",6,10))+IF(T44=1,2,IF(D44=7,1,(IF(WEEKDAY(B44)=1,2,IF(WEEKDAY(B44)=7,1,0)))))) -> 2
B45: 2025-04-02 | C45: 17 | D45: =IFERROR((INDEX(METADATA!$T$2:$T$20,MATCH(B45,METADATA!$S$2:$S$20,0))),0) -> 0 | E45: LO | F45: =VLOOKUP(C45,METADATA!$A$5:$H$29,IF(E45="HI",2,IF(E45="LO",6,10))+IF(D45=1,2,IF(D45=7,1,(IF(WEEKDAY(B45)=1,2,IF(WEEKDAY(B45)=7,1,0)))))) -> 2 | G45: =VLOOKUP(C45,METADATA!$J$5:$Q$29,IF(E45="HI",2,IF(E45="LO",6,10))+IF(D45=1,2,IF(D45=7,1,(IF(WEEKDAY(B45)=1,2,IF(WEEKDAY(B45)=7,1,0)))))) -> 2 | H45: 13417.85529 | I45: 2002.659504 | M45: 13566.48391 | N45: 0 | T45: 0 | U45: =VLOOKUP(C45,METADATA!$J$5:$Q$29,IF(E45="HI",2,IF(E45="LO",6,10))+IF(T45=1,2,IF(D45=7,1,(IF(WEEKDAY(B45)=1,2,IF(WEEKDAY(B45)=7,1,0)))))) -> 2 | V45: =VLOOKUP(C45,METADATA!$A$5:$H$29,IF(E45="HI",2,IF(E45="LO",6,10))+IF(T45=1,2,IF(D45=7,1,(IF(WEEKDAY(B45)=1,2,IF(WEEKDAY(B45)=7,1,0)))))) -> 2
B46: 2025-04-02 | C46: 18 | D46: =IFERROR((INDEX(METADATA!$T$2:$T$20,MATCH(B46,METADATA!$S$2:$S$20,0))),0) -> 0 | E46: LO | F46: =VLOOKUP(C46,METADATA!$A$5:$H$29,IF(E46="HI",2,IF(E46="LO",6,10))+IF(D46=1,2,IF(D46=7,1,(IF(WEEKDAY(B46)=1,2,IF(WEEKDAY(B46)=7,1,0)))))) -> 1 | G46: =VLOOKUP(C46,METADATA!$J$5:$Q$29,IF(E46="HI",2,IF(E46="LO",6,10))+IF(D46=1,2,IF(D46=7,1,(IF(WEEKDAY(B46)=1,2,IF(WEEKDAY(B46)=7,1,0)))))) -> 1 | H46: 13304.64996 | I46: 1961.446068 | M46: 13448.45647 | N46: 0 | T46: 0 | U46: =VLOOKUP(C46,METADATA!$J$5:$Q$29,IF(E46="HI",2,IF(E46="LO",6,10))+IF(T46=1,2,IF(D46=7,1,(IF(WEEKDAY(B46)=1,2,IF(WEEKDAY(B46)=7,1,0)))))) -> 1 | V46: =VLOOKUP(C46,METADATA!$A$5:$H$29,IF(E46="HI",2,IF(E46="LO",6,10))+IF(T46=1,2,IF(D46=7,1,(IF(WEEKDAY(B46)=1,2,IF(WEEKDAY(B46)=7,1,0)))))) -> 1
B47: 2025-04-02 | C47: 19 | D47: =IFERROR((INDEX(METADATA!$T$2:$T$20,MATCH(B47,METADATA!$S$2:$S$20,0))),0) -> 0 | E47: LO | F47: =VLOOKUP(C47,METADATA!$A$5:$H$29,IF(E47="HI",2,IF(E47="LO",6,10))+IF(D47=1,2,IF(D47=7,1,(IF(WEEKDAY(B47)=1,2,IF(WEEKDAY(B47)=7,1,0)))))) -> 1 | G47: =VLOOKUP(C47,METADATA!$J$5:$Q$29,IF(E47="HI",2,IF(E47="LO",6,10))+IF(D47=1,2,IF(D47=7,1,(IF(WEEKDAY(B47)=1,2,IF(WEEKDAY(B47)=7,1,0)))))) -> 1 | H47: 13437.25531 | I47: 1781.30401 | M47: 13554.81 | N47: 0 | T47: 0 | U47: =VLOOKUP(C47,METADATA!$J$5:$Q$29,IF(E47="HI",2,IF(E47="LO",6,10))+IF(T47=1,2,IF(D47=7,1,(IF(WEEKDAY(B47)=1,2,IF(WEEKDAY(B47)=7,1,0)))))) -> 1 | V47: =VLOOKUP(C47,METADATA!$A$5:$H$29,IF(E47="HI",2,IF(E47="LO",6,10))+IF(T47=1,2,IF(D47=7,1,(IF(WEEKDAY(B47)=1,2,IF(WEEKDAY(B47)=7,1,0)))))) -> 1
B48: 2025-04-02 | C48: 20 | D48: =IFERROR((INDEX(METADATA!$T$2:$T$20,MATCH(B48,METADATA!$S$2:$S$20,0))),0) -> 0 | E48: LO | F48: =VLOOKUP(C48,METADATA!$A$5:$H$29,IF(E48="HI",2,IF(E48="LO",6,10))+IF(D48=1,2,IF(D48=7,1,(IF(WEEKDAY(B48)=1,2,IF(WEEKDAY(B48)=7,1,0)))))) -> 1 | G48: =VLOOKUP(C48,METADATA!$J$5:$Q$29,IF(E48="HI",2,IF(E48="LO",6,10))+IF(D48=1,2,IF(D48=7,1,(IF(WEEKDAY(B48)=1,2,IF(WEEKDAY(B48)=7,1,0)))))) -> 2 | H48: 13417.4151 | I48: 1666.536488 | M48: 13520.5167 | N48: 0 | T48: 0 | U48: =VLOOKUP(C48,METADATA!$J$5:$Q$29,IF(E48="HI",2,IF(E48="LO",6,10))+IF(T48=1,2,IF(D48=7,1,(IF(WEEKDAY(B48)=1,2,IF(WEEKDAY(B48)=7,1,0)))))) -> 2 | V48: =VLOOKUP(C48,METADATA!$A$5:$H$29,IF(E48="HI",2,IF(E48="LO",6,10))+IF(T48=1,2,IF(D48=7,1,(IF(WEEKDAY(B48)=1,2,IF(WEEKDAY(B48)=7,1,0)))))) -> 1
B49: 2025-04-02 | C49: 21 | D49: =IFERROR((INDEX(METADATA!$T$2:$T$20,MATCH(B49,METADATA!$S$2:$S$20,0))),0) -> 0 | E49: LO | F49: =VLOOKUP(C49,METADATA!$A$5:$H$29,IF(E49="HI",2,IF(E49="LO",6,10))+IF(D49=1,2,IF(D49=7,1,(IF(WEEKDAY(B49)=1,2,IF(WEEKDAY(B49)=7,1,0)))))) -> 2 | G49: =VLOOKUP(C49,METADATA!$J$5:$Q$29,IF(E49="HI",2,IF(E49="LO",6,10))+IF(D49=1,2,IF(D49=7,1,(IF(WEEKDAY(B49)=1,2,IF(WEEKDAY(B49)=7,1,0)))))) -> 2 | H49: 13446.27539 | I49: 1705.008524 | M49: 13553.94319 | N49: 0 | T49: 0 | U49: =VLOOKUP(C49,METADATA!$J$5:$Q$29,IF(E49="HI",2,IF(E49="LO",6,10))+IF(T49=1,2,IF(D49=7,1,(IF(WEEKDAY(B49)=1,2,IF(WEEKDAY(B49)=7,1,0)))))) -> 2 | V49: =VLOOKUP(C49,METADATA!$A$5:$H$29,IF(E49="HI",2,IF(E49="LO",6,10))+IF(T49=1,2,IF(D49=7,1,(IF(WEEKDAY(B49)=1,2,IF(WEEKDAY(B49)=7,1,0)))))) -> 2
B50: 2025-04-02 | C50: 22 | D50: =IFERROR((INDEX(METADATA!$T$2:$T$20,MATCH(B50,METADATA!$S$2:$S$20,0))),0) -> 0 | E50: LO | F50: =VLOOKUP(C50,METADATA!$A$5:$H$29,IF(E50="HI",2,IF(E50="LO",6,10))+IF(D50=1,2,IF(D50=7,1,(IF(WEEKDAY(B50)=1,2,IF(WEEKDAY(B50)=7,1,0)))))) -> 3 | G50: =VLOOKUP(C50,METADATA!$J$5:$Q$29,IF(E50="HI",2,IF(E50="LO",6,10))+IF(D50=1,2,IF(D50=7,1,(IF(WEEKDAY(B50)=1,2,IF(WEEKDAY(B50)=7,1,0)))))) -> 3 | H50: 13421.10974 | I50: 1687.031504 | M50: 13526.72399 | N50: 0 | T50: 0 | U50: =VLOOKUP(C50,METADATA!$J$5:$Q$29,IF(E50="HI",2,IF(E50="LO",6,10))+IF(T50=1,2,IF(D50=7,1,(IF(WEEKDAY(B50)=1,2,IF(WEEKDAY(B50)=7,1,0)))))) -> 3 | V50: =VLOOKUP(C50,METADATA!$A$5:$H$29,IF(E50="HI",2,IF(E50="LO",6,10))+IF(T50=1,2,IF(D50=7,1,(IF(WEEKDAY(B50)=1,2,IF(WEEKDAY(B50)=7,1,0)))))) -> 3
B51: 2025-04-02 | C51: 23 | D51: =IFERROR((INDEX(METADATA!$T$2:$T$20,MATCH(B51,METADATA!$S$2:$S$20,0))),0) -> 0 | E51: LO | F51: =VLOOKUP(C51,METADATA!$A$5:$H$29,IF(E51="HI",2,IF(E51="LO",6,10))+IF(D51=1,2,IF(D51=7,1,(IF(WEEKDAY(B51)=1,2,IF(WEEKDAY(B51)=7,1,0)))))) -> 3 | G51: =VLOOKUP(C51,METADATA!$J$5:$Q$29,IF(E51="HI",2,IF(E51="LO",6,10))+IF(D51=1,2,IF(D51=7,1,(IF(WEEKDAY(B51)=1,2,IF(WEEKDAY(B51)=7,1,0)))))) -> 3 | H51: 13373.2951 | I51: 1693.223956 | M51: 13480.06043 | N51: 0 | T51: 0 | U51: =VLOOKUP(C51,METADATA!$J$5:$Q$29,IF(E51="HI",2,IF(E51="LO",6,10))+IF(T51=1,2,IF(D51=7,1,(IF(WEEKDAY(B51)=1,2,IF(WEEKDAY(B51)=7,1,0)))))) -> 3 | V51: =VLOOKUP(C51,METADATA!$A$5:$H$29,IF(E51="HI",2,IF(E51="LO",6,10))+IF(T51=1,2,IF(D51=7,1,(IF(WEEKDAY(B51)=1,2,IF(WEEKDAY(B51)=7,1,0)))))) -> 3
B52: 2025-04-03 | C52: 0 | D52: =IFERROR((INDEX(METADATA!$T$2:$T$20,MATCH(B52,METADATA!$S$2:$S$20,0))),0) -> 0 | E52: LO | F52: =VLOOKUP(C52,METADATA!$A$5:$H$29,IF(E52="HI",2,IF(E52="LO",6,10))+IF(D52=1,2,IF(D52=7,1,(IF(WEEKDAY(B52)=1,2,IF(WEEKDAY(B52)=7,1,0)))))) -> 3 | G52: =VLOOKUP(C52,METADATA!$J$5:$Q$29,IF(E52="HI",2,IF(E52="LO",6,10))+IF(D52=1,2,IF(D52=7,1,(IF(WEEKDAY(B52)=1,2,IF(WEEKDAY(B52)=7,1,0)))))) -> 3 | H52: 13314.62506 | I52: 1727.879518 | M52: 13426.27305 | N52: 0 | T52: 0 | U52: =VLOOKUP(C52,METADATA!$J$5:$Q$29,IF(E52="HI",2,IF(E52="LO",6,10))+IF(T52=1,2,IF(D52=7,1,(IF(WEEKDAY(B52)=1,2,IF(WEEKDAY(B52)=7,1,0)))))) -> 3 | V52: =VLOOKUP(C52,METADATA!$A$5:$H$29,IF(E52="HI",2,IF(E52="LO",6,10))+IF(T52=1,2,IF(D52=7,1,(IF(WEEKDAY(B52)=1,2,IF(WEEKDAY(B52)=7,1,0)))))) -> 3
B53: 2025-04-03 | C53: 1 | D53: =IFERROR((INDEX(METADATA!$T$2:$T$20,MATCH(B53,METADATA!$S$2:$S$20,0))),0) -> 0 | E53: LO | F53: =VLOOKUP(C53,METADATA!$A$5:$H$29,IF(E53="HI",2,IF(E53="LO",6,10))+IF(D53=1,2,IF(D53=7,1,(IF(WEEKDAY(B53)=1,2,IF(WEEKDAY(B53)=7,1,0)))))) -> 3 | G53: =VLOOKUP(C53,METADATA!$J$5:$Q$29,IF(E53="HI",2,IF(E53="LO",6,10))+IF(D53=1,2,IF(D53=7,1,(IF(WEEKDAY(B53)=1,2,IF(WEEKDAY(B53)=7,1,0)))))) -> 3 | H53: 13408.84467 | I53: 1700.018023 | M53: 13516.18203 | N53: 0 | T53: 0 | U53: =VLOOKUP(C53,METADATA!$J$5:$Q$29,IF(E53="HI",2,IF(E53="LO",6,10))+IF(T53=1,2,IF(D53=7,1,(IF(WEEKDAY(B53)=1,2,IF(WEEKDAY(B53)=7,1,0)))))) -> 3 | V53: =VLOOKUP(C53,METADATA!$A$5:$H$29,IF(E53="HI",2,IF(E53="LO",6,10))+IF(T53=1,2,IF(D53=7,1,(IF(WEEKDAY(B53)=1,2,IF(WEEKDAY(B53)=7,1,0)))))) -> 3
B54: 2025-04-03 | C54: 2 | D54: =IFERROR((INDEX(METADATA!$T$2:$T$20,MATCH(B54,METADATA!$S$2:$S$20,0))),0) -> 0 | E54: LO | F54: =VLOOKUP(C54,METADATA!$A$5:$H$29,IF(E54="HI",2,IF(E54="LO",6,10))+IF(D54=1,2,IF(D54=7,1,(IF(WEEKDAY(B54)=1,2,IF(WEEKDAY(B54)=7,1,0)))))) -> 3 | G54: =VLOOKUP(C54,METADATA!$J$5:$Q$29,IF(E54="HI",2,IF(E54="LO",6,10))+IF(D54=1,2,IF(D54=7,1,(IF(WEEKDAY(B54)=1,2,IF(WEEKDAY(B54)=7,1,0)))))) -> 3 | H54: 13246.59985 | I54: 1678.724461 | M54: 13352.54745 | N54: 0 | T54: 0 | U54: =VLOOKUP(C54,METADATA!$J$5:$Q$29,IF(E54="HI",2,IF(E54="LO",6,10))+IF(T54=1,2,IF(D54=7,1,(IF(WEEKDAY(B54)=1,2,IF(WEEKDAY(B54)=7,1,0)))))) -> 3 | V54: =VLOOKUP(C54,METADATA!$A$5:$H$29,IF(E54="HI",2,IF(E54="LO",6,10))+IF(T54=1,2,IF(D54=7,1,(IF(WEEKDAY(B54)=1,2,IF(WEEKDAY(B54)=7,1,0)))))) -> 3
B55: 2025-04-03 | C55: 3 | D55: =IFERROR((INDEX(METADATA!$T$2:$T$20,MATCH(B55,METADATA!$S$2:$S$20,0))),0) -> 0 | E55: LO | F55: =VLOOKUP(C55,METADATA!$A$5:$H$29,IF(E55="HI",2,IF(E55="LO",6,10))+IF(D55=1,2,IF(D55=7,1,(IF(WEEKDAY(B55)=1,2,IF(WEEKDAY(B55)=7,1,0)))))) -> 3 | G55: =VLOOKUP(C55,METADATA!$J$5:$Q$29,IF(E55="HI",2,IF(E55="LO",6,10))+IF(D55=1,2,IF(D55=7,1,(IF(WEEKDAY(B55)=1,2,IF(WEEKDAY(B55)=7,1,0)))))) -> 3 | H55: 13238.94971 | I55: 1709.757948 | M55: 13348.89739 | N55: 0 | T55: 0 | U55: =VLOOKUP(C55,METADATA!$J$5:$Q$29,IF(E55="HI",2,IF(E55="LO",6,10))+IF(T55=1,2,IF(D55=7,1,(IF(WEEKDAY(B55)=1,2,IF(WEEKDAY(B55)=7,1,0)))))) -> 3 | V55: =VLOOKUP(C55,METADATA!$A$5:$H$29,IF(E55="HI",2,IF(E55="LO",6,10))+IF(T55=1,2,IF(D55=7,1,(IF(WEEKDAY(B55)=1,2,IF(WEEKDAY(B55)=7,1,0)))))) -> 3
B56: 2025-04-03 | C56: 4 | D56: =IFERROR((INDEX(METADATA!$T$2:$T$20,MATCH(B56,METADATA!$S$2:$S$20,0))),0) -> 0 | E56: LO | F56: =VLOOKUP(C56,METADATA!$A$5:$H$29,IF(E56="HI",2,IF(E56="LO",6,10))+IF(D56=1,2,IF(D56=7,1,(IF(WEEKDAY(B56)=1,2,IF(WEEKDAY(B56)=7,1,0)))))) -> 3 | G56: =VLOOKUP(C56,METADATA!$J$5:$Q$29,IF(E56="HI",2,IF(E56="LO",6,10))+IF(D56=1,2,IF(D56=7,1,(IF(WEEKDAY(B56)=1,2,IF(WEEKDAY(B56)=7,1,0)))))) -> 3 | H56: 13315.96509 | I56: 1697.162022 | M56: 13423.68374 | N56: 0 | T56: 0 | U56: =VLOOKUP(C56,METADATA!$J$5:$Q$29,IF(E56="HI",2,IF(E56="LO",6,10))+IF(T56=1,2,IF(D56=7,1,(IF(WEEKDAY(B56)=1,2,IF(WEEKDAY(B56)=7,1,0)))))) -> 3 | V56: =VLOOKUP(C56,METADATA!$A$5:$H$29,IF(E56="HI",2,IF(E56="LO",6,10))+IF(T56=1,2,IF(D56=7,1,(IF(WEEKDAY(B56)=1,2,IF(WEEKDAY(B56)=7,1,0)))))) -> 3
B57: 2025-04-03 | C57: 5 | D57: =IFERROR((INDEX(METADATA!$T$2:$T$20,MATCH(B57,METADATA!$S$2:$S$20,0))),0) -> 0 | E57: LO | F57: =VLOOKUP(C57,METADATA!$A$5:$H$29,IF(E57="HI",2,IF(E57="LO",6,10))+IF(D57=1,2,IF(D57=7,1,(IF(WEEKDAY(B57)=1,2,IF(WEEKDAY(B57)=7,1,0)))))) -> 3 | G57: =VLOOKUP(C57,METADATA!$J$5:$Q$29,IF(E57="HI",2,IF(E57="LO",6,10))+IF(D57=1,2,IF(D57=7,1,(IF(WEEKDAY(B57)=1,2,IF(WEEKDAY(B57)=7,1,0)))))) -> 3 | H57: 13327.0451 | I57: 1659.982496 | M57: 13430.02878 | N57: 0 | T57: 0 | U57: =VLOOKUP(C57,METADATA!$J$5:$Q$29,IF(E57="HI",2,IF(E57="LO",6,10))+IF(T57=1,2,IF(D57=7,1,(IF(WEEKDAY(B57)=1,2,IF(WEEKDAY(B57)=7,1,0)))))) -> 3 | V57: =VLOOKUP(C57,METADATA!$A$5:$H$29,IF(E57="HI",2,IF(E57="LO",6,10))+IF(T57=1,2,IF(D57=7,1,(IF(WEEKDAY(B57)=1,2,IF(WEEKDAY(B57)=7,1,0)))))) -> 3
B58: 2025-04-03 | C58: 6 | D58: =IFERROR((INDEX(METADATA!$T$2:$T$20,MATCH(B58,METADATA!$S$2:$S$20,0))),0) -> 0 | E58: LO | F58: =VLOOKUP(C58,METADATA!$A$5:$H$29,IF(E58="HI",2,IF(E58="LO",6,10))+IF(D58=1,2,IF(D58=7,1,(IF(WEEKDAY(B58)=1,2,IF(WEEKDAY(B58)=7,1,0)))))) -> 2 | G58: =VLOOKUP(C58,METADATA!$J$5:$Q$29,IF(E58="HI",2,IF(E58="LO",6,10))+IF(D58=1,2,IF(D58=7,1,(IF(WEEKDAY(B58)=1,2,IF(WEEKDAY(B58)=7,1,0)))))) -> 2 | H58: 13309.92017 | I58: 1658.592505 | M58: 13412.86338 | N58: 0 | T58: 0 | U58: =VLOOKUP(C58,METADATA!$J$5:$Q$29,IF(E58="HI",2,IF(E58="LO",6,10))+IF(T58=1,2,IF(D58=7,1,(IF(WEEKDAY(B58)=1,2,IF(WEEKDAY(B58)=7,1,0)))))) -> 2 | V58: =VLOOKUP(C58,METADATA!$A$5:$H$29,IF(E58="HI",2,IF(E58="LO",6,10))+IF(T58=1,2,IF(D58=7,1,(IF(WEEKDAY(B58)=1,2,IF(WEEKDAY(B58)=7,1,0)))))) -> 2
B59: 2025-04-03 | C59: 7 | D59: =IFERROR((INDEX(METADATA!$T$2:$T$20,MATCH(B59,METADATA!$S$2:$S$20,0))),0) -> 0 | E59: LO | F59: =VLOOKUP(C59,METADATA!$A$5:$H$29,IF(E59="HI",2,IF(E59="LO",6,10))+IF(D59=1,2,IF(D59=7,1,(IF(WEEKDAY(B59)=1,2,IF(WEEKDAY(B59)=7,1,0)))))) -> 1 | G59: =VLOOKUP(C59,METADATA!$J$5:$Q$29,IF(E59="HI",2,IF(E59="LO",6,10))+IF(D59=1,2,IF(D59=7,1,(IF(WEEKDAY(B59)=1,2,IF(WEEKDAY(B59)=7,1,0)))))) -> 1 | H59: 13379.94489 | I59: 1716.432053 | M59: 13489.59095 | N59: 0 | T59: 0 | U59: =VLOOKUP(C59,METADATA!$J$5:$Q$29,IF(E59="HI",2,IF(E59="LO",6,10))+IF(T59=1,2,IF(D59=7,1,(IF(WEEKDAY(B59)=1,2,IF(WEEKDAY(B59)=7,1,0)))))) -> 1 | V59: =VLOOKUP(C59,METADATA!$A$5:$H$29,IF(E59="HI",2,IF(E59="LO",6,10))+IF(T59=1,2,IF(D59=7,1,(IF(WEEKDAY(B59)=1,2,IF(WEEKDAY(B59)=7,1,0)))))) -> 1
B60: 2025-04-03 | C60: 8 | D60: =IFERROR((INDEX(METADATA!$T$2:$T$20,MATCH(B60,METADATA!$S$2:$S$20,0))),0) -> 0 | E60: LO | F60: =VLOOKUP(C60,METADATA!$A$5:$H$29,IF(E60="HI",2,IF(E60="LO",6,10))+IF(D60=1,2,IF(D60=7,1,(IF(WEEKDAY(B60)=1,2,IF(WEEKDAY(B60)=7,1,0)))))) -> 1 | G60: =VLOOKUP(C60,METADATA!$J$5:$Q$29,IF(E60="HI",2,IF(E60="LO",6,10))+IF(D60=1,2,IF(D60=7,1,(IF(WEEKDAY(B60)=1,2,IF(WEEKDAY(B60)=7,1,0)))))) -> 1 | H60: 13425.34473 | I60: 1855.679022 | M60: 13552.98586 | N60: 0 | T60: 0 | U60: =VLOOKUP(C60,METADATA!$J$5:$Q$29,IF(E60="HI",2,IF(E60="LO",6,10))+IF(T60=1,2,IF(D60=7,1,(IF(WEEKDAY(B60)=1,2,IF(WEEKDAY(B60)=7,1,0)))))) -> 1 | V60: =VLOOKUP(C60,METADATA!$A$5:$H$29,IF(E60="HI",2,IF(E60="LO",6,10))+IF(T60=1,2,IF(D60=7,1,(IF(WEEKDAY(B60)=1,2,IF(WEEKDAY(B60)=7,1,0)))))) -> 1
B61: 2025-04-03 | C61: 9 | D61: =IFERROR((INDEX(METADATA!$T$2:$T$20,MATCH(B61,METADATA!$S$2:$S$20,0))),0) -> 0 | E61: LO | F61: =VLOOKUP(C61,METADATA!$A$5:$H$29,IF(E61="HI",2,IF(E61="LO",6,10))+IF(D61=1,2,IF(D61=7,1,(IF(WEEKDAY(B61)=1,2,IF(WEEKDAY(B61)=7,1,0)))))) -> 2 | G61: =VLOOKUP(C61,METADATA!$J$5:$Q$29,IF(E61="HI",2,IF(E61="LO",6,10))+IF(D61=1,2,IF(D61=7,1,(IF(WEEKDAY(B61)=1,2,IF(WEEKDAY(B61)=7,1,0)))))) -> 1 | H61: 13427.63513 | I61: 1828.755043 | M61: 13551.59512 | N61: 0 | T61: 0 | U61: =VLOOKUP(C61,METADATA!$J$5:$Q$29,IF(E61="HI",2,IF(E61="LO",6,10))+IF(T61=1,2,IF(D61=7,1,(IF(WEEKDAY(B61)=1,2,IF(WEEKDAY(B61)=7,1,0)))))) -> 1 | V61: =VLOOKUP(C61,METADATA!$A$5:$H$29,IF(E61="HI",2,IF(E61="LO",6,10))+IF(T61=1,2,IF(D61=7,1,(IF(WEEKDAY(B61)=1,2,IF(WEEKDAY(B61)=7,1,0)))))) -> 2
B62: 2025-04-03 | C62: 10 | D62: =IFERROR((INDEX(METADATA!$T$2:$T$20,MATCH(B62,METADATA!$S$2:$S$20,0))),0) -> 0 | E62: LO | F62: =VLOOKUP(C62,METADATA!$A$5:$H$29,IF(E62="HI",2,IF(E62="LO",6,10))+IF(D62=1,2,IF(D62=7,1,(IF(WEEKDAY(B62)=1,2,IF(WEEKDAY(B62)=7,1,0)))))) -> 2 | G62: =VLOOKUP(C62,METADATA!$J$5:$Q$29,IF(E62="HI",2,IF(E62="LO",6,10))+IF(D62=1,2,IF(D62=7,1,(IF(WEEKDAY(B62)=1,2,IF(WEEKDAY(B62)=7,1,0)))))) -> 2 | H62: 13435.87494 | I62: 1799.66399 | M62: 13555.86684 | N62: 0 | T62: 0 | U62: =VLOOKUP(C62,METADATA!$J$5:$Q$29,IF(E62="HI",2,IF(E62="LO",6,10))+IF(T62=1,2,IF(D62=7,1,(IF(WEEKDAY(B62)=1,2,IF(WEEKDAY(B62)=7,1,0)))))) -> 2 | V62: =VLOOKUP(C62,METADATA!$A$5:$H$29,IF(E62="HI",2,IF(E62="LO",6,10))+IF(T62=1,2,IF(D62=7,1,(IF(WEEKDAY(B62)=1,2,IF(WEEKDAY(B62)=7,1,0)))))) -> 2
B63: 2025-04-03 | C63: 11 | D63: =IFERROR((INDEX(METADATA!$T$2:$T$20,MATCH(B63,METADATA!$S$2:$S$20,0))),0) -> 0 | E63: LO | F63: =VLOOKUP(C63,METADATA!$A$5:$H$29,IF(E63="HI",2,IF(E63="LO",6,10))+IF(D63=1,2,IF(D63=7,1,(IF(WEEKDAY(B63)=1,2,IF(WEEKDAY(B63)=7,1,0)))))) -> 2 | G63: =VLOOKUP(C63,METADATA!$J$5:$Q$29,IF(E63="HI",2,IF(E63="LO",6,10))+IF(D63=1,2,IF(D63=7,1,(IF(WEEKDAY(B63)=1,2,IF(WEEKDAY(B63)=7,1,0)))))) -> 2 | H63: 13365.23993 | I63: 1871.828953 | M63: 13495.68012 | N63: 0 | T63: 0 | U63: =VLOOKUP(C63,METADATA!$J$5:$Q$29,IF(E63="HI",2,IF(E63="LO",6,10))+IF(T63=1,2,IF(D63=7,1,(IF(WEEKDAY(B63)=1,2,IF(WEEKDAY(B63)=7,1,0)))))) -> 2 | V63: =VLOOKUP(C63,METADATA!$A$5:$H$29,IF(E63="HI",2,IF(E63="LO",6,10))+IF(T63=1,2,IF(D63=7,1,(IF(WEEKDAY(B63)=1,2,IF(WEEKDAY(B63)=7,1,0)))))) -> 2
B64: 2025-04-03 | C64: 12 | D64: =IFERROR((INDEX(METADATA!$T$2:$T$20,MATCH(B64,METADATA!$S$2:$S$20,0))),0) -> 0 | E64: LO | F64: =VLOOKUP(C64,METADATA!$A$5:$H$29,IF(E64="HI",2,IF(E64="LO",6,10))+IF(D64=1,2,IF(D64=7,1,(IF(WEEKDAY(B64)=1,2,IF(WEEKDAY(B64)=7,1,0)))))) -> 2 | G64: =VLOOKUP(C64,METADATA!$J$5:$Q$29,IF(E64="HI",2,IF(E64="LO",6,10))+IF(D64=1,2,IF(D64=7,1,(IF(WEEKDAY(B64)=1,2,IF(WEEKDAY(B64)=7,1,0)))))) -> 2 | H64: 13338.86505 | I64: 1871.448555 | M64: 13469.50781 | N64: 0 | T64: 0 | U64: =VLOOKUP(C64,METADATA!$J$5:$Q$29,IF(E64="HI",2,IF(E64="LO",6,10))+IF(T64=1,2,IF(D64=7,1,(IF(WEEKDAY(B64)=1,2,IF(WEEKDAY(B64)=7,1,0)))))) -> 2 | V64: =VLOOKUP(C64,METADATA!$A$5:$H$29,IF(E64="HI",2,IF(E64="LO",6,10))+IF(T64=1,2,IF(D64=7,1,(IF(WEEKDAY(B64)=1,2,IF(WEEKDAY(B64)=7,1,0)))))) -> 2
B65: 2025-04-03 | C65: 13 | D65: =IFERROR((INDEX(METADATA!$T$2:$T$20,MATCH(B65,METADATA!$S$2:$S$20,0))),0) -> 0 | E65: LO | F65: =VLOOKUP(C65,METADATA!$A$5:$H$29,IF(E65="HI",2,IF(E65="LO",6,10))+IF(D65=1,2,IF(D65=7,1,(IF(WEEKDAY(B65)=1,2,IF(WEEKDAY(B65)=7,1,0)))))) -> 2 | G65: =VLOOKUP(C65,METADATA!$J$5:$Q$29,IF(E65="HI",2,IF(E65="LO",6,10))+IF(D65=1,2,IF(D65=7,1,(IF(WEEKDAY(B65)=1,2,IF(WEEKDAY(B65)=7,1,0)))))) -> 2 | H65: 13350.34949 | I65: 1837.824522 | M65: 13476.25432 | N65: 0 | T65: 0 | U65: =VLOOKUP(C65,METADATA!$J$5:$Q$29,IF(E65="HI",2,IF(E65="LO",6,10))+IF(T65=1,2,IF(D65=7,1,(IF(WEEKDAY(B65)=1,2,IF(WEEKDAY(B65)=7,1,0)))))) -> 2 | V65: =VLOOKUP(C65,METADATA!$A$5:$H$29,IF(E65="HI",2,IF(E65="LO",6,10))+IF(T65=1,2,IF(D65=7,1,(IF(WEEKDAY(B65)=1,2,IF(WEEKDAY(B65)=7,1,0)))))) -> 2
B66: 2025-04-03 | C66: 14 | D66: =IFERROR((INDEX(METADATA!$T$2:$T$20,MATCH(B66,METADATA!$S$2:$S$20,0))),0) -> 0 | E66: LO | F66: =VLOOKUP(C66,METADATA!$A$5:$H$29,IF(E66="HI",2,IF(E66="LO",6,10))+IF(D66=1,2,IF(D66=7,1,(IF(WEEKDAY(B66)=1,2,IF(WEEKDAY(B66)=7,1,0)))))) -> 2 | G66: =VLOOKUP(C66,METADATA!$J$5:$Q$29,IF(E66="HI",2,IF(E66="LO",6,10))+IF(D66=1,2,IF(D66=7,1,(IF(WEEKDAY(B66)=1,2,IF(WEEKDAY(B66)=7,1,0)))))) -> 2 | H66: 13337.85492 | I66: 1915.057053 | M66: 13474.63608 | N66: 0 | T66: 0 | U66: =VLOOKUP(C66,METADATA!$J$5:$Q$29,IF(E66="HI",2,IF(E66="LO",6,10))+IF(T66=1,2,IF(D66=7,1,(IF(WEEKDAY(B66)=1,2,IF(WEEKDAY(B66)=7,1,0)))))) -> 2 | V66: =VLOOKUP(C66,METADATA!$A$5:$H$29,IF(E66="HI",2,IF(E66="LO",6,10))+IF(T66=1,2,IF(D66=7,1,(IF(WEEKDAY(B66)=1,2,IF(WEEKDAY(B66)=7,1,0)))))) -> 2
B67: 2025-04-03 | C67: 15 | D67: =IFERROR((INDEX(METADATA!$T$2:$T$20,MATCH(B67,METADATA!$S$2:$S$20,0))),0) -> 0 | E67: LO | F67: =VLOOKUP(C67,METADATA!$A$5:$H$29,IF(E67="HI",2,IF(E67="LO",6,10))+IF(D67=1,2,IF(D67=7,1,(IF(WEEKDAY(B67)=1,2,IF(WEEKDAY(B67)=7,1,0)))))) -> 2 | G67: =VLOOKUP(C67,METADATA!$J$5:$Q$29,IF(E67="HI",2,IF(E67="LO",6,10))+IF(D67=1,2,IF(D67=7,1,(IF(WEEKDAY(B67)=1,2,IF(WEEKDAY(B67)=7,1,0)))))) -> 2 | H67: 13260.65491 | I67: 1844.063526 | M67: 13388.26123 | N67: 0 | T67: 0 | U67: =VLOOKUP(C67,METADATA!$J$5:$Q$29,IF(E67="HI",2,IF(E67="LO",6,10))+IF(T67=1,2,IF(D67=7,1,(IF(WEEKDAY(B67)=1,2,IF(WEEKDAY(B67)=7,1,0)))))) -> 2 | V67: =VLOOKUP(C67,METADATA!$A$5:$H$29,IF(E67="HI",2,IF(E67="LO",6,10))+IF(T67=1,2,IF(D67=7,1,(IF(WEEKDAY(B67)=1,2,IF(WEEKDAY(B67)=7,1,0)))))) -> 2
B68: 2025-04-03 | C68: 16 | D68: =IFERROR((INDEX(METADATA!$T$2:$T$20,MATCH(B68,METADATA!$S$2:$S$20,0))),0) -> 0 | E68: =IF(B68="","",IF(AND(MONTH(B68)>=MONTH($Z$9),MONTH(B68)<=MONTH($Z$11)),"HI","LO")) -> LO | F68: =VLOOKUP(C68,METADATA!$A$5:$H$29,IF(E68="HI",2,IF(E68="LO",6,10))+IF(D68=1,2,IF(D68=7,1,(IF(WEEKDAY(B68)=1,2,IF(WEEKDAY(B68)=7,1,0)))))) -> 2 | G68: =VLOOKUP(C68,METADATA!$J$5:$Q$29,IF(E68="HI",2,IF(E68="LO",6,10))+IF(D68=1,2,IF(D68=7,1,(IF(WEEKDAY(B68)=1,2,IF(WEEKDAY(B68)=7,1,0)))))) -> 2 | H68: 12846.93994 | I68: 1681.895045 | M68: =SQRT(H68^2+I68^2) -> 12956.56732 | N68: =IF(H68=0,0,(IF(I68-(0.3*H68)<0,0,(I68-(0.3*H68))))) -> 0 | T68: 0 | U68: =VLOOKUP(C68,METADATA!$J$5:$Q$29,IF(E68="HI",2,IF(E68="LO",6,10))+IF(T68=1,2,IF(D68=7,1,(IF(WEEKDAY(B68)=1,2,IF(WEEKDAY(B68)=7,1,0)))))) -> 2 | V68: =VLOOKUP(C68,METADATA!$A$5:$H$29,IF(E68="HI",2,IF(E68="LO",6,10))+IF(T68=1,2,IF(D68=7,1,(IF(WEEKDAY(B68)=1,2,IF(WEEKDAY(B68)=7,1,0)))))) -> 2
B69: 2025-04-03 | C69: 17 | D69: =IFERROR((INDEX(METADATA!$T$2:$T$20,MATCH(B69,METADATA!$S$2:$S$20,0))),0) -> 0 | E69: LO | F69: =VLOOKUP(C69,METADATA!$A$5:$H$29,IF(E69="HI",2,IF(E69="LO",6,10))+IF(D69=1,2,IF(D69=7,1,(IF(WEEKDAY(B69)=1,2,IF(WEEKDAY(B69)=7,1,0)))))) -> 2 | G69: =VLOOKUP(C69,METADATA!$J$5:$Q$29,IF(E69="HI",2,IF(E69="LO",6,10))+IF(D69=1,2,IF(D69=7,1,(IF(WEEKDAY(B69)=1,2,IF(WEEKDAY(B69)=7,1,0)))))) -> 2 | H69: 12703.91962 | I69: 1704.551002 | M69: 12817.76376 | N69: 0 | T69: 0 | U69: =VLOOKUP(C69,METADATA!$J$5:$Q$29,IF(E69="HI",2,IF(E69="LO",6,10))+IF(T69=1,2,IF(D69=7,1,(IF(WEEKDAY(B69)=1,2,IF(WEEKDAY(B69)=7,1,0)))))) -> 2 | V69: =VLOOKUP(C69,METADATA!$A$5:$H$29,IF(E69="HI",2,IF(E69="LO",6,10))+IF(T69=1,2,IF(D69=7,1,(IF(WEEKDAY(B69)=1,2,IF(WEEKDAY(B69)=7,1,0)))))) -> 2
B70: 2025-04-03 | C70: 18 | D70: =IFERROR((INDEX(METADATA!$T$2:$T$20,MATCH(B70,METADATA!$S$2:$S$20,0))),0) -> 0 | E70: LO | F70: =VLOOKUP(C70,METADATA!$A$5:$H$29,IF(E70="HI",2,IF(E70="LO",6,10))+IF(D70=1,2,IF(D70=7,1,(IF(WEEKDAY(B70)=1,2,IF(WEEKDAY(B70)=7,1,0)))))) -> 1 | G70: =VLOOKUP(C70,METADATA!$J$5:$Q$29,IF(E70="HI",2,IF(E70="LO",6,10))+IF(D70=1,2,IF(D70=7,1,(IF(WEEKDAY(B70)=1,2,IF(WEEKDAY(B70)=7,1,0)))))) -> 1 | H70: 13422.75012 | I70: 1855.993494 | M70: 13550.45876 | N70: 0 | T70: 0 | U70: =VLOOKUP(C70,METADATA!$J$5:$Q$29,IF(E70="HI",2,IF(E70="LO",6,10))+IF(T70=1,2,IF(D70=7,1,(IF(WEEKDAY(B70)=1,2,IF(WEEKDAY(B70)=7,1,0)))))) -> 1 | V70: =VLOOKUP(C70,METADATA!$A$5:$H$29,IF(E70="HI",2,IF(E70="LO",6,10))+IF(T70=1,2,IF(D70=7,1,(IF(WEEKDAY(B70)=1,2,IF(WEEKDAY(B70)=7,1,0)))))) -> 1
B71: 2025-04-03 | C71: 19 | D71: =IFERROR((INDEX(METADATA!$T$2:$T$20,MATCH(B71,METADATA!$S$2:$S$20,0))),0) -> 0 | E71: LO | F71: =VLOOKUP(C71,METADATA!$A$5:$H$29,IF(E71="HI",2,IF(E71="LO",6,10))+IF(D71=1,2,IF(D71=7,1,(IF(WEEKDAY(B71)=1,2,IF(WEEKDAY(B71)=7,1,0)))))) -> 1 | G71: =VLOOKUP(C71,METADATA!$J$5:$Q$29,IF(E71="HI",2,IF(E71="LO",6,10))+IF(D71=1,2,IF(D71=7,1,(IF(WEEKDAY(B71)=1,2,IF(WEEKDAY(B71)=7,1,0)))))) -> 1 | H71: 13558.4801 | I71: 1876.943972 | M71: 13687.77927 | N71: 0 | T71: 0 | U71: =VLOOKUP(C71,METADATA!$J$5:$Q$29,IF(E71="HI",2,IF(E71="LO",6,10))+IF(T71=1,2,IF(D71=7,1,(IF(WEEKDAY(B71)=1,2,IF(WEEKDAY(B71)=7,1,0)))))) -> 1 | V71: =VLOOKUP(C71,METADATA!$A$5:$H$29,IF(E71="HI",2,IF(E71="LO",6,10))+IF(T71=1,2,IF(D71=7,1,(IF(WEEKDAY(B71)=1,2,IF(WEEKDAY(B71)=7,1,0)))))) -> 1
B72: 2025-04-03 | C72: 20 | D72: =IFERROR((INDEX(METADATA!$T$2:$T$20,MATCH(B72,METADATA!$S$2:$S$20,0))),0) -> 0 | E72: LO | F72: =VLOOKUP(C72,METADATA!$A$5:$H$29,IF(E72="HI",2,IF(E72="LO",6,10))+IF(D72=1,2,IF(D72=7,1,(IF(WEEKDAY(B72)=1,2,IF(WEEKDAY(B72)=7,1,0)))))) -> 1 | G72: =VLOOKUP(C72,METADATA!$J$5:$Q$29,IF(E72="HI",2,IF(E72="LO",6,10))+IF(D72=1,2,IF(D72=7,1,(IF(WEEKDAY(B72)=1,2,IF(WEEKDAY(B72)=7,1,0)))))) -> 2 | H72: 13471.96545 | I72: 1967.905479 | M72: 13614.93684 | N72: 0 | T72: 0 | U72: =VLOOKUP(C72,METADATA!$J$5:$Q$29,IF(E72="HI",2,IF(E72="LO",6,10))+IF(T72=1,2,IF(D72=7,1,(IF(WEEKDAY(B72)=1,2,IF(WEEKDAY(B72)=7,1,0)))))) -> 2 | V72: =VLOOKUP(C72,METADATA!$A$5:$H$29,IF(E72="HI",2,IF(E72="LO",6,10))+IF(T72=1,2,IF(D72=7,1,(IF(WEEKDAY(B72)=1,2,IF(WEEKDAY(B72)=7,1,0)))))) -> 1
B73: 2025-04-03 | C73: 21 | D73: =IFERROR((INDEX(METADATA!$T$2:$T$20,MATCH(B73,METADATA!$S$2:$S$20,0))),0) -> 0 | E73: LO | F73: =VLOOKUP(C73,METADATA!$A$5:$H$29,IF(E73="HI",2,IF(E73="LO",6,10))+IF(D73=1,2,IF(D73=7,1,(IF(WEEKDAY(B73)=1,2,IF(WEEKDAY(B73)=7,1,0)))))) -> 2 | G73: =VLOOKUP(C73,METADATA!$J$5:$Q$29,IF(E73="HI",2,IF(E73="LO",6,10))+IF(D73=1,2,IF(D73=7,1,(IF(WEEKDAY(B73)=1,2,IF(WEEKDAY(B73)=7,1,0)))))) -> 2 | H73: 13589.72522 | I73: 2145.597511 | M73: 13758.06019 | N73: 0 | T73: 0 | U73: =VLOOKUP(C73,METADATA!$J$5:$Q$29,IF(E73="HI",2,IF(E73="LO",6,10))+IF(T73=1,2,IF(D73=7,1,(IF(WEEKDAY(B73)=1,2,IF(WEEKDAY(B73)=7,1,0)))))) -> 2 | V73: =VLOOKUP(C73,METADATA!$A$5:$H$29,IF(E73="HI",2,IF(E73="LO",6,10))+IF(T73=1,2,IF(D73=7,1,(IF(WEEKDAY(B73)=1,2,IF(WEEKDAY(B73)=7,1,0)))))) -> 2
B74: 2025-04-03 | C74: 22 | D74: =IFERROR((INDEX(METADATA!$T$2:$T$20,MATCH(B74,METADATA!$S$2:$S$20,0))),0) -> 0 | E74: LO | F74: =VLOOKUP(C74,METADATA!$A$5:$H$29,IF(E74="HI",2,IF(E74="LO",6,10))+IF(D74=1,2,IF(D74=7,1,(IF(WEEKDAY(B74)=1,2,IF(WEEKDAY(B74)=7,1,0)))))) -> 3 | G74: =VLOOKUP(C74,METADATA!$J$5:$Q$29,IF(E74="HI",2,IF(E74="LO",6,10))+IF(D74=1,2,IF(D74=7,1,(IF(WEEKDAY(B74)=1,2,IF(WEEKDAY(B74)=7,1,0)))))) -> 3 | H74: 13546.82513 | I74: 2106.192526 | M74: 13709.57761 | N74: 0 | T74: 0 | U74: =VLOOKUP(C74,METADATA!$J$5:$Q$29,IF(E74="HI",2,IF(E74="LO",6,10))+IF(T74=1,2,IF(D74=7,1,(IF(WEEKDAY(B74)=1,2,IF(WEEKDAY(B74)=7,1,0)))))) -> 3 | V74: =VLOOKUP(C74,METADATA!$A$5:$H$29,IF(E74="HI",2,IF(E74="LO",6,10))+IF(T74=1,2,IF(D74=7,1,(IF(WEEKDAY(B74)=1,2,IF(WEEKDAY(B74)=7,1,0)))))) -> 3
B75: 2025-04-03 | C75: 23 | D75: =IFERROR((INDEX(METADATA!$T$2:$T$20,MATCH(B75,METADATA!$S$2:$S$20,0))),0) -> 0 | E75: LO | F75: =VLOOKUP(C75,METADATA!$A$5:$H$29,IF(E75="HI",2,IF(E75="LO",6,10))+IF(D75=1,2,IF(D75=7,1,(IF(WEEKDAY(B75)=1,2,IF(WEEKDAY(B75)=7,1,0)))))) -> 3 | G75: =VLOOKUP(C75,METADATA!$J$5:$Q$29,IF(E75="HI",2,IF(E75="LO",6,10))+IF(D75=1,2,IF(D75=7,1,(IF(WEEKDAY(B75)=1,2,IF(WEEKDAY(B75)=7,1,0)))))) -> 3 | H75: 13552.09485 | I75: 2093.807476 | M75: 13712.88826 | N75: 0 | T75: 0 | U75: =VLOOKUP(C75,METADATA!$J$5:$Q$29,IF(E75="HI",2,IF(E75="LO",6,10))+IF(T75=1,2,IF(D75=7,1,(IF(WEEKDAY(B75)=1,2,IF(WEEKDAY(B75)=7,1,0)))))) -> 3 | V75: =VLOOKUP(C75,METADATA!$A$5:$H$29,IF(E75="HI",2,IF(E75="LO",6,10))+IF(T75=1,2,IF(D75=7,1,(IF(WEEKDAY(B75)=1,2,IF(WEEKDAY(B75)=7,1,0)))))) -> 3
B76: 2025-04-04 | C76: 0 | D76: =IFERROR((INDEX(METADATA!$T$2:$T$20,MATCH(B76,METADATA!$S$2:$S$20,0))),0) -> 0 | E76: LO | F76: =VLOOKUP(C76,METADATA!$A$5:$H$29,IF(E76="HI",2,IF(E76="LO",6,10))+IF(D76=1,2,IF(D76=7,1,(IF(WEEKDAY(B76)=1,2,IF(WEEKDAY(B76)=7,1,0)))))) -> 3 | G76: =VLOOKUP(C76,METADATA!$J$5:$Q$29,IF(E76="HI",2,IF(E76="LO",6,10))+IF(D76=1,2,IF(D76=7,1,(IF(WEEKDAY(B76)=1,2,IF(WEEKDAY(B76)=7,1,0)))))) -> 3 | H76: 13553.46484 | I76: 2131.73057 | M76: 13720.08325 | N76: 0 | T76: 0 | U76: =VLOOKUP(C76,METADATA!$J$5:$Q$29,IF(E76="HI",2,IF(E76="LO",6,10))+IF(T76=1,2,IF(D76=7,1,(IF(WEEKDAY(B76)=1,2,IF(WEEKDAY(B76)=7,1,0)))))) -> 3 | V76: =VLOOKUP(C76,METADATA!$A$5:$H$29,IF(E76="HI",2,IF(E76="LO",6,10))+IF(T76=1,2,IF(D76=7,1,(IF(WEEKDAY(B76)=1,2,IF(WEEKDAY(B76)=7,1,0)))))) -> 3
B77: 2025-04-04 | C77: 1 | D77: =IFERROR((INDEX(METADATA!$T$2:$T$20,MATCH(B77,METADATA!$S$2:$S$20,0))),0) -> 0 | E77: LO | F77: =VLOOKUP(C77,METADATA!$A$5:$H$29,IF(E77="HI",2,IF(E77="LO",6,10))+IF(D77=1,2,IF(D77=7,1,(IF(WEEKDAY(B77)=1,2,IF(WEEKDAY(B77)=7,1,0)))))) -> 3 | G77: =VLOOKUP(C77,METADATA!$J$5:$Q$29,IF(E77="HI",2,IF(E77="LO",6,10))+IF(D77=1,2,IF(D77=7,1,(IF(WEEKDAY(B77)=1,2,IF(WEEKDAY(B77)=7,1,0)))))) -> 3 | H77: 13619.89496 | I77: 2076.789526 | M77: 13777.32171 | N77: 0 | T77: 0 | U77: =VLOOKUP(C77,METADATA!$J$5:$Q$29,IF(E77="HI",2,IF(E77="LO",6,10))+IF(T77=1,2,IF(D77=7,1,(IF(WEEKDAY(B77)=1,2,IF(WEEKDAY(B77)=7,1,0)))))) -> 3 | V77: =VLOOKUP(C77,METADATA!$A$5:$H$29,IF(E77="HI",2,IF(E77="LO",6,10))+IF(T77=1,2,IF(D77=7,1,(IF(WEEKDAY(B77)=1,2,IF(WEEKDAY(B77)=7,1,0)))))) -> 3
B78: 2025-04-04 | C78: 2 | D78: =IFERROR((INDEX(METADATA!$T$2:$T$20,MATCH(B78,METADATA!$S$2:$S$20,0))),0) -> 0 | E78: LO | F78: =VLOOKUP(C78,METADATA!$A$5:$H$29,IF(E78="HI",2,IF(E78="LO",6,10))+IF(D78=1,2,IF(D78=7,1,(IF(WEEKDAY(B78)=1,2,IF(WEEKDAY(B78)=7,1,0)))))) -> 3 | G78: =VLOOKUP(C78,METADATA!$J$5:$Q$29,IF(E78="HI",2,IF(E78="LO",6,10))+IF(D78=1,2,IF(D78=7,1,(IF(WEEKDAY(B78)=1,2,IF(WEEKDAY(B78)=7,1,0)))))) -> 3 | H78: 13475.3645 | I78: 2027.520988 | M78: 13627.04259 | N78: 0 | T78: 0 | U78: =VLOOKUP(C78,METADATA!$J$5:$Q$29,IF(E78="HI",2,IF(E78="LO",6,10))+IF(T78=1,2,IF(D78=7,1,(IF(WEEKDAY(B78)=1,2,IF(WEEKDAY(B78)=7,1,0)))))) -> 3 | V78: =VLOOKUP(C78,METADATA!$A$5:$H$29,IF(E78="HI",2,IF(E78="LO",6,10))+IF(T78=1,2,IF(D78=7,1,(IF(WEEKDAY(B78)=1,2,IF(WEEKDAY(B78)=7,1,0)))))) -> 3
B79: 2025-04-04 | C79: 3 | D79: =IFERROR((INDEX(METADATA!$T$2:$T$20,MATCH(B79,METADATA!$S$2:$S$20,0))),0) -> 0 | E79: LO | F79: =VLOOKUP(C79,METADATA!$A$5:$H$29,IF(E79="HI",2,IF(E79="LO",6,10))+IF(D79=1,2,IF(D79=7,1,(IF(WEEKDAY(B79)=1,2,IF(WEEKDAY(B79)=7,1,0)))))) -> 3 | G79: =VLOOKUP(C79,METADATA!$J$5:$Q$29,IF(E79="HI",2,IF(E79="LO",6,10))+IF(D79=1,2,IF(D79=7,1,(IF(WEEKDAY(B79)=1,2,IF(WEEKDAY(B79)=7,1,0)))))) -> 3 | H79: 13298.06769 | I79: 1891.486532 | M79: 13431.91444 | N79: 0 | T79: 0 | U79: =VLOOKUP(C79,METADATA!$J$5:$Q$29,IF(E79="HI",2,IF(E79="LO",6,10))+IF(T79=1,2,IF(D79=7,1,(IF(WEEKDAY(B79)=1,2,IF(WEEKDAY(B79)=7,1,0)))))) -> 3 | V79: =VLOOKUP(C79,METADATA!$A$5:$H$29,IF(E79="HI",2,IF(E79="LO",6,10))+IF(T79=1,2,IF(D79=7,1,(IF(WEEKDAY(B79)=1,2,IF(WEEKDAY(B79)=7,1,0)))))) -> 3
B80: 2025-04-04 | C80: 4 | D80: =IFERROR((INDEX(METADATA!$T$2:$T$20,MATCH(B80,METADATA!$S$2:$S$20,0))),0) -> 0 | E80: LO | F80: =VLOOKUP(C80,METADATA!$A$5:$H$29,IF(E80="HI",2,IF(E80="LO",6,10))+IF(D80=1,2,IF(D80=7,1,(IF(WEEKDAY(B80)=1,2,IF(WEEKDAY(B80)=7,1,0)))))) -> 3 | G80: =VLOOKUP(C80,METADATA!$J$5:$Q$29,IF(E80="HI",2,IF(E80="LO",6,10))+IF(D80=1,2,IF(D80=7,1,(IF(WEEKDAY(B80)=1,2,IF(WEEKDAY(B80)=7,1,0)))))) -> 3 | H80: 13557.58008 | I80: 1956.696545 | M80: 13698.05238 | N80: 0 | T80: 0 | U80: =VLOOKUP(C80,METADATA!$J$5:$Q$29,IF(E80="HI",2,IF(E80="LO",6,10))+IF(T80=1,2,IF(D80=7,1,(IF(WEEKDAY(B80)=1,2,IF(WEEKDAY(B80)=7,1,0)))))) -> 3 | V80: =VLOOKUP(C80,METADATA!$A$5:$H$29,IF(E80="HI",2,IF(E80="LO",6,10))+IF(T80=1,2,IF(D80=7,1,(IF(WEEKDAY(B80)=1,2,IF(WEEKDAY(B80)=7,1,0)))))) -> 3
B81: 2025-04-04 | C81: 5 | D81: =IFERROR((INDEX(METADATA!$T$2:$T$20,MATCH(B81,METADATA!$S$2:$S$20,0))),0) -> 0 | E81: LO | F81: =VLOOKUP(C81,METADATA!$A$5:$H$29,IF(E81="HI",2,IF(E81="LO",6,10))+IF(D81=1,2,IF(D81=7,1,(IF(WEEKDAY(B81)=1,2,IF(WEEKDAY(B81)=7,1,0)))))) -> 3 | G81: =VLOOKUP(C81,METADATA!$J$5:$Q$29,IF(E81="HI",2,IF(E81="LO",6,10))+IF(D81=1,2,IF(D81=7,1,(IF(WEEKDAY(B81)=1,2,IF(WEEKDAY(B81)=7,1,0)))))) -> 3 | H81: 13637.34479 | I81: 1956.696974 | M81: 13777.00388 | N81: 0 | T81: 0 | U81: =VLOOKUP(C81,METADATA!$J$5:$Q$29,IF(E81="HI",2,IF(E81="LO",6,10))+IF(T81=1,2,IF(D81=7,1,(IF(WEEKDAY(B81)=1,2,IF(WEEKDAY(B81)=7,1,0)))))) -> 3 | V81: =VLOOKUP(C81,METADATA!$A$5:$H$29,IF(E81="HI",2,IF(E81="LO",6,10))+IF(T81=1,2,IF(D81=7,1,(IF(WEEKDAY(B81)=1,2,IF(WEEKDAY(B81)=7,1,0)))))) -> 3
B82: 2025-04-04 | C82: 6 | D82: =IFERROR((INDEX(METADATA!$T$2:$T$20,MATCH(B82,METADATA!$S$2:$S$20,0))),0) -> 0 | E82: LO | F82: =VLOOKUP(C82,METADATA!$A$5:$H$29,IF(E82="HI",2,IF(E82="LO",6,10))+IF(D82=1,2,IF(D82=7,1,(IF(WEEKDAY(B82)=1,2,IF(WEEKDAY(B82)=7,1,0)))))) -> 2 | G82: =VLOOKUP(C82,METADATA!$J$5:$Q$29,IF(E82="HI",2,IF(E82="LO",6,10))+IF(D82=1,2,IF(D82=7,1,(IF(WEEKDAY(B82)=1,2,IF(WEEKDAY(B82)=7,1,0)))))) -> 2 | H82: 13524.01514 | I82: 1922.328569 | M82: 13659.95361 | N82: 0 | T82: 0 | U82: =VLOOKUP(C82,METADATA!$J$5:$Q$29,IF(E82="HI",2,IF(E82="LO",6,10))+IF(T82=1,2,IF(D82=7,1,(IF(WEEKDAY(B82)=1,2,IF(WEEKDAY(B82)=7,1,0)))))) -> 2 | V82: =VLOOKUP(C82,METADATA!$A$5:$H$29,IF(E82="HI",2,IF(E82="LO",6,10))+IF(T82=1,2,IF(D82=7,1,(IF(WEEKDAY(B82)=1,2,IF(WEEKDAY(B82)=7,1,0)))))) -> 2
B83: 2025-04-04 | C83: 7 | D83: =IFERROR((INDEX(METADATA!$T$2:$T$20,MATCH(B83,METADATA!$S$2:$S$20,0))),0) -> 0 | E83: LO | F83: =VLOOKUP(C83,METADATA!$A$5:$H$29,IF(E83="HI",2,IF(E83="LO",6,10))+IF(D83=1,2,IF(D83=7,1,(IF(WEEKDAY(B83)=1,2,IF(WEEKDAY(B83)=7,1,0)))))) -> 1 | G83: =VLOOKUP(C83,METADATA!$J$5:$Q$29,IF(E83="HI",2,IF(E83="LO",6,10))+IF(D83=1,2,IF(D83=7,1,(IF(WEEKDAY(B83)=1,2,IF(WEEKDAY(B83)=7,1,0)))))) -> 1 | H83: 13486.65997 | I83: 1908.816502 | M83: 13621.07109 | N83: 0 | T83: 0 | U83: =VLOOKUP(C83,METADATA!$J$5:$Q$29,IF(E83="HI",2,IF(E83="LO",6,10))+IF(T83=1,2,IF(D83=7,1,(IF(WEEKDAY(B83)=1,2,IF(WEEKDAY(B83)=7,1,0)))))) -> 1 | V83: =VLOOKUP(C83,METADATA!$A$5:$H$29,IF(E83="HI",2,IF(E83="LO",6,10))+IF(T83=1,2,IF(D83=7,1,(IF(WEEKDAY(B83)=1,2,IF(WEEKDAY(B83)=7,1,0)))))) -> 1
B84: 2025-04-04 | C84: 8 | D84: =IFERROR((INDEX(METADATA!$T$2:$T$20,MATCH(B84,METADATA!$S$2:$S$20,0))),0) -> 0 | E84: LO | F84: =VLOOKUP(C84,METADATA!$A$5:$H$29,IF(E84="HI",2,IF(E84="LO",6,10))+IF(D84=1,2,IF(D84=7,1,(IF(WEEKDAY(B84)=1,2,IF(WEEKDAY(B84)=7,1,0)))))) -> 1 | G84: =VLOOKUP(C84,METADATA!$J$5:$Q$29,IF(E84="HI",2,IF(E84="LO",6,10))+IF(D84=1,2,IF(D84=7,1,(IF(WEEKDAY(B84)=1,2,IF(WEEKDAY(B84)=7,1,0)))))) -> 1 | H84: 13572.43506 | I84: 2046.93544 | M84: 13725.92212 | N84: 0 | T84: 0 | U84: =VLOOKUP(C84,METADATA!$J$5:$Q$29,IF(E84="HI",2,IF(E84="LO",6,10))+IF(T84=1,2,IF(D84=7,1,(IF(WEEKDAY(B84)=1,2,IF(WEEKDAY(B84)=7,1,0)))))) -> 1 | V84: =VLOOKUP(C84,METADATA!$A$5:$H$29,IF(E84="HI",2,IF(E84="LO",6,10))+IF(T84=1,2,IF(D84=7,1,(IF(WEEKDAY(B84)=1,2,IF(WEEKDAY(B84)=7,1,0)))))) -> 1
B85: 2025-04-04 | C85: 9 | D85: =IFERROR((INDEX(METADATA!$T$2:$T$20,MATCH(B85,METADATA!$S$2:$S$20,0))),0) -> 0 | E85: LO | F85: =VLOOKUP(C85,METADATA!$A$5:$H$29,IF(E85="HI",2,IF(E85="LO",6,10))+IF(D85=1,2,IF(D85=7,1,(IF(WEEKDAY(B85)=1,2,IF(WEEKDAY(B85)=7,1,0)))))) -> 2 | G85: =VLOOKUP(C85,METADATA!$J$5:$Q$29,IF(E85="HI",2,IF(E85="LO",6,10))+IF(D85=1,2,IF(D85=7,1,(IF(WEEKDAY(B85)=1,2,IF(WEEKDAY(B85)=7,1,0)))))) -> 1 | H85: 13638.06995 | I85: 2077.078491 | M85: 13795.33279 | N85: 0 | T85: 0 | U85: =VLOOKUP(C85,METADATA!$J$5:$Q$29,IF(E85="HI",2,IF(E85="LO",6,10))+IF(T85=1,2,IF(D85=7,1,(IF(WEEKDAY(B85)=1,2,IF(WEEKDAY(B85)=7,1,0)))))) -> 1 | V85: =VLOOKUP(C85,METADATA!$A$5:$H$29,IF(E85="HI",2,IF(E85="LO",6,10))+IF(T85=1,2,IF(D85=7,1,(IF(WEEKDAY(B85)=1,2,IF(WEEKDAY(B85)=7,1,0)))))) -> 2
B86: 2025-04-04 | C86: 10 | D86: =IFERROR((INDEX(METADATA!$T$2:$T$20,MATCH(B86,METADATA!$S$2:$S$20,0))),0) -> 0 | E86: LO | F86: =VLOOKUP(C86,METADATA!$A$5:$H$29,IF(E86="HI",2,IF(E86="LO",6,10))+IF(D86=1,2,IF(D86=7,1,(IF(WEEKDAY(B86)=1,2,IF(WEEKDAY(B86)=7,1,0)))))) -> 2 | G86: =VLOOKUP(C86,METADATA!$J$5:$Q$29,IF(E86="HI",2,IF(E86="LO",6,10))+IF(D86=1,2,IF(D86=7,1,(IF(WEEKDAY(B86)=1,2,IF(WEEKDAY(B86)=7,1,0)))))) -> 2 | H86: 13593.76965 | I86: 2027.786507 | M86: 13744.18028 | N86: 0 | T86: 0 | U86: =VLOOKUP(C86,METADATA!$J$5:$Q$29,IF(E86="HI",2,IF(E86="LO",6,10))+IF(T86=1,2,IF(D86=7,1,(IF(WEEKDAY(B86)=1,2,IF(WEEKDAY(B86)=7,1,0)))))) -> 2 | V86: =VLOOKUP(C86,METADATA!$A$5:$H$29,IF(E86="HI",2,IF(E86="LO",6,10))+IF(T86=1,2,IF(D86=7,1,(IF(WEEKDAY(B86)=1,2,IF(WEEKDAY(B86)=7,1,0)))))) -> 2
B87: 2025-04-04 | C87: 11 | D87: =IFERROR((INDEX(METADATA!$T$2:$T$20,MATCH(B87,METADATA!$S$2:$S$20,0))),0) -> 0 | E87: LO | F87: =VLOOKUP(C87,METADATA!$A$5:$H$29,IF(E87="HI",2,IF(E87="LO",6,10))+IF(D87=1,2,IF(D87=7,1,(IF(WEEKDAY(B87)=1,2,IF(WEEKDAY(B87)=7,1,0)))))) -> 2 | G87: =VLOOKUP(C87,METADATA!$J$5:$Q$29,IF(E87="HI",2,IF(E87="LO",6,10))+IF(D87=1,2,IF(D87=7,1,(IF(WEEKDAY(B87)=1,2,IF(WEEKDAY(B87)=7,1,0)))))) -> 2 | H87: 13609.82465 | I87: 1977.76749 | M87: 13752.77758 | N87: 0 | T87: 0 | U87: =VLOOKUP(C87,METADATA!$J$5:$Q$29,IF(E87="HI",2,IF(E87="LO",6,10))+IF(T87=1,2,IF(D87=7,1,(IF(WEEKDAY(B87)=1,2,IF(WEEKDAY(B87)=7,1,0)))))) -> 2 | V87: =VLOOKUP(C87,METADATA!$A$5:$H$29,IF(E87="HI",2,IF(E87="LO",6,10))+IF(T87=1,2,IF(D87=7,1,(IF(WEEKDAY(B87)=1,2,IF(WEEKDAY(B87)=7,1,0)))))) -> 2
B88: 2025-04-04 | C88: 12 | D88: =IFERROR((INDEX(METADATA!$T$2:$T$20,MATCH(B88,METADATA!$S$2:$S$20,0))),0) -> 0 | E88: LO | F88: =VLOOKUP(C88,METADATA!$A$5:$H$29,IF(E88="HI",2,IF(E88="LO",6,10))+IF(D88=1,2,IF(D88=7,1,(IF(WEEKDAY(B88)=1,2,IF(WEEKDAY(B88)=7,1,0)))))) -> 2 | G88: =VLOOKUP(C88,METADATA!$J$5:$Q$29,IF(E88="HI",2,IF(E88="LO",6,10))+IF(D88=1,2,IF(D88=7,1,(IF(WEEKDAY(B88)=1,2,IF(WEEKDAY(B88)=7,1,0)))))) -> 2 | H88: 13547.1701 | I88: 1850.087492 | M88: 13672.91635 | N88: 0 | T88: 0 | U88: =VLOOKUP(C88,METADATA!$J$5:$Q$29,IF(E88="HI",2,IF(E88="LO",6,10))+IF(T88=1,2,IF(D88=7,1,(IF(WEEKDAY(B88)=1,2,IF(WEEKDAY(B88)=7,1,0)))))) -> 2 | V88: =VLOOKUP(C88,METADATA!$A$5:$H$29,IF(E88="HI",2,IF(E88="LO",6,10))+IF(T88=1,2,IF(D88=7,1,(IF(WEEKDAY(B88)=1,2,IF(WEEKDAY(B88)=7,1,0)))))) -> 2
B89: 2025-04-04 | C89: 13 | D89: =IFERROR((INDEX(METADATA!$T$2:$T$20,MATCH(B89,METADATA!$S$2:$S$20,0))),0) -> 0 | E89: LO | F89: =VLOOKUP(C89,METADATA!$A$5:$H$29,IF(E89="HI",2,IF(E89="LO",6,10))+IF(D89=1,2,IF(D89=7,1,(IF(WEEKDAY(B89)=1,2,IF(WEEKDAY(B89)=7,1,0)))))) -> 2 | G89: =VLOOKUP(C89,METADATA!$J$5:$Q$29,IF(E89="HI",2,IF(E89="LO",6,10))+IF(D89=1,2,IF(D89=7,1,(IF(WEEKDAY(B89)=1,2,IF(WEEKDAY(B89)=7,1,0)))))) -> 2 | H89: 13468.26489 | I89: 1860.599981 | M89: 13596.17562 | N89: 0 | T89: 0 | U89: =VLOOKUP(C89,METADATA!$J$5:$Q$29,IF(E89="HI",2,IF(E89="LO",6,10))+IF(T89=1,2,IF(D89=7,1,(IF(WEEKDAY(B89)=1,2,IF(WEEKDAY(B89)=7,1,0)))))) -> 2 | V89: =VLOOKUP(C89,METADATA!$A$5:$H$29,IF(E89="HI",2,IF(E89="LO",6,10))+IF(T89=1,2,IF(D89=7,1,(IF(WEEKDAY(B89)=1,2,IF(WEEKDAY(B89)=7,1,0)))))) -> 2
B90: 2025-04-04 | C90: 14 | D90: =IFERROR((INDEX(METADATA!$T$2:$T$20,MATCH(B90,METADATA!$S$2:$S$20,0))),0) -> 0 | E90: LO | F90: =VLOOKUP(C90,METADATA!$A$5:$H$29,IF(E90="HI",2,IF(E90="LO",6,10))+IF(D90=1,2,IF(D90=7,1,(IF(WEEKDAY(B90)=1,2,IF(WEEKDAY(B90)=7,1,0)))))) -> 2 | G90: =VLOOKUP(C90,METADATA!$J$5:$Q$29,IF(E90="HI",2,IF(E90="LO",6,10))+IF(D90=1,2,IF(D90=7,1,(IF(WEEKDAY(B90)=1,2,IF(WEEKDAY(B90)=7,1,0)))))) -> 2 | H90: 13474.62018 | I90: 1823.327021 | M90: 13597.42293 | N90: 0 | T90: 0 | U90: =VLOOKUP(C90,METADATA!$J$5:$Q$29,IF(E90="HI",2,IF(E90="LO",6,10))+IF(T90=1,2,IF(D90=7,1,(IF(WEEKDAY(B90)=1,2,IF(WEEKDAY(B90)=7,1,0)))))) -> 2 | V90: =VLOOKUP(C90,METADATA!$A$5:$H$29,IF(E90="HI",2,IF(E90="LO",6,10))+IF(T90=1,2,IF(D90=7,1,(IF(WEEKDAY(B90)=1,2,IF(WEEKDAY(B90)=7,1,0)))))) -> 2
B91: 2025-04-04 | C91: 15 | D91: =IFERROR((INDEX(METADATA!$T$2:$T$20,MATCH(B91,METADATA!$S$2:$S$20,0))),0) -> 0 | E91: LO | F91: =VLOOKUP(C91,METADATA!$A$5:$H$29,IF(E91="HI",2,IF(E91="LO",6,10))+IF(D91=1,2,IF(D91=7,1,(IF(WEEKDAY(B91)=1,2,IF(WEEKDAY(B91)=7,1,0)))))) -> 2 | G91: =VLOOKUP(C91,METADATA!$J$5:$Q$29,IF(E91="HI",2,IF(E91="LO",6,10))+IF(D91=1,2,IF(D91=7,1,(IF(WEEKDAY(B91)=1,2,IF(WEEKDAY(B91)=7,1,0)))))) -> 2 | H91: 13411.37988 | I91: 1861.415529 | M91: 13539.94011 | N91: 0 | T91: 0 | U91: =VLOOKUP(C91,METADATA!$J$5:$Q$29,IF(E91="HI",2,IF(E91="LO",6,10))+IF(T91=1,2,IF(D91=7,1,(IF(WEEKDAY(B91)=1,2,IF(WEEKDAY(B91)=7,1,0)))))) -> 2 | V91: =VLOOKUP(C91,METADATA!$A$5:$H$29,IF(E91="HI",2,IF(E91="LO",6,10))+IF(T91=1,2,IF(D91=7,1,(IF(WEEKDAY(B91)=1,2,IF(WEEKDAY(B91)=7,1,0)))))) -> 2
B92: =B68+1 -> 2025-04-04 | C92: 16 | D92: =IFERROR((INDEX(METADATA!$T$2:$T$20,MATCH(B92,METADATA!$S$2:$S$20,0))),0) -> 0 | E92: LO | F92: =VLOOKUP(C92,METADATA!$A$5:$H$29,IF(E92="HI",2,IF(E92="LO",6,10))+IF(D92=1,2,IF(D92=7,1,(IF(WEEKDAY(B92)=1,2,IF(WEEKDAY(B92)=7,1,0)))))) -> 2 | G92: =VLOOKUP(C92,METADATA!$J$5:$Q$29,IF(E92="HI",2,IF(E92="LO",6,10))+IF(D92=1,2,IF(D92=7,1,(IF(WEEKDAY(B92)=1,2,IF(WEEKDAY(B92)=7,1,0)))))) -> 2 | H92: 13405.54504 | I92: 1878.265959 | M92: 13536.4885 | N92: 0 | T92: 0 | U92: =VLOOKUP(C92,METADATA!$J$5:$Q$29,IF(E92="HI",2,IF(E92="LO",6,10))+IF(T92=1,2,IF(D92=7,1,(IF(WEEKDAY(B92)=1,2,IF(WEEKDAY(B92)=7,1,0)))))) -> 2 | V92: =VLOOKUP(C92,METADATA!$A$5:$H$29,IF(E92="HI",2,IF(E92="LO",6,10))+IF(T92=1,2,IF(D92=7,1,(IF(WEEKDAY(B92)=1,2,IF(WEEKDAY(B92)=7,1,0)))))) -> 2
B93: 2025-04-04 | C93: 17 | D93: =IFERROR((INDEX(METADATA!$T$2:$T$20,MATCH(B93,METADATA!$S$2:$S$20,0))),0) -> 0 | E93: LO | F93: =VLOOKUP(C93,METADATA!$A$5:$H$29,IF(E93="HI",2,IF(E93="LO",6,10))+IF(D93=1,2,IF(D93=7,1,(IF(WEEKDAY(B93)=1,2,IF(WEEKDAY(B93)=7,1,0)))))) -> 2 | G93: =VLOOKUP(C93,METADATA!$J$5:$Q$29,IF(E93="HI",2,IF(E93="LO",6,10))+IF(D93=1,2,IF(D93=7,1,(IF(WEEKDAY(B93)=1,2,IF(WEEKDAY(B93)=7,1,0)))))) -> 2 | H93: 13444.62012 | I93: 1831.870537 | M93: 13568.84519 | N93: 0 | T93: 0 | U93: =VLOOKUP(C93,METADATA!$J$5:$Q$29,IF(E93="HI",2,IF(E93="LO",6,10))+IF(T93=1,2,IF(D93=7,1,(IF(WEEKDAY(B93)=1,2,IF(WEEKDAY(B93)=7,1,0)))))) -> 2 | V93: =VLOOKUP(C93,METADATA!$A$5:$H$29,IF(E93="HI",2,IF(E93="LO",6,10))+IF(T93=1,2,IF(D93=7,1,(IF(WEEKDAY(B93)=1,2,IF(WEEKDAY(B93)=7,1,0)))))) -> 2
B94: 2025-04-04 | C94: 18 | D94: =IFERROR((INDEX(METADATA!$T$2:$T$20,MATCH(B94,METADATA!$S$2:$S$20,0))),0) -> 0 | E94: LO | F94: =VLOOKUP(C94,METADATA!$A$5:$H$29,IF(E94="HI",2,IF(E94="LO",6,10))+IF(D94=1,2,IF(D94=7,1,(IF(WEEKDAY(B94)=1,2,IF(WEEKDAY(B94)=7,1,0)))))) -> 1 | G94: =VLOOKUP(C94,METADATA!$J$5:$Q$29,IF(E94="HI",2,IF(E94="LO",6,10))+IF(D94=1,2,IF(D94=7,1,(IF(WEEKDAY(B94)=1,2,IF(WEEKDAY(B94)=7,1,0)))))) -> 1 | H94: 13222.17505 | I94: 1773.72047 | M94: 13340.61458 | N94: 0 | T94: 0 | U94: =VLOOKUP(C94,METADATA!$J$5:$Q$29,IF(E94="HI",2,IF(E94="LO",6,10))+IF(T94=1,2,IF(D94=7,1,(IF(WEEKDAY(B94)=1,2,IF(WEEKDAY(B94)=7,1,0)))))) -> 1 | V94: =VLOOKUP(C94,METADATA!$A$5:$H$29,IF(E94="HI",2,IF(E94="LO",6,10))+IF(T94=1,2,IF(D94=7,1,(IF(WEEKDAY(B94)=1,2,IF(WEEKDAY(B94)=7,1,0)))))) -> 1
B95: 2025-04-04 | C95: 19 | D95: =IFERROR((INDEX(METADATA!$T$2:$T$20,MATCH(B95,METADATA!$S$2:$S$20,0))),0) -> 0 | E95: LO | F95: =VLOOKUP(C95,METADATA!$A$5:$H$29,IF(E95="HI",2,IF(E95="LO",6,10))+IF(D95=1,2,IF(D95=7,1,(IF(WEEKDAY(B95)=1,2,IF(WEEKDAY(B95)=7,1,0)))))) -> 1 | G95: =VLOOKUP(C95,METADATA!$J$5:$Q$29,IF(E95="HI",2,IF(E95="LO",6,10))+IF(D95=1,2,IF(D95=7,1,(IF(WEEKDAY(B95)=1,2,IF(WEEKDAY(B95)=7,1,0)))))) -> 1 | H95: 13337.3551 | I95: 1787.424491 | M95: 13456.5942 | N95: 0 | T95: 0 | U95: =VLOOKUP(C95,METADATA!$J$5:$Q$29,IF(E95="HI",2,IF(E95="LO",6,10))+IF(T95=1,2,IF(D95=7,1,(IF(WEEKDAY(B95)=1,2,IF(WEEKDAY(B95)=7,1,0)))))) -> 1 | V95: =VLOOKUP(C95,METADATA!$A$5:$H$29,IF(E95="HI",2,IF(E95="LO",6,10))+IF(T95=1,2,IF(D95=7,1,(IF(WEEKDAY(B95)=1,2,IF(WEEKDAY(B95)=7,1,0)))))) -> 1
B96: 2025-04-04 | C96: 20 | D96: =IFERROR((INDEX(METADATA!$T$2:$T$20,MATCH(B96,METADATA!$S$2:$S$20,0))),0) -> 0 | E96: LO | F96: =VLOOKUP(C96,METADATA!$A$5:$H$29,IF(E96="HI",2,IF(E96="LO",6,10))+IF(D96=1,2,IF(D96=7,1,(IF(WEEKDAY(B96)=1,2,IF(WEEKDAY(B96)=7,1,0)))))) -> 1 | G96: =VLOOKUP(C96,METADATA!$J$5:$Q$29,IF(E96="HI",2,IF(E96="LO",6,10))+IF(D96=1,2,IF(D96=7,1,(IF(WEEKDAY(B96)=1,2,IF(WEEKDAY(B96)=7,1,0)))))) -> 2 | H96: 13473.54468 | I96: 1785.863535 | M96: 13591.38384 | N96: 0 | T96: 0 | U96: =VLOOKUP(C96,METADATA!$J$5:$Q$29,IF(E96="HI",2,IF(E96="LO",6,10))+IF(T96=1,2,IF(D96=7,1,(IF(WEEKDAY(B96)=1,2,IF(WEEKDAY(B96)=7,1,0)))))) -> 2 | V96: =VLOOKUP(C96,METADATA!$A$5:$H$29,IF(E96="HI",2,IF(E96="LO",6,10))+IF(T96=1,2,IF(D96=7,1,(IF(WEEKDAY(B96)=1,2,IF(WEEKDAY(B96)=7,1,0)))))) -> 1
B97: 2025-04-04 | C97: 21 | D97: =IFERROR((INDEX(METADATA!$T$2:$T$20,MATCH(B97,METADATA!$S$2:$S$20,0))),0) -> 0 | E97: LO | F97: =VLOOKUP(C97,METADATA!$A$5:$H$29,IF(E97="HI",2,IF(E97="LO",6,10))+IF(D97=1,2,IF(D97=7,1,(IF(WEEKDAY(B97)=1,2,IF(WEEKDAY(B97)=7,1,0)))))) -> 2 | G97: =VLOOKUP(C97,METADATA!$J$5:$Q$29,IF(E97="HI",2,IF(E97="LO",6,10))+IF(D97=1,2,IF(D97=7,1,(IF(WEEKDAY(B97)=1,2,IF(WEEKDAY(B97)=7,1,0)))))) -> 2 | H97: 13625.83984 | I97: 1875.863467 | M97: 13754.35841 | N97: 0 | T97: 0 | U97: =VLOOKUP(C97,METADATA!$J$5:$Q$29,IF(E97="HI",2,IF(E97="LO",6,10))+IF(T97=1,2,IF(D97=7,1,(IF(WEEKDAY(B97)=1,2,IF(WEEKDAY(B97)=7,1,0)))))) -> 2 | V97: =VLOOKUP(C97,METADATA!$A$5:$H$29,IF(E97="HI",2,IF(E97="LO",6,10))+IF(T97=1,2,IF(D97=7,1,(IF(WEEKDAY(B97)=1,2,IF(WEEKDAY(B97)=7,1,0)))))) -> 2
B98: 2025-04-04 | C98: 22 | D98: =IFERROR((INDEX(METADATA!$T$2:$T$20,MATCH(B98,METADATA!$S$2:$S$20,0))),0) -> 0 | E98: LO | F98: =VLOOKUP(C98,METADATA!$A$5:$H$29,IF(E98="HI",2,IF(E98="LO",6,10))+IF(D98=1,2,IF(D98=7,1,(IF(WEEKDAY(B98)=1,2,IF(WEEKDAY(B98)=7,1,0)))))) -> 3 | G98: =VLOOKUP(C98,METADATA!$J$5:$Q$29,IF(E98="HI",2,IF(E98="LO",6,10))+IF(D98=1,2,IF(D98=7,1,(IF(WEEKDAY(B98)=1,2,IF(WEEKDAY(B98)=7,1,0)))))) -> 3 | H98: 13583.03497 | I98: 1867.654488 | M98: 13710.83412 | N98: 0 | T98: 0 | U98: =VLOOKUP(C98,METADATA!$J$5:$Q$29,IF(E98="HI",2,IF(E98="LO",6,10))+IF(T98=1,2,IF(D98=7,1,(IF(WEEKDAY(B98)=1,2,IF(WEEKDAY(B98)=7,1,0)))))) -> 3 | V98: =VLOOKUP(C98,METADATA!$A$5:$H$29,IF(E98="HI",2,IF(E98="LO",6,10))+IF(T98=1,2,IF(D98=7,1,(IF(WEEKDAY(B98)=1,2,IF(WEEKDAY(B98)=7,1,0)))))) -> 3
B99: 2025-04-04 | C99: 23 | D99: =IFERROR((INDEX(METADATA!$T$2:$T$20,MATCH(B99,METADATA!$S$2:$S$20,0))),0) -> 0 | E99: LO | F99: =VLOOKUP(C99,METADATA!$A$5:$H$29,IF(E99="HI",2,IF(E99="LO",6,10))+IF(D99=1,2,IF(D99=7,1,(IF(WEEKDAY(B99)=1,2,IF(WEEKDAY(B99)=7,1,0)))))) -> 3 | G99: =VLOOKUP(C99,METADATA!$J$5:$Q$29,IF(E99="HI",2,IF(E99="LO",6,10))+IF(D99=1,2,IF(D99=7,1,(IF(WEEKDAY(B99)=1,2,IF(WEEKDAY(B99)=7,1,0)))))) -> 3 | H99: 13546.37543 | I99: 1890.338479 | M99: 13677.63382 | N99: 0 | T99: 0 | U99: =VLOOKUP(C99,METADATA!$J$5:$Q$29,IF(E99="HI",2,IF(E99="LO",6,10))+IF(T99=1,2,IF(D99=7,1,(IF(WEEKDAY(B99)=1,2,IF(WEEKDAY(B99)=7,1,0)))))) -> 3 | V99: =VLOOKUP(C99,METADATA!$A$5:$H$29,IF(E99="HI",2,IF(E99="LO",6,10))+IF(T99=1,2,IF(D99=7,1,(IF(WEEKDAY(B99)=1,2,IF(WEEKDAY(B99)=7,1,0)))))) -> 3
B100: 2025-04-05 | C100: 0 | D100: =IFERROR((INDEX(METADATA!$T$2:$T$20,MATCH(B100,METADATA!$S$2:$S$20,0))),0) -> 0 | E100: LO | F100: =VLOOKUP(C100,METADATA!$A$5:$H$29,IF(E100="HI",2,IF(E100="LO",6,10))+IF(D100=1,2,IF(D100=7,1,(IF(WEEKDAY(B100)=1,2,IF(WEEKDAY(B100)=7,1,0)))))) -> 3 | G100: =VLOOKUP(C100,METADATA!$J$5:$Q$29,IF(E100="HI",2,IF(E100="LO",6,10))+IF(D100=1,2,IF(D100=7,1,(IF(WEEKDAY(B100)=1,2,IF(WEEKDAY(B100)=7,1,0)))))) -> 3 | H100: 13523.5199 | I100: 1926.862021 | M100: 13660.10204 | N100: 0 | T100: 0 | U100: =VLOOKUP(C100,METADATA!$J$5:$Q$29,IF(E100="HI",2,IF(E100="LO",6,10))+IF(T100=1,2,IF(D100=7,1,(IF(WEEKDAY(B100)=1,2,IF(WEEKDAY(B100)=7,1,0)))))) -> 3 | V100: =VLOOKUP(C100,METADATA!$A$5:$H$29,IF(E100="HI",2,IF(E100="LO",6,10))+IF(T100=1,2,IF(D100=7,1,(IF(WEEKDAY(B100)=1,2,IF(WEEKDAY(B100)=7,1,0)))))) -> 3
B101: 2025-04-05 | C101: 1 | D101: =IFERROR((INDEX(METADATA!$T$2:$T$20,MATCH(B101,METADATA!$S$2:$S$20,0))),0) -> 0 | E101: LO | F101: =VLOOKUP(C101,METADATA!$A$5:$H$29,IF(E101="HI",2,IF(E101="LO",6,10))+IF(D101=1,2,IF(D101=7,1,(IF(WEEKDAY(B101)=1,2,IF(WEEKDAY(B101)=7,1,0)))))) -> 3 | G101: =VLOOKUP(C101,METADATA!$J$5:$Q$29,IF(E101="HI",2,IF(E101="LO",6,10))+IF(D101=1,2,IF(D101=7,1,(IF(WEEKDAY(B101)=1,2,IF(WEEKDAY(B101)=7,1,0)))))) -> 3 | H101: 13520.15497 | I101: 1955.209967 | M101: 13660.79926 | N101: 0 | T101: 0 | U101: =VLOOKUP(C101,METADATA!$J$5:$Q$29,IF(E101="HI",2,IF(E101="LO",6,10))+IF(T101=1,2,IF(D101=7,1,(IF(WEEKDAY(B101)=1,2,IF(WEEKDAY(B101)=7,1,0)))))) -> 3 | V101: =VLOOKUP(C101,METADATA!$A$5:$H$29,IF(E101="HI",2,IF(E101="LO",6,10))+IF(T101=1,2,IF(D101=7,1,(IF(WEEKDAY(B101)=1,2,IF(WEEKDAY(B101)=7,1,0)))))) -> 3
B102: 2025-04-05 | C102: 2 | D102: =IFERROR((INDEX(METADATA!$T$2:$T$20,MATCH(B102,METADATA!$S$2:$S$20,0))),0) -> 0 | E102: LO | F102: =VLOOKUP(C102,METADATA!$A$5:$H$29,IF(E102="HI",2,IF(E102="LO",6,10))+IF(D102=1,2,IF(D102=7,1,(IF(WEEKDAY(B102)=1,2,IF(WEEKDAY(B102)=7,1,0)))))) -> 3 | G102: =VLOOKUP(C102,METADATA!$J$5:$Q$29,IF(E102="HI",2,IF(E102="LO",6,10))+IF(D102=1,2,IF(D102=7,1,(IF(WEEKDAY(B102)=1,2,IF(WEEKDAY(B102)=7,1,0)))))) -> 3 | H102: 13566.95471 | I102: 1937.088468 | M102: 13704.54567 | N102: 0 | T102: 0 | U102: =VLOOKUP(C102,METADATA!$J$5:$Q$29,IF(E102="HI",2,IF(E102="LO",6,10))+IF(T102=1,2,IF(D102=7,1,(IF(WEEKDAY(B102)=1,2,IF(WEEKDAY(B102)=7,1,0)))))) -> 3 | V102: =VLOOKUP(C102,METADATA!$A$5:$H$29,IF(E102="HI",2,IF(E102="LO",6,10))+IF(T102=1,2,IF(D102=7,1,(IF(WEEKDAY(B102)=1,2,IF(WEEKDAY(B102)=7,1,0)))))) -> 3
B103: 2025-04-05 | C103: 3 | D103: =IFERROR((INDEX(METADATA!$T$2:$T$20,MATCH(B103,METADATA!$S$2:$S$20,0))),0) -> 0 | E103: LO | F103: =VLOOKUP(C103,METADATA!$A$5:$H$29,IF(E103="HI",2,IF(E103="LO",6,10))+IF(D103=1,2,IF(D103=7,1,(IF(WEEKDAY(B103)=1,2,IF(WEEKDAY(B103)=7,1,0)))))) -> 3 | G103: =VLOOKUP(C103,METADATA!$J$5:$Q$29,IF(E103="HI",2,IF(E103="LO",6,10))+IF(D103=1,2,IF(D103=7,1,(IF(WEEKDAY(B103)=1,2,IF(WEEKDAY(B103)=7,1,0)))))) -> 3 | H103: 13679.36713 | I103: 1991.015026 | M103: 13823.50266 | N103: 0 | T103: 0 | U103: =VLOOKUP(C103,METADATA!$J$5:$Q$29,IF(E103="HI",2,IF(E103="LO",6,10))+IF(T103=1,2,IF(D103=7,1,(IF(WEEKDAY(B103)=1,2,IF(WEEKDAY(B103)=7,1,0)))))) -> 3 | V103: =VLOOKUP(C103,METADATA!$A$5:$H$29,IF(E103="HI",2,IF(E103="LO",6,10))+IF(T103=1,2,IF(D103=7,1,(IF(WEEKDAY(B103)=1,2,IF(WEEKDAY(B103)=7,1,0)))))) -> 3
B104: 2025-04-05 | C104: 4 | D104: =IFERROR((INDEX(METADATA!$T$2:$T$20,MATCH(B104,METADATA!$S$2:$S$20,0))),0) -> 0 | E104: LO | F104: =VLOOKUP(C104,METADATA!$A$5:$H$29,IF(E104="HI",2,IF(E104="LO",6,10))+IF(D104=1,2,IF(D104=7,1,(IF(WEEKDAY(B104)=1,2,IF(WEEKDAY(B104)=7,1,0)))))) -> 3 | G104: =VLOOKUP(C104,METADATA!$J$5:$Q$29,IF(E104="HI",2,IF(E104="LO",6,10))+IF(D104=1,2,IF(D104=7,1,(IF(WEEKDAY(B104)=1,2,IF(WEEKDAY(B104)=7,1,0)))))) -> 3 | H104: 13596.14496 | I104: 1991.135456 | M104: 13741.17092 | N104: 0 | T104: 0 | U104: =VLOOKUP(C104,METADATA!$J$5:$Q$29,IF(E104="HI",2,IF(E104="LO",6,10))+IF(T104=1,2,IF(D104=7,1,(IF(WEEKDAY(B104)=1,2,IF(WEEKDAY(B104)=7,1,0)))))) -> 3 | V104: =VLOOKUP(C104,METADATA!$A$5:$H$29,IF(E104="HI",2,IF(E104="LO",6,10))+IF(T104=1,2,IF(D104=7,1,(IF(WEEKDAY(B104)=1,2,IF(WEEKDAY(B104)=7,1,0)))))) -> 3
B105: 2025-04-05 | C105: 5 | D105: =IFERROR((INDEX(METADATA!$T$2:$T$20,MATCH(B105,METADATA!$S$2:$S$20,0))),0) -> 0 | E105: LO | F105: =VLOOKUP(C105,METADATA!$A$5:$H$29,IF(E105="HI",2,IF(E105="LO",6,10))+IF(D105=1,2,IF(D105=7,1,(IF(WEEKDAY(B105)=1,2,IF(WEEKDAY(B105)=7,1,0)))))) -> 3 | G105: =VLOOKUP(C105,METADATA!$J$5:$Q$29,IF(E105="HI",2,IF(E105="LO",6,10))+IF(D105=1,2,IF(D105=7,1,(IF(WEEKDAY(B105)=1,2,IF(WEEKDAY(B105)=7,1,0)))))) -> 3 | H105: 13660.60754 | I105: 1924.919442 | M105: 13795.56136 | N105: 0 | T105: 0 | U105: =VLOOKUP(C105,METADATA!$J$5:$Q$29,IF(E105="HI",2,IF(E105="LO",6,10))+IF(T105=1,2,IF(D105=7,1,(IF(WEEKDAY(B105)=1,2,IF(WEEKDAY(B105)=7,1,0)))))) -> 3 | V105: =VLOOKUP(C105,METADATA!$A$5:$H$29,IF(E105="HI",2,IF(E105="LO",6,10))+IF(T105=1,2,IF(D105=7,1,(IF(WEEKDAY(B105)=1,2,IF(WEEKDAY(B105)=7,1,0)))))) -> 3
B106: 2025-04-05 | C106: 6 | D106: =IFERROR((INDEX(METADATA!$T$2:$T$20,MATCH(B106,METADATA!$S$2:$S$20,0))),0) -> 0 | E106: LO | F106: =VLOOKUP(C106,METADATA!$A$5:$H$29,IF(E106="HI",2,IF(E106="LO",6,10))+IF(D106=1,2,IF(D106=7,1,(IF(WEEKDAY(B106)=1,2,IF(WEEKDAY(B106)=7,1,0)))))) -> 3 | G106: =VLOOKUP(C106,METADATA!$J$5:$Q$29,IF(E106="HI",2,IF(E106="LO",6,10))+IF(D106=1,2,IF(D106=7,1,(IF(WEEKDAY(B106)=1,2,IF(WEEKDAY(B106)=7,1,0)))))) -> 3 | H106: 13638.00958 | I106: 1955.183027 | M106: 13777.44701 | N106: 0 | T106: 0 | U106: =VLOOKUP(C106,METADATA!$J$5:$Q$29,IF(E106="HI",2,IF(E106="LO",6,10))+IF(T106=1,2,IF(D106=7,1,(IF(WEEKDAY(B106)=1,2,IF(WEEKDAY(B106)=7,1,0)))))) -> 3 | V106: =VLOOKUP(C106,METADATA!$A$5:$H$29,IF(E106="HI",2,IF(E106="LO",6,10))+IF(T106=1,2,IF(D106=7,1,(IF(WEEKDAY(B106)=1,2,IF(WEEKDAY(B106)=7,1,0)))))) -> 3
B107: 2025-04-05 | C107: 7 | D107: =IFERROR((INDEX(METADATA!$T$2:$T$20,MATCH(B107,METADATA!$S$2:$S$20,0))),0) -> 0 | E107: LO | F107: =VLOOKUP(C107,METADATA!$A$5:$H$29,IF(E107="HI",2,IF(E107="LO",6,10))+IF(D107=1,2,IF(D107=7,1,(IF(WEEKDAY(B107)=1,2,IF(WEEKDAY(B107)=7,1,0)))))) -> 2 | G107: =VLOOKUP(C107,METADATA!$J$5:$Q$29,IF(E107="HI",2,IF(E107="LO",6,10))+IF(D107=1,2,IF(D107=7,1,(IF(WEEKDAY(B107)=1,2,IF(WEEKDAY(B107)=7,1,0)))))) -> 2 | H107: 13666.54492 | I107: 1914.240456 | M107: 13799.95531 | N107: 0 | T107: 0 | U107: =VLOOKUP(C107,METADATA!$J$5:$Q$29,IF(E107="HI",2,IF(E107="LO",6,10))+IF(T107=1,2,IF(D107=7,1,(IF(WEEKDAY(B107)=1,2,IF(WEEKDAY(B107)=7,1,0)))))) -> 2 | V107: =VLOOKUP(C107,METADATA!$A$5:$H$29,IF(E107="HI",2,IF(E107="LO",6,10))+IF(T107=1,2,IF(D107=7,1,(IF(WEEKDAY(B107)=1,2,IF(WEEKDAY(B107)=7,1,0)))))) -> 2
B108: 2025-04-05 | C108: 8 | D108: =IFERROR((INDEX(METADATA!$T$2:$T$20,MATCH(B108,METADATA!$S$2:$S$20,0))),0) -> 0 | E108: LO | F108: =VLOOKUP(C108,METADATA!$A$5:$H$29,IF(E108="HI",2,IF(E108="LO",6,10))+IF(D108=1,2,IF(D108=7,1,(IF(WEEKDAY(B108)=1,2,IF(WEEKDAY(B108)=7,1,0)))))) -> 2 | G108: =VLOOKUP(C108,METADATA!$J$5:$Q$29,IF(E108="HI",2,IF(E108="LO",6,10))+IF(D108=1,2,IF(D108=7,1,(IF(WEEKDAY(B108)=1,2,IF(WEEKDAY(B108)=7,1,0)))))) -> 2 | H108: 13698.04486 | I108: 1998.262957 | M108: 13843.0303 | N108: 0 | T108: 0 | U108: =VLOOKUP(C108,METADATA!$J$5:$Q$29,IF(E108="HI",2,IF(E108="LO",6,10))+IF(T108=1,2,IF(D108=7,1,(IF(WEEKDAY(B108)=1,2,IF(WEEKDAY(B108)=7,1,0)))))) -> 2 | V108: =VLOOKUP(C108,METADATA!$A$5:$H$29,IF(E108="HI",2,IF(E108="LO",6,10))+IF(T108=1,2,IF(D108=7,1,(IF(WEEKDAY(B108)=1,2,IF(WEEKDAY(B108)=7,1,0)))))) -> 2
B109: 2025-04-05 | C109: 9 | D109: =IFERROR((INDEX(METADATA!$T$2:$T$20,MATCH(B109,METADATA!$S$2:$S$20,0))),0) -> 0 | E109: LO | F109: =VLOOKUP(C109,METADATA!$A$5:$H$29,IF(E109="HI",2,IF(E109="LO",6,10))+IF(D109=1,2,IF(D109=7,1,(IF(WEEKDAY(B109)=1,2,IF(WEEKDAY(B109)=7,1,0)))))) -> 2 | G109: =VLOOKUP(C109,METADATA!$J$5:$Q$29,IF(E109="HI",2,IF(E109="LO",6,10))+IF(D109=1,2,IF(D109=7,1,(IF(WEEKDAY(B109)=1,2,IF(WEEKDAY(B109)=7,1,0)))))) -> 2 | H109: 13697.39032 | I109: 2056.896967 | M109: 13850.96844 | N109: 0 | T109: 0 | U109: =VLOOKUP(C109,METADATA!$J$5:$Q$29,IF(E109="HI",2,IF(E109="LO",6,10))+IF(T109=1,2,IF(D109=7,1,(IF(WEEKDAY(B109)=1,2,IF(WEEKDAY(B109)=7,1,0)))))) -> 2 | V109: =VLOOKUP(C109,METADATA!$A$5:$H$29,IF(E109="HI",2,IF(E109="LO",6,10))+IF(T109=1,2,IF(D109=7,1,(IF(WEEKDAY(B109)=1,2,IF(WEEKDAY(B109)=7,1,0)))))) -> 2
B110: 2025-04-05 | C110: 10 | D110: =IFERROR((INDEX(METADATA!$T$2:$T$20,MATCH(B110,METADATA!$S$2:$S$20,0))),0) -> 0 | E110: LO | F110: =VLOOKUP(C110,METADATA!$A$5:$H$29,IF(E110="HI",2,IF(E110="LO",6,10))+IF(D110=1,2,IF(D110=7,1,(IF(WEEKDAY(B110)=1,2,IF(WEEKDAY(B110)=7,1,0)))))) -> 2 | G110: =VLOOKUP(C110,METADATA!$J$5:$Q$29,IF(E110="HI",2,IF(E110="LO",6,10))+IF(D110=1,2,IF(D110=7,1,(IF(WEEKDAY(B110)=1,2,IF(WEEKDAY(B110)=7,1,0)))))) -> 2 | H110: 13744.70984 | I110: 2042.662003 | M110: 13895.66539 | N110: 0 | T110: 0 | U110: =VLOOKUP(C110,METADATA!$J$5:$Q$29,IF(E110="HI",2,IF(E110="LO",6,10))+IF(T110=1,2,IF(D110=7,1,(IF(WEEKDAY(B110)=1,2,IF(WEEKDAY(B110)=7,1,0)))))) -> 2 | V110: =VLOOKUP(C110,METADATA!$A$5:$H$29,IF(E110="HI",2,IF(E110="LO",6,10))+IF(T110=1,2,IF(D110=7,1,(IF(WEEKDAY(B110)=1,2,IF(WEEKDAY(B110)=7,1,0)))))) -> 2
B111: 2025-04-05 | C111: 11 | D111: =IFERROR((INDEX(METADATA!$T$2:$T$20,MATCH(B111,METADATA!$S$2:$S$20,0))),0) -> 0 | E111: LO | F111: =VLOOKUP(C111,METADATA!$A$5:$H$29,IF(E111="HI",2,IF(E111="LO",6,10))+IF(D111=1,2,IF(D111=7,1,(IF(WEEKDAY(B111)=1,2,IF(WEEKDAY(B111)=7,1,0)))))) -> 2 | G111: =VLOOKUP(C111,METADATA!$J$5:$Q$29,IF(E111="HI",2,IF(E111="LO",6,10))+IF(D111=1,2,IF(D111=7,1,(IF(WEEKDAY(B111)=1,2,IF(WEEKDAY(B111)=7,1,0)))))) -> 2 | H111: 13806.72485 | I111: 2090.376488 | M111: 13964.07265 | N111: 0 | T111: 0 | U111: =VLOOKUP(C111,METADATA!$J$5:$Q$29,IF(E111="HI",2,IF(E111="LO",6,10))+IF(T111=1,2,IF(D111=7,1,(IF(WEEKDAY(B111)=1,2,IF(WEEKDAY(B111)=7,1,0)))))) -> 2 | V111: =VLOOKUP(C111,METADATA!$A$5:$H$29,IF(E111="HI",2,IF(E111="LO",6,10))+IF(T111=1,2,IF(D111=7,1,(IF(WEEKDAY(B111)=1,2,IF(WEEKDAY(B111)=7,1,0)))))) -> 2
B112: 2025-04-05 | C112: 12 | D112: =IFERROR((INDEX(METADATA!$T$2:$T$20,MATCH(B112,METADATA!$S$2:$S$20,0))),0) -> 0 | E112: LO | F112: =VLOOKUP(C112,METADATA!$A$5:$H$29,IF(E112="HI",2,IF(E112="LO",6,10))+IF(D112=1,2,IF(D112=7,1,(IF(WEEKDAY(B112)=1,2,IF(WEEKDAY(B112)=7,1,0)))))) -> 3 | G112: =VLOOKUP(C112,METADATA!$J$5:$Q$29,IF(E112="HI",2,IF(E112="LO",6,10))+IF(D112=1,2,IF(D112=7,1,(IF(WEEKDAY(B112)=1,2,IF(WEEKDAY(B112)=7,1,0)))))) -> 3 | H112: 13816.00507 | I112: 2089.319572 | M112: 13973.09029 | N112: 0 | T112: 0 | U112: =VLOOKUP(C112,METADATA!$J$5:$Q$29,IF(E112="HI",2,IF(E112="LO",6,10))+IF(T112=1,2,IF(D112=7,1,(IF(WEEKDAY(B112)=1,2,IF(WEEKDAY(B112)=7,1,0)))))) -> 3 | V112: =VLOOKUP(C112,METADATA!$A$5:$H$29,IF(E112="HI",2,IF(E112="LO",6,10))+IF(T112=1,2,IF(D112=7,1,(IF(WEEKDAY(B112)=1,2,IF(WEEKDAY(B112)=7,1,0)))))) -> 3
B113: 2025-04-05 | C113: 13 | D113: =IFERROR((INDEX(METADATA!$T$2:$T$20,MATCH(B113,METADATA!$S$2:$S$20,0))),0) -> 0 | E113: LO | F113: =VLOOKUP(C113,METADATA!$A$5:$H$29,IF(E113="HI",2,IF(E113="LO",6,10))+IF(D113=1,2,IF(D113=7,1,(IF(WEEKDAY(B113)=1,2,IF(WEEKDAY(B113)=7,1,0)))))) -> 3 | G113: =VLOOKUP(C113,METADATA!$J$5:$Q$29,IF(E113="HI",2,IF(E113="LO",6,10))+IF(D113=1,2,IF(D113=7,1,(IF(WEEKDAY(B113)=1,2,IF(WEEKDAY(B113)=7,1,0)))))) -> 3 | H113: 13834.0451 | I113: 2098.560011 | M113: 13992.31068 | N113: 0 | T113: 0 | U113: =VLOOKUP(C113,METADATA!$J$5:$Q$29,IF(E113="HI",2,IF(E113="LO",6,10))+IF(T113=1,2,IF(D113=7,1,(IF(WEEKDAY(B113)=1,2,IF(WEEKDAY(B113)=7,1,0)))))) -> 3 | V113: =VLOOKUP(C113,METADATA!$A$5:$H$29,IF(E113="HI",2,IF(E113="LO",6,10))+IF(T113=1,2,IF(D113=7,1,(IF(WEEKDAY(B113)=1,2,IF(WEEKDAY(B113)=7,1,0)))))) -> 3
B114: 2025-04-05 | C114: 14 | D114: =IFERROR((INDEX(METADATA!$T$2:$T$20,MATCH(B114,METADATA!$S$2:$S$20,0))),0) -> 0 | E114: LO | F114: =VLOOKUP(C114,METADATA!$A$5:$H$29,IF(E114="HI",2,IF(E114="LO",6,10))+IF(D114=1,2,IF(D114=7,1,(IF(WEEKDAY(B114)=1,2,IF(WEEKDAY(B114)=7,1,0)))))) -> 3 | G114: =VLOOKUP(C114,METADATA!$J$5:$Q$29,IF(E114="HI",2,IF(E114="LO",6,10))+IF(D114=1,2,IF(D114=7,1,(IF(WEEKDAY(B114)=1,2,IF(WEEKDAY(B114)=7,1,0)))))) -> 3 | H114: 13772.2049 | I114: 2099.977962 | M114: 13931.38669 | N114: 0 | T114: 0 | U114: =VLOOKUP(C114,METADATA!$J$5:$Q$29,IF(E114="HI",2,IF(E114="LO",6,10))+IF(T114=1,2,IF(D114=7,1,(IF(WEEKDAY(B114)=1,2,IF(WEEKDAY(B114)=7,1,0)))))) -> 3 | V114: =VLOOKUP(C114,METADATA!$A$5:$H$29,IF(E114="HI",2,IF(E114="LO",6,10))+IF(T114=1,2,IF(D114=7,1,(IF(WEEKDAY(B114)=1,2,IF(WEEKDAY(B114)=7,1,0)))))) -> 3
B115: 2025-04-05 | C115: 15 | D115: =IFERROR((INDEX(METADATA!$T$2:$T$20,MATCH(B115,METADATA!$S$2:$S$20,0))),0) -> 0 | E115: LO | F115: =VLOOKUP(C115,METADATA!$A$5:$H$29,IF(E115="HI",2,IF(E115="LO",6,10))+IF(D115=1,2,IF(D115=7,1,(IF(WEEKDAY(B115)=1,2,IF(WEEKDAY(B115)=7,1,0)))))) -> 3 | G115: =VLOOKUP(C115,METADATA!$J$5:$Q$29,IF(E115="HI",2,IF(E115="LO",6,10))+IF(D115=1,2,IF(D115=7,1,(IF(WEEKDAY(B115)=1,2,IF(WEEKDAY(B115)=7,1,0)))))) -> 3 | H115: 13677.27533 | I115: 2125.223934 | M115: 13841.40301 | N115: 0 | T115: 0 | U115: =VLOOKUP(C115,METADATA!$J$5:$Q$29,IF(E115="HI",2,IF(E115="LO",6,10))+IF(T115=1,2,IF(D115=7,1,(IF(WEEKDAY(B115)=1,2,IF(WEEKDAY(B115)=7,1,0)))))) -> 3 | V115: =VLOOKUP(C115,METADATA!$A$5:$H$29,IF(E115="HI",2,IF(E115="LO",6,10))+IF(T115=1,2,IF(D115=7,1,(IF(WEEKDAY(B115)=1,2,IF(WEEKDAY(B115)=7,1,0)))))) -> 3
B116: 2025-04-05 | C116: 16 | D116: =IFERROR((INDEX(METADATA!$T$2:$T$20,MATCH(B116,METADATA!$S$2:$S$20,0))),0) -> 0 | E116: LO | F116: =VLOOKUP(C116,METADATA!$A$5:$H$29,IF(E116="HI",2,IF(E116="LO",6,10))+IF(D116=1,2,IF(D116=7,1,(IF(WEEKDAY(B116)=1,2,IF(WEEKDAY(B116)=7,1,0)))))) -> 3 | G116: =VLOOKUP(C116,METADATA!$J$5:$Q$29,IF(E116="HI",2,IF(E116="LO",6,10))+IF(D116=1,2,IF(D116=7,1,(IF(WEEKDAY(B116)=1,2,IF(WEEKDAY(B116)=7,1,0)))))) -> 3 | H116: 13637.04956 | I116: 2022.408396 | M116: 13786.19804 | N116: 0 | T116: 0 | U116: =VLOOKUP(C116,METADATA!$J$5:$Q$29,IF(E116="HI",2,IF(E116="LO",6,10))+IF(T116=1,2,IF(D116=7,1,(IF(WEEKDAY(B116)=1,2,IF(WEEKDAY(B116)=7,1,0)))))) -> 3 | V116: =VLOOKUP(C116,METADATA!$A$5:$H$29,IF(E116="HI",2,IF(E116="LO",6,10))+IF(T116=1,2,IF(D116=7,1,(IF(WEEKDAY(B116)=1,2,IF(WEEKDAY(B116)=7,1,0)))))) -> 3
B117: 2025-04-05 | C117: 17 | D117: =IFERROR((INDEX(METADATA!$T$2:$T$20,MATCH(B117,METADATA!$S$2:$S$20,0))),0) -> 0 | E117: LO | F117: =VLOOKUP(C117,METADATA!$A$5:$H$29,IF(E117="HI",2,IF(E117="LO",6,10))+IF(D117=1,2,IF(D117=7,1,(IF(WEEKDAY(B117)=1,2,IF(WEEKDAY(B117)=7,1,0)))))) -> 3 | G117: =VLOOKUP(C117,METADATA!$J$5:$Q$29,IF(E117="HI",2,IF(E117="LO",6,10))+IF(D117=1,2,IF(D117=7,1,(IF(WEEKDAY(B117)=1,2,IF(WEEKDAY(B117)=7,1,0)))))) -> 3 | H117: 13685.25476 | I117: 2017.775043 | M117: 13833.20693 | N117: 0 | T117: 0 | U117: =VLOOKUP(C117,METADATA!$J$5:$Q$29,IF(E117="HI",2,IF(E117="LO",6,10))+IF(T117=1,2,IF(D117=7,1,(IF(WEEKDAY(B117)=1,2,IF(WEEKDAY(B117)=7,1,0)))))) -> 3 | V117: =VLOOKUP(C117,METADATA!$A$5:$H$29,IF(E117="HI",2,IF(E117="LO",6,10))+IF(T117=1,2,IF(D117=7,1,(IF(WEEKDAY(B117)=1,2,IF(WEEKDAY(B117)=7,1,0)))))) -> 3
B118: 2025-04-05 | C118: 18 | D118: =IFERROR((INDEX(METADATA!$T$2:$T$20,MATCH(B118,METADATA!$S$2:$S$20,0))),0) -> 0 | E118: LO | F118: =VLOOKUP(C118,METADATA!$A$5:$H$29,IF(E118="HI",2,IF(E118="LO",6,10))+IF(D118=1,2,IF(D118=7,1,(IF(WEEKDAY(B118)=1,2,IF(WEEKDAY(B118)=7,1,0)))))) -> 2 | G118: =VLOOKUP(C118,METADATA!$J$5:$Q$29,IF(E118="HI",2,IF(E118="LO",6,10))+IF(D118=1,2,IF(D118=7,1,(IF(WEEKDAY(B118)=1,2,IF(WEEKDAY(B118)=7,1,0)))))) -> 2 | H118: 13722.03522 | I118: 2014.152937 | M118: 13869.06855 | N118: 0 | T118: 0 | U118: =VLOOKUP(C118,METADATA!$J$5:$Q$29,IF(E118="HI",2,IF(E118="LO",6,10))+IF(T118=1,2,IF(D118=7,1,(IF(WEEKDAY(B118)=1,2,IF(WEEKDAY(B118)=7,1,0)))))) -> 2 | V118: =VLOOKUP(C118,METADATA!$A$5:$H$29,IF(E118="HI",2,IF(E118="LO",6,10))+IF(T118=1,2,IF(D118=7,1,(IF(WEEKDAY(B118)=1,2,IF(WEEKDAY(B118)=7,1,0)))))) -> 2
B119: 2025-04-05 | C119: 19 | D119: =IFERROR((INDEX(METADATA!$T$2:$T$20,MATCH(B119,METADATA!$S$2:$S$20,0))),0) -> 0 | E119: LO | F119: =VLOOKUP(C119,METADATA!$A$5:$H$29,IF(E119="HI",2,IF(E119="LO",6,10))+IF(D119=1,2,IF(D119=7,1,(IF(WEEKDAY(B119)=1,2,IF(WEEKDAY(B119)=7,1,0)))))) -> 2 | G119: =VLOOKUP(C119,METADATA!$J$5:$Q$29,IF(E119="HI",2,IF(E119="LO",6,10))+IF(D119=1,2,IF(D119=7,1,(IF(WEEKDAY(B119)=1,2,IF(WEEKDAY(B119)=7,1,0)))))) -> 2 | H119: 13752.04504 | I119: 2065.55995 | M119: 13906.30364 | N119: 0 | T119: 0 | U119: =VLOOKUP(C119,METADATA!$J$5:$Q$29,IF(E119="HI",2,IF(E119="LO",6,10))+IF(T119=1,2,IF(D119=7,1,(IF(WEEKDAY(B119)=1,2,IF(WEEKDAY(B119)=7,1,0)))))) -> 2 | V119: =VLOOKUP(C119,METADATA!$A$5:$H$29,IF(E119="HI",2,IF(E119="LO",6,10))+IF(T119=1,2,IF(D119=7,1,(IF(WEEKDAY(B119)=1,2,IF(WEEKDAY(B119)=7,1,0)))))) -> 2
B120: 2025-04-05 | C120: 20 | D120: =IFERROR((INDEX(METADATA!$T$2:$T$20,MATCH(B120,METADATA!$S$2:$S$20,0))),0) -> 0 | E120: LO | F120: =VLOOKUP(C120,METADATA!$A$5:$H$29,IF(E120="HI",2,IF(E120="LO",6,10))+IF(D120=1,2,IF(D120=7,1,(IF(WEEKDAY(B120)=1,2,IF(WEEKDAY(B120)=7,1,0)))))) -> 3 | G120: =VLOOKUP(C120,METADATA!$J$5:$Q$29,IF(E120="HI",2,IF(E120="LO",6,10))+IF(D120=1,2,IF(D120=7,1,(IF(WEEKDAY(B120)=1,2,IF(WEEKDAY(B120)=7,1,0)))))) -> 3 | H120: 13784.39014 | I120: 2116.103991 | M120: 13945.87063 | N120: 0 | T120: 0 | U120: =VLOOKUP(C120,METADATA!$J$5:$Q$29,IF(E120="HI",2,IF(E120="LO",6,10))+IF(T120=1,2,IF(D120=7,1,(IF(WEEKDAY(B120)=1,2,IF(WEEKDAY(B120)=7,1,0)))))) -> 3 | V120: =VLOOKUP(C120,METADATA!$A$5:$H$29,IF(E120="HI",2,IF(E120="LO",6,10))+IF(T120=1,2,IF(D120=7,1,(IF(WEEKDAY(B120)=1,2,IF(WEEKDAY(B120)=7,1,0)))))) -> 3
B121: 2025-04-05 | C121: 21 | D121: =IFERROR((INDEX(METADATA!$T$2:$T$20,MATCH(B121,METADATA!$S$2:$S$20,0))),0) -> 0 | E121: LO | F121: =VLOOKUP(C121,METADATA!$A$5:$H$29,IF(E121="HI",2,IF(E121="LO",6,10))+IF(D121=1,2,IF(D121=7,1,(IF(WEEKDAY(B121)=1,2,IF(WEEKDAY(B121)=7,1,0)))))) -> 3 | G121: =VLOOKUP(C121,METADATA!$J$5:$Q$29,IF(E121="HI",2,IF(E121="LO",6,10))+IF(D121=1,2,IF(D121=7,1,(IF(WEEKDAY(B121)=1,2,IF(WEEKDAY(B121)=7,1,0)))))) -> 3 | H121: 13758.90033 | I121: 2062.319014 | M121: 13912.60213 | N121: 0 | T121: 0 | U121: =VLOOKUP(C121,METADATA!$J$5:$Q$29,IF(E121="HI",2,IF(E121="LO",6,10))+IF(T121=1,2,IF(D121=7,1,(IF(WEEKDAY(B121)=1,2,IF(WEEKDAY(B121)=7,1,0)))))) -> 3 | V121: =VLOOKUP(C121,METADATA!$A$5:$H$29,IF(E121="HI",2,IF(E121="LO",6,10))+IF(T121=1,2,IF(D121=7,1,(IF(WEEKDAY(B121)=1,2,IF(WEEKDAY(B121)=7,1,0)))))) -> 3
B122: 2025-04-05 | C122: 22 | D122: =IFERROR((INDEX(METADATA!$T$2:$T$20,MATCH(B122,METADATA!$S$2:$S$20,0))),0) -> 0 | E122: LO | F122: =VLOOKUP(C122,METADATA!$A$5:$H$29,IF(E122="HI",2,IF(E122="LO",6,10))+IF(D122=1,2,IF(D122=7,1,(IF(WEEKDAY(B122)=1,2,IF(WEEKDAY(B122)=7,1,0)))))) -> 3 | G122: =VLOOKUP(C122,METADATA!$J$5:$Q$29,IF(E122="HI",2,IF(E122="LO",6,10))+IF(D122=1,2,IF(D122=7,1,(IF(WEEKDAY(B122)=1,2,IF(WEEKDAY(B122)=7,1,0)))))) -> 3 | H122: 13737.16992 | I122: 2098.680012 | M122: 13896.55696 | N122: 0 | T122: 0 | U122: =VLOOKUP(C122,METADATA!$J$5:$Q$29,IF(E122="HI",2,IF(E122="LO",6,10))+IF(T122=1,2,IF(D122=7,1,(IF(WEEKDAY(B122)=1,2,IF(WEEKDAY(B122)=7,1,0)))))) -> 3 | V122: =VLOOKUP(C122,METADATA!$A$5:$H$29,IF(E122="HI",2,IF(E122="LO",6,10))+IF(T122=1,2,IF(D122=7,1,(IF(WEEKDAY(B122)=1,2,IF(WEEKDAY(B122)=7,1,0)))))) -> 3
B123: 2025-04-05 | C123: 23 | D123: =IFERROR((INDEX(METADATA!$T$2:$T$20,MATCH(B123,METADATA!$S$2:$S$20,0))),0) -> 0 | E123: LO | F123: =VLOOKUP(C123,METADATA!$A$5:$H$29,IF(E123="HI",2,IF(E123="LO",6,10))+IF(D123=1,2,IF(D123=7,1,(IF(WEEKDAY(B123)=1,2,IF(WEEKDAY(B123)=7,1,0)))))) -> 3 | G123: =VLOOKUP(C123,METADATA!$J$5:$Q$29,IF(E123="HI",2,IF(E123="LO",6,10))+IF(D123=1,2,IF(D123=7,1,(IF(WEEKDAY(B123)=1,2,IF(WEEKDAY(B123)=7,1,0)))))) -> 3 | H123: 13719.77527 | I123: 2150.90402 | M123: 13887.35473 | N123: 0 | T123: 0 | U123: =VLOOKUP(C123,METADATA!$J$5:$Q$29,IF(E123="HI",2,IF(E123="LO",6,10))+IF(T123=1,2,IF(D123=7,1,(IF(WEEKDAY(B123)=1,2,IF(WEEKDAY(B123)=7,1,0)))))) -> 3 | V123: =VLOOKUP(C123,METADATA!$A$5:$H$29,IF(E123="HI",2,IF(E123="LO",6,10))+IF(T123=1,2,IF(D123=7,1,(IF(WEEKDAY(B123)=1,2,IF(WEEKDAY(B123)=7,1,0)))))) -> 3
B124: 2025-04-06 | C124: 0 | D124: =IFERROR((INDEX(METADATA!$T$2:$T$20,MATCH(B124,METADATA!$S$2:$S$20,0))),0) -> 0 | E124: LO | F124: =VLOOKUP(C124,METADATA!$A$5:$H$29,IF(E124="HI",2,IF(E124="LO",6,10))+IF(D124=1,2,IF(D124=7,1,(IF(WEEKDAY(B124)=1,2,IF(WEEKDAY(B124)=7,1,0)))))) -> 3 | G124: =VLOOKUP(C124,METADATA!$J$5:$Q$29,IF(E124="HI",2,IF(E124="LO",6,10))+IF(D124=1,2,IF(D124=7,1,(IF(WEEKDAY(B124)=1,2,IF(WEEKDAY(B124)=7,1,0)))))) -> 3 | H124: 13800.69458 | I124: 2110.776449 | M124: 13961.18004 | N124: 0 | T124: 0 | U124: =VLOOKUP(C124,METADATA!$J$5:$Q$29,IF(E124="HI",2,IF(E124="LO",6,10))+IF(T124=1,2,IF(D124=7,1,(IF(WEEKDAY(B124)=1,2,IF(WEEKDAY(B124)=7,1,0)))))) -> 3 | V124: =VLOOKUP(C124,METADATA!$A$5:$H$29,IF(E124="HI",2,IF(E124="LO",6,10))+IF(T124=1,2,IF(D124=7,1,(IF(WEEKDAY(B124)=1,2,IF(WEEKDAY(B124)=7,1,0)))))) -> 3
B125: 2025-04-06 | C125: 1 | D125: =IFERROR((INDEX(METADATA!$T$2:$T$20,MATCH(B125,METADATA!$S$2:$S$20,0))),0) -> 0 | E125: LO | F125: =VLOOKUP(C125,METADATA!$A$5:$H$29,IF(E125="HI",2,IF(E125="LO",6,10))+IF(D125=1,2,IF(D125=7,1,(IF(WEEKDAY(B125)=1,2,IF(WEEKDAY(B125)=7,1,0)))))) -> 3 | G125: =VLOOKUP(C125,METADATA!$J$5:$Q$29,IF(E125="HI",2,IF(E125="LO",6,10))+IF(D125=1,2,IF(D125=7,1,(IF(WEEKDAY(B125)=1,2,IF(WEEKDAY(B125)=7,1,0)))))) -> 3 | H125: 13677.32489 | I125: 2058.285547 | M125: 13831.33239 | N125: 0 | T125: 0 | U125: =VLOOKUP(C125,METADATA!$J$5:$Q$29,IF(E125="HI",2,IF(E125="LO",6,10))+IF(T125=1,2,IF(D125=7,1,(IF(WEEKDAY(B125)=1,2,IF(WEEKDAY(B125)=7,1,0)))))) -> 3 | V125: =VLOOKUP(C125,METADATA!$A$5:$H$29,IF(E125="HI",2,IF(E125="LO",6,10))+IF(T125=1,2,IF(D125=7,1,(IF(WEEKDAY(B125)=1,2,IF(WEEKDAY(B125)=7,1,0)))))) -> 3
B126: 2025-04-06 | C126: 2 | D126: =IFERROR((INDEX(METADATA!$T$2:$T$20,MATCH(B126,METADATA!$S$2:$S$20,0))),0) -> 0 | E126: LO | F126: =VLOOKUP(C126,METADATA!$A$5:$H$29,IF(E126="HI",2,IF(E126="LO",6,10))+IF(D126=1,2,IF(D126=7,1,(IF(WEEKDAY(B126)=1,2,IF(WEEKDAY(B126)=7,1,0)))))) -> 3 | G126: =VLOOKUP(C126,METADATA!$J$5:$Q$29,IF(E126="HI",2,IF(E126="LO",6,10))+IF(D126=1,2,IF(D126=7,1,(IF(WEEKDAY(B126)=1,2,IF(WEEKDAY(B126)=7,1,0)))))) -> 3 | H126: 13370.36731 | I126: 1910.229494 | M126: 13506.1356 | N126: 0 | T126: 0 | U126: =VLOOKUP(C126,METADATA!$J$5:$Q$29,IF(E126="HI",2,IF(E126="LO",6,10))+IF(T126=1,2,IF(D126=7,1,(IF(WEEKDAY(B126)=1,2,IF(WEEKDAY(B126)=7,1,0)))))) -> 3 | V126: =VLOOKUP(C126,METADATA!$A$5:$H$29,IF(E126="HI",2,IF(E126="LO",6,10))+IF(T126=1,2,IF(D126=7,1,(IF(WEEKDAY(B126)=1,2,IF(WEEKDAY(B126)=7,1,0)))))) -> 3
B127: 2025-04-06 | C127: 3 | D127: =IFERROR((INDEX(METADATA!$T$2:$T$20,MATCH(B127,METADATA!$S$2:$S$20,0))),0) -> 0 | E127: LO | F127: =VLOOKUP(C127,METADATA!$A$5:$H$29,IF(E127="HI",2,IF(E127="LO",6,10))+IF(D127=1,2,IF(D127=7,1,(IF(WEEKDAY(B127)=1,2,IF(WEEKDAY(B127)=7,1,0)))))) -> 3 | G127: =VLOOKUP(C127,METADATA!$J$5:$Q$29,IF(E127="HI",2,IF(E127="LO",6,10))+IF(D127=1,2,IF(D127=7,1,(IF(WEEKDAY(B127)=1,2,IF(WEEKDAY(B127)=7,1,0)))))) -> 3 | H127: 13475.32483 | I127: 2021.904505 | M127: 13626.16883 | N127: 0 | T127: 0 | U127: =VLOOKUP(C127,METADATA!$J$5:$Q$29,IF(E127="HI",2,IF(E127="LO",6,10))+IF(T127=1,2,IF(D127=7,1,(IF(WEEKDAY(B127)=1,2,IF(WEEKDAY(B127)=7,1,0)))))) -> 3 | V127: =VLOOKUP(C127,METADATA!$A$5:$H$29,IF(E127="HI",2,IF(E127="LO",6,10))+IF(T127=1,2,IF(D127=7,1,(IF(WEEKDAY(B127)=1,2,IF(WEEKDAY(B127)=7,1,0)))))) -> 3
B128: 2025-04-06 | C128: 4 | D128: =IFERROR((INDEX(METADATA!$T$2:$T$20,MATCH(B128,METADATA!$S$2:$S$20,0))),0) -> 0 | E128: LO | F128: =VLOOKUP(C128,METADATA!$A$5:$H$29,IF(E128="HI",2,IF(E128="LO",6,10))+IF(D128=1,2,IF(D128=7,1,(IF(WEEKDAY(B128)=1,2,IF(WEEKDAY(B128)=7,1,0)))))) -> 3 | G128: =VLOOKUP(C128,METADATA!$J$5:$Q$29,IF(E128="HI",2,IF(E128="LO",6,10))+IF(D128=1,2,IF(D128=7,1,(IF(WEEKDAY(B128)=1,2,IF(WEEKDAY(B128)=7,1,0)))))) -> 3 | H128: 13481.27039 | I128: 2031.408945 | M128: 13633.46154 | N128: 0 | T128: 0 | U128: =VLOOKUP(C128,METADATA!$J$5:$Q$29,IF(E128="HI",2,IF(E128="LO",6,10))+IF(T128=1,2,IF(D128=7,1,(IF(WEEKDAY(B128)=1,2,IF(WEEKDAY(B128)=7,1,0)))))) -> 3 | V128: =VLOOKUP(C128,METADATA!$A$5:$H$29,IF(E128="HI",2,IF(E128="LO",6,10))+IF(T128=1,2,IF(D128=7,1,(IF(WEEKDAY(B128)=1,2,IF(WEEKDAY(B128)=7,1,0)))))) -> 3
B129: 2025-04-06 | C129: 5 | D129: =IFERROR((INDEX(METADATA!$T$2:$T$20,MATCH(B129,METADATA!$S$2:$S$20,0))),0) -> 0 | E129: LO | F129: =VLOOKUP(C129,METADATA!$A$5:$H$29,IF(E129="HI",2,IF(E129="LO",6,10))+IF(D129=1,2,IF(D129=7,1,(IF(WEEKDAY(B129)=1,2,IF(WEEKDAY(B129)=7,1,0)))))) -> 3 | G129: =VLOOKUP(C129,METADATA!$J$5:$Q$29,IF(E129="HI",2,IF(E129="LO",6,10))+IF(D129=1,2,IF(D129=7,1,(IF(WEEKDAY(B129)=1,2,IF(WEEKDAY(B129)=7,1,0)))))) -> 3 | H129: 12258.25974 | I129: 1650.889491 | M129: 12368.92751 | N129: 0 | T129: 0 | U129: =VLOOKUP(C129,METADATA!$J$5:$Q$29,IF(E129="HI",2,IF(E129="LO",6,10))+IF(T129=1,2,IF(D129=7,1,(IF(WEEKDAY(B129)=1,2,IF(WEEKDAY(B129)=7,1,0)))))) -> 3 | V129: =VLOOKUP(C129,METADATA!$A$5:$H$29,IF(E129="HI",2,IF(E129="LO",6,10))+IF(T129=1,2,IF(D129=7,1,(IF(WEEKDAY(B129)=1,2,IF(WEEKDAY(B129)=7,1,0)))))) -> 3
B130: 2025-04-06 | C130: 6 | D130: =IFERROR((INDEX(METADATA!$T$2:$T$20,MATCH(B130,METADATA!$S$2:$S$20,0))),0) -> 0 | E130: LO | F130: =VLOOKUP(C130,METADATA!$A$5:$H$29,IF(E130="HI",2,IF(E130="LO",6,10))+IF(D130=1,2,IF(D130=7,1,(IF(WEEKDAY(B130)=1,2,IF(WEEKDAY(B130)=7,1,0)))))) -> 3 | G130: =VLOOKUP(C130,METADATA!$J$5:$Q$29,IF(E130="HI",2,IF(E130="LO",6,10))+IF(D130=1,2,IF(D130=7,1,(IF(WEEKDAY(B130)=1,2,IF(WEEKDAY(B130)=7,1,0)))))) -> 3 | H130: 11878.20007 | I130: 1563.216042 | M130: 11980.62108 | N130: 0 | T130: 0 | U130: =VLOOKUP(C130,METADATA!$J$5:$Q$29,IF(E130="HI",2,IF(E130="LO",6,10))+IF(T130=1,2,IF(D130=7,1,(IF(WEEKDAY(B130)=1,2,IF(WEEKDAY(B130)=7,1,0)))))) -> 3 | V130: =VLOOKUP(C130,METADATA!$A$5:$H$29,IF(E130="HI",2,IF(E130="LO",6,10))+IF(T130=1,2,IF(D130=7,1,(IF(WEEKDAY(B130)=1,2,IF(WEEKDAY(B130)=7,1,0)))))) -> 3
B131: 2025-04-06 | C131: 7 | D131: =IFERROR((INDEX(METADATA!$T$2:$T$20,MATCH(B131,METADATA!$S$2:$S$20,0))),0) -> 0 | E131: LO | F131: =VLOOKUP(C131,METADATA!$A$5:$H$29,IF(E131="HI",2,IF(E131="LO",6,10))+IF(D131=1,2,IF(D131=7,1,(IF(WEEKDAY(B131)=1,2,IF(WEEKDAY(B131)=7,1,0)))))) -> 3 | G131: =VLOOKUP(C131,METADATA!$J$5:$Q$29,IF(E131="HI",2,IF(E131="LO",6,10))+IF(D131=1,2,IF(D131=7,1,(IF(WEEKDAY(B131)=1,2,IF(WEEKDAY(B131)=7,1,0)))))) -> 3 | H131: 13665.48047 | I131: 1988.252985 | M131: 13809.363 | N131: 0 | T131: 0 | U131: =VLOOKUP(C131,METADATA!$J$5:$Q$29,IF(E131="HI",2,IF(E131="LO",6,10))+IF(T131=1,2,IF(D131=7,1,(IF(WEEKDAY(B131)=1,2,IF(WEEKDAY(B131)=7,1,0)))))) -> 3 | V131: =VLOOKUP(C131,METADATA!$A$5:$H$29,IF(E131="HI",2,IF(E131="LO",6,10))+IF(T131=1,2,IF(D131=7,1,(IF(WEEKDAY(B131)=1,2,IF(WEEKDAY(B131)=7,1,0)))))) -> 3
